Workbook

Sheet Содержание
B1: 205.14.00.02 | D1: ЗАВОД «ОПК» Тел.: +7 (495) 987-4388 e-mail: info@cryspi.ru сайт: cryspi.ru
B2: Ваша скидка | C2: - | D2: 0
B3: НДС | C3: -
B4: Холодильное оборудование (встроенное холодоснабжение)
B5: Холодильные витрины Cryspi | D5: Низкотемпературные шкафы Cryspi
B6: Витрины со статической системой охлаждения | D6: VERONA
B7: Витрины OCTAVA | D7: CORSA
B8: Витрины OCTAVA Quadro | D8: ANZIO
B9: Витрины OCTAVA XL | D9: Лари Italfrost
B10: Витрины GAMMA-2 | D10: Морозильные лари с гнутыми раздвижными стеклами
B11: Витрины GAMMA Quadro | D11: Морозильные лари с прямыми раздвижными стеклами
B12: Витрины GAMMA Quadro Fish | D12: Морозильные лари с глухой крышкой
B13: Витрины GAMMA Quadro SELF | D13: Морозильные лари с глухой крышкой (крышка из нерж. стали)
B14: Витрины Sonata Quadro | D14: Морозильные лари с гнутыми раздвижными стеклами (4+)
B15: Витрины настольные Vivo 1000 | D15: Морозильные лари с прямыми раздвижными стеклами (4+)
B16: Витрины с динамической системой охлаждения | D16: Морозильные лари для мягкого мороженого
B17: Витрины Magnum | D17: Опции для ларей
B18: Витрины Magnum ECO
B19: Витрины Magnum Quadro | D19: Ларь-бонеты ITALFROST
D20: Лари-бонеты ITALFROST
B21: Витрины Cryspi без агрегата (под выносное хладоснабжение) | D21: Лари-бонеты ITALFROST Push
B22: Витрины GAMMA-2 БА | D22: Лари-бонеты RONDO с термостатом
B23: Витрины GAMMA QUADRO БА | D23: Лари-бонеты RONDO с контроллером
B24: Витрины MAGNUM ECO БА | D24: Комплектующие для ларей-бонет
B25: Витрины MAGNUM БА
B26: Витрины MAGNUM QUADRO БА | D26: Ледогенераторы
B27: Кондитерские витрины | D27: Льдогенератор кубикового льда
B28: Витрины Adagio
B29: Витрины Elegia
B30: Опции и аксессуары для витрин Cryspi
B31: Опции и аксессуары для витрин и стеллажей Cryspi
B33: Витрины Italfrigo без агрегата
B34: Витрины TOSCANA Q
B35: Витрины серии Veneto Quadro
B36: Опции для витрин Italfrigo
B38: Горки Cryspi
B39: Solo L7/L9
B40: Solo L9 Light | D40: Cтандартные цвета
B41: Solo SML | D41: Таблица расчета нестандартных RAL
B42: Опции для витрин Cryspi | D42: БРЕНДИРОВАНИЕ ЛАРЕЙ ITALFROST
B44: Стеллажи Italfrigo под выносное холодообеспечение
B45: Охлаждаемые стеллажи RIMINI
B46: Охлаждаемые стеллажи LAZIO
B47: Опции для cтеллажей Italfrigo

Sheet Витрины Cryspi
I1: ЗАВОД «ОПК» Тел.: +7 (495) 987-4388 e-mail: info@cryspi.ru сайт: cryspi.ru | N1: На главную
C3: Ваша скидка: | F3: =Содержание!D2 -> 0
C4: НДС: | F4: =IF(Лист2!A1=TRUE,"С НДС","БЕЗ НДС") -> С НДС
A7: Витрины Cryspi со встроенным агрегатом. Статическая система охлаждения
A9: Базовая комплектация: - Статическая система охлаждения, компрессор R-290; - Электронный контроллер для управления работой витрины; - Оттайка для версий ВПС - естественная (без ТЭНа), для версий ВПСН и ВПН - ТЭН (по умолчанию); - Общее светодиодное освещение для версий с высоким стеклом - стандартный - 4000К, опционально - 3000К, 6500К, мясной; - Товарный накопитель для линейных модулей (запасник с дверкой) (кроме НТ); - Упаковка в деревянную обрешетку; | G9: - Внутренний объем для витрин ВПС и ВПСН - оцинкованный металл, внутренний объем в зоне выкладки - нерж.сталь; - Внутренний объем для витрин ВПН - оцинкованный металл с полимерным покрытием - Ночные шторки для витрин с высоким стеклом; - Фронтальное стекло закаленное, не открывается; - Емкость для сбора талой воды, опционально возможно применение выпаривателя;
A10: № | B10: Комплектация | C10: Изображение | D10: Артикул | E10: Наименование | G10: Температурный режим,°C | H10: Площадь экспозиции, кв.м. | I10: Габариты, (LxWxH) мм | J10: Габариты в упаковке, (LxWxH) мм | K10: Базовая цена, руб. (с НДС) | L10: =[5]Лист2!$A$5 -> Ваша цена, руб.
A12: 1 | B12: Витрины серии OCTAVA, глубина выкладки 660 мм, стандартный Ral 3002. | K12: Опции Octava | M12: EL.2.G3002гл.В7021гл.V0.PS
D13: =D40 -> Среднетемпературные, ВПС | M13: нажмите чтобы перейти в список опций
D14: О ВПС1 120ГR290 | E14: Octava 1200 | G14: 0…+7 | H14: 0.72 | I14: 1180х955х1265 | J14: 1400х1200х1110 | K14: 72690 | L14: =ROUND(K14*(1-$F$3)/Лист2!$A$6,0) -> 72690
D15: О ВПС1 150ГR290 | E15: Octava 1500 | G15: 0…+7 | H15: 0.92 | I15: 1480х955х1265 | J15: 1700х1200х1110 | K15: 78852 | L15: =ROUND(K15*(1-$F$3)/Лист2!$A$6,0) -> 78852
D16: О ВПС1 180ГR290 | E16: Octava 1800 | G16: 0…+7 | H16: 1.12 | I16: 1780х955х1265 | J16: 2000х1200х1110 | K16: 87628 | L16: =ROUND(K16*(1-$F$3)/Лист2!$A$6,0) -> 87628
D17: =D44 -> Средне-низкотемпературные, ВПСН
D18: О ВПСН1 120ГR290 | E18: Octava SN 1200 | G18: -6…+6 | H18: 0.72 | I18: 1180х955х1265 | J18: 1400х1200х1110 | K18: 80814 | L18: =ROUND(K18*(1-$F$3)/Лист2!$A$6,0) -> 80814
D19: О ВПСН1 150ГR290 | E19: Octava SN 1500 | G19: -6…+6 | H19: 0.92 | I19: 1480х955х1265 | J19: 1700х1200х1110 | K19: 91122 | L19: =ROUND(K19*(1-$F$3)/Лист2!$A$6,0) -> 91122
D20: О ВПСН1 180ГR290 | E20: Octava SN 1800 | G20: -6…+6 | H20: 1.12 | I20: 1780х955х1265 | J20: 2000х1200х1110 | K20: 101202 | L20: =ROUND(K20*(1-$F$3)/Лист2!$A$6,0) -> 101202
D21: =D48 -> Низкотемпературные, ВПН
D22: О ВПН1 120ГR290 | E22: Octava M 1200 | G22: -13…-15 | H22: 0.69 | I22: 1180х955х1265 | J22: 1400х1200х1110 | K22: 86297 | L22: =ROUND(K22*(1-$F$3)/Лист2!$A$6,0) -> 86297
D23: О ВПН1 150ГR290 | E23: Octava M 1500 | G23: -13…-15 | H23: 0.89 | I23: 1480х955х1265 | J23: 1700х1200х1110 | K23: 98710 | L23: =ROUND(K23*(1-$F$3)/Лист2!$A$6,0) -> 98710
D24: О ВПН1 180ГR290 | E24: Octava M 1800 | G24: -13…-15 | H24: 1.08 | I24: 1780х955х1265 | J24: 2000х1200х1110 | K24: 109065 | L24: =ROUND(K24*(1-$F$3)/Лист2!$A$6,0) -> 109065
D25: Угловые витрины
D26: O ВПС1 OC90Д R290 | E26: Octava OC (угол внеш.) | G26: 0…+7 | H26: 0.79 | I26: 1180х1180х1265 | J26: 1750х1250х1110 | K26: 123382 | L26: =ROUND(K26*(1-$F$3)/Лист2!$A$6,0) -> 123382
D27: O ВПС1 IC90Д R290 | E27: Octava IC (угол внутр.) | G27: 0…+7 | H27: 0.61 | I27: 1354х1354х1265 | J27: 2050х1150х1110 | K27: 112370 | L27: =ROUND(K27*(1-$F$3)/Лист2!$A$6,0) -> 112370
D28: Кассовые прилавки
D29: O КНП 62 ББ | E29: Octava КНП 620 без боковин | G29: - | H29: - | I29: 620х917х900 | J29: 850х1100х1075 | K29: 21439 | L29: =ROUND(K29*(1-$F$3)/Лист2!$A$6,0) -> 21439
D30: O КНП 70 | E30: Octava КНП 700 с боковинами | G30: - | H30: - | I30: 700х924х900 | J30: 850х1100х1075 | K30: 30141 | L30: =ROUND(K30*(1-$F$3)/Лист2!$A$6,0) -> 30141
D31: O КНП 112 ББ | E31: Octava КНП 1120 без боковин | G31: - | H31: - | I31: 1120х924х900 | J31: 1350х1075х1075 | K31: 33616 | L31: =ROUND(K31*(1-$F$3)/Лист2!$A$6,0) -> 33616
D32: O КНП 120 | E32: Octava КНП 1200 с боковинами | G32: - | H32: - | I32: 1200х924х900 | J32: 1350х1075х1075 | K32: 43590 | L32: =ROUND(K32*(1-$F$3)/Лист2!$A$6,0) -> 43590
D33: O КНП 900 ББ | E33: Octava КНП 900 без боковин | G33: - | H33: - | I33: 900х924х900 | J33: 1130х1075х1075 | K33: 26758 | L33: =ROUND(K33*(1-$F$3)/Лист2!$A$6,0) -> 26758
D34: O КНП 980 | E34: Octava КНП 980 с боковинами | G34: - | H34: - | I34: 980х924х900 | J34: 1130х1075х1075 | K34: 38452 | L34: =ROUND(K34*(1-$F$3)/Лист2!$A$6,0) -> 38452
D35: O КНП OC90 ББ | E35: Octava КНП OC 90 без боковин | G35: - | H35: - | I35: 1592х850х900 | J35: 1600х1210х1075 | K35: 28978 | L35: =ROUND(K35*(1-$F$3)/Лист2!$A$6,0) -> 28978
D36: O КНП OC90 | E36: Octava КНП OC 90 с боковинами | G36: - | H36: - | I36: 1632х871х900 | J36: 1600х1210х1075 | K36: 37685 | L36: =ROUND(K36*(1-$F$3)/Лист2!$A$6,0) -> 37685
D37: O КНП IC90 ББ | E37: Octava КНП IC 90 без боковин | G37: - | H37: - | I37: 1592х850х900 | J37: 1780х1030х1075 | K37: 28406 | L37: =ROUND(K37*(1-$F$3)/Лист2!$A$6,0) -> 28406
D38: O КНП IC90 | E38: Octava КНП IC 90 с боковинами | G38: - | H38: - | I38: 1632х871х900 | J38: 1780х1030х1075 | K38: 37114 | L38: =ROUND(K38*(1-$F$3)/Лист2!$A$6,0) -> 37114
A39: 2 | B39: Витрины серии OCTAVA Q, глубина выкладки 660 мм, стандартный RAL 7016 | M39: EL.2.G7016гл.В7016гл.V0.PS
D40: Среднетемпературные, ВПС
D41: OKQВПС 120 R290 | E41: Octava Q 1200 | G41: 0…+7 | H41: 0.72 | I41: 1180х925х1200 | J41: 1400х1200х1110 | K41: 76796 | L41: =ROUND(K41*(1-$F$3)/Лист2!$A$6,0) -> 76796
D42: OKQВПС 150 R290 | E42: Octava Q 1500 | G42: 0…+7 | H42: 0.92 | I42: 1480х925х1200 | J42: 1700х1200х1110 | K42: 86530 | L42: =ROUND(K42*(1-$F$3)/Лист2!$A$6,0) -> 86530
D43: OKQВПС 180 R290 | E43: Octava Q 1800 | G43: 0…+7 | H43: 1.12 | I43: 1780х925х1200 | J43: 2000х1200х1110 | K43: 98954 | L43: =ROUND(K43*(1-$F$3)/Лист2!$A$6,0) -> 98954
D44: Средне-низкотемпературные, ВПСН
D45: OKQВПСН 120 R290 | E45: Octava Q SN 1200 | G45: -6…+6 | H45: 0.72 | I45: 1180х925х1200 | J45: 1400х1200х1110 | K45: 84403 | L45: =ROUND(K45*(1-$F$3)/Лист2!$A$6,0) -> 84403
D46: OKQВПСН 150 R290 | E46: Octava Q SN 1500 | G46: -6…+6 | H46: 0.92 | I46: 1480х925х1200 | J46: 1700х1200х1110 | K46: 96671 | L46: =ROUND(K46*(1-$F$3)/Лист2!$A$6,0) -> 96671
D47: OKQВПСН 180 R290 | E47: Octava Q SN 1800 | G47: -6…+6 | H47: 1.12 | I47: 1780х925х1200 | J47: 2000х1200х1110 | K47: 108842 | L47: =ROUND(K47*(1-$F$3)/Лист2!$A$6,0) -> 108842
D48: Низкотемпературные, ВПН
D49: OKQВПН 120 R290 | E49: Octava Q M 1200 | G49: -15…-18 | H49: 0.69 | I49: 1180х925х1200 | J49: 1400х1200х1110 | K49: 94781 | L49: =ROUND(K49*(1-$F$3)/Лист2!$A$6,0) -> 94781
D50: OKQВПН 150 R290 | E50: Octava Q M 1500 | G50: -15…-18 | H50: 0.89 | I50: 1480х925х1200 | J50: 1700х1200х1110 | K50: 104506 | L50: =ROUND(K50*(1-$F$3)/Лист2!$A$6,0) -> 104506
D51: OKQВПН 180 R290 | E51: Octava Q M 1800 | G51: -15…-18 | H51: 1.08 | I51: 1780х925х1200 | J51: 2000х1200х1110 | K51: 118260 | L51: =ROUND(K51*(1-$F$3)/Лист2!$A$6,0) -> 118260
A52: 3 | B52: Витрины серии OCTAVA XL, глубина выкладки 780 мм, стандартный Ral 7016. | M52: EL.2.В7016гл.V0.PS
A53: Стандартная комплектация: | D53: Среднетемпературные, ВПС
D54: OХL ВПС1 120 R290 | E54: Octava XL 1200 | G54: 0…+7 | H54: 0.93 | I54: 1218х1069х1214 | J54: 1400х1200х1110 | K54: 77015 | L54: =ROUND(K54*(1-$F$3)/Лист2!$A$6,0) -> 77015
D55: OХL ВПС1 150 R290 | E55: Octava XL 1500 | G55: 0…+7 | H55: 1.15 | I55: 1518х1069х1214 | J55: 1700х1200х1110 | K55: 85246 | L55: =ROUND(K55*(1-$F$3)/Лист2!$A$6,0) -> 85246
D56: OХL ВПС1 180 R290 | E56: Octava XL 1800 | G56: 0…+7 | H56: 1.4 | I56: 1818х1069х1214 | J56: 2000х1200х1110 | K56: 96660 | L56: =ROUND(K56*(1-$F$3)/Лист2!$A$6,0) -> 96660
D57: Средне-низкотемпературные, ВПСН
D58: OXL ВПСН1 120 R290 | E58: Octava XL SN 1200 | G58: -6…+6 | H58: 0.93 | I58: 1218х1069х1214 | J58: 1400х1200х1110 | K58: 90712 | L58: =ROUND(K58*(1-$F$3)/Лист2!$A$6,0) -> 90712
D59: OXL ВПСН1 150 R290 | E59: Octava XL SN 1500 | G59: -6…+6 | H59: 1.15 | I59: 1518х1069х1214 | J59: 1700х1200х1110 | K59: 95902 | L59: =ROUND(K59*(1-$F$3)/Лист2!$A$6,0) -> 95902
D60: OXL ВПСН1 180 R290 | E60: Octava XL SN 1800 | G60: -6…+6 | H60: 1.4 | I60: 1818х1069х1214 | J60: 2000х1200х1110 | K60: 111766 | L60: =ROUND(K60*(1-$F$3)/Лист2!$A$6,0) -> 111766
D61: Низкотемпературные, ВПН
D62: OХL ВПН1 120 R290 | E62: Octava XL М 1200 | G62: -15…-18 | H62: 0.85 | I62: 1218х1093х1300 | J62: 1400х1200х1110 | K62: 111774 | L62: =ROUND(K62*(1-$F$3)/Лист2!$A$6,0) -> 111774
D63: OХL ВПН1 150 R290 | E63: Octava XL М 1500 | G63: -15…-18 | H63: 1.1 | I63: 1518х1093х1300 | J63: 1700х1200х1110 | K63: 129315 | L63: =ROUND(K63*(1-$F$3)/Лист2!$A$6,0) -> 129315
D64: OХL ВПН1 180 R290 | E64: Octava XL М 1800 | G64: -15…-18 | H64: 1.3 | I64: 1818х1093х1300 | J64: 2000х1200х1110 | K64: 141922 | L64: =ROUND(K64*(1-$F$3)/Лист2!$A$6,0) -> 141922
D65: Кассовые прилавки
D66: OХЛ КНП 500 ББ | E66: Octava XL КНП 500 ББ | G66: - | H66: - | K66: 22116 | L66: =ROUND(K66*(1-$F$3)/Лист2!$A$6,0) -> 22116
D67: OХЛ КНП 620 ББ | E67: Octava XL КНП 620 ББ | G67: - | H67: - | I67: 600х1069х940 | J67: 750х1250х1095 | K67: 24106 | L67: =ROUND(K67*(1-$F$3)/Лист2!$A$6,0) -> 24106
A68: 4 | B68: Витрины серии GAMMA-2, глубина выкладки 760 мм, стандартный Ral 3004. | K68: Опции Gamma-2 | M68: EL.2.G3004гл.В3004гл.V0.PS
D69: Среднетемпературные, ВПС | M69: *нажмите чтобы перейти в список опций
D70: G2 ВПС1 120 R290 | E70: Gamma-2 1200 | F70: с боковинами | G70: 0…+7 | H70: 0.85 | I70: 1218х1093х1300 | J70: 1400х1200х1110 | K70: 82934 | L70: =ROUND(K70*(1-$F$3)/Лист2!$A$6,0) -> 82934
D71: G2 ВПС1 120 R290ББ | F71: без боковин | I71: 1118х1093х1300 | J71: 1400х1200х1110 | K71: 71124 | L71: =ROUND(K71*(1-$F$3)/Лист2!$A$6,0) -> 71124
D72: G2 ВПС1 150 R290 | E72: Gamma-2 1500 | F72: с боковинами | G72: 0…+7 | H72: 1.1 | I72: 1518х1093х1300 | J72: 1700х1200х1110 | K72: 88359 | L72: =ROUND(K72*(1-$F$3)/Лист2!$A$6,0) -> 88359
D73: G2 ВПС1 150 R290ББ | F73: без боковин | I73: 1418х1093х1300 | J73: 1700х1200х1110 | K73: 76549 | L73: =ROUND(K73*(1-$F$3)/Лист2!$A$6,0) -> 76549
D74: G2 ВПС1 180 R290 | E74: Gamma-2 1800 | F74: с боковинами | G74: 0…+7 | H74: 1.3 | I74: 1818х1093х1300 | J74: 2000х1200х1110 | K74: 103364 | L74: =ROUND(K74*(1-$F$3)/Лист2!$A$6,0) -> 103364
D75: G2 ВПС1 180 R290ББ | F75: без боковин | I75: 1718х1093х1300 | J75: 2000х1200х1110 | K75: 91554 | L75: =ROUND(K75*(1-$F$3)/Лист2!$A$6,0) -> 91554
D76: Средне-низкотемпературные, ВПСН
D77: G2 ВПСН1 120 R290 | E77: Gamma-2 SN 1200 | F77: с боковинами | G77: -6…+6 | H77: 0.85 | I77: 1218х1093х1300 | J77: 1400х1200х1110 | K77: 93042 | L77: =ROUND(K77*(1-$F$3)/Лист2!$A$6,0) -> 93042
D78: G2 ВПСН1 120 R290ББ | F78: без боковин | I78: 1118х1093х1300 | J78: 1400х1200х1110 | K78: 81232 | L78: =ROUND(K78*(1-$F$3)/Лист2!$A$6,0) -> 81232
D79: G2 ВПСН1 150 R290 | E79: Gamma-2 SN 1500 | F79: с боковинами | G79: -6…+6 | H79: 1.1 | I79: 1518х1093х1300 | J79: 1700х1200х1110 | K79: 104180 | L79: =ROUND(K79*(1-$F$3)/Лист2!$A$6,0) -> 104180
D80: G2 ВПСН1 150 ББ R290 | F80: без боковин | I80: 1418х1093х1300 | J80: 1700х1200х1110 | K80: 92370 | L80: =ROUND(K80*(1-$F$3)/Лист2!$A$6,0) -> 92370
D81: G2 ВПСН1 180 R290 | E81: Gamma-2 SN 1800 | F81: с боковинами | G81: -6…+6 | H81: 1.3 | I81: 1818х1093х1300 | J81: 2000х1200х1110 | K81: 118691 | L81: =ROUND(K81*(1-$F$3)/Лист2!$A$6,0) -> 118691
D82: G2 ВПСН1 180 ББ R290 | F82: без боковин | I82: 1718х1093х1300 | J82: 2000х1200х1110 | K82: 106881 | L82: =ROUND(K82*(1-$F$3)/Лист2!$A$6,0) -> 106881
D83: Средне-низкотемпературные для рыбы, ВПСН
D84: G2ВПСН1 120F R290 | E84: Gamma-2 Fish 1200 | F84: с боковинами | G84: -6…+6 | H84: 0.85 | I84: 1218х1093х1300 | J84: 1400х1200х1110 | K84: 103235 | L84: =ROUND(K84*(1-$F$3)/Лист2!$A$6,0) -> 103235
F85: без боковин | I85: 1118х1093х1300 | J85: 1400х1200х1110 | K85: 91425 | L85: =ROUND(K85*(1-$F$3)/Лист2!$A$6,0) -> 91425
D86: G2ВПСН1 150F R290 | E86: Gamma-2 Fish 1500 | F86: с боковинами | G86: -6…+6 | H86: 1.1 | I86: 1518х1093х1300 | J86: 1700х1200х1110 | K86: 119488 | L86: =ROUND(K86*(1-$F$3)/Лист2!$A$6,0) -> 119488
F87: без боковин | I87: 1418х1093х1300 | J87: 1700х1200х1110 | K87: 107678 | L87: =ROUND(K87*(1-$F$3)/Лист2!$A$6,0) -> 107678
D88: G2ВПСН1 180F R290 | E88: Gamma-2 Fish 1800 | F88: с боковинами | G88: -6…+6 | H88: 1.3 | I88: 1818х1093х1300 | J88: 2000х1200х1110 | K88: 154529 | L88: =ROUND(K88*(1-$F$3)/Лист2!$A$6,0) -> 154529
F89: без боковин | I89: 1718х1093х1300 | J89: 2000х1200х1110 | K89: 142719 | L89: =ROUND(K89*(1-$F$3)/Лист2!$A$6,0) -> 142719
D90: Низкотемпературные, ВПН
D91: G2 ВПН1 120 R290 | E91: Gamma-2 М 1200 | F91: с боковинами | G91: от -18 | H91: 0.85 | I91: 1218х1093х1300 | J91: 1400х1200х1110 | K91: 114854 | L91: =ROUND(K91*(1-$F$3)/Лист2!$A$6,0) -> 114854
D92: G2 ВПН1 120 ББ R290 | F92: без боковин | I92: 1118х1093х1300 | J92: 1400х1200х1110 | K92: 102862 | L92: =ROUND(K92*(1-$F$3)/Лист2!$A$6,0) -> 102862
D93: G2 ВПН1 150 R290 | E93: Gamma-2 М 1500 | F93: с боковинами | G93: от -18 | H93: 1.1 | I93: 1518х1093х1300 | J93: 1700х1200х1110 | K93: 131317 | L93: =ROUND(K93*(1-$F$3)/Лист2!$A$6,0) -> 131317
D94: G2 ВПН1 150 ББ R290 | F94: без боковин | I94: 1418х1093х1300 | J94: 1700х1200х1110 | K94: 119325 | L94: =ROUND(K94*(1-$F$3)/Лист2!$A$6,0) -> 119325
D95: G2 ВПН1 180 R290 | E95: Gamma-2 М 1800 | F95: с боковинами | G95: от -18 | H95: 1.3 | I95: 1818х1093х1300 | J95: 2000х1200х1110 | K95: 144590 | L95: =ROUND(K95*(1-$F$3)/Лист2!$A$6,0) -> 144590
D96: G2 ВПН1 180 ББ R290 | F96: без боковин | I96: 1718х1093х1300 | J96: 2000х1200х1110 | K96: 132598 | L96: =ROUND(K96*(1-$F$3)/Лист2!$A$6,0) -> 132598
D97: Угловые витрины (ВПС)
D98: G2ВПС1 ОС90Д R290 | E98: Gamma-2 OC 90 (угол внеш.) | F98: с боковинами | G98: 0…+7 | H98: 0.92 | I98: 1180х1180х1300 | J98: 1750х1400х1110 | K98: 120667 | L98: =ROUND(K98*(1-$F$3)/Лист2!$A$6,0) -> 120667
D99: G2ВПС1 ОС90Д R290ББ | F99: без боковин | I99: 1130х1130х1300 | J99: 1750х1400х1110 | K99: 108857 | L99: =ROUND(K99*(1-$F$3)/Лист2!$A$6,0) -> 108857
D100: G2ВПС1 IС90 R290 | E100: Gamma-2 IC 90 (угол внутр.) | F100: с боковинами | G100: 0…+7 | H100: 0.74 | I100: 1355х1355х1300 | J100: 2050х1200х1110 | K100: 133493 | L100: =ROUND(K100*(1-$F$3)/Лист2!$A$6,0) -> 133493
D101: G2ВПС1 IС90 R290 ББ | F101: без боковин | I101: 1305х1305х1300 | J101: 2050х1200х1110 | K101: 121683 | L101: =ROUND(K101*(1-$F$3)/Лист2!$A$6,0) -> 121683
D102: Кассовые прилавки
D103: G2 КНП 102 | E103: Gamma-2 КНП 1020 | F103: с боковинами | G103: - | H103: - | I103: 1000х1100х940 | J103: 1170х1250х1095 | K103: 32935 | L103: =ROUND(K103*(1-$F$3)/Лист2!$A$6,0) -> 32935
D104: G2 КНП 92 ББ | E104: Gamma-2 КНП 920 ББ | F104: без боковин | G104: - | H104: - | I104: 920х1100х940 | J104: 1170х1250х1095 | K104: 26812 | L104: =ROUND(K104*(1-$F$3)/Лист2!$A$6,0) -> 26812
D105: G2 КНП 80 | E105: Gamma-2 КНП 800 | F105: с боковинами | G105: - | H105: - | I105: 800х1100х940 | J105: 950хх1250х1095 | K105: 31145 | L105: =ROUND(K105*(1-$F$3)/Лист2!$A$6,0) -> 31145
D106: G2 КНП 80 ББ | E106: Gamma-2 КНП 800 ББ | F106: без боковин | K106: 26810 | L106: =ROUND(K106*(1-$F$3)/Лист2!$A$6,0) -> 26810
D107: G2 КНП 70 | E107: Gamma-2 КНП 700 | F107: с боковинами | I107: 700х1100х940 | J107: 850х1250х1095 | K107: 30471 | L107: =ROUND(K107*(1-$F$3)/Лист2!$A$6,0) -> 30471
D108: G2 КНП 70 ББ | E108: Gamma-2 КНП 700 ББ | F108: без боковин | G108: - | H108: - | I108: 700х1100х940 | J108: 850х1250х1095 | K108: 23241 | L108: =ROUND(K108*(1-$F$3)/Лист2!$A$6,0) -> 23241
D109: G2 КНП 60 | E109: Gamma-2 КНП 600 | F109: с боковинами | G109: - | H109: - | I109: 600х1100х940 | J109: 750х1250х1095 | K109: 29134 | L109: =ROUND(K109*(1-$F$3)/Лист2!$A$6,0) -> 29134
D110: G2 КНП 60 ББ | E110: Gamma-2 КНП 600 ББ | F110: без боковин | G110: - | H110: - | I110: 600х1100х940 | J110: 750х1250х1095 | K110: 21904 | L110: =ROUND(K110*(1-$F$3)/Лист2!$A$6,0) -> 21904
D111: G2 КНП 50 ББ | E111: Gamma-2 КНП 500 ББ | F111: без боковин | G111: - | H111: - | I111: 500х1100х940 | J111: 650х1250х1095 | K111: 19070 | L111: =ROUND(K111*(1-$F$3)/Лист2!$A$6,0) -> 19070
D112: G2 КНП OC90 | E112: Gamma-2 ОС КНП (угол внеш.) | F112: с боковинами | G112: - | H112: - | I112: 1145х1145х930 | J112: 1850х1390х1095 | K112: 43760 | L112: =ROUND(K112*(1-$F$3)/Лист2!$A$6,0) -> 43760
D113: G2 КНП OC90 ББ | F113: без боковин | I113: 1095х1095х930 | J113: 1850х1390х1095 | K113: 33698 | L113: =ROUND(K113*(1-$F$3)/Лист2!$A$6,0) -> 33698
D114: G2 КНП IC90 | E114: Gamma-2 IC КНП (угол внутр.) | F114: с боковинами | G114: - | H114: - | I114: 1275х1275х930 | J114: 2050х1300х1095 | K114: 42995 | L114: =ROUND(K114*(1-$F$3)/Лист2!$A$6,0) -> 42995
D115: G2 КНП IC90 ББ | F115: без боковин | I115: 1225х1225х930 | J115: 2050х1300х1095 | K115: 32934 | L115: =ROUND(K115*(1-$F$3)/Лист2!$A$6,0) -> 32934
A116: 5 | B116: Витрины серии GAMMA-2 LED, глубина выкладки 760 мм, стандартный Ral 3004. | O116: =K116/M116 -> 
B117: Стандартная комплектация: | E117: Среднетемпературные | O117: =K117/M117 -> 
B118: - агрегат | E118: Gamma-2 1200 LED | F118: с боковинами | G118: 0…+7 | H118: 0.85 | I118: 1218х1093х1300 | K118: 79279 | L118: =ROUND(K118*(1-$F$3)/Лист2!$A$6,0) -> 79279 | O118: =K118/M118 -> 
B119: - испаритель | F119: без боковин | I119: 1118х1093х1300 | K119: 68488 | L119: =ROUND(K119*(1-$F$3)/Лист2!$A$6,0) -> 68488 | O119: =K119/M119 -> 
B120: - шторки из оргстекла | E120: Gamma-2 1500 LED | F120: с боковинами | G120: 0…+7 | H120: 1.1 | I120: 1518х1093х1300 | K120: 84487 | L120: =ROUND(K120*(1-$F$3)/Лист2!$A$6,0) -> 84487 | O120: =K120/M120 -> 
B121: - комплект боковин и боковых стекол | F121: без боковин | I121: 1418х1093х1300 | K121: 73696 | L121: =ROUND(K121*(1-$F$3)/Лист2!$A$6,0) -> 73696 | O121: =K121/M121 -> 
B122: - комплект фронтальных стекол | E122: Gamma-2 1800 LED | F122: с боковинами | G122: 0…+7 | H122: 1.3 | I122: 1818х1093х1300 | K122: 99221 | L122: =ROUND(K122*(1-$F$3)/Лист2!$A$6,0) -> 99221 | O122: =K122/M122 -> 
B123: - экспозиционные полки из шлифованной стали | F123: без боковин | I123: 1718х1093х1300 | K123: 88105 | L123: =ROUND(K123*(1-$F$3)/Лист2!$A$6,0) -> 88105 | O123: =K123/M123 -> 
B124: - ёмкость для сбора талой воды | E124: Средне-низкотемпературные | O124: =K124/M124 -> 
B125: - светодиодная подсветка | E125: Gamma-2 SN 1200 LED | F125: с боковинами | G125: -6…+6 | H125: 0.85 | I125: 1218х1093х1300 | K125: 89313 | L125: =ROUND(K125*(1-$F$3)/Лист2!$A$6,0) -> 89313 | O125: =K125/M125 -> 
B126: - электронный пульт управления | F126: без боковин | I126: 1118х1093х1300 | K126: 78198 | L126: =ROUND(K126*(1-$F$3)/Лист2!$A$6,0) -> 78198 | O126: =K126/M126 -> 
B127: - деревянная тара | E127: Gamma-2 SN 1500 LED | F127: с боковинами | G127: -6…+6 | H127: 1.1 | I127: 1518х1093х1300 | K127: 100002 | L127: =ROUND(K127*(1-$F$3)/Лист2!$A$6,0) -> 100002 | O127: =K127/M127 -> 
F128: без боковин | I128: 1418х1093х1300 | K128: 88888 | L128: =ROUND(K128*(1-$F$3)/Лист2!$A$6,0) -> 88888 | O128: =K128/M128 -> 
E129: Gamma-2 SN 1800 LED | F129: с боковинами | G129: -6…+6 | H129: 1.3 | I129: 1818х1093х1300 | K129: 113934 | L129: =ROUND(K129*(1-$F$3)/Лист2!$A$6,0) -> 113934 | O129: =K129/M129 -> 
F130: без боковин | I130: 1718х1093х1300 | K130: 102818 | L130: =ROUND(K130*(1-$F$3)/Лист2!$A$6,0) -> 102818 | O130: =K130/M130 -> 
E131: Низкотемпературные | O131: =K131/M131 -> 
E132: Gamma-2 М 1200 LED | F132: с боковинами | G132: от -18 | H132: 0.85 | I132: 1218х1093х1300 | K132: 110250 | L132: =ROUND(K132*(1-$F$3)/Лист2!$A$6,0) -> 110250 | O132: =K132/M132 -> 
F133: без боковин | I133: 1118х1093х1300 | K133: 98964 | L133: =ROUND(K133*(1-$F$3)/Лист2!$A$6,0) -> 98964 | O133: =K133/M133 -> 
E134: Gamma-2 М 1500 LED | F134: с боковинами | G134: от -18 | H134: 1.1 | I134: 1518х1093х1300 | K134: 126052 | L134: =ROUND(K134*(1-$F$3)/Лист2!$A$6,0) -> 126052 | O134: =K134/M134 -> 
F135: без боковин | I135: 1418х1093х1300 | K135: 114766 | L135: =ROUND(K135*(1-$F$3)/Лист2!$A$6,0) -> 114766 | O135: =K135/M135 -> 
E136: Gamma-2 М 1800 LED | F136: с боковинами | G136: от -18 | H136: 1.3 | I136: 1818х1093х1300 | K136: 138793 | L136: =ROUND(K136*(1-$F$3)/Лист2!$A$6,0) -> 138793 | O136: =K136/M136 -> 
F137: без боковин | I137: 1718х1093х1300 | K137: 127507 | L137: =ROUND(K137*(1-$F$3)/Лист2!$A$6,0) -> 127507 | O137: =K137/M137 -> 
A138: 6 | B138: Витрины серии GAMMA-2 FISH, глубина выкладки 760 мм, стандартный Ral 3004. | O138: =K138/M138 -> 
E139: Средне-низкотемпературные | O139: =K139/M139 -> 
B140: - усиленный поддон для льда и рыбы | E140: Gamma-2 SN FISH 1200 | F140: с боковинами | G140: -6…+6 | H140: 0.85 | I140: 1218х1093х1300 | K140: 97693 | L140: =ROUND(K140*(1-$F$3)/Лист2!$A$6,0) -> 97693 | O140: =K140/M140 -> 
B141: - коррозионностойкая решётка защиты испарителя | F141: без боковин | I141: 1118х1093х1300 | K141: 86578 | L141: =ROUND(K141*(1-$F$3)/Лист2!$A$6,0) -> 86578 | O141: =K141/M141 -> 
B142: - увеличенный слив (Д 40 мм) | E142: Gamma-2 SN FISH 1500 | F142: с боковинами | G142: -6…+6 | H142: 1.1 | I142: 1518х1093х1300 | K142: 112989 | L142: =ROUND(K142*(1-$F$3)/Лист2!$A$6,0) -> 112989 | O142: =K142/M142 -> 
F143: без боковин | I143: 1418х1093х1300 | K143: 101874 | L143: =ROUND(K143*(1-$F$3)/Лист2!$A$6,0) -> 101874 | O143: =K143/M143 -> 
E144: Gamma-2 SN FISH 1800 | F144: с боковинами | G144: -6…+6 | H144: 1.3 | I144: 1818х1093х1300 | K144: 126856 | L144: =ROUND(K144*(1-$F$3)/Лист2!$A$6,0) -> 126856 | O144: =K144/M144 -> 
F145: без боковин | I145: 1718х1093х1300 | K145: 115742 | L145: =ROUND(K145*(1-$F$3)/Лист2!$A$6,0) -> 115742 | O145: =K145/M145 -> 
A146: 5 | B146: Витрины серии GAMMA QUADRO, глубина выкладки 760 мм, стандартный Ral 9016/7016. | K146: Опции Gamma Quadro | M146: EL.2.G9016гл.В7016гл.V0.PS
A147: Стандартная комплектация: | D147: Среднетемпературные, ВПС | M147: *нажмите чтобы перейти в список опций
D148: G2QUADLXВПС1 120R290 | E148: Gamma Quadro 1200 | F148: с боковинами | G148: 0…+7 | H148: 0.85 | I148: 1218х1087х1209 | J148: 1400х1200х1110 | K148: 100346 | L148: =ROUND(K148*(1-$F$3)/Лист2!$A$6,0) -> 100346
D149: G2QUADLXВПС1 120R290ББ | F149: без боковин | I149: 1118х1087х1209 | J149: 1400х1200х1110 | K149: 87960 | L149: =ROUND(K149*(1-$F$3)/Лист2!$A$6,0) -> 87960
D150: G2QUADLXВПС1 150R290 | E150: Gamma Quadro 1500 | F150: с боковинами | G150: 0…+7 | H150: 1.1 | I150: 1518х1087х1209 | J150: 1700х1200х1110 | K150: 107222 | L150: =ROUND(K150*(1-$F$3)/Лист2!$A$6,0) -> 107222
D151: G2QUADLXВПС1 150R290ББ | F151: без боковин | I151: 1418х1087х1209 | J151: 1700х1200х1110 | K151: 94836 | L151: =ROUND(K151*(1-$F$3)/Лист2!$A$6,0) -> 94836
D152: G2QUADLXВПС1 180R290 | E152: Gamma Quadro 1800 | F152: с боковинами | G152: 0…+7 | H152: 1.3 | I152: 1818х1087х1209 | J152: 2000х1200х1110 | K152: 128570 | L152: =ROUND(K152*(1-$F$3)/Лист2!$A$6,0) -> 128570
D153: G2QUADLXВПС1 180R290ББ | F153: без боковин | I153: 1718х1087х1209 | J153: 2000х1200х1110 | K153: 116184 | L153: =ROUND(K153*(1-$F$3)/Лист2!$A$6,0) -> 116184
D154: Средне-низкотемпературные, ВПСН
D155: G2QUADLXВПСН1 120R290 | E155: Gamma Quadro SN 1200 | F155: с боковинами | G155: -6…+6 | H155: 0.85 | I155: 1218х1087х1209 | J155: 1400х1200х1110 | K155: 108528 | L155: =ROUND(K155*(1-$F$3)/Лист2!$A$6,0) -> 108528
D156: G2QLXВПСН1 120VR290 | F156: без боковин | I156: 1118х1087х1209 | J156: 1400х1200х1110 | K156: 96142 | L156: =ROUND(K156*(1-$F$3)/Лист2!$A$6,0) -> 96142
D157: G2QUADLXВПСН1 150R290 | E157: Gamma Quadro SN 1500 | F157: с боковинами | G157: -6…+6 | H157: 1.1 | I157: 1518х1087х1209 | J157: 1700х1200х1110 | K157: 125035 | L157: =ROUND(K157*(1-$F$3)/Лист2!$A$6,0) -> 125035
D158: G2QUADLXВПСН1 150R290ББ | F158: без боковин | I158: 1418х1087х1209 | J158: 1700х1200х1110 | K158: 112649 | L158: =ROUND(K158*(1-$F$3)/Лист2!$A$6,0) -> 112649
D159: G2QUADLXВПСН1 180R290 | E159: Gamma Quadro SN 1800 | F159: с боковинами | G159: -6…+6 | H159: 1.3 | I159: 1818х1087х1209 | J159: 2000х1200х1110 | K159: 141966 | L159: =ROUND(K159*(1-$F$3)/Лист2!$A$6,0) -> 141966
D160: G2QUADLXВПСН1 180R290ББ | F160: без боковин | I160: 1718х1087х1209 | J160: 2000х1200х1110 | K160: 129580 | L160: =ROUND(K160*(1-$F$3)/Лист2!$A$6,0) -> 129580
D161: Низкотемпературные, ВПН
D162: G2QUADLXВПН1 120R290 | E162: Gamma Quadro М 1200 | F162: с боковинами | G162: от -18 | H162: 0.85 | I162: 1218х1087х1209 | J162: 1400х1200х1110 | K162: 126878 | L162: =ROUND(K162*(1-$F$3)/Лист2!$A$6,0) -> 126878
D163: G2QUADLXВПН1 120R290 ББ | F163: без боковин | I163: 1118х1087х1209 | J163: 1400х1200х1110 | K163: 111464 | L163: =ROUND(K163*(1-$F$3)/Лист2!$A$6,0) -> 111464
D164: G2QUADLXВПН1 150R290 | E164: Gamma Quadro М 1500 | F164: с боковинами | G164: от -18 | H164: 1.1 | I164: 1518х1087х1209 | J164: 1700х1200х1110 | K164: 144395 | L164: =ROUND(K164*(1-$F$3)/Лист2!$A$6,0) -> 144395
F165: без боковин | I165: 1418х1087х1209 | J165: 1700х1200х1110 | K165: 128981 | L165: =ROUND(K165*(1-$F$3)/Лист2!$A$6,0) -> 128981
D166: G2QUADLXВПН1 180R290 | E166: Gamma Quadro М 1800 | F166: с боковинами | G166: от -18 | H166: 1.3 | I166: 1818х1087х1209 | J166: 2000х1200х1110 | K166: 167859 | L166: =ROUND(K166*(1-$F$3)/Лист2!$A$6,0) -> 167859
D167: G2QUADLXВПН1 180R290ББ | F167: без боковин | I167: 1718х1087х1209 | J167: 2000х1200х1110 | K167: 152445 | L167: =ROUND(K167*(1-$F$3)/Лист2!$A$6,0) -> 152445
D168: Угловые витрины (ВПС)
D169: G2QUADLXВПС1 OC90Д R290 | E169: Gamma Quadro OC 90 (угол внеш.) | F169: с боковинами | G169: 0…+7 | H169: 0.92 | I169: 1180х1180х1209 | J169: 1750х1400х1110 | K169: 150092 | L169: =ROUND(K169*(1-$F$3)/Лист2!$A$6,0) -> 150092
D170: G2QUADLXВПС1 OC90Д ББR290 | F170: без боковин | I170: 1130х1130х1209 | J170: 1750х1400х1110 | K170: 137708 | L170: =ROUND(K170*(1-$F$3)/Лист2!$A$6,0) -> 137708
D171: G2QUADLXВПС1 IC90R290 | E171: Gamma Quadro IC 90 (угол внутр.) | F171: с боковинами | G171: 0…+7 | H171: 0.74 | I171: 1355х1355х1209 | J171: 2050х1200х1110 | K171: 150092 | L171: =ROUND(K171*(1-$F$3)/Лист2!$A$6,0) -> 150092
D172: G2QUADLXВПС1 IC90ББR290 | F172: без боковин | I172: 1305х1305х1209 | J172: 2050х1200х1110 | K172: 137708 | L172: =ROUND(K172*(1-$F$3)/Лист2!$A$6,0) -> 137708
D173: Кассовые прилавки
D174: G2Q КНП LX 500RББ | E174: Gamma Quadro КНП 500 ББ | F174: без боковин | G174: - | H174: - | I174: 500х1087х940 | J174: 750х1250х1085 | K174: 21900 | L174: =ROUND(K174*(1-$F$3)/Лист2!$A$6,0) -> 21900
D175: G2Q КНП LX 800RББ | E175: Gamma Quadro КНП 800 ББ | F175: без боковин | I175: 800х1087х940 | J175: 1050х1250х1085 | K175: 36096 | L175: =ROUND(K175*(1-$F$3)/Лист2!$A$6,0) -> 36096
D176: G2Q КНП LX 1000RББ | E176: Gamma Quadro КНП 1000 ББ | F176: без боковин | I176: 1000х1087х940 | J176: 1250х1250х1085 | K176: 42245 | L176: =ROUND(K176*(1-$F$3)/Лист2!$A$6,0) -> 42245
D177: G2QLX КНП ОC90R ББ | E177: Gamma Quadro ОС КНП (угол внеш.) | F177: без боковин | G177: - | H177: - | I177: 1611х1192х940 | J177: 1850х1390х1095 | K177: 39702 | L177: =ROUND(K177*(1-$F$3)/Лист2!$A$6,0) -> 39702
D178: G2QLX КНП IC90R ББ | E178: Gamma Quadro IС КНП (угол внутр.) | F178: без боковин | I178: 1834х1096х940 | J178: 2050х1300х1085 | K178: 33921 | L178: =ROUND(K178*(1-$F$3)/Лист2!$A$6,0) -> 33921
A179: 6 | B179: Витрины серии GAMMA Quadro FISH, глубина выкладки 760 мм, стандартный Ral 3004. | M179: EL.2.G3004гл.В7016гл.V0.PS
D180: Средне-низкотемпературные, ВПСН
D181: G2QULXВПСН1 120F R290 | E181: Gamma Quadro SN FISH 1200 LED | F181: с боковинами | G181: -6…+6 | H181: 0.85 | I181: 1218х1093х1300 | J181: 1400х1200х1110 | K181: 118474 | L181: =ROUND(K181*(1-$F$3)/Лист2!$A$6,0) -> 118474
D182: G2QULXВПСН1 120F R290 ББ | F182: без боковин | I182: 1118х1093х1300 | J182: 1400х1200х1110 | K182: 106088 | L182: =ROUND(K182*(1-$F$3)/Лист2!$A$6,0) -> 106088
D183: G2QULXВПСН1 150F R290 | E183: Gamma Quadro SN FISH 1500 LED | F183: с боковинами | G183: -6…+6 | H183: 1.1 | I183: 1518х1093х1300 | J183: 1700х1200х1110 | K183: 137657 | L183: =ROUND(K183*(1-$F$3)/Лист2!$A$6,0) -> 137657
D184: G2QULXВПСН1 150F R290 ББ | F184: без боковин | I184: 1418х1093х1300 | J184: 1700х1200х1110 | K184: 125271 | L184: =ROUND(K184*(1-$F$3)/Лист2!$A$6,0) -> 125271
D185: G2QULXВПСН1 180F R290 | E185: Gamma Quadro SN FISH 1800 LED | F185: с боковинами | G185: -6…+6 | H185: 1.3 | I185: 1818х1093х1300 | J185: 2000х1200х1110 | K185: 155105 | L185: =ROUND(K185*(1-$F$3)/Лист2!$A$6,0) -> 155105
D186: G2QULXВПСН1 180F R290 ББ | F186: без боковин | I186: 1718х1093х1300 | J186: 2000х1200х1110 | K186: 142719 | L186: =ROUND(K186*(1-$F$3)/Лист2!$A$6,0) -> 142719
A187: 7 | B187: Витрины серии GAMMA Quadro SELF (низкое стекло), динамический холод, без запасника, глубина выкладки 760 мм, стандартный Ral 3004. | M187: EL.0.G3004гл.В7016гл.V0.PS
D188: G2QLXВПС1 SG120 R290 | E188: Gamma Quadro Self 1200 (динамический холод) | F188: с боковинами | G188: 0…+7 | H188: 0.85 | I188: 1204х1096х934 | J188: 1400х1200х1110 | K188: 109641 | L188: =ROUND(K188*(1-$F$3)/Лист2!$A$6,0) -> 109641
F189: без боковин | J189: 1400х1200х1110 | K189: 102131 | L189: =ROUND(K189*(1-$F$3)/Лист2!$A$6,0) -> 102131
D190: G2QLXВПС1 SGF120 R290 | E190: Gamma Quadro Self Fish 1200 (динамический холод) | F190: с боковинами | G190: 0…+7 | H190: 0.85 | I190: 1204х1096х934 | J190: 1400х1200х1110 | K190: 120606 | L190: =ROUND(K190*(1-$F$3)/Лист2!$A$6,0) -> 120606
F191: без боковин | J191: 1400х1200х1110 | K191: 113096 | L191: =ROUND(K191*(1-$F$3)/Лист2!$A$6,0) -> 113096
A194: 8 | B194: Витрины серии Sonata Quadro, глубина выкладки 760 мм, стандартный Ral 7016 | M194: EL.2.G7016гл.В7016гл.V0.PS
D195: Среднетемпературные, ВПС
D196: SONQВПС120R290 | E196: Sonata Quadro 1200 LED | F196: с боковинами | G196: 0…+7 | H196: 0.85 | I196: 1218х1087х1209 | J196: 1400х1200х1110 | K196: 89697 | L196: =ROUND(K196*(1-$F$3)/Лист2!$A$6,0) -> 89697
D197: SONQВПС150R290 | E197: Sonata Quadro 1500 LED | F197: с боковинами | G197: 0…+7 | H197: 1.1 | I197: 1518х1087х1209 | J197: 1700х1200х1110 | K197: 103562 | L197: =ROUND(K197*(1-$F$3)/Лист2!$A$6,0) -> 103562
D198: SONQВПС180R290 | E198: Sonata Quadro 1800 LED | F198: с боковинами | G198: 0…+7 | H198: 1.3 | I198: 1818х1087х1209 | J198: 2000х1200х1110 | K198: 116033 | L198: =ROUND(K198*(1-$F$3)/Лист2!$A$6,0) -> 116033
D199: Средне-низкотемпературные, ВПСН
D200: SONQВПСН120R290 | E200: Sonata Quadro SN 1200 LED | F200: с боковинами | G200: -6…+6 | H200: 0.85 | I200: 1218х1087х1209 | J200: 1400х1200х1110 | K200: 91641 | L200: =ROUND(K200*(1-$F$3)/Лист2!$A$6,0) -> 91641
D201: SONQВПСН150R290 | E201: Sonata Quadro SN 1500 LED | F201: с боковинами | G201: -6…+6 | H201: 1.1 | I201: 1518х1087х1209 | J201: 1700х1200х1110 | K201: 109114 | L201: =ROUND(K201*(1-$F$3)/Лист2!$A$6,0) -> 109114
D202: SONQВПСН180R290 | E202: Sonata Quadro SN 1800 LED | F202: с боковинами | G202: -6…+6 | H202: 1.3 | I202: 1818х1087х1209 | J202: 2000х1200х1110 | K202: 121700 | L202: =ROUND(K202*(1-$F$3)/Лист2!$A$6,0) -> 121700
D203: Низкотемпературные, ВПН
D204: SONQВПН120R290 | E204: Sonata Quadro М 1200 LED | F204: с боковинами | G204: от -18 | H204: 0.85 | I204: 1218х1087х1209 | J204: 1400х1200х1110 | K204: 109097 | L204: =ROUND(K204*(1-$F$3)/Лист2!$A$6,0) -> 109097
D205: SONQВПН150R290 | E205: Sonata Quadro М 1500 LED | F205: с боковинами | G205: от -18 | H205: 1.1 | I205: 1518х1087х1209 | J205: 1700х1200х1110 | K205: 130893 | L205: =ROUND(K205*(1-$F$3)/Лист2!$A$6,0) -> 130893
D206: SONQВПН180R290 | E206: Sonata Quadro М 1800 LED | F206: с боковинами | G206: от -18 | H206: 1.3 | I206: 1818х1087х1209 | J206: 2000х1200х1110 | K206: 147406 | L206: =ROUND(K206*(1-$F$3)/Лист2!$A$6,0) -> 147406
A207: Витрины Vivo
... 131 more rows

Sheet Витрины Cryspi (выносное ХО)
L1: На главную
B3: Ваша скидка: | E3: =Содержание!D2 -> 0
B4: НДС: | E4: =IF(Лист2!A1=TRUE,"С НДС","БЕЗ НДС") -> С НДС
B7: Витрины Cryspi без агрегата
A8: № | B8: Изображение | C8: Артикул | D8: Наименование | E8: Температурный режим, C° | F8: Площадь экспозиции, кв.м. | G8: Габариты без боковин, мм (L/W/H) | H8: Габариты в упаковке, мм (L/W/H) | I8: Базовая цена, руб. (с НДС) | J8: =[6]Лист2!$A$5 -> Ваша цена, руб.
A10: Базовая комплектация: - Статическая система охлаждения, компрессор R-290; - Электронный контроллер для управления работой витрины; - Оттайка для версий ВПС - естественная (без ТЭНа), для версий ВПСН и ВПН - ТЭН (по умолчанию); - Общее светодиодное освещение для версий с высоким стеклом - стандартный - 4000К, опционально - 3000К, 6500К, мясной; - Товарный накопитель для линейных модулей (запасник с дверкой) (кроме НТ); - без боковин; - Упаковка в деревянную обрешетку | E10: - Внутренний объем для витрин ВПС и ВПСН - оцинкованный металл, внутренний объем в зоне выкладки - нерж.сталь; - Внутренний объем для витрин ВПН - оцинкованный металл с полимерным покрытием - Ночные шторки для витрин с высоким стеклом; - Фронтальное стекло закаленное, не открывается; - Емкость для сбора талой воды, опционально возможно применение выпаривателя;
A11: 1 | B11: Витрины серии GAMMA-2, глубина выкладки 760 мм | I11: Опции Gamma-2
C12: Среднетемпературные витрины (без боковых панелей и боковых стекол) | K12: EL.2.G3004гл.В3004гл.V0.PS
C13: G2 ВПС2 120 R290ББ | D13: Gamma-2 1200 БА ББ | E13: 0…+7 | F13: 0.85 | G13: 1118х1093х1300 | H13: 1400х1200х1110 | I13: 65315 | J13: =ROUND(I13*(1-$E$3)/Лист2!$A$6,0) -> 65315
C14: G2 ВПС2 150 R290ББ | D14: Gamma-2 1500 БА ББ | E14: 0…+7 | F14: 1.1 | G14: 1418х1093х1300 | H14: 1700х1200х1110 | I14: 73329 | J14: =ROUND(I14*(1-$E$3)/Лист2!$A$6,0) -> 73329
C15: G2 ВПС2 180 R290ББ | D15: Gamma-2 1800 БА ББ | E15: 0…+7 | F15: 1.3 | G15: 1718х1093х1300 | H15: 2000х1200х1110 | I15: 85646 | J15: =ROUND(I15*(1-$E$3)/Лист2!$A$6,0) -> 85646
C16: Средне-низкотемпературные витрины (без боковых панелей и боковых стекол)
C17: G2 ВПСН2 120 R290ББ | D17: Gamma-2 SN 1200 БА ББ | E17: -6…+6 | F17: 0.85 | G17: 1118х1093х1300 | H17: 1400х1200х1110 | I17: 75351 | J17: =ROUND(I17*(1-$E$3)/Лист2!$A$6,0) -> 75351
C18: G2 ВПСН2 150 R290ББ | D18: Gamma-2 SN 1500 БА ББ | E18: -6…+6 | F18: 1.1 | G18: 1418х1093х1300 | H18: 1700х1200х1110 | I18: 82899 | J18: =ROUND(I18*(1-$E$3)/Лист2!$A$6,0) -> 82899
C19: G2 ВПСН2 180 R290ББ | D19: Gamma-2 SN 1800 БА ББ | E19: -6…+6 | F19: 1.3 | G19: 1718х1093х1300 | H19: 2000х1200х1110 | I19: 101401 | J19: =ROUND(I19*(1-$E$3)/Лист2!$A$6,0) -> 101401
C20: Низкотемпературные витрины (без боковых панелей и боковых стекол)
D21: Gamma-2 М 1200 БА ББ | E21: от -18 | F21: 0.85 | G21: 1118х1093х1300 | H21: 1400х1200х1110 | I21: 83101 | J21: =ROUND(I21*(1-$E$3)/Лист2!$A$6,0) -> 83101
D22: Gamma-2 М 1500 БА ББ | E22: от -18 | F22: 1.1 | G22: 1418х1093х1300 | H22: 1700х1200х1110 | I22: 95150 | J22: =ROUND(I22*(1-$E$3)/Лист2!$A$6,0) -> 95150
D23: Gamma-2 М 1800 БА ББ | E23: от -18 | F23: 1.3 | G23: 1718х1093х1300 | H23: 2000х1200х1110 | I23: 107051 | J23: =ROUND(I23*(1-$E$3)/Лист2!$A$6,0) -> 107051
C24: Угловые среднетемпературные и нейтральные витрины, кассовые прилавки
C25: G2ВПС2 ОС90Д ББ | D25: Gamma-2 OC 90 (угол внеш.) БА ББ | E25: 0…+7 | F25: 0.92 | G25: 1130х1130х1300 | H25: 1180х1180х1300 | I25: 105063 | J25: =ROUND(I25*(1-$E$3)/Лист2!$A$6,0) -> 105063
C26: G2ВПС2 IС90Д ББ | D26: Gamma-2 IC (угол внутр.) БА ББ | E26: 0…+7 | F26: 0.74 | G26: 1295х1295х1300 | H26: 1305х1305х1300 | I26: 113162 | J26: =ROUND(I26*(1-$E$3)/Лист2!$A$6,0) -> 113162
A27: 2 | B27: Витрины серии GAMMA Quadro LED, глубина выкладки 760 мм | I27: Опции Gamma Quadro | K27: EL.2.G9016гл.В7016гл.V0.PS
C28: Среднетемпературные витрины (без боковых панелей и боковых стекол)
C29: G2QUADLXВПС1 120БА ББ | D29: Gamma Quadro 1200 LED БА ББ | E29: 0…+7 | F29: 0.85 | G29: 1118х1093х1300 | H29: 1400х1200х1110 | I29: 83122 | J29: =ROUND(I29*(1-$E$3)/Лист2!$A$6,0) -> 83122
C30: G2QUADLXВПС1 150БА ББ | D30: Gamma Quadro 1500 LED БА ББ | E30: 0…+7 | F30: 1.1 | G30: 1418х1093х1300 | H30: 1700х1200х1110 | I30: 89619 | J30: =ROUND(I30*(1-$E$3)/Лист2!$A$6,0) -> 89619
C31: G2QUADLXВПС1 180БА ББ | D31: Gamma Quadro 1800 LED БА ББ | E31: 0…+7 | F31: 1.3 | G31: 1718х1093х1300 | H31: 2000х1200х1110 | I31: 104565 | J31: =ROUND(I31*(1-$E$3)/Лист2!$A$6,0) -> 104565
C32: Средне-низкотемпературные витрины (без боковых панелей и боковых стекол)
C33: G2QUADLXВПСН1 120БА ББ | D33: Gamma Quadro SN 1200 LED БА ББ | E33: -6…+6 | F33: 0.85 | G33: 1118х1093х1300 | H33: 1400х1200х1110 | I33: 86527 | J33: =ROUND(I33*(1-$E$3)/Лист2!$A$6,0) -> 86527
C34: G2QUADLXВПСН1 150БА ББ | D34: Gamma Quadro SN 1500 LED БА ББ | E34: -6…+6 | F34: 1.1 | G34: 1418х1093х1300 | H34: 1700х1200х1110 | I34: 101385 | J34: =ROUND(I34*(1-$E$3)/Лист2!$A$6,0) -> 101385
C35: G2QUADLXВПСН1 180БА ББ | D35: Gamma Quadro SN 1800 LED БА ББ | E35: -6…+6 | F35: 1.3 | G35: 1718х1093х1300 | H35: 2000х1200х1110 | I35: 116621 | J35: =ROUND(I35*(1-$E$3)/Лист2!$A$6,0) -> 116621
C36: Низкотемпературные витрины (без боковых панелей и боковых стекол)
D37: Gamma Quadro M 1200 LED БА ББ | E37: от -18 | F37: 0.85 | G37: 1118х1093х1300 | H37: 1400х1200х1110 | I37: 100318 | J37: =ROUND(I37*(1-$E$3)/Лист2!$A$6,0) -> 100318
D38: Gamma Quadro M 1500 LED БА ББ | E38: от -18 | F38: 1.1 | G38: 1418х1093х1300 | H38: 1700х1200х1110 | I38: 116082 | J38: =ROUND(I38*(1-$E$3)/Лист2!$A$6,0) -> 116082
C39: G2QUADLXВПН1 180БА ББ | D39: Gamma Quadro M 1800 LED БА ББ | E39: от -18 | F39: 1.3 | G39: 1718х1093х1300 | H39: 2000х1200х1110 | I39: 137200 | J39: =ROUND(I39*(1-$E$3)/Лист2!$A$6,0) -> 137200
C40: Угловые витрины
C41: G2QUADLXВПС1 ОС90 БА ББ | D41: Витрина холодильная ВПС Gamma-2 QuadroLX ОС90 БА ББ | E41: 0…+7 | F41: 0.92 | G41: 1180х1180х1209 | H41: 1180х1180х1300 | I41: 117051 | J41: =ROUND(I41*(1-$E$3)/Лист2!$A$6,0) -> 117051 | K41: установка за февраль
C42: G2QUADLXВПС1 IС90 БА ББ | D42: Витрина холодильная ВПС Gamma-2 QuadroLX IС90 БА ББ | E42: 0…+7 | F42: 0.74 | G42: 1355х1355х1209 | H42: 1305х1305х1300 | I42: 110166 | J42: =ROUND(I42*(1-$E$3)/Лист2!$A$6,0) -> 110166
A44: Базовая комплектация: Динамическая система охлаждения, - Электронный контроллер; - Оттайка для версий ВПС - естественная, для версий ВПСН и ВПН - ТЭН (по умолчанию); - Общее освещение для версий с высоким стеклом - нейтральное (4000К), витрины с низким стеклом без освещения; - Товарный накопитель для линейных модулей (запасник с дверкой) (кроме НТ); - Без боковин; - Упаковка в деревянной обрешетке; | E44: - Внутренний объем - оцинкованный металл, внутренний объем в зоне выкладки - нерж.сталь; - Ночные шторки для витрин с высоким стеклом; - Фронтальное стекло закаленное (Magnum Eco – стекло открывается сверху-вниз, Magnum Quadro – стекло открывается сверху-вниз без гидролифта; Magnum – стекло открывается снизу-вверх, опционально возможно применение гидролифта;) - Емкость для сбора талой воды, опционально возможно применение выпаривателя;
A45: 3 | B45: Витрины серии MAGNUM Eco, глубина выкладки 860 мм
C46: Среднетемпературные | I46: Опции Magnum ECO | K46: EL.PS.2.V0.T.Y7016.P7016 для витрин с боковинами добавить комплекты боковин: 676.50.01.00; 676.50.02.00
C47: 1138.00.00.00 | D47: Magnum Eco 1250 БА ББ | E47: 0…+7 | F47: 1.075 | G47: 1250х1130х1235 | H47: 1510х1190х1150 | I47: 86081 | J47: =ROUND(I47*(1-$E$3)/Лист2!$A$6,0) -> 86081
C48: 1138.00.00.00-01 | D48: Magnum Eco 1880 БА ББ | F48: 1.61 | G48: 1875х1130х1235 | H48: 2140х1190х1150 | I48: 112462 | J48: =ROUND(I48*(1-$E$3)/Лист2!$A$6,0) -> 112462
C49: 1138.00.00.00-02 | D49: Magnum Eco 2500 БА ББ | F49: 2.15 | G49: 2500х1130х1235 | H49: 2760х1190х1150 | I49: 142885 | J49: =ROUND(I49*(1-$E$3)/Лист2!$A$6,0) -> 142885
C50: 1138.00.00.00-03 | D50: Magnum Eco 3750 БА ББ | F50: 3.22 | G50: 3750х1130х1235 | H50: 4010х1190х1150 | I50: 181734 | J50: =ROUND(I50*(1-$E$3)/Лист2!$A$6,0) -> 181734
C51: Средне-низкотемпературные
C52: 1139.00.00.00 | D52: Magnum Eco SN 1250 БА ББ | E52: ­5…+7 | F52: 1.075 | G52: 1250х1130х1235 | H52: 1510х1190х1150 | I52: 93469 | J52: =ROUND(I52*(1-$E$3)/Лист2!$A$6,0) -> 93469
C53: 1139.00.00.00-01 | D53: Magnum Eco SN 1880 БА ББ | F53: 1.61 | G53: 1875х1130х1235 | H53: 2140х1190х1150 | I53: 119450 | J53: =ROUND(I53*(1-$E$3)/Лист2!$A$6,0) -> 119450
C54: 1139.00.00.00-02 | D54: Magnum Eco SN 2500 БА ББ | F54: 2.15 | G54: 2500х1130х1235 | H54: 2760х1190х1150 | I54: 147228 | J54: =ROUND(I54*(1-$E$3)/Лист2!$A$6,0) -> 147228
C55: 1139.00.00.00-03 | D55: Magnum Eco SN 3750 БА ББ | F55: 3.22 | G55: 3750х1130х1235 | H55: 4010х1190х1150 | I55: 200558 | J55: =ROUND(I55*(1-$E$3)/Лист2!$A$6,0) -> 200558
A56: 4 | B56: Витрины серии MAGNUM, глубина выкладки 860 мм | I56: Опции Magnum
C57: Среднетемпературные | K57: EL.PS.2.V0.T.Y7016.P7016 для витрин с боковинами добавить комплекты боковин: 433.50.1000.00; 433.50.2000.00
C58: MAG ВПС2 125 БА ББ | D58: Magnum 1250 БА ББ | E58: 0…+7 | F58: 1.075 | G58: 1250х1095х1235 | H58: 1510х1190х1150 | I58: 105103 | J58: =ROUND(I58*(1-$E$3)/Лист2!$A$6,0) -> 105103
C59: MAG ВПС2 188 БА ББ | D59: Magnum 1880 БА ББ | F59: 1.61 | G59: 1875х1095х1235 | H59: 2140х1190х1150 | I59: 145450 | J59: =ROUND(I59*(1-$E$3)/Лист2!$A$6,0) -> 145450
C60: MAG ВПС2 250 БА ББ | D60: Magnum 2500 БА ББ | F60: 2.15 | G60: 2500х1095х1235 | H60: 2760х1190х1150 | I60: 171194 | J60: =ROUND(I60*(1-$E$3)/Лист2!$A$6,0) -> 171194
C61: MAG ВПС2 375 БА ББ | D61: Magnum 3750 БА ББ | F61: 3.22 | G61: 3750х1095х1235 | H61: 4010х1190х1150 | I61: 219428 | J61: =ROUND(I61*(1-$E$3)/Лист2!$A$6,0) -> 219428
C62: Средне-низкотемпературные
C63: MAG ВПСН2 125 БА ББ | D63: Magnum SN 1250 БА ББ | E63: ­5…+7 | F63: 1.075 | G63: 1250х1095х1235 | H63: 1510х1190х1150 | I63: 114525 | J63: =ROUND(I63*(1-$E$3)/Лист2!$A$6,0) -> 114525
C64: MAG ВПСН2 188 БА ББ | D64: Magnum SN 1880 БА ББ | F64: 1.61 | G64: 1875х1095х1235 | H64: 2140х1190х1150 | I64: 154366 | J64: =ROUND(I64*(1-$E$3)/Лист2!$A$6,0) -> 154366
C65: MAG ВПСН2 250 БА ББ | D65: Magnum SN 2500 БА ББ | F65: 2.15 | G65: 2500х1095х1235 | H65: 2760х1190х1150 | I65: 189529 | J65: =ROUND(I65*(1-$E$3)/Лист2!$A$6,0) -> 189529
C66: MAG ВПСН2 375 БА ББ | D66: Magnum SN 3750 БА ББ | F66: 3.22 | G66: 3750х1095х1235 | H66: 4010х1190х1150 | I66: 249491 | J66: =ROUND(I66*(1-$E$3)/Лист2!$A$6,0) -> 249491
C67: Низкотемпературные | K67: EL.PS.2.V0.T.Y7016.P7016 для витрин с боковинами добавить комплекты боковин: 476.50.1000.00; 476.50.2000.00
C68: 1208.00.00.00 | D68: Magnum F 1250 БА ББ | E68: не выше -15 | F68: 1.075 | G68: 1250х1095х1235 | H68: 1510х1190х1150 | I68: 127510 | J68: =ROUND(I68*(1-$E$3)/Лист2!$A$6,0) -> 127510
C69: 1208.00.00.00-01 | D69: Magnum F 1880 БА ББ | F69: 1.61 | G69: 1875х1095х1235 | H69: 2140х1190х1150 | I69: 180224 | J69: =ROUND(I69*(1-$E$3)/Лист2!$A$6,0) -> 180224
C70: 1208.00.00.00-02 | D70: Magnum F 2500 БА ББ | F70: 2.15 | G70: 2500х1095х1235 | H70: 2760х1190х1150 | I70: 207714 | J70: =ROUND(I70*(1-$E$3)/Лист2!$A$6,0) -> 207714
C71: 1208.00.00.00-03 | D71: Magnum F 3750 БА ББ | F71: 3.22 | G71: 3750х1095х1235 | H71: 4010х1190х1150 | I71: 327982 | J71: =ROUND(I71*(1-$E$3)/Лист2!$A$6,0) -> 327982
C72: Среднетемпературные с низким стеклом | K72: EL.PS.0.V0.T.Y7016.P7016 для витрин с боковинами добавить комплекты боковин: 276.50.01.000; 276.50.02.00
C73: MAG ВПС2 SG125 БА ББ | D73: Magnum SG 1250 БА ББ | E73: 0…+7 | F73: 1.075 | G73: 1250х1095х895 | H73: 1510х1190х1150 | I73: 90112 | J73: =ROUND(I73*(1-$E$3)/Лист2!$A$6,0) -> 90112
C74: MAG ВПС2 SG188 БА ББ | D74: Magnum SG 1880 БА ББ | F74: 1.61 | G74: 1880х1095х895 | H74: 2140х1190х1150 | I74: 121539 | J74: =ROUND(I74*(1-$E$3)/Лист2!$A$6,0) -> 121539
C75: MAG ВПС2 SG250 БА ББ | D75: Magnum SG 2500 БА ББ | F75: 2.15 | G75: 2500х1095х895 | H75: 2760х1190х1150 | I75: 147026 | J75: =ROUND(I75*(1-$E$3)/Лист2!$A$6,0) -> 147026
C76: MAG ВПС2 SG375 БА ББ | D76: Magnum SG 3750 БА ББ | F76: 3.22 | G76: 3750х1095х895 | H76: 4010х1190х1150 | I76: 186861 | J76: =ROUND(I76*(1-$E$3)/Лист2!$A$6,0) -> 186861
C77: Угловые витрины | K77: EL.PS.2.V0.T.Y7016.P7016 для витрин с боковинами добавить комплекты боковин: 476.50.1000.00; 476.50.2000.00
C78: MAG ВПС2 ОC90 БА ББ | D78: Magnum OC 90 БА ББ | E78: 0…+7 | F78: 1.192 | G78: 1360х1360х1235 | H78: 2170х1380х1080 | I78: 191016 | J78: =ROUND(I78*(1-$E$3)/Лист2!$A$6,0) -> 191016
C79: MAG ВПС2 ОCSG90 БА ББ | D79: Magnum ОC SG 90 БА ББ | F79: 1.192 | G79: 1360х1360х895 | H79: 2170х1300х1080 | I79: 148117 | J79: =ROUND(I79*(1-$E$3)/Лист2!$A$6,0) -> 148117
C80: MAG ВПС2 IC90 БА ББ | D80: Magnum IC 90 БА ББ | F80: 1.08 | G80: 1320х1320х1235 | H80: 2170х1380х1080 | I80: 185471 | J80: =ROUND(I80*(1-$E$3)/Лист2!$A$6,0) -> 185471 | K80: EL.PS.0.V0.T.Y7016.P7016 для витрин с боковинами добавить комплекты боковин: 276.50.01.000; 276.50.02.00
C81: MAG ВПС2 ICSG90 БА ББ | D81: Magnum IC SG 90 БА ББ | F81: 1.08 | G81: 1320х1320х895 | H81: 2170х1300х1080 | I81: 174708 | J81: =ROUND(I81*(1-$E$3)/Лист2!$A$6,0) -> 174708
A82: 5 | B82: Витрины серии MAGNUM Quadro, глубина выкладки 860 мм
C83: Среднетемпературные | I83: Опции Magnum Q | K83: EL.PS.2.V0.T.B7016.P7016 для витрин с боковинами добавить комплекты боковин: 1007.48.00.00; 1007.48.00.00mir
C84: MAGQ ВПС1 125 БА ББ | D84: Magnum Quadro 1250 БА ББ | E84: 0…+7 | F84: 1.075 | G84: 1250х1095х1225 | H84: 1510х1190х1150 | I84: 105928 | J84: =ROUND(I84*(1-$E$3)/Лист2!$A$6,0) -> 105928
C85: MAGQ ВПС1 188 БА ББ | D85: Magnum Quadro 1875 БА ББ | F85: 1.61 | G85: 1875х1095х1225 | H85: 2140х1190х1150 | I85: 131736 | J85: =ROUND(I85*(1-$E$3)/Лист2!$A$6,0) -> 131736
C86: MAGQ ВПС1 250 БА ББ | D86: Magnum Quadro 2500 БА ББ | F86: 2.15 | G86: 2500х1095х1225 | H86: 2760х1190х1150 | I86: 154988 | J86: =ROUND(I86*(1-$E$3)/Лист2!$A$6,0) -> 154988
C87: MAGQ ВПС1 375 БА ББ | D87: Magnum Quadro 3750 БА ББ | F87: 3.22 | G87: 3750х1095х1225 | H87: 4010х1190х1150 | I87: 224567 | J87: =ROUND(I87*(1-$E$3)/Лист2!$A$6,0) -> 224567
C88: Средне-низкотемпературные
C89: MAGQ ВПСН1 125 БА ББ | D89: Magnum Quadro SN 1250 БА ББ | E89: ­5…+7 | F89: 1.075 | G89: 1250х1095х1225 | H89: 1510х1190х1150 | I89: 120861 | J89: =ROUND(I89*(1-$E$3)/Лист2!$A$6,0) -> 120861
C90: MAGQ ВПСН1 188 БА ББ | D90: Magnum Quadro SN 1875 БА ББ | F90: 1.61 | G90: 1875х1095х1225 | H90: 2140х1190х1150 | I90: 150476 | J90: =ROUND(I90*(1-$E$3)/Лист2!$A$6,0) -> 150476
C91: MAGQ ВПСН1 250 БА ББ | D91: Magnum Quadro SN 2500 БА ББ | F91: 2.15 | G91: 2500х1095х1225 | H91: 2760х1190х1150 | I91: 176669 | J91: =ROUND(I91*(1-$E$3)/Лист2!$A$6,0) -> 176669
C92: MAGQ ВПСН1 375 БА ББ | D92: Magnum Quadro SN 3750 БА ББ | F92: 3.22 | G92: 3750х1095х1225 | H92: 4010х1190х1150 | I92: 255838 | J92: =ROUND(I92*(1-$E$3)/Лист2!$A$6,0) -> 255838
C93: Низкотемпературные | K93: EL.PS.2.V0.T.B7016.P7016 для витрин с боковинами добавить комплекты боковин: 1030.48.00.00; 1030.48.00.00mir
C94: 1182.00.00.00 | D94: ВПН Magnum Quadro 1250 БА ББ | E94: не выше -15 | F94: 1.075 | G94: 1250х1095х1225 | H94: 1510х1190х1150 | I94: 132479 | J94: =ROUND(I94*(1-$E$3)/Лист2!$A$6,0) -> 132479
C95: 1182.00.00.00-01 | D95: ВПН Magnum Quadro 1875 БА ББ | F95: 1.61 | G95: 1875х1095х1225 | H95: 2140х1190х1150 | I95: 164844 | J95: =ROUND(I95*(1-$E$3)/Лист2!$A$6,0) -> 164844
C96: 1182.00.00.00-02 | D96: ВПН Magnum Quadro 2500 БА ББ | F96: 2.15 | G96: 2500х1095х1225 | H96: 2760х1190х1150 | I96: 193729 | J96: =ROUND(I96*(1-$E$3)/Лист2!$A$6,0) -> 193729
C97: 1182.00.00.00-03 | D97: ВПН Magnum Quadro 3750 БА ББ | F97: 3.22 | G97: 3750х1095х1225 | H97: 4010х1190х1150 | I97: 280023 | J97: =ROUND(I97*(1-$E$3)/Лист2!$A$6,0) -> 280023
C98: Среднетемпературные с низким стеклом | K98: EL.PS.0.V0.T.B7016.P7016 для витрин с боковинами добавить комплекты боковин: 1013.48.00.00; 1013.48.00.00mir
C99: MAGQ ВПС1 SG125 БА ББ | D99: Magnum Quadro Self 1250 БА ББ | E99: 0…+7 | F99: 1.075 | G99: 1250х1095х865 | H99: 1510х1190х1150 | I99: 104552 | J99: =ROUND(I99*(1-$E$3)/Лист2!$A$6,0) -> 104552
C100: MAGQ ВПС1 SG188 БА ББ | D100: Magnum Quadro Self 1875 БА ББ | F100: 1.61 | G100: 1875х1095х865 | H100: 2140х1190х1150 | I100: 132504 | J100: =ROUND(I100*(1-$E$3)/Лист2!$A$6,0) -> 132504
C101: MAGQ ВПС1 SG250 БА ББ | D101: Magnum Quadro Self 2500 БА ББ | F101: 2.15 | G101: 2500х1095х865 | H101: 2760х1190х1150 | I101: 156022 | J101: =ROUND(I101*(1-$E$3)/Лист2!$A$6,0) -> 156022
C102: MAGQ ВПС1 SG375 БА ББ | D102: Magnum Quadro Self 3750 БА ББ | F102: 3.22 | G102: 3750х1095х865 | H102: 4010х1190х1150 | I102: 227720 | J102: =ROUND(I102*(1-$E$3)/Лист2!$A$6,0) -> 227720
C103: Угловые витрины | K103: EL.PS.2.V0.T.B7016.P7016 для витрин с боковинами добавить комплекты боковин: 1007.48.00.00; 1007.48.00.00mir
C104: 1183.00.00.00 | D104: Magnum Quadro OC 90 БА ББ | E104: 0…+7 | F104: 1.2 | G104: 1355х1355х1225 | H104: 2170х1380х1080 | I104: 147457 | J104: =ROUND(I104*(1-$E$3)/Лист2!$A$6,0) -> 147457
C105: 1184.00.00.00 | D105: Magnum Quadro IC 90 БА ББ | F105: 1.08 | G105: 1325х1325х1225 | H105: 2170х1300х1080 | I105: 140623 | J105: =ROUND(I105*(1-$E$3)/Лист2!$A$6,0) -> 140623
C106: 1185.00.00.00 | D106: Magnum Quadro Self OC 90 БА ББ | F106: 1.2 | G106: 1355х1355х865 | H106: 2170х1380х1080 | I106: 140586 | J106: =ROUND(I106*(1-$E$3)/Лист2!$A$6,0) -> 140586 | K106: EL.PS.0.V0.T.B7016.P7016 для витрин с боковинами добавить комплекты боковин: 1013.48.00.00; 1013.48.00.00mir
C107: 1186.00.00.00 | D107: Magnum Quadro Self IC 90 БА ББ | F107: 1.08 | G107: 1325х1325х865 | H107: 2170х1300х1080 | I107: 133536 | J107: =ROUND(I107*(1-$E$3)/Лист2!$A$6,0) -> 133536
C108: Рыбные витрины ВСПН/ВПСН Self | K108: EL.PS.2.V0.T.B7016.P7016 для витрин с боковинами добавить комплекты боковин: 1007.48.00.00; 1007.48.00.00mir
C109: 1250.00.00.00 | D109: Magnum Quadro Fish 1250 БА ББ | E109: ­5…+7 | G109: 1250х1095х1225 | H109: 1510х1190х1150 | I109: 132479 | J109: =ROUND(I109*(1-$E$3)/Лист2!$A$6,0) -> 132479
C110: 1250.00.00.00-01 | D110: Magnum Quadro Fish 1875 БА ББ | G110: 1875х1095х1225 | H110: 2140х1190х1150 | I110: 164844 | J110: =ROUND(I110*(1-$E$3)/Лист2!$A$6,0) -> 164844
C111: 1251.00.00.00 | D111: Magnum Quadro Fish Self 1250 БА ББ | G111: 1250х1095х865 | H111: 1510х1190х1150 | I111: 124176 | J111: =ROUND(I111*(1-$E$3)/Лист2!$A$6,0) -> 124176 | K111: EL.PS.0.V0.T.B7016.P7016 для витрин с боковинами добавить комплекты боковин: 1013.48.00.00; 1013.48.00.00mir
C112: 1251.00.00.00-01 | D112: Magnum Quadro Fish Self 1875 БА ББ | G112: 1875х1095х865 | H112: 2140х1190х1150 | I112: 154096 | J112: =ROUND(I112*(1-$E$3)/Лист2!$A$6,0) -> 154096
I113: 0
G115: наверх

Sheet Кондитерские витрины
H1: ЗАВОД «ОПК» Тел.: +7 (495) 987-4388 e-mail: info@cryspi.ru сайт: cryspi.ru | M1: На главную
B3: Ваша скидка: | E3: =Содержание!D2 -> 0
B4: НДС: | E4: =IF(Лист2!A1=TRUE,"С НДС","БЕЗ НДС") -> С НДС
A6: Кондитерские витрины Cryspi со встроенным агрегатом
A9: № | B9: Изображение | C9: Артикул | D9: Наименование | F9: Температурный режим,°C | G9: Площадь экспозиции, кв.м. | H9: Габариты, (LxWxH) мм | I9: Габариты в упаковке, (LxWxH) мм | J9: Базовая цена, руб. (с НДС) | K9: =[5]Лист2!$A$5 -> Ваша цена, руб.
A11: 1 | B11: ADAGIO | N11: СЕЧЕНИЯ
N12: ADAGIO | S12: ADAGIO CUBE | X12: ELEGIA
A13: Стандартная комплектация: - 3 уровня навесных полок, 230, 320, 380 мм (Adagio/Adagio LX), 380 мм (Adagio Cube/Adagio LX Cube); - подсветка всех полок (4500К или 2700К) - фронтальная металическая панель - Возможно применение фронтальной панели из ЛДСП с наценкой в 4%. - Компрессор R-290 - Электронный контроллер Carel - Цифровой термометр | F13: - Оттайка испарителя естественным способом; Автоматическое выпаривание конденсата - Задняя дверца - оргстекло (Adagio), закаленный стеклопакет (Adagio LX); - Вентилируемое (динамическое) охлаждение - Внутренний объем - сталь оцинкованная - зона выкладки - сталь оцинкованна с покраской - шелкография стекол черного цвета (Ral 9005) - Упаковка в деревянной обрешетке;
C14: Витрины охлаждаемые, кондитерские, закаленное стекло
C15: ADAGV 90 R290 | D15: Витрина холодильная ВПВ (ADAGIO 900 Д) | F15: +6..+12°С | G15: 1.27 | H15: 900х620х1330 | J15: 87062 | K15: =ROUND(J15*(1-$E$3)/Лист2!$A$6,0) -> 87062
C16: ADAGV 130 R290 | D16: Витрина холодильная ВПВ (ADAGIO 1300 Д) | F16: +6..+12°С | G16: 1.58 | H16: 1300Х620Х1330 | J16: 93858 | K16: =ROUND(J16*(1-$E$3)/Лист2!$A$6,0) -> 93858
C17: ADAGVCUBE 90 R290 | D17: Витрина холодильная ВПВ (ADAGIO Cube 900 Д) | F17: +6..+12°С | G17: 1.46 | H17: 900х620х1330 | J17: 87062 | K17: =ROUND(J17*(1-$E$3)/Лист2!$A$6,0) -> 87062
C18: ADAGVCUBE 130 R290 | D18: Витрина холодильная ВПВ (ADAGIO Cube 1300 Д) | F18: +6..+12°С | G18: 1.83 | H18: 1300Х620Х1330 | J18: 93858 | K18: =ROUND(J18*(1-$E$3)/Лист2!$A$6,0) -> 93858
C19: Витрины охлаждаемые, кондитерские, закаленный стеклопакет
C20: ADAGLX 90 R290 | D20: Витрина холодильная ВПС (ADAGIO LX 900 Д) | F20: 0..+7°С | G20: 1.27 | H20: 900х620х1330 | J20: 114484 | K20: =ROUND(J20*(1-$E$3)/Лист2!$A$6,0) -> 114484
C21: ADAGLX 130 R290 | D21: Витрина холодильная ВПС (ADAGIO LX 1300 Д) | F21: 0..+7°С | G21: 1.58 | H21: 1300Х620Х1330 | J21: 135551 | K21: =ROUND(J21*(1-$E$3)/Лист2!$A$6,0) -> 135551
C22: ADAGLXCUBE 90 R290 | D22: Витрина холодильная ВПС (ADAGIO LX Cube 900 Д) | F22: 0..+7°С | G22: 1.46 | H22: 900х620х1330 | J22: 114484 | K22: =ROUND(J22*(1-$E$3)/Лист2!$A$6,0) -> 114484
C23: ADAGLXCUBE 130 R290 | D23: Витрина холодильная ВПС (ADAGIO LX Cube 1300 Д) | F23: 0..+7°С | G23: 1.83 | H23: 1300Х620Х1330 | J23: 135551 | K23: =ROUND(J23*(1-$E$3)/Лист2!$A$6,0) -> 135551
C24: Витрины для самообслуживания охлаждаемые, кондитерские
C25: ADAGVSELF 90 R290 | D25: Витрина холодильная ВПВ (ADAGIO Self 900 Д) | F25: +1..+10°С | G25: 1.27 | H25: 900х620х1330 | I25: 1100х790х1475 | J25: 128138 | K25: =ROUND(J25*(1-$E$3)/Лист2!$A$6,0) -> 128138
C26: ADAGVSELF 130 R290 | D26: Витрина холодильная ВПВ (ADAGIO Self 1300 Д) | F26: +1..+10°С | G26: 1.58 | H26: 1300Х620Х1330 | I26: 1500х790х1475 | J26: 151445 | K26: =ROUND(J26*(1-$E$3)/Лист2!$A$6,0) -> 151445
C27: DAGVSELFCUBE 90 R290 | D27: Витрина холодильная ВПВ (ADAGIO Self Cube 900 Д) | F27: +1..+10°С | G27: 1.46 | H27: 900х620х1330 | I27: 1100х790х1475 | J27: 129918 | K27: =ROUND(J27*(1-$E$3)/Лист2!$A$6,0) -> 129918
C28: ADAGVSELFCUBE 130 R290 | D28: Витрина холодильная ВПВ (ADAGIO Self Cube 1300 Д) | F28: +1..+10°С | G28: 1.83 | H28: 1300Х620Х1330 | I28: 1500х790х1475 | J28: 153518 | K28: =ROUND(J28*(1-$E$3)/Лист2!$A$6,0) -> 153518
C29: Витрины нейтральные, кондитерские без охлаждения для самообслуживания
C30: ADAGNSELF 90 | D30: Витрина нейтральная ВП (ADAGIO N Self 900) | F30: - | G30: 1.27 | H30: 900х620х1330 | I30: 1100х790х1475 | J30: 67483 | K30: =ROUND(J30*(1-$E$3)/Лист2!$A$6,0) -> 67483
C31: ADAGNSELF 130 | D31: Витрина нейтральная ВП (ADAGIO N Self 1300) | F31: - | G31: 1.58 | H31: 1300Х620Х1330 | I31: 1500х790х1475 | J31: 75017 | K31: =ROUND(J31*(1-$E$3)/Лист2!$A$6,0) -> 75017
C32: ADAGNSELFCUBE 90 | D32: Витрина холодильная ВПВ (ADAGIO N Self Cube 900 Д) | F32: - | G32: 1.46 | H32: 900х620х1330 | I32: 1100х790х1475 | J32: 69346 | K32: =ROUND(J32*(1-$E$3)/Лист2!$A$6,0) -> 69346 | L32: EL.2.G9006гл.A3002гл.В3002гл.Р1.PS.9005гл.0
C33: ADAGNSELFCUBE 130 | D33: Витрина холодильная ВПВ (ADAGIO N Self Cube 1300 Д) | F33: - | G33: 1.83 | H33: 1300Х620Х1330 | I33: 1500х790х1475 | J33: 73042 | K33: =ROUND(J33*(1-$E$3)/Лист2!$A$6,0) -> 73042
C34: Витрины нейтральные, кондитерские без охлаждения для самообслуживания. Хлебная модификация | L34: N.2.G9006гл.A3002гл.В3002гл.Р1.PS.9005гл.0
C35: ADAGNSELFCUBE 90 | D35: Витрина холодильная ВПВ (ADAGIO N Self Cube 900 Д) | F35: - | G35: 1.46 | H35: 900х620х1330 | I35: 1100х790х1475 | J35: 65984 | K35: =ROUND(J35*(1-$E$3)/Лист2!$A$6,0) -> 65984
C36: ADAGNSELFCUBE 130 | D36: Витрина холодильная ВПВ (ADAGIO N Self Cube 1300 Д) | F36: - | G36: 1.83 | H36: 1300Х620Х1330 | I36: 1500х790х1475 | J36: 71042 | K36: =ROUND(J36*(1-$E$3)/Лист2!$A$6,0) -> 71042
C37: Кассовый нейтральный прилавок (КНП) | L37: А3002гл.PS.RAL9005гл
C38: ADAGLXKNP 60 | D38: Прилавок КНП ADAGIO 600 (фронтальные панели металл) | F38: - | G38: - | H38: 600х650х906 | I38: 800х790х1065 | J38: 21917 | K38: =ROUND(J38*(1-$E$3)/Лист2!$A$6,0) -> 21917
C39: ADAGLXKNP 90 | D39: Прилавок КНП ADAGIO 900 (фронтальные панели металл) | F39: - | G39: - | H39: 900Х650Х906 | I39: 1100х790х1065 | J39: 26650 | K39: =ROUND(J39*(1-$E$3)/Лист2!$A$6,0) -> 26650
C40: ADAGLXKNP 60 | D40: Прилавок КНП ADAGIO 600 (фронтальные панели ЛДСП) | F40: - | G40: - | H40: 600х650х906 | I40: 800х790х1065 | J40: 24090 | K40: =ROUND(J40*(1-$E$3)/Лист2!$A$6,0) -> 24090
C41: ADAGLXKNP 90 | D41: Прилавок КНП ADAGIO 900 (фронтальные панели ЛДСП) | F41: - | G41: - | H41: 900Х650Х906 | I41: 1100х790х1065 | J41: 27892 | K41: =ROUND(J41*(1-$E$3)/Лист2!$A$6,0) -> 27892
A42: 2 | B42: ELEGIA QUADRO
C44: Стандартная комплектация: - Компрессор R-290 - стеклопакеты по периметру; | G44: - фронтальное стекло (кроме версии SELF); - выпариватель; - LED подсветка в стойках и полках - ТЭНы оттайки испарителей - Упаковка в деревянной обрешетке
L45: EL.2.G9016гл.А9005гл.В8016гл.Р1.PS
C46: EQ 850 R290 | D46: Elegia Quadro К 850 | F46: +1...+10 | G46: 1.23 | H46: 850х764х1312 | I46: 1050х990х1550 | J46: 143538 | K46: =ROUND(J46*(1-$E$3)/Лист2!$A$6,0) -> 143538
C47: EQ 100 R290 | D47: Elegia Quadro К 1000 | F47: +1...+10 | G47: 1.46 | H47: 1 000×764×1 312 | I47: 1200х990х1550 | J47: 158287 | K47: =ROUND(J47*(1-$E$3)/Лист2!$A$6,0) -> 158287
C48: EQ 125 R290 | D48: Elegia Quadro K 1250 | F48: +1...+10 | G48: 1.85 | H48: 1 250×764×1 312 | I48: 1450х990х1550 | J48: 173157 | K48: =ROUND(J48*(1-$E$3)/Лист2!$A$6,0) -> 173157
C49: EQ SELF 100 R290 | D49: Elegia Quadro SELF 1000 (для самообслуживания) | F49: +1...+10 | G49: 1.39 | H49: 1 000×764×1 312 | I49: 1200х990х1550 | J49: 158287 | K49: =ROUND(J49*(1-$E$3)/Лист2!$A$6,0) -> 158287
C50: EQ SELF 125 R290 | D50: Elegia Quadro SELF 1250 (для самообслуживания) | F50: +1...+10 | G50: 1.72 | H50: 1 254×764×1 312 | I50: 1450х990х1550 | J50: 159010 | K50: =ROUND(J50*(1-$E$3)/Лист2!$A$6,0) -> 159010
C51: EQKNP900NEW | D51: Прилавок КНП Elegia Quadro 600 | F51: - | G51: - | H51: 600х764х870 | I51: 740х950х1025 | J51: 25554 | K51: =ROUND(J51*(1-$E$3)/Лист2!$A$6,0) -> 25554
H53: НАВЕРХ

Sheet Опции для витрин Cryspi
F1: На главную
C3: Ваша скидка: | E3: =Содержание!D2 -> 0
C4: НДС: | E4: =IF(Лист2!A1=TRUE,"С НДС","БЕЗ НДС") -> С НДС
C7: Опции для витрин Cryspi | D7: СОДЕРЖАНИЕ
A8: № | C8: Название | D8: Базовая цена, руб. (с НДС) | E8: =[5]Лист2!$A$5 -> Ваша цена, руб.
F9: Комментарий
A10: 1 | C10: Octava | D10: Вернуться к прайсу Octava
B11: З0000089012 | C11: Разделитель передвижной низкий(оргстекл) 343.55.00.00 для ВПС/ВПСН Octava | D11: 1121 | E11: =ROUND(D11*(1-$E$3)/Лист2!$A$6,0) -> 1121
B12: З0000089013 | C12: Разделитель передвижной высокий(оргстекл) 343.56.00.00 для ВПС/ВПСН Octava | D12: 1962 | E12: =ROUND(D12*(1-$E$3)/Лист2!$A$6,0) -> 1962
B13: З0000090244 | C13: Комплект полки навесной для весов 343.54.00.00 для ВПС/ВПСН/ВПН Octava | D13: 3259 | E13: =ROUND(D13*(1-$E$3)/Лист2!$A$6,0) -> 3259
A14: 2 | C14: Gamma-2 | D14: Вернуться к прайсу Gamma-2
C15: Комплект боковин 337.40.00.00 для ВПС/ВПСН Gamma 2 | D15: 11810 | E15: =ROUND(D15*(1-$E$3)/Лист2!$A$6,0) -> 11810
C16: Комплект боковин 350.40.00.00 для ВПН Gamma-2 | D16: 11992 | E16: =ROUND(D16*(1-$E$3)/Лист2!$A$6,0) -> 11992
C17: Комплект боковин 354.41.00.00 для КНП Gamma-2 | D17: 9338 | E17: =ROUND(D17*(1-$E$3)/Лист2!$A$6,0) -> 9338
C18: Комплект боковин 391.40.00.00 для ВПВ Gamma-2 | D18: 0 | E18: =ROUND(D18*(1-$E$3)/Лист2!$A$6,0) -> 0
C19: Комплект боковины левой 337.40.01.00 для ВПС/ВПСН Gamma-2 | D19: 5905 | E19: =ROUND(D19*(1-$E$3)/Лист2!$A$6,0) -> 5905
C20: Комплект боковины правой 337.40.01.00-01 для ВПС/ВПСН Gamma-2 | D20: 5905 | E20: =ROUND(D20*(1-$E$3)/Лист2!$A$6,0) -> 5905
C21: Комплект боковины левой 350.40.01.00 для ВПН Gamma-2 | D21: 5996 | E21: =ROUND(D21*(1-$E$3)/Лист2!$A$6,0) -> 5996
C22: Комплект боковины правой 350.40.01.00-01 для ВПН Gamma-2 | D22: 5996 | E22: =ROUND(D22*(1-$E$3)/Лист2!$A$6,0) -> 5996
C23: Комплект герметичного разделителя 337.83.00.00 для ВПС/ВПСН/ВПН Gamma-2 | D23: 13611 | E23: =ROUND(D23*(1-$E$3)/Лист2!$A$6,0) -> 13611
C24: Комплект для рыбы и морепродуктов 865.60.00.00 для Gamma/Gamma Quadro 1200 | D24: 9370 | E24: =ROUND(D24*(1-$E$3)/Лист2!$A$6,0) -> 9370
C25: Комплект для рыбы и морепродуктов 865.60.00.00-01 для Gamma/Gamma Quadro 1500 | D25: 11851 | E25: =ROUND(D25*(1-$E$3)/Лист2!$A$6,0) -> 11851
C26: Комплект для рыбы и морепродуктов 865.60.00.00-02 для Gamma/Gamma Quadro 1800 | D26: 13961 | E26: =ROUND(D26*(1-$E$3)/Лист2!$A$6,0) -> 13961
C27: Полка навесная 337.46.00.00 L=1200 для ВПС/ВПСН/ВПН Gamma-2 | D27: 4165 | E27: =ROUND(D27*(1-$E$3)/Лист2!$A$6,0) -> 4165 | F27: Полка дополнительная для отдельно стоящей витрины
C28: Полка навесная 337.46.00.00-01 L=1500 для ВПС/ВПСН/ВПН Gamma-2 | D28: 4405 | E28: =ROUND(D28*(1-$E$3)/Лист2!$A$6,0) -> 4405 | F28: Полка дополнительная для отдельно стоящей витрины
C29: Полка навесная 337.46.00.00-02 L=1800 для ВПС/ВПСН/ВПН Gamma-2 | D29: 4649 | E29: =ROUND(D29*(1-$E$3)/Лист2!$A$6,0) -> 4649 | F29: Полка дополнительная для отдельно стоящей витрины
C30: Разделитель передвижной низкий 337.47.00.00 для ВПС/ВПСН Gamma-2 | D30: 557 | E30: =ROUND(D30*(1-$E$3)/Лист2!$A$6,0) -> 557 | F30: Из стекла!
C31: Разделитель передвижной низкий из оргстекла 337.48.00.00 для ВПС/ВПСН Gamma-2 | D31: 1065 | E31: =ROUND(D31*(1-$E$3)/Лист2!$A$6,0) -> 1065
C32: Разделитель передвижной высокий 337.49.00.00 для ВПС/ВПСН Gamma-2 | D32: 989 | E32: =ROUND(D32*(1-$E$3)/Лист2!$A$6,0) -> 989 | F32: Из стекла!
C33: Разделитель передвижной высокий из оргстекла 337.53.00.00 для ВПС/ВПСН Gamma-2 | D33: 3303 | E33: =ROUND(D33*(1-$E$3)/Лист2!$A$6,0) -> 3303
C34: Комплект соединительный 337.50.00.00 для ВПС/ВПСН/ВПН Gamma-2 | D34: 4201 | E34: =ROUND(D34*(1-$E$3)/Лист2!$A$6,0) -> 4201
C35: Комплект соединительный 391.50.00.00 для ВПВ Gamma-2 | D35: 7262 | E35: =ROUND(D35*(1-$E$3)/Лист2!$A$6,0) -> 7262
C36: Комплект полки навесной для весов 337.54.00.00 для ВПС/ВПСН/ВПН Gamma-2 | D36: 5160 | E36: =ROUND(D36*(1-$E$3)/Лист2!$A$6,0) -> 5160
C37: Перемычка 337.60.00.00 для ВПС/ВПСН/ВПН Gamma-2 | D37: 3829 | E37: =ROUND(D37*(1-$E$3)/Лист2!$A$6,0) -> 3829
C38: Доска навесная для нарезки 337.61.00.00 для ВПС/ВПСН/ВПН Gamma-2 | D38: 8235 | E38: =ROUND(D38*(1-$E$3)/Лист2!$A$6,0) -> 8235
C39: Полка дополнительная 337.70.00.00 L=1200 для ВПС/ВПСН/ВПН Gamma-2 | D39: 4110 | E39: =ROUND(D39*(1-$E$3)/Лист2!$A$6,0) -> 4110 | F39: Полка дополнительная (стыковка левым торцом)
C40: Полка дополнительная 337.70.00.00-01 L=1500 для ВПС/ВПСН/ВПН Gamma-2 | D40: 4351 | E40: =ROUND(D40*(1-$E$3)/Лист2!$A$6,0) -> 4351 | F40: Полка дополнительная (стыковка левым торцом)
C41: Полка дополнительная 337.70.00.00-02 L=1800 для ВПС/ВПСН/ВПН Gamma-2 | D41: 4592 | E41: =ROUND(D41*(1-$E$3)/Лист2!$A$6,0) -> 4592 | F41: Полка дополнительная (стыковка левым торцом)
C42: Полка дополнительная 337.70.00.00-03 L=1200 для ВПС/ВПСН/ВПН Gamma-2 | D42: 1089 | E42: =ROUND(D42*(1-$E$3)/Лист2!$A$6,0) -> 1089 | F42: Полка дополнительная (стыковка с двух сторон)
C43: Полка дополнительная 337.70.00.00-04 L=1500 для ВПС/ВПСН/ВПН Gamma-2 | D43: 1314 | E43: =ROUND(D43*(1-$E$3)/Лист2!$A$6,0) -> 1314 | F43: Полка дополнительная (стыковка с двух сторон)
C44: Полка дополнительная 337.70.00.00-05 L=1800 для ВПС/ВПСН/ВПН Gamma-2 | D44: 1621 | E44: =ROUND(D44*(1-$E$3)/Лист2!$A$6,0) -> 1621 | F44: Полка дополнительная (стыковка с двух сторон)
C45: Полка дополнительная 337.70.00.00-06 L=1200 для ВПС/ВПСН/ВПН Gamma-2 | D45: 4110 | E45: =ROUND(D45*(1-$E$3)/Лист2!$A$6,0) -> 4110 | F45: Полка дополнительная (стыковка правым торцом)
C46: Полка дополнительная 337.70.00.00-07 L=1500 для ВПС/ВПСН/ВПН Gamma-2 | D46: 4351 | E46: =ROUND(D46*(1-$E$3)/Лист2!$A$6,0) -> 4351 | F46: Полка дополнительная (стыковка правым торцом)
C47: Полка дополнительная 337.70.00.00-08 L=1800 для ВПС/ВПСН/ВПН Gamma-2 | D47: 4592 | E47: =ROUND(D47*(1-$E$3)/Лист2!$A$6,0) -> 4592 | F47: Полка дополнительная (стыковка правым торцом)
C48: Подиум одноступенчатый 337.80.00.00 L=1200 для ВПС/ВПСН Gamma-2 | D48: 2227 | E48: =ROUND(D48*(1-$E$3)/Лист2!$A$6,0) -> 2227 | F48: Комплект на витрину
C49: Подиум одноступенчатый 337.80.00.00-01 L=1500 для ВПС/ВПСН Gamma-2 | D49: 2652 | E49: =ROUND(D49*(1-$E$3)/Лист2!$A$6,0) -> 2652 | F49: Комплект на витрину
C50: Подиум одноступенчатый 337.80.00.00-02 L=1800 для ВПС/ВПСН Gamma-2 | D50: 3384 | E50: =ROUND(D50*(1-$E$3)/Лист2!$A$6,0) -> 3384 | F50: Комплект на витрину
C51: Подиум одноступенчатый 351.80.00.00 OC 90 для ВПС Gamma-2 | D51: 2801 | E51: =ROUND(D51*(1-$E$3)/Лист2!$A$6,0) -> 2801 | F51: Комплект на витрину
C52: Подиум двухступенчатый 337.81.00.00 L=1200 для ВПС/ВПСН Gamma-2 | D52: 5283 | E52: =ROUND(D52*(1-$E$3)/Лист2!$A$6,0) -> 5283 | F52: Комплект на витрину
C53: Подиум двухступенчатый 337.81.00.00-01L=1500 для ВПС/ВПСН Gamma-2 | D53: 6186 | E53: =ROUND(D53*(1-$E$3)/Лист2!$A$6,0) -> 6186 | F53: Комплект на витрину
C54: Подиум двухступенчатый 337.81.00.00-02 L=1800 для ВПС/ВПСН Gamma-2 | D54: 7986 | E54: =ROUND(D54*(1-$E$3)/Лист2!$A$6,0) -> 7986 | F54: Комплект на витрину
C55: Подиум двухступенчатый 351.81.00.00 OC 90 для ВПС Gamma-2 | D55: 6455 | E55: =ROUND(D55*(1-$E$3)/Лист2!$A$6,0) -> 6455 | F55: Комплект на витрину
C56: Монтажный набор (до 4 кВт) 1106.120.00.00S для ВПВ/ВПС/ВПСН/ВПН | D56: 9143 | E56: =ROUND(D56*(1-$E$3)/Лист2!$A$6,0) -> 9143
C57: Опора гастроемкостей для витрин 337.85.00.00 L=1200 для ВПС/ВПСН Gamma-2 | D57: 2734 | E57: =ROUND(D57*(1-$E$3)/Лист2!$A$6,0) -> 2734
C58: Опора гастроемкостей для витрин 337.85.00.00-01 L=1500 для ВПС/ВПСН Gamma-2 | D58: 3054 | E58: =ROUND(D58*(1-$E$3)/Лист2!$A$6,0) -> 3054
C59: Опора гастроемкостей для витрин 337.85.00.00-02 L=1800 для ВПС/ВПСН Gamma-2 | D59: 4513 | E59: =ROUND(D59*(1-$E$3)/Лист2!$A$6,0) -> 4513
C60: Комплект для декорирования 337.87.00.00 для Gamma-2 L=1200 | D60: 10015 | E60: =ROUND(D60*(1-$E$3)/Лист2!$A$6,0) -> 10015
C61: Комплект для декорирования 337.87.00.00-01 для Gamma-2 L=1500 | D61: 11313 | E61: =ROUND(D61*(1-$E$3)/Лист2!$A$6,0) -> 11313
C62: Комплект для декорирования 337.87.00.00-02 для Gamma-2 L=1800 | D62: 12538 | E62: =ROUND(D62*(1-$E$3)/Лист2!$A$6,0) -> 12538
A63: 3 | C63: Gamma Quadro | D63: Вернуться к прайсу Gamma Q
C64: Комплект боковины левой 1062.40.00.00 для ВПС/ВПСН GAMMA-2 Quadro | D64: 6193 | E64: =ROUND(D64*(1-$E$3)/Лист2!$A$6,0) -> 6193 | G64: =D64+D65 -> 12386
C65: Комплект боковины правой 1062.40.00.00mir для ВПС/ВПСН GAMMA-2 Quadro | D65: 6193 | E65: =ROUND(D65*(1-$E$3)/Лист2!$A$6,0) -> 6193
C66: Комплект боковины левой 1064.40.00.00 для ВПН GAMMA-2 Quadro | D66: 7707 | E66: =ROUND(D66*(1-$E$3)/Лист2!$A$6,0) -> 7707
C67: Комплект боковины правой 1064.40.00.00mir для ВПН GAMMA-2 Quadro | D67: 7707 | E67: =ROUND(D67*(1-$E$3)/Лист2!$A$6,0) -> 7707
C68: Комплект герметичного разделителя 643.83.00.00 для ВПС/ВПН/ВПСН GAMMA-2 Quadro | D68: 14271 | E68: =ROUND(D68*(1-$E$3)/Лист2!$A$6,0) -> 14271
C69: Комплект герметичного разделителя с доп. полкой 643.84.00.00 для ВПС/ВПН/ВПСН GAMMA-2 Quadro | D69: 15828 | E69: =ROUND(D69*(1-$E$3)/Лист2!$A$6,0) -> 15828
C70: Комплект соединительный 1062.50.00.00 для ВПС/ВПН/ВПСН GAMMA-2 Quadro | D70: 3037 | E70: =ROUND(D70*(1-$E$3)/Лист2!$A$6,0) -> 3037
C71: Разделитель передвижной высокий (стекло) 643.43.00.00 для ВПС/ВПН/ВПСН GAMMA-2 Quadro | D71: 1407 | E71: =ROUND(D71*(1-$E$3)/Лист2!$A$6,0) -> 1407
C72: Разделитель передвижной низкий (оргстекло) 643.42.00.00 для ВПС/ВПН/ВПСН GAMMA-2 Quadro | D72: 1168 | E72: =ROUND(D72*(1-$E$3)/Лист2!$A$6,0) -> 1168
C73: Разделитель передвижной низкий (стекло) 643.41.00.00 для ВПС/ВПН/ВПСН GAMMA-2 Quadro | D73: 749 | E73: =ROUND(D73*(1-$E$3)/Лист2!$A$6,0) -> 749
C74: Комплект полки навесной для весов L=420 мм. 643.54.00.00 для ВПС/ВПН/ВПСН GAMMA-2 Quadro | D74: 5409 | E74: =ROUND(D74*(1-$E$3)/Лист2!$A$6,0) -> 5409
C75: Комплект отбойника фронтального 15х30 мм. 643.55.00.00 для ВПС/ВПН/ВПСН GAMMA-2 Quadro L=1200 | D75: 1861 | E75: =ROUND(D75*(1-$E$3)/Лист2!$A$6,0) -> 1861
C76: Комплект отбойника фронтального 15х30 мм. 643.55.00.00-01 для ВПС/ВПН/ВПСН GAMMA-2 Quadro L=1500 | D76: 2079 | E76: =ROUND(D76*(1-$E$3)/Лист2!$A$6,0) -> 2079
C77: Комплект отбойника фронтального 15х30 мм. 643.55.00.00-02 для ВПС/ВПН/ВПСН GAMMA-2 Quadro L=1800 | D77: 2296 | E77: =ROUND(D77*(1-$E$3)/Лист2!$A$6,0) -> 2296
C78: Доска навесная для нарезки 643.61.00.00 для ВПС/ВПН/ВПСН GAMMA-2 Quadro | D78: 19700 | E78: =ROUND(D78*(1-$E$3)/Лист2!$A$6,0) -> 19700
C79: Полка дополнительная 643.46.00.00 L=1200 для ВПС/ВПН/ВПСН GAMMA-2 Quadro | D79: 3673 | E79: =ROUND(D79*(1-$E$3)/Лист2!$A$6,0) -> 3673
C80: Полка дополнительная 643.46.00.00-01 L=1500 для ВПС/ВПН/ВПСН GAMMA-2 Quadro | D80: 3993 | E80: =ROUND(D80*(1-$E$3)/Лист2!$A$6,0) -> 3993
C81: Полка дополнительная 643.46.00.00-02 L=1800 для ВПС/ВПН/ВПСН GAMMA-2 Quadro | D81: 4294 | E81: =ROUND(D81*(1-$E$3)/Лист2!$A$6,0) -> 4294
C82: Подиум одноступенчатый 337.80.00.00 L=1200 для ВПС/ВПСН Gamma-2 | D82: 2226 | E82: =ROUND(D82*(1-$E$3)/Лист2!$A$6,0) -> 2226
C83: Подиум одноступенчатый 337.80.00.00-01 L=1500 для ВПС/ВПСН Gamma-2 | D83: 2655 | E83: =ROUND(D83*(1-$E$3)/Лист2!$A$6,0) -> 2655
C84: Подиум одноступенчатый 337.80.00.00-02 L=1800 для ВПС/ВПСН Gamma-2 | D84: 3387 | E84: =ROUND(D84*(1-$E$3)/Лист2!$A$6,0) -> 3387
C85: Подиум одноступенчатый 351.80.00.00 OC 90 для ВПС Gamma-2 | D85: 2802 | E85: =ROUND(D85*(1-$E$3)/Лист2!$A$6,0) -> 2802
C86: Подиум двухступенчатый 337.81.00.00 L=1200 для ВПС/ВПСН Gamma-2 | D86: 5281 | E86: =ROUND(D86*(1-$E$3)/Лист2!$A$6,0) -> 5281
C87: Подиум двухступенчатый 337.81.00.00-01L=1500 для ВПС/ВПСН Gamma-2 | D87: 6186 | E87: =ROUND(D87*(1-$E$3)/Лист2!$A$6,0) -> 6186
C88: Подиум двухступенчатый 337.81.00.00-02 L=1800 для ВПС/ВПСН Gamma-2 | D88: 7988 | E88: =ROUND(D88*(1-$E$3)/Лист2!$A$6,0) -> 7988
C89: Подиум двухступенчатый 351.81.00.00 OC 90 для ВПС Gamma-2 | D89: 6455 | E89: =ROUND(D89*(1-$E$3)/Лист2!$A$6,0) -> 6455
A90: 4 | B90: Код 1С | C90: Magnum | D90: Вернуться к прайсу Magnum
B91: З0000101899 | C91: Комплект боковины левой со стеклом 433.50.1000.00 для ВПС/ВПСН Magnum | D91: 7564 | E91: =ROUND(D91*(1-$E$3)/Лист2!$A$6,0) -> 7564
B92: З0000101900 | C92: Комплект боковины правой со стеклом 433.50.2000.00 для ВПС/ВПСН Magnum | D92: 7564 | E92: =ROUND(D92*(1-$E$3)/Лист2!$A$6,0) -> 7564
B93: З0000101907 | C93: Комплект боковины левой со стеклом 476.50.1000.00 для ВПН Magnum | D93: 9145 | E93: =ROUND(D93*(1-$E$3)/Лист2!$A$6,0) -> 9145
B94: З0000101908 | C94: Комплект боковины правой со стеклом 476.50.2000.00 для ВПН Magnum | D94: 9145 | E94: =ROUND(D94*(1-$E$3)/Лист2!$A$6,0) -> 9145
B95: З0000101902 | C95: Комплект боковины левой со стеклом 276.50.01.00 для ВПС Magnum SG | D95: 7422 | E95: =ROUND(D95*(1-$E$3)/Лист2!$A$6,0) -> 7422
B96: З0000101903 | C96: Комплект боковины правой со стеклом 276.50.02.00 для ВПС Magnum SG | D96: 7422 | E96: =ROUND(D96*(1-$E$3)/Лист2!$A$6,0) -> 7422
B97: З0000276011 | C97: Доска навесная для весов 1007.60.00.00 (420х325) для Magnum/Eco/Quadro | D97: 7907 | E97: =ROUND(D97*(1-$E$3)/Лист2!$A$6,0) -> 7907
B98: З0000304079 | C98: Доска навесная для нарезки 1007.62.00.00 (420х325) для Magnum/Eco/Quadro | D98: 10823 | E98: =ROUND(D98*(1-$E$3)/Лист2!$A$6,0) -> 10823
B99: З0000296634 | C99: Доска навесная универсальная для весов и для нарезки (450х410) 1007.160.00.00 для Magnum, Magnum Eco, Magnum Quadro | D99: 3454 | E99: =ROUND(D99*(1-$E$3)/Лист2!$A$6,0) -> 3454
B100: З0000297102 | C100: Комплект бампера 1098.72.00.00 для ВПС/ВПСН/ВПН Magnum 1250 | D100: 3783 | E100: =ROUND(D100*(1-$E$3)/Лист2!$A$6,0) -> 3783
B101: З0000297098 | C101: Комплект бампера 1098.72.00.00-01 для ВПС/ВПСН/ВПН Magnum 1880 | D101: 5578 | E101: =ROUND(D101*(1-$E$3)/Лист2!$A$6,0) -> 5578
B102: З0000297099 | C102: Комплект бампера 1098.72.00.00-02 для ВПС/ВПСН/ВПН Magnum 2500 | D102: 6069 | E102: =ROUND(D102*(1-$E$3)/Лист2!$A$6,0) -> 6069
B103: З0000297100 | C103: Комплект бампера 1098.72.00.00-03 для ВПС/ВПСН/ВПН Magnum 3750 | D103: 8358 | E103: =ROUND(D103*(1-$E$3)/Лист2!$A$6,0) -> 8358
B104: З0000304089 | C104: Комплект бампера 1102.72.00.00 для Magnum OС 90 | D104: 11216 | E104: =ROUND(D104*(1-$E$3)/Лист2!$A$6,0) -> 11216
B105: З0000297110 | C105: Комплект бампера 1103.72.00.00 для Magnum IС 90 | D105: 9838 | E105: =ROUND(D105*(1-$E$3)/Лист2!$A$6,0) -> 9838
B106: З0000101796 | C106: Комплект гидроамортизаторов 263.67.00.00 для ВПС/ВПСН/ВПН Magnum L=1250 | D106: 7804 | E106: =ROUND(D106*(1-$E$3)/Лист2!$A$6,0) -> 7804
B107: З0000101797 | C107: Комплект гидроамортизаторов 263.67.00.00-01 для ВПС/ВПСН/ВПН Magnum L=1880 | D107: 14724 | E107: =ROUND(D107*(1-$E$3)/Лист2!$A$6,0) -> 14724
B108: З0000101798 | C108: Комплект гидроамортизаторов 263.67.00.00-02 для ВПС/ВПСН/ВПН Magnum L=2500 | D108: 14724 | E108: =ROUND(D108*(1-$E$3)/Лист2!$A$6,0) -> 14724
B109: З0000110281 | C109: Комплект гидроамортизаторов 263.67.00.00-03 для ВПС/ВПСН/ВПН Magnum L=3750 | D109: 21481 | E109: =ROUND(D109*(1-$E$3)/Лист2!$A$6,0) -> 21481
B110: З0000101812 | C110: Комплект гидроамортизаторов 268.67.00.00 для ВПС Magnum IС 90 | D110: 13917 | E110: =ROUND(D110*(1-$E$3)/Лист2!$A$6,0) -> 13917
B111: З0000101811 | C111: Комплект гидроамортизаторов 267.67.00.00 для ВПС Magnum OС 90 | D111: 13917 | E111: =ROUND(D111*(1-$E$3)/Лист2!$A$6,0) -> 13917
B112: З0000101612 | C112: Комплект соединительный 263.55.00.00 для ВПС/ВПСН/ВПН Magnum | D112: 1646 | E112: =ROUND(D112*(1-$E$3)/Лист2!$A$6,0) -> 1646
B113: З0000101725 | C113: Компл соединительный 276.55.00.00 для ВПС Magnum SG | D113: 1647 | E113: =ROUND(D113*(1-$E$3)/Лист2!$A$6,0) -> 1647
B114: З0000104851 | C114: Комплект подиума двухступ(нерж) 433.73.0000.00 L=1250 для ВПС/ВПСН/ВПН Magnum | D114: 4131 | E114: =ROUND(D114*(1-$E$3)/Лист2!$A$6,0) -> 4131 | F114: ступенька на экспозиционную полку в витрине
B115: З0000104852 | C115: Комплект подиума двухступ(нерж) 433.73.0000.00-01 L=1880 для ВПС/ВПСН/ВПН Magnum | D115: 5232 | E115: =ROUND(D115*(1-$E$3)/Лист2!$A$6,0) -> 5232 | F115: ступенька на экспозиционную полку в витрине
B116: З0000104853 | C116: Комплект подиума двухступ(нерж) 433.73.0000.00-02 L=2500 для ВПС/ВПСН/ВПН Magnum | D116: 8263 | E116: =ROUND(D116*(1-$E$3)/Лист2!$A$6,0) -> 8263 | F116: ступенька на экспозиционную полку в витрине
B117: З0000104854 | C117: Комплект подиума двухступ(нерж) 433.73.0000.00-03 L=3750 для ВПС/ВПСН/ВПН Magnum | D117: 12397 | E117: =ROUND(D117*(1-$E$3)/Лист2!$A$6,0) -> 12397 | F117: ступенька на экспозиционную полку в витрине
B118: З0000101740 | C118: Подиум двухступенчатый 268.58.00.00 IC 90 для ВПС Magnum | D118: 5829 | E118: =ROUND(D118*(1-$E$3)/Лист2!$A$6,0) -> 5829 | F118: ступенька на экспозиционную полку в витрине
B119: З0000101738 | C119: Подиум двухступенчатый 267.58.00.00 OC 90 для ВПС Magnum | D119: 3886 | E119: =ROUND(D119*(1-$E$3)/Лист2!$A$6,0) -> 3886 | F119: ступенька на экспозиционную полку в витрине
B120: З0000280986 | C120: Комплект герметичного разделителя 1098.43.00.00 для ВПС/ВПСН/ВПН Magnum | D120: 16357 | E120: =ROUND(D120*(1-$E$3)/Лист2!$A$6,0) -> 16357
B121: З0000304091 | C121: Комплект герметичного разделителя 1101.43.00.00 для ВПС/ВПСН Magnum SG | D121: 12607 | E121: =ROUND(D121*(1-$E$3)/Лист2!$A$6,0) -> 12607
B122: З0000280988 | C122: Комплект разделителя передвижного высокого 1098.42.00.00 для ВПС/ВПСН/ВПН Magnum | D122: 1481 | E122: =ROUND(D122*(1-$E$3)/Лист2!$A$6,0) -> 1481
B123: З0000280987 | C123: Комплект разделителя передвижного низкого 1098.41.00.00 для ВПС/ВПСН/ВПН Magnum | D123: 1195 | E123: =ROUND(D123*(1-$E$3)/Лист2!$A$6,0) -> 1195
B124: З0000101825 | C124: ТЭН оттайки испарителя 273.65.00.00 L=1250 для ВПС Magnum / IС 90 / ОС 90 / Eco / Quadro | D124: 1739 | E124: =ROUND(D124*(1-$E$3)/Лист2!$A$6,0) -> 1739
B125: З0000101826 | C125: ТЭН оттайки испарителя 273.65.00.00-01 L=1880 для ВПС Magnum / Eco / Quadro | D125: 3131 | E125: =ROUND(D125*(1-$E$3)/Лист2!$A$6,0) -> 3131
B126: З0000101828 | C126: ТЭН оттайки испарителя 273.65.00.00-02 L=2500 для ВПС Magnum / Eco / Quadro | D126: 3726 | E126: =ROUND(D126*(1-$E$3)/Лист2!$A$6,0) -> 3726
B127: З0000101829 | C127: ТЭН оттайки испарителя 273.65.00.00-03 L=3750 для ВПС Magnum / Eco / Quadro | D127: 5993 | E127: =ROUND(D127*(1-$E$3)/Лист2!$A$6,0) -> 5993
B128: З0000302271 | C128: Комплект шторок ночных 1101.40.00.00 для Magnum SG исп.1250 | D128: 4574 | E128: =ROUND(D128*(1-$E$3)/Лист2!$A$6,0) -> 4574
B129: З0000302272 | C129: Комплект шторок ночных 1101.40.00.00-01 для Magnum SG исп.1875 | D129: 6823 | E129: =ROUND(D129*(1-$E$3)/Лист2!$A$6,0) -> 6823
B130: З0000302273 | C130: Комплект шторок ночных 1101.40.00.00-02 для Magnum SG исп.2500 | D130: 9124 | E130: =ROUND(D130*(1-$E$3)/Лист2!$A$6,0) -> 9124
B131: З0000302274 | C131: Комплект шторок ночных 1101.40.00.00-03 для Magnum SG исп.3750 | D131: 13433 | E131: =ROUND(D131*(1-$E$3)/Лист2!$A$6,0) -> 13433
A132: 5 | B132: Код 1С | C132: Magnum ECO | D132: Вернуться к прайсу Magnum ECO
B133: З0000123582 | C133: Комплект боковины левой 676.50.01.00 для ВПС/ВПСН Magnum Eco | D133: 7564 | E133: =ROUND(D133*(1-$E$3)/Лист2!$A$6,0) -> 7564
B134: З0000123583 | C134: Комплект боковины правой 676.50.02.00 для ВПС/ВПСН Magnum Eco | D134: 7564 | E134: =ROUND(D134*(1-$E$3)/Лист2!$A$6,0) -> 7564
B135: З0000276011 | C135: Доска навесная для весов 1007.60.00.00 (420х325) для Magnum/Eco/Quadro | D135: 5456 | E135: =ROUND(D135*(1-$E$3)/Лист2!$A$6,0) -> 5456
B136: З0000304079 | C136: Доска навесная для нарезки 1007.62.00.00 (420х325) для Magnum/Eco/Quadro | D136: 8042 | E136: =ROUND(D136*(1-$E$3)/Лист2!$A$6,0) -> 8042
B137: З0000296634 | C137: Доска навесная универсальная для весов и для нарезки (450х410) 1007.160.00.00 для Magnum, Magnum Eco, Magnum Quadro | D137: 3454 | E137: =ROUND(D137*(1-$E$3)/Лист2!$A$6,0) -> 3454
B138: З0000123589 | C138: Комплект соединительный 676.40.00.00 для ВПС/ВПСН/ВПН Magnum Eco | D138: 1647 | E138: =ROUND(D138*(1-$E$3)/Лист2!$A$6,0) -> 1647
B139: З0000104851 | C139: Комплект подиума двухступ(нерж) 433.73.0000.00 L=1250 для ВПС/ВПСН/ВПН Magnum | D139: 4131 | E139: =ROUND(D139*(1-$E$3)/Лист2!$A$6,0) -> 4131 | F139: ступенька на экспозиционную полку в витрине
B140: З0000104852 | C140: Комплект подиума двухступ(нерж) 433.73.0000.00-01 L=1880 для ВПС/ВПСН/ВПН Magnum | D140: 5232 | E140: =ROUND(D140*(1-$E$3)/Лист2!$A$6,0) -> 5232 | F140: ступенька на экспозиционную полку в витрине
B141: З0000104853 | C141: Комплект подиума двухступ(нерж) 433.73.0000.00-02 L=2500 для ВПС/ВПСН/ВПН Magnum | D141: 8263 | E141: =ROUND(D141*(1-$E$3)/Лист2!$A$6,0) -> 8263 | F141: ступенька на экспозиционную полку в витрине
B142: З0000104854 | C142: Комплект подиума двухступ(нерж) 433.73.0000.00-03 L=3750 для ВПС/ВПСН/ВПН Magnum | D142: 12397 | E142: =ROUND(D142*(1-$E$3)/Лист2!$A$6,0) -> 12397 | F142: ступенька на экспозиционную полку в витрине
B143: З0000101825 | C143: ТЭН оттайки испарителя 273.65.00.00 L=1250 для ВПС Magnum / IС 90 / ОС 90 / Eco / Quadro | D143: 1739 | E143: =ROUND(D143*(1-$E$3)/Лист2!$A$6,0) -> 1739
B144: З0000101826 | C144: ТЭН оттайки испарителя 273.65.00.00-01 L=1880 для ВПС Magnum / Eco / Quadro | D144: 3131 | E144: =ROUND(D144*(1-$E$3)/Лист2!$A$6,0) -> 3131
B145: З0000101828 | C145: ТЭН оттайки испарителя 273.65.00.00-02 L=2500 для ВПС Magnum / Eco / Quadro | D145: 3726 | E145: =ROUND(D145*(1-$E$3)/Лист2!$A$6,0) -> 3726
B146: З0000101829 | C146: ТЭН оттайки испарителя 273.65.00.00-03 L=3750 для ВПС Magnum / Eco / Quadro | D146: 5993 | E146: =ROUND(D146*(1-$E$3)/Лист2!$A$6,0) -> 5993
A147: 6 | B147: Код 1С | C147: MAGNUM Quadro | D147: Вернуться к прайсу Magnum Q
C148: Комплект общей подсветки для Magnum Quadro L=1250 мм | D148: 2143 | E148: =D148*(1-$E$3) -> 2143 | F148: Спектр освещения определяется характеристикой (пятый символ, "1" - 6500К, "2" - 4000К, "3" - 3000 К, "4" - мясной)
C149: Комплект общей подсветки для Magnum Quadro L=1875 мм | D149: 3188 | E149: =D149*(1-$E$3) -> 3188
C150: Комплект общей подсветки для Magnum Quadro L=2500 мм | D150: 3188 | E150: 3188
C151: Комплект общей подсветки для Magnum Quadro OC90 | D151: 3215 | E151: 3215
C152: Комплект общей подсветки для Magnum Quadro IC90 | D152: 1929 | E152: 1929
C153: Комплект декоративной фронтальной панели металлической узкой L=1250 мм | D153: 3104 | E153: 3104 | F153: Определяется характеристикой Восьмой символ характеристики - ВХХХХ где ХХХХ цвет со структурой, пример - В7016гл
C154: Комплект декоративной фронтальной панели металлической узкой L=1875 мм | D154: 4430 | E154: 4430
C155: Комплект декоративной фронтальной панели металлической узкой L=2500 мм | D155: 5281 | E155: 5281
C156: Комплект декоративной фронтальной панели металлической узкой OC90 | D156: 5293 | E156: 5293
C157: Комплект декоративной фронтальной панели металлической узкой IC90 | D157: 3259 | E157: 3259
C158: Комплект декоративной фронтальной панели металлической узкой с отбойником L=1250 мм | D158: 4967 | E158: 4967 | F158: Определяется характеристикой Восьмой символ характеристики - DХХХХ где ХХХХ цвет со структурой, пример - D7016гл
C159: Комплект декоративной фронтальной панели металлической узкой с отбойником L=1875 мм | D159: 7088 | E159: 7088
C160: Комплект декоративной фронтальной панели металлической узкой с отбойником L=2500 мм | D160: 8449 | E160: 8449
C161: Комплект декоративной фронтальной панели металлической узкой с отбойником OC90 | D161: 8469 | E161: 8469
C162: Комплект декоративной фронтальной панели металлической узкой с отбойником IC90 | D162: 5215 | E162: 5215
C163: Комплект декоративной фронтальной панели металлической широкой L=1250 мм | D163: 3352 | E163: 3352 | F163: Определяется характеристикой Восьмой символ характеристики - AХХХХ где ХХХХ цвет со структурой, пример - A7016гл
C164: Комплект декоративной фронтальной панели металлической широкой L=1875 мм | D164: 4784 | E164: 4784
C165: Комплект декоративной фронтальной панели металлической широкой L=2500 мм | D165: 5703 | E165: 5703
C166: Комплект декоративной фронтальной панели металлической широкой для OC90 | D166: 5717 | E166: 5717
C167: Комплект декоративной фронтальной панели металлической широкой для IC90 | D167: 3520 | E167: 3520
C168: Комплект декоративной фронтальной панели металлической широкой с отбойником L=1250 мм | D168: 5364 | E168: 5364 | F168: Определяется характеристикой Восьмой символ характеристики - СХХХХ где ХХХХ цвет со структурой, пример - С7016гл
C169: Комплект декоративной фронтальной панели металлической широкой с отбойником L=1875 мм | D169: 7655 | E169: 7655
C170: Комплект декоративной фронтальной панели металлической широкой с отбойником L=2500 мм | D170: 9125 | E170: 9125
C171: Комплект декоративной фронтальной панели металлической широкой с отбойником для OC90 | D171: 9147 | E171: 9147
C172: Комплект декоративной фронтальной панели металлической широкой с отбойником для IC90 | D172: 5632 | E172: 5632
C173: Комплект декоративной фронтальной панели металлической узкой L=1250 мм, ЛДСП | D173: 5587 | E173: 5587 | F173: Расшифровка характеристик ЛДСП (нажать)
C174: Комплект декоративной фронтальной панели металлической узкой L=1875 мм, ЛДСП | D174: 7974 | E174: 7974
C175: Комплект декоративной фронтальной панели металлической узкой L=2500 мм, ЛДСП | D175: 9505 | E175: 9505
C176: Комплект декоративной фронтальной панели металлической узкой OC90, ЛДСП | D176: 9528 | E176: 9528
C177: Комплект декоративной фронтальной панели металлической узкой IC90, ЛДСП | D177: 5867 | E177: 5867
C178: Комплект декоративной фронтальной панели металлической узкой с отбойником L=1250 мм, ЛДСП | D178: 7450 | E178: 7450 | F178: Расшифровка характеристик ЛДСП (нажать)
C179: Комплект декоративной фронтальной панели металлической узкой с отбойником L=1875 мм, ЛДСП | D179: 10632 | E179: 10632
C180: Комплект декоративной фронтальной панели металлической узкой с отбойником L=2500 мм, ЛДСП | D180: 12674 | E180: 12674
C181: Комплект декоративной фронтальной панели металлической узкой с отбойником OC90, ЛДСП | D181: 12704 | E181: 12704
C182: Комплект декоративной фронтальной панели металлической узкой с отбойником IC90, ЛДСП | D182: 7822 | E182: 7822
C183: Комплект декоративной фронтальной панели металлической широкой L=1250 мм, ЛДСП | D183: 6034 | E183: 6034 | F183: Расшифровка характеристик ЛДСП (нажать)
C184: Комплект декоративной фронтальной панели металлической широкой L=1875 мм, ЛДСП | D184: 8612 | E184: 8612
C185: Комплект декоративной фронтальной панели металлической широкой L=2500 мм, ЛДСП | D185: 10266 | E185: 10266
C186: Комплект декоративной фронтальной панели металлической широкой для OC90, ЛДСП | D186: 10290 | E186: 10290
C187: Комплект декоративной фронтальной панели металлической широкой для IC90, ЛДСП | D187: 6336 | E187: 6336
C188: Комплект декоративной фронтальной панели металлической широкой с отбойником L=1250 мм, ЛДСП | D188: 8046 | E188: 8046 | F188: Расшифровка характеристик ЛДСП (нажать)
C189: Комплект декоративной фронтальной панели металлической широкой с отбойником L=1875 мм, ЛДСП | D189: 11483 | E189: 11483
C190: Комплект декоративной фронтальной панели металлической широкой с отбойником L=2500 мм, ЛДСП | D190: 13688 | E190: =D190*(1-$E$3) -> 13688
C191: Комплект декоративной фронтальной панели металлической широкой с отбойником для OC90, ЛДСП | D191: 13720 | E191: =D191*(1-$E$3) -> 13720
C192: Комплект декоративной фронтальной панели металлической широкой с отбойником для IC90, ЛДСП | D192: 8448 | E192: 8448
C193: Система выпаривания конденсата для Magnum Quadro L=1250 мм | D193: 3542 | E193: 3542 | F193: Применение выпаривателя определяется характеристикой (шестой символ, "V0" - без выпаривателя, "V1" - выпариватель применен)
C194: Система выпаривания конденсата для Magnum Quadro L=1875 мм | D194: 6021 | E194: 6021
C195: Система выпаривания конденсата для Magnum Quadro L=2500 мм | D195: 7934 | E195: 7934
C196: Система выпаривания конденсата для Magnum Quadro OC90 | D196: 6021 | E196: 6021
C197: Система выпаривания конденсата для Magnum Quadro IC90 | D197: 3188 | E197: 3188
B198: З0000252734 | C198: Комплект боковины левой под узкую фронтальную панель 1007.48.00.00 для ВПС/ВПСН Magnum Quadro | D198: 7581 | E198: 7581
B199: З0000252736 | C199: Комплект боковины правой под узкую фронтальную панель 1007.48.00.00mir дляВПС/ВПСН Magnum Quadro | D199: 7581 | E199: 7581
B200: З0000250536 | C200: Комплект боковины левой под узкую фронтальную панель 1013.48.00.00 для ВПС/ВПСН Magnum Quadro Self | D200: 7218 | E200: 7218
B201: З0000265366 | C201: Комплект боковины правой под узкую фронтальную панель 1013.48.00.00mir для ВПС/ВПСН Magnum Quadro Self | D201: 7218 | E201: 7218
B202: З0000275651 | C202: Комплект боковины левой под узкую фронтальную панель 1030.48.00.00 для ВПН Magnum Quadro | D202: 7808 | E202: 7808
B203: З0000275653 | C203: Комплект боковины правой под узкую фронтальную панель 1030.48.00.00mir для ВПН Magnum Quadro | D203: 7808 | E203: 7808
... 29 more rows

Sheet Витрины Italfrigo
K1: На главную
J2: На главную
B3: Ваша скидка: | E3: =Содержание!D2 -> 0
B4: НДС: | E4: =IF(Лист2!A1=TRUE,"С НДС","БЕЗ НДС") -> С НДС
B7: Витрины Italfrigo без агрегата
A8: № | B8: Изображение | C8: Артикул | D8: Наименование | E8: Температурный режим, C° | F8: Площадь экспозиции, кв.м. | G8: Габариты без боковин, мм (L/W/H) | H8: Габариты в упаковке, мм (L/W/H) | I8: Базовая цена, руб. (с НДС) | J8: =[6]Лист2!$A$5 -> Ваша цена, руб.
A11: 1 | B11: Витрины серии TOSCANA Q, глубина выкладки 860 мм
C12: Среднетемпературные витрины
C13: 125ITSQВПС2 | D13: Витрина холодильная ВПC Italfrigo Toscana Q 1250 Д | E13: 0…+5 С | G13: 1250х1060х1195 | H13: 1500х1190х1080 | I13: 107731 | J13: =I13*(1-$E$3) -> 107731
C14: 188ITSQВПС2 | D14: Витрина холодильная ВПC Italfrigo Toscana Q 1875 Д | G14: 1875х1060х1195 | H14: 2100х1190х1080 | I14: 145071 | J14: 145071
C15: 250ITSQВПС2 | D15: Витрина холодильная ВПC Italfrigo Toscana Q 2500 Д | G15: 2500х1060х1195 | H15: 2750х1190х1080 | I15: 168733 | J15: 168733
C16: 375ITSQВПС2 | D16: Витрина холодильная ВПC Italfrigo Toscana Q 3750 Д | G16: 3750х1060х1195 | H16: 4050х1190х1080 | I16: 226864 | J16: 226864
C17: Среднетемпературные витрины c низким стеклом
C18: ITSQВПС2SG125Д | D18: Витрина холодильная ВПC Italfrigo Toscana Q Self 1250 Д | E18: 0…+5 С | G18: 1250х1060х880 | H18: 1500х1190х1080 | I18: 86918 | J18: 86918
C19: ITSQВПС2SG188Д | D19: Витрина холодильная ВПC Italfrigo Toscana Q Self 1875 Д | G19: 1875х1060х880 | H19: 2100х1190х1080 | I19: 106792 | J19: 106792
C20: ITSQВПС2SG250Д | D20: Витрина холодильная ВПC Italfrigo Toscana Q Self 2500 Д | G20: 2500х1060х880 | H20: 2750х1190х1080 | I20: 127699 | J20: 127699
C21: ITSQВПС2SG375Д | D21: Витрина холодильная ВПC Italfrigo Toscana Q Self 3750 Д | G21: 3750х1060х880 | H21: 4050х1190х1080 | I21: 170023 | J21: 170023
C22: Угловые среднетемпературные витрины
C23: OC90ITSQ ВПС2 | D23: Витрина холодильная ВПC Italfrigo Toscana Q OC 90 Д | E23: 0…+5 С | G23: 1355х1355х1195 | H23: 2170х1380х1055 | I23: 196236 | J23: 196236
C24: IC90ITSQ ВПС2 | D24: Витрина холодильная ВПC Italfrigo Toscana Q IC 90 Д | G24: 1295х1295х1195 | H24: 2170х1380х1055 | I24: 173624 | J24: 173624
C25: Угловые среднетемпературные витрины с низким стеклом
C26: OC90ITSQВПС2SG | D26: Витрина холодильная ВПC Italfrigo Toscana Q OC90 Self Д | E26: 0…+5 С | G26: 1355х1355х880 | H26: 2170х1380х1055 | I26: 172687 | J26: 172687
C27: IC90ITSQВПС2SG | D27: Витрина холодильная ВПC Italfrigo Toscana Q IC90 Self Д | G27: 1295х1295х880 | H27: 2170х1380х1055 | I27: 152789 | J27: 152789
C28: Средне-низкотемпературные витрины FISH (рыба на льду)
C29: 125ITSQFSВПСН2 | D29: Витрина холодильно-морозильная ВПCН (Italfrigo Toscana Q Fish 1250 Д) | E29: -5…+5 С | G29: 1250х1060х1195 | H29: 1500х1190х1080 | I29: 140052 | J29: 140052
C30: 188ITSQFSВПСН2 | D30: Витрина холодильно-морозильная ВПCН (Italfrigo Toscana Q Fish 1875 Д) | G30: 1875х1060х1195 | H30: 2100х1190х1080 | I30: 161060 | J30: 161060
C31: Средне-низкотемпературные витрины FISH (рыба на льду) c низким стеклом
C32: 125ITSQFSВПСН2SG | D32: Витрина холодильно-морозильная ВПCН (Italfrigo Toscana Q Self Fish 1250 Д) | E32: -5…+5 С | G32: 1250х1060х880 | H32: 1500х1190х1080 | I32: 118925 | J32: 118925
C33: 188ITSQFSВПСН2SG | D33: Витрина холодильно-морозильная ВПCН (Italfrigo Toscana Q Self Fish 1875 Д) | G33: 1875х1060х880 | H33: 2100х1190х1080 | I33: 136705 | J33: 136705
C34: Тепловая витрина (мармит) +65, нагрев горячим паром
C35: 125ITSQВПТВМ | D35: Витрина тепловая ВПТ Italfrigo Toscana Q 1250 ВМ | E35: +65 C | G35: 1250х1060х1195 | H35: 1500х1190х1400 | I35: 195606 | J35: 195606
A36: 2 | B36: Витрины серии Veneto Quadro, глубина выкладки 960 мм
C37: Среднетемпературные витрины
C38: IVQ ВПС2 125Д | D38: Витрина холодильная ВПC 0,195-1,2 (Italfrigo Veneto Quadro 1250 Д) | E38: +2…+4 С | G38: 1250х1165х1175 | H38: 1500х1450х1420 | I38: 120033 | J38: =I38*(1-$E$3) -> 120033
C39: IVQ ВПС2 188Д | D39: Витрина холодильная ВПC 0,29-1,75 (Italfrigo Veneto Quadro 1875 Д) | G39: 1875х1165х1175 | H39: 2125х1450х1420 | I39: 162045 | J39: 162045
C40: IVQ ВПС2 250Д | D40: Витрина холодильная ВПC 0,39-2,4 (Italfrigo Veneto Quadro 2500 Д) | G40: 2500х1165х1175 | H40: 2750х1450х1420 | I40: 194191 | J40: 194191
C41: IVQ ВПС2 375Д | D41: Витрина холодильная ВПC 0,585-3,5 (Italfrigo Veneto Quadro 3750 Д) | G41: 3750х1165х1175 | H41: 4000х1450х1420 | I41: 261236 | J41: 261236
C42: Среднетемпературные витрины c низким стеклом
C43: IVQ ВПС2 SG 125Д | D43: Витрина холодильная ВПC 0,195-1,2 (Italfrigo Veneto Quadro Self 1250 Д) | E43: +2…+4 С | G43: 1250х1165х870 | H43: 1500х1450х1050 | I43: 98771 | J43: =I43*(1-$E$3) -> 98771
C44: IVQ ВПС2 SG 188Д | D44: Витрина холодильная ВПC 0,29-1,75 (Italfrigo Veneto Quadro Self 1875 Д) | G44: 1875х1165х870 | H44: 2125х1450х1050 | I44: 121355 | J44: 121355
C45: IVQ ВПС2 SG 250Д | D45: Витрина холодильная ВПC 0,39-2,4 (Italfrigo Veneto Quadro Self 2500 Д) | G45: 2500х1165х870 | H45: 2750х1450х1050 | I45: 149181 | J45: 149181
C46: IVQ ВПС2 SG 375Д | D46: Витрина холодильная ВПC 0,585-3,5 (Italfrigo Veneto Quadro Self 3750 Д) | G46: 3750х1165х870 | H46: 4000х1450х1050 | I46: 198625 | J46: 198625
C47: Угловые среднетемпературные витрины
C48: IVQ ВПС2 OC90Д | D48: Витрина холодильная ВПC 0,226-1,33 (Italfrigo Veneto Quadro OС 90 Д) | E48: +2…+4 С | G48: 1800х1200х1175 | H48: 2000х1380х1295 | I48: 241883 | J48: =I48*(1-$E$3) -> 241883
C49: IVQ ВПС2 IC45Д | D49: Витрина холодильная ВПC 0,11-0,64 (Italfrigo Veneto Quadro IС 45 Д) | G49: 1455х1380х1175 | H49: 1750х1670х1395 | I49: 142709 | J49: 142709
C50: Угловые среднетемпературные витрины с низким стеклом
C51: IVQ ВПС2 SG OC90Д | D51: Витрина холодильная ВПC 0,226-1,33 (Italfrigo Veneto Quadro Self OС 90 Д) | E51: 0…+5 С | G51: 1800х1200х870 | H51: 2000х1380х1050 | I51: 220164 | J51: =I51*(1-$E$3) -> 220164
C52: IVQ ВПС2 SG IC45Д | D52: Витрина холодильная ВПC 0,11-0,64 (Italfrigo Veneto Quadro Self IС 45 Д) | G52: 1455х1380х870 | H52: 1750х1670х1050 | I52: 123404 | J52: 123404
C53: Средне-низкотемпературные витрины
C54: IVQ ВПСН2 125Д | D54: Витрина холодильно-морозильная ВПCН 0,195-1,2 (Italfrigo Veneto Quadro 1250 Д) | E54: -5…+5 С | G54: 1250х1165х1175 | H54: 1500х1450х1420 | I54: 126167 | J54: =I54*(1-$E$3) -> 126167
C55: IVQ ВПСН2 188Д | D55: Витрина холодильно-морозильная ВПCН 0,29-1,75 (Italfrigo Veneto Quadro 1875 Д) | G55: 1875х1165х1175 | H55: 2125х1450х1420 | I55: 168912 | J55: 168912
C56: IVQ ВПСН2 250Д | D56: Витрина холодильно-морозильная ВПCН 0,39-2,4 (Italfrigo Veneto Quadro 2500 Д) | G56: 2500х1165х1175 | H56: 2750х1450х1420 | I56: 200905 | J56: 200905
C57: IVQ ВПСН2 375Д | D57: Витрина холодильно-морозильная ВПCН 0,585-3,5 (Italfrigo Veneto Quadro 3750 Д) | G57: 3750х1165х1175 | H57: 4000х1450х1420 | I57: 268407 | J57: 268407
C59: IVQ КНП IC90 | D59: Прилавок КНП Italfrigo Veneto Quadro IC90 (с широкой панелью) | I59: 32769 | J59: 32769 | K59: Ахххх.Рхххх
C60: IVQ КНП 1000 | D60: Прилавок КНП Italfrigo Veneto Quadro 1000 (с широкой панелью) | I60: 40956 | J60: 40956 | K60: Ахххх.Рхххх
C61: Средне-низкотемпературные витрины FISH (рыба на льду)
C62: IVQFS ВПСН2 125Д | D62: Витрина холодильно-морозильная ВПCН 0,195-1,2 (Italfrigo Veneto Quadro Fish 1250 Д) | E62: -5…+5 С | G62: 1250х1165х1175 | H62: 1500х1450х1420 | I62: 164902 | J62: =I62*(1-$E$3) -> 164902
C63: IVQFS ВПСН2 188Д | D63: Витрина холодильно-морозильная ВПCН 0,29-1,75 (Italfrigo Veneto Quadro Fish 1875 Д) | G63: 1875х1165х1175 | H63: 2125х1450х1420 | I63: 200523 | J63: 200523
C64: Средне-низкотемпературные витрины FISH (рыба на льду) c низким стеклом
C65: IVQFS ВПСН2 SG 125Д | D65: Витрина холодильно-морозильная ВПCН 0,195-1,2 (Italfrigo Veneto Quadro Self Fish 1250 Д) | E65: -5…+5 С | G65: 1250х1165х870 | H65: 1500х1450х1050 | I65: 147243 | J65: =I65*(1-$E$3) -> 147243
C66: IVQFS ВПСН2 SG 188Д | D66: Витрина холодильно-морозильная ВПCН 0,29-1,75 (Italfrigo Veneto Quadro Self Fish 1875 Д) | G66: 1875х1165х870 | H66: 2125х1450х1050 | I66: 168278 | J66: 168278
C67: Тепловая витрина (мармит) +65, нагрев горячим паром
C68: IVQ BM125 | D68: Витрина тепловая ВПТ 0,56-0,09 (Italfrigo Veneto Quadro ВМ 1250) | E68: +65 C | G68: 1250х1165х1175 | H68: 1500х1450х1420 | I68: 228207 | J68: =I68*(1-$E$3) -> 228207
G71: наверх

Sheet Опции для витрин Italfrigo
F1: На главную
C3: Ваша скидка: | E3: =Содержание!D2 -> 0
C4: НДС: | E4: =IF(Лист2!A1=TRUE,"С НДС","БЕЗ НДС") -> С НДС
C7: Опции для витрин Italfrigo
A8: № | B8: Артикул | C8: Название | D8: Базовая цена, руб. (с НДС) | E8: =[5]Лист2!$A$5 -> Ваша цена, руб.
F9: Комментарий
A10: Опции VENETO | E10: Назад к списку
A11: 1. Veneto Quadro
A12: Обязательные опции для Veneto Quadro
A13: 1 | B13: 713.39.00.00 | C13: Комплект декоративной фронтальной панели широкой, без отбойника L=1250 | D13: 3414 | E13: =ROUND(D13*(1-$E$3)/Лист2!$A$6,0) -> 3414
A14: 2 | B14: 713.39.00.00-01 | C14: Комплект декоративной фронтальной панели широкой, без отбойника L=1875 | D14: 4873 | E14: =ROUND(D14*(1-$E$3)/Лист2!$A$6,0) -> 4873
A15: 3 | B15: 713.39.00.00-02 | C15: Комплект декоративной фронтальной панели широкой, без отбойника L=2500 | D15: 5809 | E15: =ROUND(D15*(1-$E$3)/Лист2!$A$6,0) -> 5809
A16: 4 | B16: 713.39.00.00-03 | C16: Комплект декоративной фронтальной панели широкой, без отбойника L=3750 | D16: 6003 | E16: =ROUND(D16*(1-$E$3)/Лист2!$A$6,0) -> 6003
A17: 5 | B17: 735.39.00.00 | C17: Комплект декоративной фронтальной панели широкой, без отбойника для ОС 90 | D17: 3570 | E17: =ROUND(D17*(1-$E$3)/Лист2!$A$6,0) -> 3570
A18: 6 | B18: 736.39.00.00 | C18: Комплект декоративной фронтальной панели широкой, без отбойника для IC 45 | D18: 2586 | E18: =ROUND(D18*(1-$E$3)/Лист2!$A$6,0) -> 2586
A19: 7 | B19: 713.35.00.00 | C19: Комплект декоративной фронтальной панели узкой, без отбойника L=1250 | D19: 3176 | E19: =ROUND(D19*(1-$E$3)/Лист2!$A$6,0) -> 3176
A20: 8 | B20: 713.35.00.00-01 | C20: Комплект декоративной фронтальной панели узкой, без отбойника L=1875 | D20: 4532 | E20: =ROUND(D20*(1-$E$3)/Лист2!$A$6,0) -> 4532
A21: 9 | B21: 713.35.00.00-02 | C21: Комплект декоративной фронтальной панели узкой, без отбойника L=2500 | D21: 5402 | E21: =ROUND(D21*(1-$E$3)/Лист2!$A$6,0) -> 5402
A22: 10 | B22: 713.35.00.00-03 | C22: Комплект декоративной фронтальной панели узкой, без отбойника L=3750 | D22: 5583 | E22: =ROUND(D22*(1-$E$3)/Лист2!$A$6,0) -> 5583
A23: 13 | B23: 713.36.00.00 | C23: Комплект декор фронт панели узкой c отбойником нерж L=1250 для Veneto Quadro | D23: 5690 | E23: =ROUND(D23*(1-$E$3)/Лист2!$A$6,0) -> 5690
A24: 14 | B24: 713.36.00.00-01 | C24: Комплект декор фронт панели узкой c отбойником нерж L=1875 для Veneto Quadro | D24: 8121 | E24: =ROUND(D24*(1-$E$3)/Лист2!$A$6,0) -> 8121
A25: 15 | B25: 713.36.00.00-02 | C25: Комплект декор фронт панели узкой c отбойником нерж L=2500 для Veneto Quadro | D25: 9682 | E25: =ROUND(D25*(1-$E$3)/Лист2!$A$6,0) -> 9682
A26: 16 | B26: 713.36.00.00-03 | C26: Комплект декор фронт панели узкой c отбойником нерж L=3750 для Veneto Quadro | D26: 10005 | E26: =ROUND(D26*(1-$E$3)/Лист2!$A$6,0) -> 10005
A27: 19 | B27: 713.47.00.00 | C27: Комплект декоративной фронтальной панели широкой, c отбойником нержав. L=1250 | D27: 6914 | E27: =ROUND(D27*(1-$E$3)/Лист2!$A$6,0) -> 6914
A28: 20 | B28: 713.47.00.00-01 | C28: Комплект декоративной фронтальной панели широкой, c отбойником нержав. L=1875 | D28: 9909 | E28: =ROUND(D28*(1-$E$3)/Лист2!$A$6,0) -> 9909
A29: 21 | B29: 713.47.00.00-02 | C29: Комплект декоративной фронтальной панели широкой, c отбойником нержав. L=2500 | D29: 11811 | E29: =ROUND(D29*(1-$E$3)/Лист2!$A$6,0) -> 11811
A30: 22 | B30: 713.47.00.00-03 | C30: Комплект декоративной фронтальной панели широкой, c отбойником нержав. L=3750 | D30: 12206 | E30: =ROUND(D30*(1-$E$3)/Лист2!$A$6,0) -> 12206
A31: 25 | B31: 537.38.00.00 | C31: Комплект нижних цветных фронтальных панелей L=1250 | D31: 6914 | E31: =ROUND(D31*(1-$E$3)/Лист2!$A$6,0) -> 6914
A32: 26 | B32: 537.38.00.00-01 | C32: Комплект нижних цветных фронтальных панелей L=1880 | D32: 7728 | E32: =ROUND(D32*(1-$E$3)/Лист2!$A$6,0) -> 7728
A33: 27 | B33: 537.38.00.00-02 | C33: Комплект нижних цветных фронтальных панелей L=2500 | D33: 11409 | E33: =ROUND(D33*(1-$E$3)/Лист2!$A$6,0) -> 11409
A34: 28 | B34: 537.38.00.00-03 | C34: Комплект нижних цветных фронтальных панелей L=3750 | D34: 12126 | E34: =ROUND(D34*(1-$E$3)/Лист2!$A$6,0) -> 12126
A35: 29 | B35: 735.38.00.00 | C35: Комплект нижних цветных фронтальных панелей ОС 90 | D35: 4811 | E35: =ROUND(D35*(1-$E$3)/Лист2!$A$6,0) -> 4811
A36: 30 | B36: 736.38.00.00 | C36: Комплект нижних цветных фронтальных панелей IC 45 | D36: 3697 | E36: =ROUND(D36*(1-$E$3)/Лист2!$A$6,0) -> 3697
A37: Подсветка светодиодная (2 ряда светильников с раздельным включением)
A38: 1 | B38: 713.70.00.00 | C38: Комплект светодиодных светильников 1250 (нейтральный, 2х18 Вт/м) | D38: 4869 | E38: =ROUND(D38*(1-$E$3)/Лист2!$A$6,0) -> 4869
A39: 2 | B39: 713.70.00.00-01 | C39: Комплект светодиодных светильников 1875 (нейтральный, 2х18 Вт/м) | D39: 5724 | E39: =ROUND(D39*(1-$E$3)/Лист2!$A$6,0) -> 5724
A40: 3 | B40: 713.70.00.00-02 | C40: Комплект светодиодных светильников 2500 (нейтральный, 2х18 Вт/м) | D40: 5965 | E40: =ROUND(D40*(1-$E$3)/Лист2!$A$6,0) -> 5965
A41: 4 | B41: 713.70.00.00-03 | C41: Комплект светодиодных светильников 3750 (нейтральный, 2х18 Вт/м) | D41: 7730 | E41: =ROUND(D41*(1-$E$3)/Лист2!$A$6,0) -> 7730
A42: 5 | B42: 735.70.00.00 | C42: Комплект светодиодных светильников для ОС 90 (нейтральный, 2х18 Вт/м) | D42: 5964 | E42: =ROUND(D42*(1-$E$3)/Лист2!$A$6,0) -> 5964
A43: 6 | B43: 736.70.00.00 | C43: Комплект светодиодных светильников для IC 45 (нейтральный, 2х18 Вт/м) | D43: 5964 | E43: =ROUND(D43*(1-$E$3)/Лист2!$A$6,0) -> 5964
A44: 7 | B44: 713.71.00.00 | C44: Комплект светодиодных светильников 1250 (теплый, 2х18 Вт/м) | D44: 5113 | E44: =ROUND(D44*(1-$E$3)/Лист2!$A$6,0) -> 5113
A45: 8 | B45: 713.71.00.00-01 | C45: Комплект светодиодных светильников 1875 (теплый, 2х18 Вт/м) | D45: 6010 | E45: =ROUND(D45*(1-$E$3)/Лист2!$A$6,0) -> 6010
A46: 9 | B46: 713.71.00.00-02 | C46: Комплект светодиодных светильников 2500 (теплый, 2х18 Вт/м) | D46: 6263 | E46: =ROUND(D46*(1-$E$3)/Лист2!$A$6,0) -> 6263
A47: 10 | B47: 713.71.00.00-03 | C47: Комплект светодиодных светильников 3750 (теплый, 2х18 Вт/м) | D47: 8116 | E47: =ROUND(D47*(1-$E$3)/Лист2!$A$6,0) -> 8116
A48: 13 | B48: 713.72.00.00 | C48: Комплект светодиодных светильников 1250 (розовый, 2х18 Вт/м) | D48: 5210 | E48: =ROUND(D48*(1-$E$3)/Лист2!$A$6,0) -> 5210
A49: 14 | B49: 713.72.00.00-01 | C49: Комплект светодиодных светильников 1875 (розовый, 2х18 Вт/м) | D49: 6125 | E49: =ROUND(D49*(1-$E$3)/Лист2!$A$6,0) -> 6125
A50: 15 | B50: 713.72.00.00-02 | C50: Комплект светодиодных светильников 2500 (розовый, 2х18 Вт/м) | D50: 6382 | E50: =ROUND(D50*(1-$E$3)/Лист2!$A$6,0) -> 6382
A51: 16 | B51: 713.72.00.00-03 | C51: Комплект светодиодных светильников 3750 (розовый 2х18 Вт/м) | D51: 8270 | E51: =ROUND(D51*(1-$E$3)/Лист2!$A$6,0) -> 8270
A52: 17 | B52: 735.72.00.00 | C52: Комплект светодиодных светильников для ОС 90 (розовый, 2х18 Вт/м) | D52: 6382 | E52: =ROUND(D52*(1-$E$3)/Лист2!$A$6,0) -> 6382
A53: 18 | B53: 736.72.00.00 | C53: Комплект светодиодных светильников для IC 45 (розовый, 2х18 Вт/м) | D53: 6382 | E53: =ROUND(D53*(1-$E$3)/Лист2!$A$6,0) -> 6382
A54: Дополнительные опции для Veneto Quadro
A55: 1 | B55: 713.52.00.00 | C55: Комплект боковины левой для Veneto Quadro, пластик черный, матовый для шир.фронт.панель | D55: 8360 | E55: =ROUND(D55*(1-$E$3)/Лист2!$A$6,0) -> 8360
A56: 2 | B56: 713.52.00.00mir | C56: Комплект боковины правой для Veneto Quadro, пластик черный, матовый для шир.фронт.панель | D56: 8360 | E56: =ROUND(D56*(1-$E$3)/Лист2!$A$6,0) -> 8360
A57: 3 | B57: 765.52.00.00 | C57: Комплект боковины левой для Veneto Quadro Self, пластик черный, матовый, для шир.фронт.панель | D57: 7961 | E57: =ROUND(D57*(1-$E$3)/Лист2!$A$6,0) -> 7961
A58: 4 | B58: 765.52.00.00mir | C58: Комплект боковины правой для Veneto Quadro Self, пластик черный, матовый для шир.фронт.панель | D58: 7961 | E58: =ROUND(D58*(1-$E$3)/Лист2!$A$6,0) -> 7961
A59: 5 | B59: 713.49.00.00 | C59: Комплект боковины металлической левой для широкой фронт. панели Veneto Quadro | D59: 12147 | E59: =ROUND(D59*(1-$E$3)/Лист2!$A$6,0) -> 12147
A60: 6 | B60: 713.49.00.00mir | C60: Комплект боковины металлической правой для широкой фронт. панели Veneto Quadro | D60: 12147 | E60: =ROUND(D60*(1-$E$3)/Лист2!$A$6,0) -> 12147
A61: 7 | B61: 713.48.00.00 | C61: Комплект боковины металлической левой для узк. фронт. панели для Veneto Quadro | D61: 11176 | E61: =ROUND(D61*(1-$E$3)/Лист2!$A$6,0) -> 11176
A62: 8 | B62: 713.48.00.00mir | C62: Комплект боковины металлической правой для узк. фронт. панели для Veneto Quadro | D62: 11176 | E62: =ROUND(D62*(1-$E$3)/Лист2!$A$6,0) -> 11176
A63: 9 | B63: 765.49.00.00 | C63: Комплект боковины металлической левой для широкой фронт.панели Veneto Quadro Self | D63: 11748 | E63: =ROUND(D63*(1-$E$3)/Лист2!$A$6,0) -> 11748
A64: 10 | B64: 765.49.00.00mir | C64: Комплект боковины металлической правой для широкой фронт. панели Veneto Quadro Self | D64: 11748 | E64: =ROUND(D64*(1-$E$3)/Лист2!$A$6,0) -> 11748
A65: 11 | B65: 765.48.00.00 | C65: Комплект боковины металлической для узк. фронт. панели для Veneto Quadro Self | D65: 10809 | E65: =ROUND(D65*(1-$E$3)/Лист2!$A$6,0) -> 10809
A66: 12 | B66: 765.48.00.00mir | C66: Комплект боковины металлической для узк. фронт. панели для Veneto Quadro Self | D66: 10809 | E66: =ROUND(D66*(1-$E$3)/Лист2!$A$6,0) -> 10809
A67: 13 | B67: 537.37.00.00 | C67: Комплект нижних боковых панелей (левая, правая) | D67: 2286 | E67: =ROUND(D67*(1-$E$3)/Лист2!$A$6,0) -> 2286
A68: 14 | B68: 713.68.00.00 | C68: Комплект торцевой заглушки для стыковки стандартной витрины с витриной SELF | D68: 1286 | E68: =ROUND(D68*(1-$E$3)/Лист2!$A$6,0) -> 1286
A69: 15 | B69: 713.56.00.00 | C69: Комплект соединительный в линию для Veneto Quadro | D69: 1323 | E69: =ROUND(D69*(1-$E$3)/Лист2!$A$6,0) -> 1323
A70: 16 | B70: 765.56.00.00 | C70: Комплект соединительный в линию для Veneto Quadro Self | D70: 848 | E70: =ROUND(D70*(1-$E$3)/Лист2!$A$6,0) -> 848
A71: 17 | B71: 713.44.00.00 | C71: Разделитель герметичный и комплект соед. для широкой фронт.панели, оргстекло (8 мм) | D71: 11032 | E71: =ROUND(D71*(1-$E$3)/Лист2!$A$6,0) -> 11032
A72: 18 | B72: 713.44.00.00-01 | C72: Разделитель герметичный и комплект соед. для узкой фронт.панели, оргстекло (8 мм) | D72: 10921 | E72: =ROUND(D72*(1-$E$3)/Лист2!$A$6,0) -> 10921
A73: 19 | B73: 713.45.00.00 | C73: Теплоизоляционный герметичный разделитель (двухкамерный стеклопакет) и компл.соед. для широкой фронтальной панели | D73: 16863 | E73: =ROUND(D73*(1-$E$3)/Лист2!$A$6,0) -> 16863
A74: 21 | B74: 713.41.00.00 | C74: Делитель внутреннего объема передвижной низкий (оргстекло) для Self | D74: 2037 | E74: =ROUND(D74*(1-$E$3)/Лист2!$A$6,0) -> 2037
A75: 22 | B75: 713.42.00.00 | C75: Делитель внутреннего объема передвижной высокий (оргстекло) | D75: 6797 | E75: =ROUND(D75*(1-$E$3)/Лист2!$A$6,0) -> 6797
A76: 24 | B76: 537.54.00.00 | C76: Комплект для электрооттайки L=1250 | D76: 1626 | E76: =ROUND(D76*(1-$E$3)/Лист2!$A$6,0) -> 1626
A77: 25 | B77: 537.54.00.00-01 | C77: Комплект для электрооттайки L=1875 | D77: 2576 | E77: =ROUND(D77*(1-$E$3)/Лист2!$A$6,0) -> 2576
A78: 26 | B78: 537.54.00.00-02 | C78: Комплект для электрооттайки L=2500 | D78: 3471 | E78: =ROUND(D78*(1-$E$3)/Лист2!$A$6,0) -> 3471
A79: 27 | B79: 537.54.00.00-03 | C79: Комплект для электрооттайки L=3750 | D79: 9310 | E79: =ROUND(D79*(1-$E$3)/Лист2!$A$6,0) -> 9310
A80: 28 | B80: 1106.120.00.00S | C80: Монтажный набор (до 4 кВт) 1106.120.00.00S L=1250/1875/2500 | D80: 9756 | E80: =ROUND(D80*(1-$E$3)/Лист2!$A$6,0) -> 9756
A81: 30 | B81: 713.60.00.00 | C81: Доска навесная для весов 500х400 мм. (нержавейка) | D81: 6443 | E81: =ROUND(D81*(1-$E$3)/Лист2!$A$6,0) -> 6443
A82: 31 | B82: 713.62.00.00 | C82: Доска навесная для нарезки 600х400 мм (полипропилен) | D82: 8457 | E82: =ROUND(D82*(1-$E$3)/Лист2!$A$6,0) -> 8457
A83: 32 | B83: 713.63.00.00 | C83: Комплект корзины навесной для упаковочного материала | D83: 8457 | E83: =ROUND(D83*(1-$E$3)/Лист2!$A$6,0) -> 8457
A84: 33 | B84: 713.61.00.00 | C84: Комплект корзины навесной для ножей | D84: 8788 | E84: =ROUND(D84*(1-$E$3)/Лист2!$A$6,0) -> 8788
A85: 35 | B85: 537.66.00.00 | C85: Подиум трехступенчатый (нержавейка) L=1250 | D85: 6061 | E85: =ROUND(D85*(1-$E$3)/Лист2!$A$6,0) -> 6061
A86: 36 | B86: 537.66.00.00-01 | C86: Подиум трехступенчатый (нержавейка) L=1880 | D86: 11600 | E86: =ROUND(D86*(1-$E$3)/Лист2!$A$6,0) -> 11600
A87: 37 | B87: 537.66.00.00-02 | C87: Подиум трехступенчатый (нержавейка) L=2500 | D87: 12121 | E87: =ROUND(D87*(1-$E$3)/Лист2!$A$6,0) -> 12121
A88: 38 | B88: 537.66.00.00-03 | C88: Подиум трехступенчатый (нержавейка) L=3750 | D88: 18182 | E88: =ROUND(D88*(1-$E$3)/Лист2!$A$6,0) -> 18182
A89: 39 | B89: 735.66.00.00 | C89: Подиум трехступенчатый (нержавейка) ОС 90 | D89: 8923 | E89: =ROUND(D89*(1-$E$3)/Лист2!$A$6,0) -> 8923
A90: 40 | B90: 538.66.00.00 | C90: Подиум трехступенчатый (нержавейка) IC 45 | D90: 6307 | E90: =ROUND(D90*(1-$E$3)/Лист2!$A$6,0) -> 6307
A91: 42 | B91: 713.40.00.00 | C91: Комплект шторок раздвижных для Veneto Quadro 1250 | D91: 3776 | E91: =ROUND(D91*(1-$E$3)/Лист2!$A$6,0) -> 3776
A92: 43 | B92: 713.40.00.00-01 | C92: Комплект шторок раздвижных для Veneto Quadro 1875 | D92: 5534 | E92: =ROUND(D92*(1-$E$3)/Лист2!$A$6,0) -> 5534
A93: 44 | B93: 713.40.00.00-02 | C93: Комплект шторок раздвижных для Veneto Quadro 2500 | D93: 7552 | E93: =ROUND(D93*(1-$E$3)/Лист2!$A$6,0) -> 7552
A94: 45 | B94: 713.40.00.00-03 | C94: Комплект шторок раздвижных для Veneto Quadro 3750 | D94: 11067 | E94: =ROUND(D94*(1-$E$3)/Лист2!$A$6,0) -> 11067
A95: 46 | B95: 735.40.00.00 | C95: Комплект шторок раздвижных для Veneto Quadro ОС 90 | D95: 5645 | E95: =ROUND(D95*(1-$E$3)/Лист2!$A$6,0) -> 5645
A96: 47 | B96: 736.40.00.00 | C96: Комплект шторок раздвижных для Veneto Quadro IC 45 | D96: 6774 | E96: =ROUND(D96*(1-$E$3)/Лист2!$A$6,0) -> 6774
A97: 2. Veneto Quadro BM
A98: Обязательные опции для Veneto Quadro BM
B99: 713.39.00.00 | C99: Комплект декоративной фронтальной панели (без отбойника) L=1250 | D99: 3414 | E99: =ROUND(D99*(1-$E$3)/Лист2!$A$6,0) -> 3414
B100: 713.36.00.00 | C100: Комплект декор фронт панели узкой c отбойником нерж L=1250 для Veneto Quadro | D100: 5690 | E100: =ROUND(D100*(1-$E$3)/Лист2!$A$6,0) -> 5690
B101: 713.47.00.00 | C101: Комплект декоративной фронтальной панели c отбойником нержав. L=1250 | D101: 6914 | E101: =ROUND(D101*(1-$E$3)/Лист2!$A$6,0) -> 6914
B102: 537.38.00.00 | C102: Комплект нижних цветных фронтальных панелей L=1250, без боковин | D102: 6914 | E102: =ROUND(D102*(1-$E$3)/Лист2!$A$6,0) -> 6914
B103: 713.70.00.00 | C103: Комплект светодиодных светильников 1250 (нейтральный, 2х18 Вт/м) | D103: 4869 | E103: =ROUND(D103*(1-$E$3)/Лист2!$A$6,0) -> 4869
B104: 713.71.00.00 | C104: Комплект светодиодных светильников 1250 (теплый, 2х18 Вт/м) | D104: 5113 | E104: =ROUND(D104*(1-$E$3)/Лист2!$A$6,0) -> 5113
B105: 713.72.00.00 | C105: Комплект светодиодных светильников 1250 (розовый, 2х18 Вт/м) | D105: 5210 | E105: =ROUND(D105*(1-$E$3)/Лист2!$A$6,0) -> 5210
A106: Дополнительные опции для Veneto Quadro BM
B107: 713.52.00.00 | C107: Комплект боковины левой для Veneto Quadro | D107: 8360 | E107: =ROUND(D107*(1-$E$3)/Лист2!$A$6,0) -> 8360
B108: 713.52.00.00mir | C108: Комплект боковины правой для Veneto Quadro | D108: 8360 | E108: =ROUND(D108*(1-$E$3)/Лист2!$A$6,0) -> 8360
B109: 713.49.00.00 | C109: Комплект боковины металлической левой для Veneto Quadro | D109: 12147 | E109: =ROUND(D109*(1-$E$3)/Лист2!$A$6,0) -> 12147
B110: 713.49.00.00mir | C110: Комплект боковины металлической правой для Veneto Quadro | D110: 12147 | E110: =ROUND(D110*(1-$E$3)/Лист2!$A$6,0) -> 12147
B111: 713.48.00.00 | C111: Комплект боковины металлической левой для узк. фронт. панели для Veneto Quadro | D111: 11176 | E111: =ROUND(D111*(1-$E$3)/Лист2!$A$6,0) -> 11176
B112: 713.48.00.00mir | C112: Комплект боковины металлической правой для узк. фронт. панели для Veneto Quadro | D112: 11176 | E112: =ROUND(D112*(1-$E$3)/Лист2!$A$6,0) -> 11176
B113: 537.37.00.00 | C113: Комплект нижних боковых панелей (левая, правая) | D113: 2286 | E113: =ROUND(D113*(1-$E$3)/Лист2!$A$6,0) -> 2286
B114: 713.56.00.00 | C114: Комплект соединительный в линию | D114: 1323 | E114: =ROUND(D114*(1-$E$3)/Лист2!$A$6,0) -> 1323
B115: 713.45.00.00 | C115: Комплект теплоизоляционного герметичного разделителя (двухкамерный стеклопакет) для широкой фронтальной панели | D115: 16863 | E115: =ROUND(D115*(1-$E$3)/Лист2!$A$6,0) -> 16863
B116: 713.60.00.00 | C116: Доска навесная для весов 500х400 мм. (нержавейка) | D116: 6443 | E116: =ROUND(D116*(1-$E$3)/Лист2!$A$6,0) -> 6443
B117: 713.62.00.00 | C117: Доска навесная для нарезки 600х400 мм (полипропилен) | D117: 8457 | E117: =ROUND(D117*(1-$E$3)/Лист2!$A$6,0) -> 8457
B118: 713.63.00.00 | C118: Комплект корзины навесной для упаковочного материала | D118: 6145 | E118: =ROUND(D118*(1-$E$3)/Лист2!$A$6,0) -> 6145
B119: 713.61.00.00 | C119: Комплект корзины навесной для ножей | D119: 8788 | E119: =ROUND(D119*(1-$E$3)/Лист2!$A$6,0) -> 8788
A120: Опции TOSCANA | E120: Назад к списку
A121: 2. Toscana Q
A122: Обязательные опции для Toscana Q
B123: 815.39.00.00 | C123: Комплект декоративной фронтальной панели широкой исп.1250 | D123: 3688 | E123: =ROUND(D123*(1-$E$3)/Лист2!$A$6,0) -> 3688
B124: 815.39.00.00-01 | C124: Комплект декоративной фронтальной панели широкой исп.1875 | D124: 5263 | E124: =ROUND(D124*(1-$E$3)/Лист2!$A$6,0) -> 5263
B125: 815.39.00.00-02 | C125: Комплект декоративной фронтальной панели широкой исп. 2500 | D125: 6274 | E125: =ROUND(D125*(1-$E$3)/Лист2!$A$6,0) -> 6274
B126: 815.39.00.00-03 | C126: Комплект декоративной фронтальной панели широкой исп. 3750 | D126: 6483 | E126: =ROUND(D126*(1-$E$3)/Лист2!$A$6,0) -> 6483
B127: 888.39.00.00 | C127: Комплект декоративной фронтальной панели широкой исп. ОС 90 | D127: 6288 | E127: =ROUND(D127*(1-$E$3)/Лист2!$A$6,0) -> 6288
B128: 889.39.00.00 | C128: Комплект декоративной фронтальной панели широкой исп. IC 90 | D128: 3872 | E128: =ROUND(D128*(1-$E$3)/Лист2!$A$6,0) -> 3872
B129: 815.47.00.00 | C129: Комплект декор фронт панели широкой c отбойником нерж исп. 1250 | D129: 6222 | E129: =ROUND(D129*(1-$E$3)/Лист2!$A$6,0) -> 6222
B130: 815.47.00.00-01 | C130: Комплект декор фронт панели широкой c отбойником нерж исп. 1875 | D130: 8918 | E130: =ROUND(D130*(1-$E$3)/Лист2!$A$6,0) -> 8918
B131: 815.47.00.00-02 | C131: Комплект декор фронт панели широкой c отбойником нерж исп. 2500 | D131: 10630 | E131: =ROUND(D131*(1-$E$3)/Лист2!$A$6,0) -> 10630
B132: 815.47.00.00-03 | C132: Комплект декор фронт панели широкой c отбойником нерж исп. 3750 | D132: 10985 | E132: =ROUND(D132*(1-$E$3)/Лист2!$A$6,0) -> 10985
B133: 888.47.00.00 | C133: Комплект декор фронт панели широкой c отбойником нерж исп. ОС90 | D133: 9433 | E133: =ROUND(D133*(1-$E$3)/Лист2!$A$6,0) -> 9433
B134: 889.47.00.00 | C134: Комплект декор фронт панели широкой c отбойником нерж исп. IC90 | D134: 5808 | E134: =ROUND(D134*(1-$E$3)/Лист2!$A$6,0) -> 5808
B135: 815.35.00.00 | C135: Комплект декоративной фронтальной панели узкой исп.1250 | D135: 3414 | E135: =ROUND(D135*(1-$E$3)/Лист2!$A$6,0) -> 3414
B136: 815.35.00.00-01 | C136: Комплект декоративной фронтальной панели узкой исп.1875 | D136: 4873 | E136: =ROUND(D136*(1-$E$3)/Лист2!$A$6,0) -> 4873
B137: 815.35.00.00-02 | C137: Комплект декоративной фронтальной панели узкой исп. 2500 | D137: 5809 | E137: =ROUND(D137*(1-$E$3)/Лист2!$A$6,0) -> 5809
B138: 815.35.00.00-03 | C138: Комплект декоративной фронтальной панели узкой исп. 3750 | D138: 6003 | E138: =ROUND(D138*(1-$E$3)/Лист2!$A$6,0) -> 6003
B139: 888.35.00.00 | C139: Комплект декоративной фронтальной панели узкой исп. ОС 90 | D139: 5823 | E139: =ROUND(D139*(1-$E$3)/Лист2!$A$6,0) -> 5823
B140: 889.35.00.00 | C140: Комплект декоративной фронтальной панели узкой исп. IC 90 | D140: 3585 | E140: =ROUND(D140*(1-$E$3)/Лист2!$A$6,0) -> 3585
B141: 815.36.00.00 | C141: Комплект декор фронт панели узкой c отбойником нерж исп. 1250 | D141: 5122 | E141: =ROUND(D141*(1-$E$3)/Лист2!$A$6,0) -> 5122
B142: 815.36.00.00-01 | C142: Комплект декор фронт панели узкой c отбойником нерж исп. 1875 | D142: 7310 | E142: =ROUND(D142*(1-$E$3)/Лист2!$A$6,0) -> 7310
B143: 815.36.00.00-02 | C143: Комплект декор фронт панели узкой c отбойником нерж исп. 2500 | D143: 8713 | E143: =ROUND(D143*(1-$E$3)/Лист2!$A$6,0) -> 8713
B144: 815.36.00.00-03 | C144: Комплект декор фронт панели узкой c отбойником нерж исп. 3750 | D144: 9004 | E144: =ROUND(D144*(1-$E$3)/Лист2!$A$6,0) -> 9004
B145: 888.36.00.00 | C145: Комплект декор фронт панели узкой c отбойником нерж исп. ОС90 | D145: 8734 | E145: =ROUND(D145*(1-$E$3)/Лист2!$A$6,0) -> 8734
B146: 889.36.00.00 | C146: Комплект декор фронт панели узкой c отбойником нерж исп. IC90 | D146: 5378 | E146: =ROUND(D146*(1-$E$3)/Лист2!$A$6,0) -> 5378
B147: 815.34.00.00 | C147: Комплект декоративной фронтальной панели широкой исп.1250 (текстура дерева, ЛДСП) | D147: 6638 | E147: =ROUND(D147*(1-$E$3)/Лист2!$A$6,0) -> 6638
B148: 815.34.00.00-01 | C148: Комплект декоративной фронтальной панели широкой исп.1875 (текстура дерева, ЛДСП) | D148: 9473 | E148: =ROUND(D148*(1-$E$3)/Лист2!$A$6,0) -> 9473
B149: 815.34.00.00-02 | C149: Комплект декоративной фронтальной панели широкой исп. 2500 (текстура дерева, ЛДСП) | D149: 11292 | E149: =ROUND(D149*(1-$E$3)/Лист2!$A$6,0) -> 11292
B150: 815.34.00.00-03 | C150: Комплект декоративной фронтальной панели широкой исп. 3750 (текстура дерева, ЛДСП) | D150: 11669 | E150: =ROUND(D150*(1-$E$3)/Лист2!$A$6,0) -> 11669
B151: 888.34.00.00 | C151: Комплект декоративной фронтальной панели широкой исп. OC90 (текстура дерева, ЛДСП) | D151: 11319 | E151: =ROUND(D151*(1-$E$3)/Лист2!$A$6,0) -> 11319
B152: 889.34.00.00 | C152: Комплект декоративной фронтальной панели широкой исп. IC90 (текстура дерева, ЛДСП) | D152: 6970 | E152: =ROUND(D152*(1-$E$3)/Лист2!$A$6,0) -> 6970
B153: 815.33.00.00 | C153: Комплект декоративной фронтальной панели узкой исп.1250 (текстура дерева, ЛДСП) | D153: 6146 | E153: =ROUND(D153*(1-$E$3)/Лист2!$A$6,0) -> 6146
B154: 815.33.00.00-01 | C154: Комплект декоративной фронтальной панели узкой исп.1875 (текстура дерева, ЛДСП) | D154: 8771 | E154: =ROUND(D154*(1-$E$3)/Лист2!$A$6,0) -> 8771
B155: 815.33.00.00-02 | C155: Комплект декоративной фронтальной панели узкой исп. 2500 (текстура дерева, ЛДСП) | D155: 10456 | E155: =ROUND(D155*(1-$E$3)/Лист2!$A$6,0) -> 10456
B156: 815.33.00.00-03 | C156: Комплект декоративной фронтальной панели узкой исп. 3750 (текстура дерева, ЛДСП) | D156: 10805 | E156: =ROUND(D156*(1-$E$3)/Лист2!$A$6,0) -> 10805
B157: 888.33.00.00 | C157: Комплект декоративной фронтальной панели узкой исп. OC90 (текстура дерева, ЛДСП) | D157: 10481 | E157: =ROUND(D157*(1-$E$3)/Лист2!$A$6,0) -> 10481
B158: 889.33.00.00 | C158: Комплект декоративной фронтальной панели узкой исп. IC90 (текстура дерева, ЛДСП) | D158: 6453 | E158: =ROUND(D158*(1-$E$3)/Лист2!$A$6,0) -> 6453
B159: 815.38.00.01 | C159: Нижняя фронтальная панель исп. 1250 | D159: 3113 | E159: =ROUND(D159*(1-$E$3)/Лист2!$A$6,0) -> 3113
B160: 815.38.00.01-01 | C160: Нижняя фронтальная панель исп. 1875 | D160: 3891 | E160: =ROUND(D160*(1-$E$3)/Лист2!$A$6,0) -> 3891
B161: 815.38.00.01-02 | C161: Нижняя фронтальная панель исп. 2500 | D161: 5743 | E161: =ROUND(D161*(1-$E$3)/Лист2!$A$6,0) -> 5743
B162: 815.38.00.01-03 | C162: Нижняя фронтальная панель исп. 3750 | D162: 7396 | E162: =ROUND(D162*(1-$E$3)/Лист2!$A$6,0) -> 7396
B163: 888.38.00.01 | C163: Нижняя фронтальная панель исп. OC90 | D163: 7174 | E163: =ROUND(D163*(1-$E$3)/Лист2!$A$6,0) -> 7174
B164: 889.38.00.01 | C164: Нижняя фронтальная панель исп. IC90 | D164: 3268 | E164: =ROUND(D164*(1-$E$3)/Лист2!$A$6,0) -> 3268
A165: Подсветка светодиодная (2 ряда светильников с раздельным включением)
B166: 815.80.00.00 | C166: Комплект светодиодных светильников 1250 (нейтральный, 2х18 Вт/м) | D166: 4139 | E166: =ROUND(D166*(1-$E$3)/Лист2!$A$6,0) -> 4139
B167: 815.80.00.00-01 | C167: Комплект светодиодных светильников 1875 (нейтральный, 2х18 Вт/м) | D167: 4865 | E167: =ROUND(D167*(1-$E$3)/Лист2!$A$6,0) -> 4865
B168: 815.80.00.00-02 | C168: Комплект светодиодных светильников 2500 (нейтральный, 2х18 Вт/м) | D168: 5071 | E168: =ROUND(D168*(1-$E$3)/Лист2!$A$6,0) -> 5071
B169: 815.80.00.00-03 | C169: Комплект светодиодных светильников 3750 (нейтральный, 2х18 Вт/м) | D169: 6570 | E169: =ROUND(D169*(1-$E$3)/Лист2!$A$6,0) -> 6570
B170: 888.82.00.00 | C170: Комплект светодиодных светильников OC90 (нейтральный, 2х18 Вт/м) | D170: 6085 | E170: =ROUND(D170*(1-$E$3)/Лист2!$A$6,0) -> 6085
B171: 889.82.00.00 | C171: Комплект светодиодных светильников IC90 (нейтральный, 2х18 Вт/м) | D171: 3725 | E171: =ROUND(D171*(1-$E$3)/Лист2!$A$6,0) -> 3725
B172: 815.81.00.00 | C172: Комплект светодиодных светильников 1250 (теплый, 2х18 Вт/м) | D172: 4346 | E172: =ROUND(D172*(1-$E$3)/Лист2!$A$6,0) -> 4346
B173: 815.81.00.00-01 | C173: Комплект светодиодных светильников 1875 (теплый, 2х18 Вт/м) | D173: 5109 | E173: =ROUND(D173*(1-$E$3)/Лист2!$A$6,0) -> 5109
B174: 815.81.00.00-02 | C174: Комплект светодиодных светильников 2500 (теплый, 2х18 Вт/м) | D174: 5324 | E174: =ROUND(D174*(1-$E$3)/Лист2!$A$6,0) -> 5324
B175: 815.81.00.00-03 | C175: Комплект светодиодных светильников 3750 (теплый, 2х18 Вт/м) | D175: 6898 | E175: =ROUND(D175*(1-$E$3)/Лист2!$A$6,0) -> 6898
B176: 888.82.00.00 | C176: Комплект светодиодных светильников OC90 (теплый, 2х18 Вт/м) | D176: 6389 | E176: =ROUND(D176*(1-$E$3)/Лист2!$A$6,0) -> 6389
B177: 889.81.00.00 | C177: Комплект светодиодных светильников IC90 (теплый, 2х18 Вт/м) | D177: 3911 | E177: =ROUND(D177*(1-$E$3)/Лист2!$A$6,0) -> 3911
B178: 815.82.00.00 | C178: Комплект светодиодных светильников 1250 (розовый, 2х18 Вт/м) | D178: 4222 | E178: =ROUND(D178*(1-$E$3)/Лист2!$A$6,0) -> 4222
B179: 815.82.00.00-01 | C179: Комплект светодиодных светильников 1875 (розовый, 2х18 Вт/м) | D179: 4963 | E179: =ROUND(D179*(1-$E$3)/Лист2!$A$6,0) -> 4963
B180: 815.82.00.00-02 | C180: Комплект светодиодных светильников 2500 (розовый, 2х18 Вт/м) | D180: 5172 | E180: =ROUND(D180*(1-$E$3)/Лист2!$A$6,0) -> 5172
B181: 815.82.00.00-03 | C181: Комплект светодиодных светильников 3750 (розовый, 2х18 Вт/м) | D181: 6701 | E181: =ROUND(D181*(1-$E$3)/Лист2!$A$6,0) -> 6701
B182: 888.82.00.00 | C182: Комплект светодиодных светильников OC90 (розовый, 2х18 Вт/м) | D182: 6206 | E182: =ROUND(D182*(1-$E$3)/Лист2!$A$6,0) -> 6206
B183: 889.81.00.00 | C183: Комплект светодиодных светильников IC90 (розовый, 2х18 Вт/м) | D183: 3799 | E183: =ROUND(D183*(1-$E$3)/Лист2!$A$6,0) -> 3799
A184: Дополнительные опции для Toscana Q
B185: 815.50.00.00 | C185: Комплект боковины металлич. левой для широкой фронтальной панели Toscana | D185: 8360 | E185: =ROUND(D185*(1-$E$3)/Лист2!$A$6,0) -> 8360
B186: 815.50.00.00mir | C186: Комплект боковины металлич.правой для широкой фронтальной панели Toscana | D186: 8360 | E186: =ROUND(D186*(1-$E$3)/Лист2!$A$6,0) -> 8360
B187: 815.52.00.00 | C187: Комплект боковины ЛДСП левой для широк фронт панели Toscana | D187: 11704 | E187: =ROUND(D187*(1-$E$3)/Лист2!$A$6,0) -> 11704
B188: 815.52.00.00mir | C188: Комплект боковины ЛДСП правой для широк фронт панели Toscana | D188: 11704 | E188: =ROUND(D188*(1-$E$3)/Лист2!$A$6,0) -> 11704
B189: 815.48.00.00 | C189: Комплект боковины металлич. лев для узкой фронт панели Toscana | D189: 7942 | E189: =ROUND(D189*(1-$E$3)/Лист2!$A$6,0) -> 7942
B190: 815.48.00.00mir | C190: Комплект боковины металлич. прав для узкой фронт панели Toscana | D190: 7942 | E190: =ROUND(D190*(1-$E$3)/Лист2!$A$6,0) -> 7942
B191: 815.53.00.00 | C191: Комплект боковины ЛДСП левой для узкой фронт панели Toscana | D191: 11119 | E191: =ROUND(D191*(1-$E$3)/Лист2!$A$6,0) -> 11119
B192: 815.53.00.00mir | C192: Комплект боковины ЛДСП правой для узкой фронт панели Toscana | D192: 11119 | E192: =ROUND(D192*(1-$E$3)/Лист2!$A$6,0) -> 11119
B193: 816.50.00.00 | C193: Комплект боковины металлич. левой для широкой фронтальной панели Toscana SELF | D193: 7960 | E193: =ROUND(D193*(1-$E$3)/Лист2!$A$6,0) -> 7960
B194: 816.50.00.00mir | C194: Комплект боковины металлич. правой для широкой фронтальной панели Toscana SELF | D194: 7960 | E194: =ROUND(D194*(1-$E$3)/Лист2!$A$6,0) -> 7960
B195: 816.52.00.00 | C195: Комп боковины ЛДСП левой для широк фронт панели Toscana SELF | D195: 11144 | E195: =ROUND(D195*(1-$E$3)/Лист2!$A$6,0) -> 11144
B196: 816.52.00.00mir | C196: Комп боковины ЛДСП правой для широк фронт панели Toscana SELF | D196: 11144 | E196: =ROUND(D196*(1-$E$3)/Лист2!$A$6,0) -> 11144
B197: 816.48.00.00 | C197: Комплект боковины металлич. левой для узкой фронтальной панели Toscana SELF | D197: 7562 | E197: =ROUND(D197*(1-$E$3)/Лист2!$A$6,0) -> 7562
B198: 816.48.00.00mir | C198: Комплект боковины металлич. правой для узкой фронтальной панели Toscana SELF | D198: 7562 | E198: =ROUND(D198*(1-$E$3)/Лист2!$A$6,0) -> 7562
B199: 816.53.00.00 | C199: Комп боковины ЛДСП левой для узк фронт панели Toscana Self | D199: 10587 | E199: =ROUND(D199*(1-$E$3)/Лист2!$A$6,0) -> 10587
B200: 816.53.00.00mir | C200: Комп боковины ЛДСП правой для узк фронт панели Toscana Self | D200: 10587 | E200: =ROUND(D200*(1-$E$3)/Лист2!$A$6,0) -> 10587
B201: 815.37.00.00 | C201: Комплект нижних боковых панелей (левая, правая) | D201: 2286 | E201: =ROUND(D201*(1-$E$3)/Лист2!$A$6,0) -> 2286
B202: 815.56.00.00 | C202: Компллект соединительный для стыковки в линию витрин Toscana | D202: 1323 | E202: =ROUND(D202*(1-$E$3)/Лист2!$A$6,0) -> 1323
B203: 816.56.00.00 | C203: Компллект соединительный для стыковки в линию витрин Toscana SELF | D203: 848 | E203: =ROUND(D203*(1-$E$3)/Лист2!$A$6,0) -> 848
... 55 more rows

Sheet Горки Cryspi
H1: ЗАВОД «ОПК» Тел.: +7 (495) 987-4388 e-mail: info@cryspi.ru сайт: cryspi.ru | L1: На главную
B3: Ваша скидка: | E3: =Содержание!D2 -> 0
B4: НДС: | E4: =IF(Лист2!A1=TRUE,"С НДС","БЕЗ НДС") -> С НДС
A6: Охлаждаемые стеллажи Cryspi со встроенным агрегатом
A9: № | B9: Изображение | C9: Артикул | D9: Наименование | F9: Температурный режим,°C | G9: Площадь экспозиции, кв.м. | H9: Габариты, (LxWxH) мм | I9: Габариты в упаковке(в обрешетке), (LxWxH) мм | J9: Базовая цена, руб. (с НДС) | K9: =[5]Лист2!$A$5 -> Ваша цена, руб.
A11: 1 | B11: Solo L7 | J11: Опции SOLO L7 | M11: СЕЧЕНИЯ
M12: Solo L7 | Q12: Solo L7 Фруктовая | U12: Solo L7 DG
A13: Базовая комплектация стеллажа: - внутренний объем - оцинкованный металл - внутренняя поверхность ванны из оцинкованного пластификата (двойная защита от коррозии); - электронный контроллер для управления работой оборудования; - без освещения - цифрофой термометр; - компрессор R-290; -стандартная упаковка на поддоне, опцонально в деревянной обрешетке - блок остекления со стеклопакетом для стеллажей DG - ночная шторкa для открытого стеллажа Характеристика EL.S.0.0.P.PS.0.0.0.0.внеш7016гл_внутр7016гл | D13: Комплектация "Фрукты-овощи" + к базовой комплектации: - Общее светодиодное освещение, стандартный - 4000К, опционально 2700К, 6500К; - 3 ряда полок с ценникодержателем; - выпариватель; - боковины с зеркалом; - комплект наклонного зеркала - наклонная решетка для базовой полки Характеристика EL.S.2.3.P.PS.L.V.Z.Z.внеш7016гл_внутр7016гл | F13: Комплектация "Гастрономия" + к базовой комплектации: - Общее светодиодное освещение, стандартный - 4000К, опционально 2700К, 6500К, - 5 рядов полок глубиной 500 с ценникодержателем; - выпариватель; - боковины со стеклопакетом; Характеристика EL.S.2.5.P.PS.0.V.S.S.внеш7016гл_внутр7016гл
C14: Solo L7 Открытое исполнение (ночные шторки)
C15: SO L7 125 R290 | D15: Стеллаж холодильный ВПВ С (SOLO L7 1250) R290 | E15: фруктовая | F15: +1…+7 С | G15: 2.8 | H15: 1330х700х2090 | I15: 1500х820х2230/ 1550х870х2230 | J15: 174908 | K15: =ROUND(J15*(1-$E$3)/Лист2!$A$6,0) -> 174908
E16: гастрономическая | H16: 1330х700х2090 | J16: 173791 | K16: =ROUND(J16*(1-$E$3)/Лист2!$A$6,0) -> 173791
E17: базовая (пустая) | H17: 1250х700х2090 | J17: 134899 | K17: =ROUND(J17*(1-$E$3)/Лист2!$A$6,0) -> 134899
C18: SO L7 150 R290 | D18: Стеллаж холодильный ВПВ С (SOLO L7 1500) R290 | E18: фруктовая | F18: +1…+7 С | G18: 3.36 | H18: 1580х700х2090 | I18: 1750х820х2230/ 1800х870х2230 | J18: 204585 | K18: =ROUND(J18*(1-$E$3)/Лист2!$A$6,0) -> 204585
E19: гастрономическая | H19: 1580х700х2090 | J19: 201976 | K19: =ROUND(J19*(1-$E$3)/Лист2!$A$6,0) -> 201976
E20: базовая (пустая) | H20: 1500х700х2090 | J20: 158914 | K20: =ROUND(J20*(1-$E$3)/Лист2!$A$6,0) -> 158914
C21: SO L7 188 R290 | D21: Стеллаж холодильный ВПВ С (SOLO L7 1875) R290 | E21: фруктовая | F21: +1…+7 С | G21: 4.2 | H21: 1955х700х2090 | I21: 2130х820х2230/ 2180х870х2230 | J21: 218349 | K21: =ROUND(J21*(1-$E$3)/Лист2!$A$6,0) -> 218349
E22: гастрономическая | H22: 1955х700х2090 | J22: 216177 | K22: =ROUND(J22*(1-$E$3)/Лист2!$A$6,0) -> 216177
E23: базовая (пустая) | H23: 1875х700х2090 | J23: 165813 | K23: =ROUND(J23*(1-$E$3)/Лист2!$A$6,0) -> 165813
C24: Solo L7 DG. Фронтальный блок остекления - стеклопакет (DG - Double Glass)
C25: SO L7DG 125 R290 | D25: Стеллаж холодильный ВПВ С (SOLO L7 DG 1250) R290 | E25: фруктовая | F25: -1…+5 С | G25: 2.8 | H25: 1330х700х2090 | I25: 1500х820х2230/ 1550х870х2230 | J25: 193769 | K25: =ROUND(J25*(1-$E$3)/Лист2!$A$6,0) -> 193769
E26: гастрономическая | H26: 1330х700х2090 | J26: 192654 | K26: =ROUND(J26*(1-$E$3)/Лист2!$A$6,0) -> 192654
E27: базовая (пустая) | H27: 1250х700х2090 | J27: 153760 | K27: =ROUND(J27*(1-$E$3)/Лист2!$A$6,0) -> 153760
C28: SO L7DG 150 R290 | D28: Стеллаж холодильный ВПВ С (SOLO L7 DG 1500) R290 | E28: фруктовая | F28: -1…+5 С | G28: 3.36 | H28: 1580х700х2090 | I28: 1750х820х2230/ 1800х870х2230 | J28: 213312 | K28: =ROUND(J28*(1-$E$3)/Лист2!$A$6,0) -> 213312
E29: гастрономическая | H29: 1580х700х2090 | J29: 210703 | K29: =ROUND(J29*(1-$E$3)/Лист2!$A$6,0) -> 210703
E30: базовая (пустая) | H30: 1500х700х2090 | J30: 167641 | K30: =ROUND(J30*(1-$E$3)/Лист2!$A$6,0) -> 167641
C31: SO L7DG 188 R290 | D31: Стеллаж холодильный ВПВ С (SOLO L7 DG 1875) R290 | E31: фруктовая | F31: -1…+5 С | G31: 4.2 | H31: 1955х700х2090 | I31: 2130х820х2230/ 2180х870х2230 | J31: 234923 | K31: =ROUND(J31*(1-$E$3)/Лист2!$A$6,0) -> 234923
E32: гастрономическая | H32: 1955х700х2090 | J32: 232751 | K32: =ROUND(J32*(1-$E$3)/Лист2!$A$6,0) -> 232751
E33: базовая (пустая) | H33: 1875х700х2090 | J33: 182387 | K33: =ROUND(J33*(1-$E$3)/Лист2!$A$6,0) -> 182387
C34: SO L7DG 250 R290 | D34: Стеллаж холодильный ВПВ С (SOLO L7 DG 2500) R290 | E34: фруктовая | F34: -1…+5 С | G34: 5.6 | H34: 2580х700х2090 | I34: 2750х820х2230/ 2800х870х2230 | K34: =ROUND(J34*(1-$E$3)/Лист2!$A$6,0) -> 0
E35: гастрономическая | H35: 2580х700х2090 | J35: 332479 | K35: =ROUND(J35*(1-$E$3)/Лист2!$A$6,0) -> 332479
E36: базовая (пустая) | H36: 2500х700х2090 | J36: 278333 | K36: =ROUND(J36*(1-$E$3)/Лист2!$A$6,0) -> 278333
C37: (Модуль 1250 мм. - 1 дверной блок (2 двери); 1875 мм. - 1 дверной блок (3 двери); 2500 мм. - 2 дверных блока по 2 двери)
A38: 2 | B38: Solo L9 | J38: Опции SOLO L9 | M38: СЕЧЕНИЯ
M39: Solo L9 | Q39: Solo L9 Фруктовая | U39: Solo L9 DG
A40: Базовая комплектация стеллажа: - внутренний объем - оцинкованный металл - внутренняя поверхность ванны из оцинкованного пластификата (двойная защита от коррозии); - электронный контроллер для управления работой оборудования; - без освещения - цифрофой термометр; - компрессор R-290; -стандартная упаковка на поддоне, опцонально в деревянной обрешетке - блок остекления со стеклопакетом для стеллажей DG - ночная шторкa для открытого стеллажа Характеристика EL.S.0.0.P.PS.0.0.0.0.внеш7016гл_внутр7016гл | D40: Комплектация "Фрукты-овощи" + к базовой комплектации: - Общее светодиодное освещение, стандартный - 4000К, опционально 2700К, 6500К; - 3 ряда полок с ценникодержателем; - выпариватель; - боковины с зеркалом; - комплект наклонного зеркала - наклонная решетка для базовой полки Характеристика EL.S.2.3.P.PS.L.V.Z.Z.внеш7016гл_внутр7016гл | F40: Комплектация "Гастрономия" + к базовой комплектации: - Общее светодиодное освещение, стандартный - 4000К, опционально 2700К, 6500К, - 5 рядов полок глубиной 500 с ценникодержателем; - выпариватель; - боковины со стеклопакетом; Характеристика EL.S.2.5.P.PS.0.V.S.S.внеш7016гл_внутр7016гл
C41: Solo L9 Открытое исполнение (ночные шторки)
C42: SO L9 125 R290 | D42: Стеллаж холодильный ВПВ С (SOLO L9 1250) R290 | E42: фруктовая | F42: +1…+7 С | G42: 3.76 | H42: 1330х910х2090 | I42: 1500х1030х2230/ 1550х1080х2230 | J42: 187575 | K42: =ROUND(J42*(1-$E$3)/Лист2!$A$6,0) -> 187575
E43: гастрономическая | H43: 1330х910х2090 | J43: 186429 | K43: =ROUND(J43*(1-$E$3)/Лист2!$A$6,0) -> 186429
E44: базовая (пустая) | H44: 1250х910х2090 | J44: 142855 | K44: =ROUND(J44*(1-$E$3)/Лист2!$A$6,0) -> 142855
C45: SO L9 150 R290 | D45: Стеллаж холодильный ВПВ С (SOLO L9 1500) R290 | E45: фруктовая | F45: +1…+7 С | G45: 4.51 | H45: 1580х910х2090 | I45: 1750х1030х2230/ 1800х1080х2230 | J45: 212313 | K45: =ROUND(J45*(1-$E$3)/Лист2!$A$6,0) -> 212313
E46: гастрономическая | H46: 1580х910х2090 | J46: 209161 | K46: =ROUND(J46*(1-$E$3)/Лист2!$A$6,0) -> 209161
E47: базовая (пустая) | H47: 1500х910х2090 | J47: 160919 | K47: =ROUND(J47*(1-$E$3)/Лист2!$A$6,0) -> 160919
C48: SO L9 188 R290 | D48: Стеллаж холодильный ВПВ С (SOLO L9 1875) R290 | E48: фруктовая | F48: +1…+7 С | G48: 5.63 | H48: 1955х910х2090 | I48: 2130х1030х2230/ 2180х1080х2230 | J48: 234906 | K48: =ROUND(J48*(1-$E$3)/Лист2!$A$6,0) -> 234906
E49: гастрономическая | H49: 1955х910х2090 | J49: 231778 | K49: =ROUND(J49*(1-$E$3)/Лист2!$A$6,0) -> 231778
E50: базовая (пустая) | H50: 1875х910х2090 | J50: 176514 | K50: =ROUND(J50*(1-$E$3)/Лист2!$A$6,0) -> 176514
C51: Solo L9 DG. Фронтальный блок остекления - стеклопакет (DG - Double Glass)
C52: SO L9DG 125 R290 | D52: Стеллаж холодильный ВПВ С (SOLO L9 DG 1250) R290 | E52: фруктовая | F52: -1…+5 С | G52: 3.76 | H52: 1330х910х2090 | I52: 1500х1030х2230/ 1550х1080х2230 | J52: 209447 | K52: =ROUND(J52*(1-$E$3)/Лист2!$A$6,0) -> 209447
E53: гастрономическая | H53: 1330х910х2090 | J53: 208301 | K53: =ROUND(J53*(1-$E$3)/Лист2!$A$6,0) -> 208301
E54: базовая (пустая) | H54: 1250х910х2090 | J54: 164727 | K54: =ROUND(J54*(1-$E$3)/Лист2!$A$6,0) -> 164727
C55: SO L9DG 150 R290 | D55: Стеллаж холодильный ВПВ С (SOLO L9 DG 1500) R290 | E55: фруктовая | F55: -1…+5 С | G55: 4.51 | H55: 1580х910х2090 | I55: 1750х1030х2230/ 1800х1080х2230 | J55: 229716 | K55: =ROUND(J55*(1-$E$3)/Лист2!$A$6,0) -> 229716
E56: гастрономическая | H56: 1580х910х2090 | J56: 226564 | K56: =ROUND(J56*(1-$E$3)/Лист2!$A$6,0) -> 226564
E57: базовая (пустая) | H57: 1500х910х2090 | J57: 178322 | K57: =ROUND(J57*(1-$E$3)/Лист2!$A$6,0) -> 178322
C58: SO L9DG 188 R290 | D58: Стеллаж холодильный ВПВ С (SOLO L9 DG 1875) R290 | E58: фруктовая | F58: -1…+5 С | G58: 5.63 | H58: 1955х910х2090 | I58: 2130х1030х2230/ 2180х1080х2230 | J58: 254732 | K58: =ROUND(J58*(1-$E$3)/Лист2!$A$6,0) -> 254732
E59: гастрономическая | H59: 1955х910х2090 | J59: 251604 | K59: =ROUND(J59*(1-$E$3)/Лист2!$A$6,0) -> 251604
E60: базовая (пустая) | H60: 1875х910х2090 | J60: 196340 | K60: =ROUND(J60*(1-$E$3)/Лист2!$A$6,0) -> 196340
C61: SO L9DG 250 R290 | D61: Стеллаж холодильный ВПВ С (SOLO L9 DG 2500) R290 | E61: фруктовая | F61: -1…+5 С | G61: 7.51 | H61: 2580х910х2090 | I61: 2750х1030х2230/ 2800х1080х2230 | K61: =ROUND(J61*(1-$E$3)/Лист2!$A$6,0) -> 0
E62: гастрономическая | H62: 2580х910х2090 | J62: 368562 | K62: =ROUND(J62*(1-$E$3)/Лист2!$A$6,0) -> 368562
E63: базовая (пустая) | H63: 2500х910х2090 | J63: 307176 | K63: =ROUND(J63*(1-$E$3)/Лист2!$A$6,0) -> 307176
D64: (Модуль 1250 мм. - 1 дверной блок (2 двери); 1875 мм. - 1 дверной блок (3 двери); 2500 мм. - 2 дверных блока по 2 двери)
A65: 4 | B65: Solo SML | J65: Опции Solo SML | M65: Solo SML
A67: Стандартная комплектация стеллажа: - Внутренняя поверхность ванны из оцинкованного пластификата (двойная защита от коррозии) - электронный контроллер для управления работой оборудования; - общее горизонтальное светодиодное освещение, опционально 3000К, 4000К, 6500К, мясной; - цифрофой термометр; - компрессор R-290; - автоматическая система выпаривания конденсата; - ночные штороки; -стандартная упаковка на поддоне, опцонально в деревянной обрешетке Характеристика:C.2.0-0.0, внеш 7016гл_внутр 7016гл
C68: SOLOSML 1000 ВПВС1 R290 | D68: Стеллаж холодильный ВПВ С (SOLO SML 1000 Д) R290 ББ | E68: с боковинами | F68: +1...+10 С | G68: 1.94 | H68: 1050х854х1600 | I68: 1170х970х1690 | J68: 162350 | K68: =ROUND(J68*(1-$E$3)/Лист2!$A$6,0) -> 162350
C69: SOLOSML 1000 ВПВС1 R290ББ | E69: без боковин | H69: 1000х854х1600 | J69: 135092 | K69: =ROUND(J69*(1-$E$3)/Лист2!$A$6,0) -> 135092
C70: SOLOSML 1250 ВПВС1 R290 | D70: Стеллаж холодильный ВПВ С (SOLO SML 1250 Д) R290 ББ | E70: с боковинами | F70: +1...+10 С | G70: 2.43 | H70: 1300х854х1600 | I70: 1420х970х1690 | J70: 168196 | K70: =ROUND(J70*(1-$E$3)/Лист2!$A$6,0) -> 168196
C71: SOLOSML 1250 ВПВС1 R290ББ | E71: без боковин | H71: 1250х854х1600 | J71: 140938 | K71: =ROUND(J71*(1-$E$3)/Лист2!$A$6,0) -> 140938
C72: SOLOSML 1875 ВПВС1 R290 | D72: Стеллаж холодильный ВПВ С (SOLO SML 1875 Д) R290 | E72: с боковинами | F72: +1...+10 С | G72: 3.64 | H72: 1925х854х1600 | I72: 2050х970х1690 | J72: 211938 | K72: =ROUND(J72*(1-$E$3)/Лист2!$A$6,0) -> 211938
C73: SOLOSML 1875 ВПВС1 R290ББ | E73: без боковин | H73: 1875х854х1600 | J73: 184680 | K73: =ROUND(J73*(1-$E$3)/Лист2!$A$6,0) -> 184680
H75: НАВЕРХ

Sheet Опции для горок Cryspi
E1: На главную
B3: Ваша скидка: | D3: =Содержание!D2 -> 0
B4: НДС: | D4: =IF(Лист2!A1=TRUE,"С НДС","БЕЗ НДС") -> С НДС
A7: Опции для витрин Cryspi
A8: Solo L7, Solo L9
A9: Обязательные опции для базовой комплектации Solo. Дополнительные опции для гастрономической комплектации Solo. | H9: вернуться к прайсу стеллажей
A10: Общее освещение
A11: Нейтральный свет (4000-4500К) подходит всем товарным категориям (не искажает натуральный цвет продуктов). Тёплый свет (2700-3000К) подходит категории "Фрукты, овощи, сыры" (категория выглядит ярче, насыщеннее). Мясной свет подходит категории "Мясо, мясная гастрономия" (категория выглядит ярче, насыщеннее)
A12: 1 | B12: Комплект общей подсветки стеллажа Т8 1004.15.02.00-01 L=1250 для Solo L | C12: Спектр освещения определяется характеристикой (третий символ, "1" - 3000К, "2" - 4000К) | F12: 2143 | G12: =ROUND(F12*(1-$D$3)/Лист2!$A$6,0) -> 2143
A13: 2 | B13: Комплект общей подсветки стеллажа Т8 1004.15.02.00-02 L=1500 для Solo L | F13: 2844 | G13: =ROUND(F13*(1-$D$3)/Лист2!$A$6,0) -> 2844
A14: 3 | B14: Комплект общей подсветки стеллажа Т8 1004.15.02.00-03 L=1875 для Solo L | F14: 3189 | G14: =ROUND(F14*(1-$D$3)/Лист2!$A$6,0) -> 3189
A15: 4 | B15: Комплект общей подсветки стеллажа Т8 1004.15.02.00-04 L=2500 для Solo L | F15: 3348 | G15: =ROUND(F15*(1-$D$3)/Лист2!$A$6,0) -> 3348
A16: Дополнительные опции для Solo
A17: Вертикальная подсветка для DG
A18: =A15+1 -> 5 | B18: Комплект вертикального светильника 1004.104.00.00-01 для Solo DG 1250 | C18: 1004.104.00.00-01 | D18: Спектр освещения определяется отдельной опцией в заказе, спектр определяется характеристикой ("1"- 3000К, "2" - 4000К) | F18: 4286 | G18: =ROUND(F18*(1-$D$3)/Лист2!$A$6,0) -> 4286
A19: =A18+1 -> 6 | B19: Комплект вертикального светильника 1004.104.00.00-02 для Solo DG 1500 | C19: 1004.104.00.00-02 | F19: 6001 | G19: =ROUND(F19*(1-$D$3)/Лист2!$A$6,0) -> 6001
A20: =A19+1 -> 7 | B20: Комплект вертикального светильника 1004.104.00.00-03 для Solo DG 1875 | C20: 1004.104.00.00-03 | F20: 6858 | G20: =ROUND(F20*(1-$D$3)/Лист2!$A$6,0) -> 6858
A21: =A20+1 -> 8 | B21: Комплект вертикального светильника 1004.104.00.00-04 для Solo DG 2500 | C21: 1004.104.00.00-04 | F21: 8572 | G21: =ROUND(F21*(1-$D$3)/Лист2!$A$6,0) -> 8572
A22: =A21+1 -> 9 | B22: Система выпаривания конденсата для стеллажа Solo длиной 1250 мм | C22: Применение выпаривателя определяется характеристикой (восьмой символ, "0" -без выпаривателя, "V" - выпариватель применен) | F22: 3542 | G22: =ROUND(F22*(1-$D$3)/Лист2!$A$6,0) -> 3542
A23: =A22+1 -> 10 | B23: Система выпаривания конденсата для стеллажа Solo длиной 1500 мм | F23: 4959 | G23: =ROUND(F23*(1-$D$3)/Лист2!$A$6,0) -> 4959
A24: =A23+1 -> 11 | B24: Система выпаривания конденсата для стеллажа Solo длиной 1875 мм | F24: 6021 | G24: =ROUND(F24*(1-$D$3)/Лист2!$A$6,0) -> 6021
A25: 12 | B25: Система выпаривания конденсата для стеллажа Solo длиной 2500 мм | F25: 7934 | G25: =ROUND(F25*(1-$D$3)/Лист2!$A$6,0) -> 7934
A26: Подсветка полок (универсальная для полок разной глубины - 300, 400, 500 мм) Нейтральный свет (4000-4500К) подходит всем товарным категориям (не искажает натуральный цвет продуктов). Тёплый свет (2700-3000К) подходит категории "Фрукты, овощи, сыры" (категория выглядит ярче, насыщеннее). Мясной свет подходит категории "Мясо, мясная гастрономия" (категория выглядит ярче, насыщеннее)
A27: =A25+1 -> 13 | B27: Комплект подсветки полок (3 ряда) Т8 1004.99.00.00-01 L=1250 для Solo L | C27: 1004.99.00.00-01 | D27: Спектр освещения определяется характеристикой (третий символ, "1" - 3000К, "2" - 4000К) | F27: 5495 | G27: =ROUND(F27*(1-$D$3)/Лист2!$A$6,0) -> 5495
A28: =A27+1 -> 14 | B28: Комплект подсветки полок (3 ряда) Т8 1004.99.00.00-02 L=1500 для Solo L | C28: 1004.99.00.00-02 | F28: 9202 | G28: =ROUND(F28*(1-$D$3)/Лист2!$A$6,0) -> 9202
A29: 15 | B29: Комплект подсветки полок (3 ряда) Т8 1004.99.00.00-03 L=1875 для Solo L | C29: 1004.99.00.00-03 | F29: 9954 | G29: =ROUND(F29*(1-$D$3)/Лист2!$A$6,0) -> 9954
A30: 16 | B30: Комплект подсветки полок (3 ряда) Т8 1004.99.00.00-04 L=2500 для Solo L | C30: 1004.99.00.00-04 | F30: 14409 | G30: =ROUND(F30*(1-$D$3)/Лист2!$A$6,0) -> 14409
A31: 17 | B31: Комплект подсветки полок (4 ряда) Т8 1004.100.00.00-01 L=1250 для Solo L | C31: 1004.100.00.00-01 | F31: 6316 | G31: =ROUND(F31*(1-$D$3)/Лист2!$A$6,0) -> 6316
A32: 18 | B32: Комплект подсветки полок (4 ряда) Т8 1004.100.00.00-02 L=1500 для Solo L | C32: 1004.100.00.00-02 | F32: 10576 | G32: =ROUND(F32*(1-$D$3)/Лист2!$A$6,0) -> 10576
A33: 19 | B33: Комплект подсветки полок (4 ряда) Т8 1004.100.00.00-03 L=1875 для Solo L | C33: 1004.100.00.00-03 | F33: 11441 | G33: =ROUND(F33*(1-$D$3)/Лист2!$A$6,0) -> 11441
A34: 20 | B34: Комплект подсветки полок (4 ряда) Т8 1004.100.00.00-03 L=2500 для Solo L | C34: 1004.100.00.00-04 | F34: 16562 | G34: =ROUND(F34*(1-$D$3)/Лист2!$A$6,0) -> 16562
A35: 21 | B35: Комплект подсветки полок (5 рядов) Т8 1004.101.00.00-01 L=1250 для Solo L | C35: 1004.101.00.00-01 | F35: 7453 | G35: =ROUND(F35*(1-$D$3)/Лист2!$A$6,0) -> 7453
A36: 22 | B36: Комплект подсветки полок (5 рядов) Т8 1004.101.00.00-02 L=1500 для Solo L | C36: 1004.101.00.00-02 | F36: 12480 | G36: =ROUND(F36*(1-$D$3)/Лист2!$A$6,0) -> 12480
A37: 23 | B37: Комплект подсветки полок (5 рядов) Т8 1004.101.00.00-03 L=1875 для Solo L | C37: 1004.101.00.00-03 | F37: 13501 | G37: =ROUND(F37*(1-$D$3)/Лист2!$A$6,0) -> 13501
A38: 24 | B38: Комплект подсветки полок (5 рядов) Т8 1004.101.00.00-03 L=2500 для Solo L | C38: 1004.101.00.00-04 | F38: 19543 | G38: =ROUND(F38*(1-$D$3)/Лист2!$A$6,0) -> 19543
A39: 25 | B39: Комплект подсветки полок (6 рядов) Т8 1004.102.00.00-01 L=1250 для Solo L | C39: 1004.102.00.00-01 | F39: 8497 | G39: =ROUND(F39*(1-$D$3)/Лист2!$A$6,0) -> 8497
A40: 26 | B40: Комплект подсветки полок (6 рядов) Т8 1004.102.00.00-02 L=1500 для Solo L | C40: 1004.102.00.00-02 | F40: 14227 | G40: =ROUND(F40*(1-$D$3)/Лист2!$A$6,0) -> 14227
A41: 27 | B41: Комплект подсветки полок (6 рядов) Т8 1004.102.00.00-03 L=1875 для Solo L | C41: 1004.102.00.00-03 | F41: 15391 | G41: =ROUND(F41*(1-$D$3)/Лист2!$A$6,0) -> 15391
A42: 28 | B42: Комплект подсветки полок (6 рядов) Т8 1004.102.00.00-03 L=2500 для Solo L | C42: 1004.102.00.00-04 | F42: 22279 | G42: =ROUND(F42*(1-$D$3)/Лист2!$A$6,0) -> 22279
A43: Дополнительные опции для Solo
A44: =A42+1 -> 29 | B44: Комплект боковины глухой левой для Solo L9 | C44: 1014.40.00.00 | D44: Наличие и тип боковины определяется характеристикой (левая боковина 9 символ, правая боковина 10 символ). Боковина не применяется когда стеллаж в линии - "0". Боковина глухая - "G" | F44: 11369 | G44: =ROUND(F44*(1-$D$3)/Лист2!$A$6,0) -> 11369
A45: =A44+1 -> 30 | B45: Комплект боковины глухой правой для Solo L9 | C45: 1014.40.00.00mir | F45: 11369 | G45: =ROUND(F45*(1-$D$3)/Лист2!$A$6,0) -> 11369
A46: 31 | B46: Комплект боковины глухой левой для Solo L7 | C46: 1004.40.00.00 | F46: 10725 | G46: =ROUND(F46*(1-$D$3)/Лист2!$A$6,0) -> 10725
A47: 32 | B47: Комплект боковины глухой правой для Solo L7 | C47: 1004.40.00.00mir | F47: 10725 | G47: =ROUND(F47*(1-$D$3)/Лист2!$A$6,0) -> 10725
A49: =A47+1 -> 33 | B49: Компл боковины глух лев с зерк для Solo L9 | C49: 1014.37.00.00 | D49: Наличие и тип боковины определяется характеристикой (левая боковина 9 символ, правая боковина 10 символ). Боковина не применяется когда стеллаж в линии - "0". Боковина глухая с зеркалом - "Z". | F49: 12556 | G49: =ROUND(F49*(1-$D$3)/Лист2!$A$6,0) -> 12556
A50: =A49+1 -> 34 | B50: Компл боковины глух прав с зерк для Solo L9 | C50: 1014.37.00.00mir | F50: 12556 | G50: =ROUND(F50*(1-$D$3)/Лист2!$A$6,0) -> 12556
A51: 35 | B51: Компл боковины глух лев с зерк для Solo L7 | C51: 1004.37.00.00 | F51: 11548 | G51: =ROUND(F51*(1-$D$3)/Лист2!$A$6,0) -> 11548
A52: 36 | B52: Компл боковины глух прав с зерк для Solo L7 | C52: 1004.37.00.00mir | F52: 11548 | G52: =ROUND(F52*(1-$D$3)/Лист2!$A$6,0) -> 11548
A54: =A52+1 -> 37 | B54: Компл боковины со стеклопак лев для Solo L9 | C54: 1014.41.00.00 | D54: Наличие и тип боковины определяется характеристикой (левая боковина 9 символ, правая боковина 10 символ). Боковина не применяется когда стеллаж в линии - "0". Боковина панорамная - "S". | F54: 12837 | G54: =ROUND(F54*(1-$D$3)/Лист2!$A$6,0) -> 12837
A55: =A54+1 -> 38 | B55: Компл боковины со стеклопак прав для Solo L9 | C55: 1014.41.00.00mir | F55: 12837 | G55: =ROUND(F55*(1-$D$3)/Лист2!$A$6,0) -> 12837
A56: 39 | B56: Компл боковины со стеклопак лев для Solo L7 | C56: 1004.41.00.00 | F56: 11777 | G56: =ROUND(F56*(1-$D$3)/Лист2!$A$6,0) -> 11777
A57: 40 | B57: Компл боковины со стеклопак прав для Solo L7 | C57: 1004.41.00.00mir | F57: 11777 | G57: =ROUND(F57*(1-$D$3)/Лист2!$A$6,0) -> 11777
A59: =A57+1 -> 41 | B59: Компл герметичн разделителя (оргст) для Solo L9 | C59: 1014.44.00.00 | F59: 15076 | G59: =ROUND(F59*(1-$D$3)/Лист2!$A$6,0) -> 15076
A60: =A59+1 -> 42 | B60: Компл герметичн разделителя (оргст) для Solo L7 | C60: 1004.44.00.00 | F60: 12900 | G60: =ROUND(F60*(1-$D$3)/Лист2!$A$6,0) -> 12900
A62: =A60+1 -> 43 | B62: Компл зеркал герметичн разделителя для Solo L9 | C62: 1014.45.00.00 | F62: 20793 | G62: =ROUND(F62*(1-$D$3)/Лист2!$A$6,0) -> 20793
A63: =A62+1 -> 44 | B63: Компл зеркал герметичн разделителя для Solo L7 | C63: 1004.45.00.00 | F63: 20335 | G63: =ROUND(F63*(1-$D$3)/Лист2!$A$6,0) -> 20335
A65: =A63+1 -> 45 | B65: Комплект соединительный в линию для Solo L | C65: 1004.60.00.00 | F65: 2186 | G65: =ROUND(F65*(1-$D$3)/Лист2!$A$6,0) -> 2186
A67: 69 | B67: Полка навесная с кронштейнами (ОЦ) 1250х500 929.67.00.00-01 для Solo для исп 1250, 2500 | C67: 929.67.00.00-01 | F67: 2335 | G67: =ROUND(F67*(1-$D$3)/Лист2!$A$6,0) -> 2335
A68: =A67+1 -> 70 | B68: Полка навесная с кронштейнами (ОЦ) 1500х500 1014.67.00.00-02 для Solo для исп 1500 | C68: 1014.67.00.00-02 | F68: 2803 | G68: =ROUND(F68*(1-$D$3)/Лист2!$A$6,0) -> 2803
A69: =A68+1 -> 71 | B69: Полка навесная с кронштейнами (ОЦ) 937х500 1015.67.00.00-03 для Solo для исп. 1875 | C69: 1015.67.00.00-03 | F69: 1963 | G69: =ROUND(F69*(1-$D$3)/Лист2!$A$6,0) -> 1963
A70: 72 | B70: Полка навесная с кронштейнами (ОЦ) 1250х400 811.68.00.00 для Rimini для исп.1250,2500 | C70: 811.68.00.00 | F70: 1823 | G70: =ROUND(F70*(1-$D$3)/Лист2!$A$6,0) -> 1823
A71: 73 | B71: Полка навесная с кронштейнами (ОЦ) 1500х400 1004.68.00.00-02 для Solo L 1500 | C71: 1004.68.00.00-02 | F71: 2191 | G71: =ROUND(F71*(1-$D$3)/Лист2!$A$6,0) -> 2191
A72: 74 | B72: Полка навесная с кронштейнами (ОЦ) 937х400 811.68.00.00-01 для Solo для исп. 1875 | C72: 811.68.00.00-01 | F72: 1685 | G72: =ROUND(F72*(1-$D$3)/Лист2!$A$6,0) -> 1685
A73: 75 | B73: Ценникодержатель съемный,L=1250, T-TH 0100125, прозрачный | C73: T-TH 0100125 | F73: 108 | G73: =ROUND(F73*(1-$D$3)/Лист2!$A$6,0) -> 108
A74: 76 | B74: Ценникодержатель съемный, L=1500, T-TH 0100150, прозрачный | C74: н№15085.3 | F74: 150 | G74: =ROUND(F74*(1-$D$3)/Лист2!$A$6,0) -> 150
A75: 77 | B75: Ценникодержатель съемный, L=925, прозрачный | C75: н№15085.2 | F75: 75 | G75: =ROUND(F75*(1-$D$3)/Лист2!$A$6,0) -> 75
A77: =A75+1 -> 78 | B77: Решетка фруктовая (базовая), 932х635 мм. для Rimini H9/L9, Solo L9 | C77: 781.75.00.00 | F77: 3302 | G77: =ROUND(F77*(1-$D$3)/Лист2!$A$6,0) -> 3302
A78: =A77+1 -> 79 | B78: Решетка базовая (фруктовая) 750х635 мм. для Solo L9 | C78: 1014.75.00.00-02 | F78: 2972 | G78: =ROUND(F78*(1-$D$3)/Лист2!$A$6,0) -> 2972
A79: =A78+1 -> 80 | B79: Решетка фруктовая (базовая), 1245x635 мм. для Rimini H9/L9 | C79: 781.75.00.00-01 | F79: 3653 | G79: =ROUND(F79*(1-$D$3)/Лист2!$A$6,0) -> 3653
A80: 81 | B80: Решетка базовая (фруктовая) 932х455 мм. для Rimini H7/L7 | C80: 798.75.00.00 | F80: 2480 | G80: =ROUND(F80*(1-$D$3)/Лист2!$A$6,0) -> 2480
A81: 82 | B81: Решетка базовая (фруктовая) 750х635 мм. для Solo L7 | C81: 1004.75.00.00-02 | F81: 2232 | G81: =ROUND(F81*(1-$D$3)/Лист2!$A$6,0) -> 2232
A82: 83 | B82: Решетка базовая (фруктовая) 1245х455 мм. для Rimini H7/L7, Solo L7 | C82: 798.75.00.00-01 | F82: 2807 | G82: =ROUND(F82*(1-$D$3)/Лист2!$A$6,0) -> 2807
A84: =A82+1 -> 84 | B84: Комплект зеркала наклон(с кронш) (1250) 1014.53.00.00-01 L=1250 для Solo L9 | C84: 1014.53.00.00-01 | F84: 2941 | G84: =ROUND(F84*(1-$D$3)/Лист2!$A$6,0) -> 2941
A85: =A84+1 -> 85 | B85: Комплект зеркала наклон(с кронш) (1500) 1014.53.00.00-02 L=1500 для Solo L9 | C85: 1014.53.00.00-02 | F85: 3676 | G85: =ROUND(F85*(1-$D$3)/Лист2!$A$6,0) -> 3676
A86: =A85+1 -> 86 | B86: Комплект зеркала наклон(с кронш) (937) 1014.53.00.00-03 L=1875 для Solo L9 | C86: 1014.53.00.00-03 | F86: 2520 | G86: =ROUND(F86*(1-$D$3)/Лист2!$A$6,0) -> 2520
A87: 87 | B87: Комплект заглушек для зеркала наклонного 1014.52.00.00 для Solo L9 | C87: 1014.52.00.00 | F87: 764 | G87: =ROUND(F87*(1-$D$3)/Лист2!$A$6,0) -> 764
A88: 88 | B88: Комплект зеркала наклон(с кронш) (1250) 1004.53.00.00-01 L=1250 для Solo L7 | C88: 1004.53.00.00-01 | F88: 2628 | G88: =ROUND(F88*(1-$D$3)/Лист2!$A$6,0) -> 2628
A89: 89 | B89: Комплект зеркала наклон(с кронш) (1500) 1004.53.00.00-02 L=1500 для Solo L7 | C89: 1004.53.00.00-02 | F89: 3285 | G89: =ROUND(F89*(1-$D$3)/Лист2!$A$6,0) -> 3285
A90: 90 | B90: Комплект зеркала наклон(с кронш) (937) 1004.53.00.00-03 L=1875 для Solo L7 | C90: 1004.53.00.00-03 | F90: 2256 | G90: =ROUND(F90*(1-$D$3)/Лист2!$A$6,0) -> 2256
A91: 91 | B91: Комплект заглушек для зеркала наклонного 757.52.00.00 для Solo L7 | C91: 1004.52.00.00 | F91: 561 | G91: =ROUND(F91*(1-$D$3)/Лист2!$A$6,0) -> 561
A93: =A91+1 -> 92 | B93: Разделитель объема для полок(500) 1004.115.00.00 для Solo L | C93: 1004.115.00.00 | F93: 2924 | G93: =ROUND(F93*(1-$D$3)/Лист2!$A$6,0) -> 2924
A94: =A93+1 -> 93 | B94: Разделитель объема для полок(400) 1004.116.00.00 для Solo L | C94: 1004.116.00.00 | F94: 2029 | G94: =ROUND(F94*(1-$D$3)/Лист2!$A$6,0) -> 2029
A95: 94 | B95: Делитель передвижной H=150 (500) оргст 646.51.00.01-01 L=1250/2500 для стеллажей Italfrigo, Solo | C95: 646.51.00.01-01 | F95: 679 | G95: =ROUND(F95*(1-$D$3)/Лист2!$A$6,0) -> 679
A96: 95 | B96: Делитель передвижной H=150 (400) оргст 646.51.00.01 L=1250/2500 для стеллажей Italfrigo, Solo | C96: 646.51.00.01 | F96: 593 | G96: =ROUND(F96*(1-$D$3)/Лист2!$A$6,0) -> 593
A97: 96 | B97: Фронтальный ограничитель 40мм (1250) оргст 646.54.00.03 L=1250/2500 для для Solo | C97: 646.54.00.03 | F97: 681 | G97: =ROUND(F97*(1-$D$3)/Лист2!$A$6,0) -> 681
A98: 97 | B98: Фронтальный ограничитель Н=40мм, L=1500 (оргст) 1004.54.00.03-02 L=1500 для стеллажей Solo | C98: 646.54.00.03-02 | F98: 851 | G98: =ROUND(F98*(1-$D$3)/Лист2!$A$6,0) -> 851
A99: 98 | B99: Фронтальный ограничитель 40мм (937) оргст 646.54.00.03-01 L=1875 для Solo | C99: 646.54.00.03-01 | F99: 319 | G99: =ROUND(F99*(1-$D$3)/Лист2!$A$6,0) -> 319
A100: 99 | B100: Фронтальный ограничитель Н=60мм, L=1250 (оргст) 646.54.00.04 L=1250/2500 для Rimini/Lazio, Solo | C100: 646.54.00.04 | F100: 998 | G100: =ROUND(F100*(1-$D$3)/Лист2!$A$6,0) -> 998
A101: 100 | B101: Фронтальный ограничитель Н=60мм, L=1500 (оргст) 1004.54.00.04-02 L=1500 для Solo | C101: 646.54.00.04-02 | F101: 1247 | G101: =ROUND(F101*(1-$D$3)/Лист2!$A$6,0) -> 1247
A102: 101 | B102: Фронтальный ограничитель Н=60мм, L=937 (оргст) 646.54.00.04-01 L=1875 для Rimini/Lazio, Solo | C102: 646.54.00.04-01 | F102: 808 | G102: =ROUND(F102*(1-$D$3)/Лист2!$A$6,0) -> 808
A103: 102 | B103: Ограничитель проволочный(ОЦ, полимерное покрытие) 1235х57мм 781.76.00.01 | C103: 781.76.00.01 | F103: 301 | G103: =ROUND(F103*(1-$D$3)/Лист2!$A$6,0) -> 301
A104: 103 | B104: Ограничитель проволочный(ОЦ, полимерное покрытие) 926х57мм 781.76.00.01-01, Solo | C104: 781.76.00.01-01 | F104: 241 | G104: =ROUND(F104*(1-$D$3)/Лист2!$A$6,0) -> 241
A105: 104 | B105: Ограничитель проволочный(ОЦ, полимерное покрытие) 1500х57мм 1004.76.00.01-02 | C105: 781.76.00.01-02 | F105: 376 | G105: =ROUND(F105*(1-$D$3)/Лист2!$A$6,0) -> 376
A107: =A105+1 -> 105 | B107: Комплект отбойника фронтального (пластик) L=1250 | C107: 646.56.00.00 | F107: 912 | G107: =ROUND(F107*(1-$D$3)/Лист2!$A$6,0) -> 912
A108: =A107+1 -> 106 | B108: Комплект отбойника фронтального (пластик) L=1875 | C108: 646.56.00.00-01 | F108: 1320 | G108: =ROUND(F108*(1-$D$3)/Лист2!$A$6,0) -> 1320
A109: =A108+1 -> 107 | B109: Комплект отбойника фронтального (пластик) L=2500 | C109: 646.56.00.00-02 | F109: 1726 | G109: =ROUND(F109*(1-$D$3)/Лист2!$A$6,0) -> 1726
A110: 108 | B110: Комплект отбойника фронтального (пластик) L=3750 | C110: 646.56.00.00-03 | F110: 2541 | G110: =ROUND(F110*(1-$D$3)/Лист2!$A$6,0) -> 2541
A111: 109 | B111: Комплект отбойника фронтального (пластик) L=1500 | C111: 646.56.00.00-04 | F111: 1230 | G111: =ROUND(F111*(1-$D$3)/Лист2!$A$6,0) -> 1230
A112: 110 | B112: Торцевой элемент НБИЛГ 7.116.007 н№950.28 | C112: н№950.28 | F112: 291 | G112: =ROUND(F112*(1-$D$3)/Лист2!$A$6,0) -> 291
A113: 111 | B113: Комплект отбойника фронтального 15х30 (труба нерж.) L=1250 | C113: 781.55.00.00 | F113: 1823 | G113: =ROUND(F113*(1-$D$3)/Лист2!$A$6,0) -> 1823
A114: 112 | B114: Комплект отбойника фронтального 15х30 (труба нерж.) L=1875 | C114: 781.55.00.00-01 | F114: 2641 | G114: =ROUND(F114*(1-$D$3)/Лист2!$A$6,0) -> 2641
A115: 113 | B115: Комплект отбойника фронтального 15х30 (труба нерж) L=2500 | C115: 781.55.00.00-02 | F115: 3453 | G115: =ROUND(F115*(1-$D$3)/Лист2!$A$6,0) -> 3453
A116: 114 | B116: Комплект отбойника фронтального 15х30 (труба нерж) L=3750 | C116: 781.55.00.00-03 | F116: 5082 | G116: =ROUND(F116*(1-$D$3)/Лист2!$A$6,0) -> 5082
A117: 115 | B117: Комплект отбойника фронтального 15х30 (труба нерж) L=1500 | C117: 781.55.00.00-04 | F117: 2455 | G117: =ROUND(F117*(1-$D$3)/Лист2!$A$6,0) -> 2455
A119: 119 | B119: Комплект подвесов для колбасы(две штанг + 4 блока крюков) 1004.59.00.00-01 L=1250, 2500 25 шаг | C119: 1004.59.00.00-01 | F119: 6583 | G119: =ROUND(F119*(1-$D$3)/Лист2!$A$6,0) -> 6583
A120: =A119+1 -> 120 | B120: Комплект подвесов для колбасы(две штанг + 8 блока крюков) 1004.59.00.00-02 L=1500, 25 шаг | C120: 1004.59.00.00-02 | F120: 8558 | G120: =ROUND(F120*(1-$D$3)/Лист2!$A$6,0) -> 8558
A121: =A120+1 -> 121 | B121: Комплект подвесов для колбасы(две штанг + 4 блока крюков) 1004.59.00.00-03 L=937, 25 шаг | C121: 1004.59.00.00-03 | F121: 5690 | G121: =ROUND(F121*(1-$D$3)/Лист2!$A$6,0) -> 5690
A122: 122 | B122: Штанга для навески крюков 1004.57.00.00-01 L=1250, 15х30 мм. 25 шаг | C122: 1004.57.00.00-01 | F122: 2459 | G122: =ROUND(F122*(1-$D$3)/Лист2!$A$6,0) -> 2459
A123: 123 | B123: Штанга для навески крюков 1004.57.00.00-02 L=1500, 15х30 мм. 25 шаг | C123: 1004.57.00.00-02 | F123: 3197 | G123: =ROUND(F123*(1-$D$3)/Лист2!$A$6,0) -> 3197
A124: 124 | B124: Штанга для навески крюков 1004.57.00.00-03 L=937, 15х30 мм. 25 шаг | C124: 1004.57.00.00-03 | F124: 1996 | G124: =ROUND(F124*(1-$D$3)/Лист2!$A$6,0) -> 1996
A125: 125 | B125: Крючок на штангу одинарный хромированный с ценникодержателем, 400 мм / диаметр 8,0 мм | C125: н№15074.32 | F125: 651 | G125: =ROUND(F125*(1-$D$3)/Лист2!$A$6,0) -> 651
A126: 126 | B126: Крючок на штангу одинарный хромированный с ценникодержателем, 500 мм / диаметр 10,0 мм | C126: н№15074.33 | F126: 792 | G126: =ROUND(F126*(1-$D$3)/Лист2!$A$6,0) -> 792
A127: Solo SML
A128: Обязательные опции для базовой комплектации Solo SML. Дополнительные опции для гастрономической комплектации Solo SML. | H128: вернуться к прайсу стеллажей
A129: Общее освещение
A130: Нейтральный свет (4000-4500К) подходит всем товарным категориям (не искажает натуральный цвет продуктов). Тёплый свет (2700-3000К) подходит категории "Фрукты, овощи, сыры" (категория выглядит ярче, насыщеннее). Мясной свет подходит категории "Мясо, мясная гастрономия" (категория выглядит ярче, насыщеннее)
A131: 4 | B131: Комплект общей подсветки стеллажа Т8 1004.15.02.00 L=1000 для Solo L | C131: Спектр освещения определяется характеристикой (третий символ, "1" - 3000К, "2" - 4000К) | F131: 2089 | G131: =ROUND(F131*(1-$D$3)/Лист2!$A$6,0) -> 2089
A132: 5 | B132: Комплект общей подсветки стеллажа Т8 1004.15.02.00-01 L=1250 для Solo L | F132: 2143 | G132: =ROUND(F132*(1-$D$3)/Лист2!$A$6,0) -> 2143
A133: 6 | B133: Комплект общей подсветки стеллажа Т8 1004.15.02.00-03 L=1875 для Solo L | F133: 3189 | G133: =ROUND(F133*(1-$D$3)/Лист2!$A$6,0) -> 3189
A134: Подсветка полок (универсальная для полок разной глубины - 300, 400, 500 мм) Нейтральный свет (4000-4500К) подходит всем товарным категориям (не искажает натуральный цвет продуктов). Тёплый свет (2700-3000К) подходит категории "Фрукты, овощи, сыры" (категория выглядит ярче, насыщеннее). Мясной свет подходит категории "Мясо, мясная гастрономия" (категория выглядит ярче, насыщеннее)
A135: 7 | B135: Комплект подсветки полок (3 ряда) Т8 1015.92.00.00 L=1000 для Solo | C135: 1015.92.00.00 | D135: Спектр освещения определяется характеристикой (третий символ, "1" - 3000К, "2" - 4000К) | F135: 3928 | G135: =ROUND(F135*(1-$D$3)/Лист2!$A$6,0) -> 3928
A136: =A135+1 -> 8 | B136: Комплект подсветки полок (3 ряда) Т8 1004.99.00.00-01 L=1250 для Solo L | C136: 1004.99.00.00-01 | F136: 4910 | G136: =ROUND(F136*(1-$D$3)/Лист2!$A$6,0) -> 4910
A137: =A136+1 -> 9 | B137: Комплект подсветки полок (3 ряда) Т8 1004.99.00.00-03 L=1875 для Solo L | C137: 1004.99.00.00-03 | F137: 9864 | G137: =ROUND(F137*(1-$D$3)/Лист2!$A$6,0) -> 9864
A138: Дополнительные опции для Rimini
A139: 11 | B139: Комплект боковины со стеклопакет лев 929.41.00.00 для ВПВ SOLO SML | C139: 929.41.00.00 | F139: 13629 | G139: =ROUND(F139*(1-$D$3)/Лист2!$A$6,0) -> 13629
A140: =A139+1 -> 12 | B140: Комплект боковины со стеклопакет прав 929.41.00.00mir для ВПВ SOLO SML | C140: 929.41.00.00mir | F140: 13629 | G140: =ROUND(F140*(1-$D$3)/Лист2!$A$6,0) -> 13629
A142: 13 | B142: Комплект соединительный в линию 929.60.00.00 для стеллажей SOLO SML | C142: 929.60.00.00 | F142: 1479 | G142: =ROUND(F142*(1-$D$3)/Лист2!$A$6,0) -> 1479
A144: 14 | B144: Комплект полок навесных (с кроншт) L=1000 (300, 400, 500) для SOLO SML | C144: 1015.66.00.00 | F144: 4750 | G144: =ROUND(F144*(1-$D$3)/[7]Лист2!$A$6,0) -> 4750
A145: 15 | B145: Комплект полок навесных (с кроншт) L=1250 (300, 400, 500) для SOLO SML | C145: 1015.66.00.00-01 | F145: 6098 | G145: =ROUND(F145*(1-$D$3)/Лист2!$A$6,0) -> 6098
A146: 16 | B146: Комплект полок навесных (с кроншт) L=1875 (300, 400, 500) для SOLO SML | C146: 1015.66.00.00-03 | F146: 11587 | G146: =ROUND(F146*(1-$D$3)/Лист2!$A$6,0) -> 11587
A148: 17 | B148: Ценникодержатель съемный 1000 Т-ТН 0100100(СТ 046.00.00.105-01) н№15085 | C148: СТ 046.00.00.105-01 | F148: 108 | G148: =ROUND(F148*(1-$D$3)/Лист2!$A$6,0) -> 108
A149: 18 | B149: Ценникодержатель съемный, L=1250, T-TH 0100125, прозрачный | C149: T-TH 0100125 | F149: 108 | G149: =ROUND(F149*(1-$D$3)/Лист2!$A$6,0) -> 108
A150: 19 | B150: Ценникодержатель съемный, L=925, прозрачный | C150: н№15085.2 | F150: 75 | G150: =ROUND(F150*(1-$D$3)/Лист2!$A$6,0) -> 75
A152: =A150+1 -> 20 | B152: Решетка фруктовая (базовая), 1245x635 мм. для Rimini H9/L9 | C152: 781.75.00.00-01 | F152: 3653 | G152: =ROUND(F152*(1-$D$3)/Лист2!$A$6,0) -> 3653
A153: =A152+1 -> 21 | B153: Решетка фруктовая (базовая), 932х635 мм. для Rimini H9/L9, Solo L9 | C153: 781.75.00.00 | F153: 3302 | G153: =ROUND(F153*(1-$D$3)/Лист2!$A$6,0) -> 3302
A155: 22 | B155: Делитель передвижной H=150 (500) оргст 646.51.00.01-01 L=1250/2500 для стеллажей Italfrigo, Solo | C155: 646.51.00.01-01 | F155: 679 | G155: =ROUND(F155*(1-$D$3)/Лист2!$A$6,0) -> 679
A156: =A155+1 -> 23 | B156: Делитель передвижной H=150 (400) оргст 646.51.00.01 L=1250/2500 для стеллажей Italfrigo, Solo | C156: 646.51.00.01 | F156: 593 | G156: =ROUND(F156*(1-$D$3)/Лист2!$A$6,0) -> 593
A157: 24 | B157: Фронтальный ограничитель 40мм (1250) оргст 646.54.00.03 L=1250/2500 для для Solo | C157: 646.54.00.03 | F157: 681 | G157: =ROUND(F157*(1-$D$3)/Лист2!$A$6,0) -> 681
A158: 25 | B158: Фронтальный ограничитель 40мм (937) оргст 646.54.00.03-01 L=1875 для Solo | C158: 646.54.00.03-01 | F158: 568 | G158: =ROUND(F158*(1-$D$3)/Лист2!$A$6,0) -> 568
A159: 26 | B159: Фронтальный ограничитель Н=40мм, L=1000 (оргст) 622.54.00.03 | C159: 622.54.00.03 | F159: 544 | G159: =ROUND(F159*(1-$D$3)/Лист2!$A$6,0) -> 544
A160: 27 | B160: Фронтальный ограничитель Н=60мм, L=1250 (оргст) 646.54.00.04 L=1250/2500 для Rimini/Lazio, Solo | C160: 646.54.00.04 | F160: 998 | G160: =ROUND(F160*(1-$D$3)/Лист2!$A$6,0) -> 998
A161: 28 | B161: Фронтальный ограничитель Н=60мм, L=937 (оргст) 646.54.00.04-01 L=1875 для Rimini/Lazio, Solo | C161: 646.54.00.04-01 | F161: 808 | G161: =ROUND(F161*(1-$D$3)/Лист2!$A$6,0) -> 808
A162: 29 | B162: Ограничитель проволочный(ОЦ, полимерное покрытие) 1235х57мм 781.76.00.01 | C162: 781.76.00.01 | F162: 415 | G162: =ROUND(F162*(1-$D$3)/Лист2!$A$6,0) -> 415
A163: 30 | B163: Ограничитель проволочный(ОЦ, полимерное покрытие) 926х57мм 781.76.00.01-01, Solo | C163: 781.76.00.01-01 | F163: 241 | G163: =ROUND(F163*(1-$D$3)/Лист2!$A$6,0) -> 241
A165: 31 | B165: Комплект отбойника фронтального (пластик) L=1000 | C165: 1015.56.00.00 | F165: 798 | G165: =ROUND(F165*(1-$D$3)/Лист2!$A$6,0) -> 798
A166: 32 | B166: Комплект отбойника фронтального (пластик) L=1250 | C166: 1015.56.00.00-01 | F166: 912 | G166: =ROUND(F166*(1-$D$3)/Лист2!$A$6,0) -> 912
A167: =A166+1 -> 33 | B167: Комплект отбойника фронтального (пластик) L=1875 | C167: 1015.56.00.00-03 | F167: 1320 | G167: =ROUND(F167*(1-$D$3)/Лист2!$A$6,0) -> 1320
A168: =A167+1 -> 34 | B168: Торцевой элемент НБИЛГ 7.116.007 н№950.28 | C168: н№950.28 | F168: 291 | G168: =ROUND(F168*(1-$D$3)/Лист2!$A$6,0) -> 291
A169: 35 | B169: Комплект отбойника фронтального 15х30 (труба нерж.) L=1250 | C169: 781.55.00.00 | F169: 1823 | G169: =ROUND(F169*(1-$D$3)/Лист2!$A$6,0) -> 1823
A170: 36 | B170: Комплект отбойника фронтального 15х30 (труба нерж.) L=1875 | C170: 781.55.00.00-01 | F170: 2641 | G170: =ROUND(F170*(1-$D$3)/Лист2!$A$6,0) -> 2641
A172: =A170+1 -> 37 | B172: Усиленная упаковка Solo 1250 | F172: 4549
A173: =A172+1 -> 38 | B173: Усиленная упаковка Solo 1500 | F173: 4896
A174: =A173+1 -> 39 | B174: Усиленная упаковка Solo 1875 | F174: 5397
A175: =A174+1 -> 40 | B175: Усиленная упаковка Solo 2500 | F175: 7053
A177: *Коэффициент скидки на усиленную упаковку не применяется
A178: *Цена на розовую подсветку по запросу | F178: Наверх

Sheet Горки Italfrigo
H1: ЗАВОД «ОПК» Тел.: +7 (495) 987-4388 e-mail: info@cryspi.ru сайт: cryspi.ru | L1: На главную
B3: Ваша скидка: | E3: =Содержание!D2 -> 0
B4: НДС: | E4: =IF(Лист2!A1=TRUE,"С НДС","БЕЗ НДС") -> С НДС
A6: Охлаждаемые стеллажи Italfrigo под выносное холодообеспечение
A9: № | B9: Изображение | C9: Артикул | D9: Наименование | F9: Температурный режим,°C | G9: Площадь экспозиции, кв.м. | H9: Габариты, (LxWxH) мм | I9: Габариты в упаковке, (LxWxH) мм | J9: Базовая цена, руб. (с НДС) | K9: =[5]Лист2!$A$5 -> Ваша цена, руб.
A11: 1 | B11: Охлаждаемые стеллажи RIMINI | J11: Опции Rimini
A13: Базовая комплектация стеллажа: - без противоударного бампера - внутренний объем - оцинкованный металл - внутренняя поверхность ванны из оцинкованного пластификата (двойная защита от коррозии); - электронный контроллер для управления работой оборудования; - без освещения - без полок - цифрофой термометр; - механический ТРВ Sanhua -стандартная упаковка на поддоне, опцонально в деревянной обрешетке - блок остекления со стеклопакетом для стеллажей DG - ночная шторкa для открытого стеллажа - стандартные вентиляторы - комплект подключения к системе дренажа - Стеллажи производятся в разобранном виде "BOX" - без боковин - упаковка в деревянной обрешетке Характеристика:EL.S.Y.0.0.PS.0.внеш 7016гл_внутр 7016гл | D13: Комплектация "Фрукты-овощи" + к базовой комплектации: - Общее светодиодное освещение, стандартный - 4000К, опционально 2700К, 6500К; - 3 ряда полок с ценникодержателем (Rimini L7/H7 - полки глубиной 400 мм., Rimini L9/H9 - полки глубиной 500 мм., Rimini H10 - полки глубиной 600 мм.); - комплект наклонного зеркала - наклонная решетка для базовой полки Комплект наклонного зекрала и наклонной решетки для базовой полки в отдельном ящике Характеристика:EL.S.Y.2.3.PS.Т.внеш 7016гл_внутр 7016гл | F13: Комплектация "Гастрономия" + к базовой комплектации: - Общее светодиодное освещение, стандартный - 4000К, опционально 2700К, 6500К, - 5 рядов полок с ценникодержателем (Rimini L7/H7 - полки глубиной 400 мм., Rimini L9/H9 - полки глубиной 500 мм., Rimini H10 - полки глубиной 600 мм.); Характеристика:EL.S.Y.2.5.PS.0.внеш 7016гл_внутр 7016гл
A14: Rimini L7 BOX Открытое исполнение (ночные шторки)
C15: IRML7B 125 | D15: Стеллаж охлаждаемый ВПВ С (Italfrigo Rimini L7 BOX 1250 Д) | E15: гастрономическая | F15: 0…+7 С | G15: 3.12 | H15: 1250х700х1964 | I15: 2130х1110х850 | J15: 119461 | K15: =ROUND(J15*(1-$E$3)/Лист2!$A$6,0) -> 119461
E16: базовая (пустая) | J16: 108038.2864 | K16: =ROUND(J16*(1-$E$3)/Лист2!$A$6,0) -> 108038
C17: IRML7В 188 | D17: Стеллаж охлаждаемый ВПВ С (Italfrigo Rimini L7 BOX 1875 Д) | E17: гастрономическая | F17: 0…+7 С | G17: 4.68 | H17: 1875х700х1964 | I17: 2265х1110х850 | J17: 162978 | K17: =ROUND(J17*(1-$E$3)/Лист2!$A$6,0) -> 162978
E18: базовая (пустая) | J18: 143032.8416 | K18: =ROUND(J18*(1-$E$3)/Лист2!$A$6,0) -> 143033 | O18: `
C19: IRML7В 250 | D19: Стеллаж охлаждаемый ВПВ С (Italfrigo Rimini L7 BOX 2500 Д) | E19: гастрономическая | F19: 0…+7 С | G19: 6.25 | H19: 2500х700х1964 | I19: 2700х1110х850 | J19: 193518 | K19: =ROUND(J19*(1-$E$3)/Лист2!$A$6,0) -> 193518
E20: базовая (пустая) | J20: 171578.6292 | K20: =ROUND(J20*(1-$E$3)/Лист2!$A$6,0) -> 171579
C21: IRML7В 375 | D21: Стеллаж охлаждаемый ВПВ С (Italfrigo Rimini L7 BOX 3750 Д) | E21: гастрономическая | F21: 0…+7 С | G21: 9.4 | H21: 3750х700х1964 | I21: 4000х1110х850 | J21: 258054 | K21: =ROUND(J21*(1-$E$3)/Лист2!$A$6,0) -> 258054
E22: базовая (пустая) | J22: 225982.4986 | K22: =ROUND(J22*(1-$E$3)/Лист2!$A$6,0) -> 225982
A23: Rimini L7 DG BOX Фронтальный блок остекления - стеклопакет (DG - Double Glass)
C24: IRML7DB 125 | D24: Стеллаж охлаждаемый ВПВ С (Italfrigo Rimini L7 DG BOX 1250 Д) | E24: гастрономическая | F24: -1…+6 С | G24: 3.12 | H24: 1250х700х1964 | I24: 2130х1180х850 | J24: 128851 | K24: =ROUND(J24*(1-$E$3)/Лист2!$A$6,0) -> 128851
E25: базовая (пустая) | J25: 117427.7443 | K25: =ROUND(J25*(1-$E$3)/Лист2!$A$6,0) -> 117428
C26: IRML7DB 188 | D26: Стеллаж охлаждаемый ВПВ С (Italfrigo Rimini L7 DG BOX 1875 Д) | E26: гастрономическая | F26: -1…+6 С | G26: 4.68 | H26: 1875х700х1964 | I26: 2265х1180х850 | J26: 183497 | K26: =ROUND(J26*(1-$E$3)/Лист2!$A$6,0) -> 183497
E27: базовая (пустая) | J27: 163551.6724 | K27: =ROUND(J27*(1-$E$3)/Лист2!$A$6,0) -> 163552
C28: IRML7DB 250 | D28: Стеллаж охлаждаемый ВПВ С (Italfrigo Rimini L7 DG BOX 2500 Д) | E28: гастрономическая | F28: -1…+6 С | G28: 6.25 | H28: 2500х700х1964 | I28: 2700х1180х850 | J28: 217697 | K28: =ROUND(J28*(1-$E$3)/Лист2!$A$6,0) -> 217697
E29: базовая (пустая) | J29: 195756.8632 | K29: =ROUND(J29*(1-$E$3)/Лист2!$A$6,0) -> 195757
C30: IRML7DB 375 | D30: Стеллаж охлаждаемый ВПВ С (Italfrigo Rimini L7 DG BOX 3750 Д) | E30: гастрономическая | F30: -1…+6 С | G30: 9.4 | H30: 3750х700х1964 | I30: 4000х1180х850 | J30: 309983 | K30: =ROUND(J30*(1-$E$3)/Лист2!$A$6,0) -> 309983
E31: базовая (пустая) | J31: 277912.0364 | K31: =ROUND(J31*(1-$E$3)/Лист2!$A$6,0) -> 277912
A32: Rimini Н7 BOX Открытое исполнение (ночные шторки)
C33: IRMН7B 125 | D33: Стеллаж охлаждаемый ВПВ С (Italfrigo Rimin Н7 BOX 1250 Д) | E33: гастрономическая | F33: 0…+7 С | G33: 3.12 | H33: 1250х700х2164 | I33: 2130х1110х850 | J33: 121666 | K33: =ROUND(J33*(1-$E$3)/Лист2!$A$6,0) -> 121666
E34: базовая (пустая) | J34: 110243.5356 | K34: =ROUND(J34*(1-$E$3)/Лист2!$A$6,0) -> 110244
C35: IRMН7В 188 | D35: Стеллаж охлаждаемый ВПВ С (Italfrigo Rimini Н7 BOX 1875 Д) | E35: гастрономическая | F35: 0…+7 С | G35: 4.68 | H35: 1875х700х2164 | I35: 2265х1110х850 | J35: 165897 | K35: =ROUND(J35*(1-$E$3)/Лист2!$A$6,0) -> 165897
E36: базовая (пустая) | J36: 145951.652 | K36: =ROUND(J36*(1-$E$3)/Лист2!$A$6,0) -> 145952
C37: IRMН7В 250 | D37: Стеллаж охлаждаемый ВПВ С (Italfrigo Rimini Н7 BOX 2500 Д) | E37: гастрономическая | F37: 0…+7 С | G37: 6.25 | H37: 2500х700х2164 | I37: 2700х1110х850 | J37: 197019 | K37: =ROUND(J37*(1-$E$3)/Лист2!$A$6,0) -> 197019
E38: базовая (пустая) | J38: 175079.6432 | K38: =ROUND(J38*(1-$E$3)/Лист2!$A$6,0) -> 175080
C39: IRMН7В 375 | D39: Стеллаж охлаждаемый ВПВ С (Italfrigo Rimini Н7 BOX 3750 Д) | E39: гастрономическая | F39: 0…+7 С | G39: 9.4 | H39: 3750х700х2164 | I39: 4000х1110х850 | J39: 262666 | K39: =ROUND(J39*(1-$E$3)/Лист2!$A$6,0) -> 262666
E40: базовая (пустая) | J40: 230594.3863 | K40: =ROUND(J40*(1-$E$3)/Лист2!$A$6,0) -> 230594
A41: Rimini Н7 DG BOX Фронтальный блок остекления - стеклопакет (DG - Double Glass)
C42: IRMH7DB 125 | D42: Стеллаж охлаждаемый ВПВ С (Italfrigo Rimini Н7 DG BOX 1250 Д) | E42: гастрономическая | F42: -1…+6 С | G42: 3.12 | H42: 1250х700х2164 | I42: 2130х1180х850 | J42: 130286 | K42: =ROUND(J42*(1-$E$3)/Лист2!$A$6,0) -> 130286
E43: базовая (пустая) | J43: 118863.2661 | K43: =ROUND(J43*(1-$E$3)/Лист2!$A$6,0) -> 118863
C44: IRMH7DB 188 | D44: Стеллаж охлаждаемый ВПВ С (Italfrigo Rimini Н7 DG BOX 1875 Д) | E44: гастрономическая | F44: -1…+6 С | G44: 4.68 | H44: 1875х700х2164 | I44: 2265х1180х850 | J44: 185950 | K44: =ROUND(J44*(1-$E$3)/Лист2!$A$6,0) -> 185950
E45: базовая (пустая) | J45: 166004.9475 | K45: =ROUND(J45*(1-$E$3)/Лист2!$A$6,0) -> 166005
C46: IRMH7DB 250 | D46: Стеллаж охлаждаемый ВПВ С (Italfrigo Rimini Н7 DG BOX 2500 Д) | E46: гастрономическая | F46: -1…+6 С | G46: 6.25 | H46: 2500х700х2164 | I46: 2700х1180х850 | J46: 220633 | K46: =ROUND(J46*(1-$E$3)/Лист2!$A$6,0) -> 220633
E47: базовая (пустая) | J47: 198693.066 | K47: =ROUND(J47*(1-$E$3)/Лист2!$A$6,0) -> 198693
C48: IRMH7DB 375 | D48: Стеллаж охлаждаемый ВПВ С (Italfrigo Rimini Н7 DG BOX 3750 Д) | E48: гастрономическая | F48: -1…+6 С | G48: 9.4 | H48: 3750х700х2164 | I48: 4000х1180х850 | J48: 314152.2554 | K48: =ROUND(J48*(1-$E$3)/Лист2!$A$6,0) -> 314152
E49: базовая (пустая) | J49: 282080.7169 | K49: =ROUND(J49*(1-$E$3)/Лист2!$A$6,0) -> 282081
A50: Rimini L9 BOX Открытое исполнение (ночные шторки)
C51: IRML9B 125 | D51: Стеллаж охлаждаемый ВПВ С (Italfrigo Rimini L9 BOX 1250 Д) | E51: гастрономическая | F51: 0…+7 С | G51: 4.01 | H51: 1250х910х1964 | I51: 2130х1110х850 | J51: 122554 | K51: =ROUND(J51*(1-$E$3)/Лист2!$A$6,0) -> 122554
E52: базовая (пустая) | J52: 108571.5092 | K52: =ROUND(J52*(1-$E$3)/Лист2!$A$6,0) -> 108572
C53: IRML9B 188 | D53: Стеллаж охлаждаемый ВПВ С (Italfrigo Rimini L9 BOX 1875 Д) | E53: гастрономическая | F53: 0…+7 С | G53: 6.01 | H53: 1875х910х1964 | I53: 2265х1110х850 | J53: 166499 | K53: =ROUND(J53*(1-$E$3)/Лист2!$A$6,0) -> 166499
E54: базовая (пустая) | J54: 143770.8932 | K54: =ROUND(J54*(1-$E$3)/Лист2!$A$6,0) -> 143771
C55: IRML9B 250 | D55: Стеллаж охлаждаемый ВПВ С (Italfrigo Rimini L9 BOX 2500 Д) | E55: гастрономическая | F55: 0…+7 С | G55: 8.02 | H55: 2500х910х1964 | I55: 2700х1110х850 | J55: 199632 | K55: =ROUND(J55*(1-$E$3)/Лист2!$A$6,0) -> 199632
E56: базовая (пустая) | J56: 172571.6036 | K56: =ROUND(J56*(1-$E$3)/Лист2!$A$6,0) -> 172572
C57: IRML9B 375 | D57: Стеллаж охлаждаемый ВПВ С (Italfrigo Rimini L9 BOX 3750 Д) | E57: гастрономическая | F57: 0…+7 С | G57: 12.03 | H57: 3750х910х1964 | I57: 4000х1110х850 | J57: 260942 | K57: =ROUND(J57*(1-$E$3)/Лист2!$A$6,0) -> 260942
E58: базовая (пустая) | J58: 221188.9021 | K58: =ROUND(J58*(1-$E$3)/Лист2!$A$6,0) -> 221189
A59: Rimini L9 DG BOX Фронтальный блок остекления - стеклопакет (DG - Double Glass)
C60: IRML9DB 125 | D60: Стеллаж охлаждаемый ВПВ С (Italfrigo Rimini L9 DG BOX 1250 Д) | E60: гастрономическая | F60: -1…+6 С | G60: 4.01 | H60: 1250х910х1964 | I60: 2130х1180х850 | J60: 145009 | K60: =ROUND(J60*(1-$E$3)/Лист2!$A$6,0) -> 145009
E61: базовая (пустая) | J61: 131025.8884 | K61: =ROUND(J61*(1-$E$3)/Лист2!$A$6,0) -> 131026
C62: IRML9DB 188 | D62: Стеллаж охлаждаемый ВПВ С (Italfrigo Rimini L9 DG BOX 1875 Д) | E62: гастрономическая | F62: -1…+6 С | G62: 6.01 | H62: 1875х910х1964 | I62: 2265х1180х850 | J62: 199148 | K62: =ROUND(J62*(1-$E$3)/Лист2!$A$6,0) -> 199148
E63: базовая (пустая) | J63: 176420.6844 | K63: =ROUND(J63*(1-$E$3)/Лист2!$A$6,0) -> 176421
C64: IRML9DB 250 | D64: Стеллаж охлаждаемый ВПВ С (Italfrigo Rimini L9 DG BOX 2500 Д) | E64: гастрономическая | F64: -1…+6 С | G64: 8.02 | H64: 2500х910х1964 | I64: 2700х1180х850 | J64: 246297 | K64: =ROUND(J64*(1-$E$3)/Лист2!$A$6,0) -> 246297
E65: базовая (пустая) | J65: 219236.2306 | K65: =ROUND(J65*(1-$E$3)/Лист2!$A$6,0) -> 219236
C66: IRML9DB 375 | D66: Стеллаж охлаждаемый ВПВ С (Italfrigo Rimini L9 DG BOX 3750 Д) | E66: гастрономическая | F66: -1…+6 С | G66: 12.03 | H66: 3750х910х1964 | I66: 4000х1180х850 | J66: 345738 | K66: =ROUND(J66*(1-$E$3)/Лист2!$A$6,0) -> 345738
E67: базовая (пустая) | J67: 305984.998 | K67: =ROUND(J67*(1-$E$3)/Лист2!$A$6,0) -> 305985
A68: Rimini Н9 BOX Открытое исполнение (ночные шторки)
C69: IRMH9B 125 | D69: Стеллаж охлаждаемый ВПВ С (Italfrigo Rimini H9 BOX 1250 Д) | E69: гастрономическая | F69: 0…+7 С | G69: 4.01 | H69: 1250х910х2164 | I69: 2130х1110х850 | J69: 127470 | K69: =ROUND(J69*(1-$E$3)/Лист2!$A$6,0) -> 127470
E70: базовая (пустая) | J70: 113487.4004 | K70: =ROUND(J70*(1-$E$3)/Лист2!$A$6,0) -> 113487
C71: IRMH9B 188 | D71: Стеллаж охлаждаемый ВПВ С (Italfrigo Rimini H9 BOX 1875 Д) | E71: гастрономическая | F71: 0…+7 С | G71: 6.01 | H71: 1875х910х2164 | I71: 2265х1110х850 | J71: 172369 | K71: =ROUND(J71*(1-$E$3)/Лист2!$A$6,0) -> 172369
E72: базовая (пустая) | J72: 149640.7968 | K72: =ROUND(J72*(1-$E$3)/Лист2!$A$6,0) -> 149641
C73: IRMH9B 250 | D73: Стеллаж охлаждаемый ВПВ С (Italfrigo Rimini H9 BOX 2500 Д) | E73: гастрономическая | F73: 0…+7 С | G73: 8.02 | H73: 2500х910х2164 | I73: 2700х1110х850 | J73: 207076 | K73: =ROUND(J73*(1-$E$3)/Лист2!$A$6,0) -> 207076
E74: базовая (пустая) | J74: 180015.572 | K74: =ROUND(J74*(1-$E$3)/Лист2!$A$6,0) -> 180016
C75: IRMH9B 375 | D75: Стеллаж охлаждаемый ВПВ С (Italfrigo Rimini H9 BOX 3750 Д) | E75: гастрономическая | F75: 0…+7 С | G75: 12.03 | H75: 3750х910х2164 | I75: 4000х1110х850 | J75: 272334 | K75: =ROUND(J75*(1-$E$3)/Лист2!$A$6,0) -> 272334
E76: базовая (пустая) | J76: 232581.5275 | K76: =ROUND(J76*(1-$E$3)/Лист2!$A$6,0) -> 232582
A77: Rimini Н9 DG BOX Фронтальный блок остекления - стеклопакет (DG - Double Glass)
C78: IRMH9DB 125 | D78: Стеллаж охлаждаемый ВПВ С (Italfrigo Rimini H9 DG BOX 1250 Д) | E78: гастрономическая | F78: -1…+6 С | G78: 4.01 | H78: 1250х910х2164 | I78: 2130х1180х850 | J78: 147760 | K78: =ROUND(J78*(1-$E$3)/Лист2!$A$6,0) -> 147760
E79: базовая (пустая) | J79: 133777.0882 | K79: =ROUND(J79*(1-$E$3)/Лист2!$A$6,0) -> 133777
C80: IRMH9DB 188 | D80: Стеллаж охлаждаемый ВПВ С (Italfrigo Rimini H9 DG BOX 1875 Д) | E80: гастрономическая | F80: -1…+6 С | G80: 6.01 | H80: 1875х910х2164 | I80: 2265х1180х850 | J80: 194455 | K80: =ROUND(J80*(1-$E$3)/Лист2!$A$6,0) -> 194455
E81: базовая (пустая) | J81: 171726.4498 | K81: =ROUND(J81*(1-$E$3)/Лист2!$A$6,0) -> 171726
C82: IRMH9DB 250 | D82: Стеллаж охлаждаемый ВПВ С (Italfrigo Rimini H9 DG BOX 2500 Д) | E82: гастрономическая | F82: -1…+6 С | G82: 8.02 | H82: 2500х910х2164 | I82: 2700х1180х850 | J82: 246984 | K82: =ROUND(J82*(1-$E$3)/Лист2!$A$6,0) -> 246984
E83: базовая (пустая) | J83: 219924.0306 | K83: =ROUND(J83*(1-$E$3)/Лист2!$A$6,0) -> 219924
C84: IRMH9DB 375 | D84: Стеллаж охлаждаемый ВПВ С (Italfrigo Rimini H9 DG BOX 3750 Д) | E84: гастрономическая | F84: -1…+6 С | G84: 12.03 | H84: 3750х910х2164 | I84: 4000х1180х850 | J84: 351584 | K84: =ROUND(J84*(1-$E$3)/Лист2!$A$6,0) -> 351584
E85: базовая (пустая) | J85: 311831.2974 | K85: =ROUND(J85*(1-$E$3)/Лист2!$A$6,0) -> 311831
A86: Rimini Н10 BOX Открытое исполнение (ночные шторки)
C87: IRMH10B 125 | D87: Стеллаж охлаждаемый ВПВ С (Italfrigo Rimini H10 BOX 1250 Д) | E87: гастрономическая | F87: 0…+7 С | G87: 4.75 | H87: 1250х1000х2164 | I87: 2130х1180х850 | J87: 136832 | K87: =ROUND(J87*(1-$E$3)/Лист2!$A$6,0) -> 136832
E88: базовая (пустая) | J88: 121432.3088 | K88: =ROUND(J88*(1-$E$3)/Лист2!$A$6,0) -> 121432
C89: IRMH10B 188 | D89: Стеллаж охлаждаемый ВПВ С (Italfrigo Rimini H10 BOX 1875 Д) | E89: гастрономическая | F89: 0…+7 С | G89: 7.12 | H89: 1875х1000х2164 | I89: 2265х1180х850 | J89: 184645 | K89: =ROUND(J89*(1-$E$3)/Лист2!$A$6,0) -> 184645
E90: базовая (пустая) | J90: 160116.0088 | K90: =ROUND(J90*(1-$E$3)/Лист2!$A$6,0) -> 160116
C91: IRMH10B 250 | D91: Стеллаж охлаждаемый ВПВ С (Italfrigo Rimini H10 BOX 2500 Д) | E91: гастрономическая | F91: 0…+7 С | G91: 9.5 | H91: 2500х1000х2164 | I91: 2700х1180х850 | J91: 222511 | K91: =ROUND(J91*(1-$E$3)/Лист2!$A$6,0) -> 222511
E92: базовая (пустая) | J92: 192616.996 | K92: =ROUND(J92*(1-$E$3)/Лист2!$A$6,0) -> 192617
C93: IRMH10B 375 | D93: Стеллаж охлаждаемый ВПВ С (Italfrigo Rimini H10 BOX 3750 Д) | E93: гастрономическая | F93: 0…+7 С | G93: 14.25 | H93: 3750х1000х2164 | I93: 4000х1180х850 | J93: 283562 | K93: =ROUND(J93*(1-$E$3)/Лист2!$A$6,0) -> 283562
E94: базовая (пустая) | J94: 239558.9733 | K94: =ROUND(J94*(1-$E$3)/Лист2!$A$6,0) -> 239559
A95: Rimini Н10 DG BOX Фронтальный блок остекления - стеклопакет (DG - Double Glass)
C96: IRMH10DB 125 | D96: Стеллаж охлаждаемый ВПВ С (Italfrigo Rimini H10 DG BOX 1250 Д) | E96: гастрономическая | F96: -1…+6 С | G96: 4.75 | H96: 1250х1000х2164 | I96: 2130х1180х850 | J96: 150587 | K96: =ROUND(J96*(1-$E$3)/Лист2!$A$6,0) -> 150587
E97: базовая (пустая) | J97: 135187.338 | K97: =ROUND(J97*(1-$E$3)/Лист2!$A$6,0) -> 135187
C98: IRMH10DB 188 | D98: Стеллаж охлаждаемый ВПВ С (Italfrigo Rimini H10 DG BOX 1875 Д) | E98: гастрономическая | F98: -1…+6 С | G98: 7.12 | H98: 1875х1000х2164 | I98: 2265х1180х850 | J98: 203873 | K98: =ROUND(J98*(1-$E$3)/Лист2!$A$6,0) -> 203873
E99: базовая (пустая) | J99: 179343.8342 | K99: =ROUND(J99*(1-$E$3)/Лист2!$A$6,0) -> 179344
C100: IRMH10DB 250 | D100: Стеллаж охлаждаемый ВПВ С (Italfrigo Rimini H10 DG BOX 2500 Д) | E100: гастрономическая | F100: -1…+6 С | G100: 9.5 | H100: 2500х1000х2164 | I100: 2700х1180х850 | J100: 256782 | K100: =ROUND(J100*(1-$E$3)/Лист2!$A$6,0) -> 256782
E101: базовая (пустая) | J101: 226888.005 | K101: =ROUND(J101*(1-$E$3)/Лист2!$A$6,0) -> 226888
C102: IRMH10DB 375 | D102: Стеллаж охлаждаемый ВПВ С (Italfrigo Rimini H10 DG BOX 3750 Д) | E102: гастрономическая | F102: -1…+6 С | G102: 14.25 | H102: 3750х1000х2164 | I102: 4000х1180х850 | J102: 374200 | K102: =ROUND(J102*(1-$E$3)/Лист2!$A$6,0) -> 374200
E103: базовая (пустая) | J103: 331536.7657 | K103: =ROUND(J103*(1-$E$3)/Лист2!$A$6,0) -> 331537
A104: 2 | B104: Охлаждаемые стеллажи полувертикальные LAZIO | J104: Опции Rimini
A106: Базовая комплектация стеллажа: - без противоударного бампера - внутренний объем - оцинкованный металл - внутренняя поверхность ванны из оцинкованного пластификата (двойная защита от коррозии); - электронный контроллер для управления работой оборудования; - без освещения - без полок - цифрофой термометр; - механический ТРВ Sanhua -стандартная упаковка на поддоне, опцонально в деревянной обрешетке - блок остекления со стеклопакетом для стеллажей DG - ночная шторкa для открытого стеллажа - стандартные вентиляторы - комплект подключения к системе дренажа - без боковин - упаковка на поддоне Характеристика:EL.S.Y.0.0.PS.0.внеш 7016гл_внутр 7016гл | D106: Комплектация "Фрукты-овощи" + к базовой комплектации: - Общее светодиодное освещение, стандартный - 4000К, опционально 2700К, 6500К; - 2 ряда полок с ценникодержателем - полки глубиной 400 мм.и глубиной 500 мм. - наклонная решетка для базовой полки Комплект наклонного зекрала и наклонной решетки для базовой полки в отдельном ящике Характеристика:EL.S.Y.2.2.PS.T.внеш 7016гл_внутр 7016гл | F106: Комплектация "Гастрономия" + к базовой комплектации: - Общее светодиодное освещение, стандартный - 4000К, опционально 2700К, 6500К, - 3 ряда полок с ценникодержателем полки глубиной 300мм,400 мм. 500 мм.; Характеристика:EL.S.Y.2.3.PS.0.внеш 7016гл_внутр 7016гл
A107: LAZIO S9, Открытое исполнение (ночные шторки)
C108: ILZS9 125 | D108: Стеллаж охлаждаемый полувертикальный ВПВ С (Italfrigo Lazio S9 1250 Д) | E108: гастрономическая | F108: 0…+7 С | G108: 2.34 | H108: 1250х910х1562 | I108: 1450х1020х1665/ 1500х1070х1715 | J108: 108974 | K108: =ROUND(J108*(1-$E$3)/Лист2!$A$6,0) -> 108974
E109: базовая (пустая) | J109: 94782.33397 | K109: =ROUND(J109*(1-$E$3)/Лист2!$A$6,0) -> 94782
C110: ILZS9 188 | D110: Стеллаж охлаждаемый полувертикальный ВПВ С (Italfrigo Lazio S9 1875 Д) | E110: гастрономическая | F110: 0…+7 С | G110: 3.5 | H110: 1875х910х1562 | I110: 2080х1020х1665/ 2130х1070х1715 | J110: 132468 | K110: =ROUND(J110*(1-$E$3)/Лист2!$A$6,0) -> 132468
E111: базовая (пустая) | J111: 117286.8875 | K111: =ROUND(J111*(1-$E$3)/Лист2!$A$6,0) -> 117287
C112: ILZS9 250 | D112: Стеллаж охлаждаемый полувертикальный ВПВ С (Italfrigo Lazio S9 2500 Д) | E112: гастрономическая | F112: 0…+7 С | G112: 4.68 | H112: 2500х910х1562 | I112: 2700х1020х1665/ 2750х1070х1715 | J112: 158605 | K112: =ROUND(J112*(1-$E$3)/Лист2!$A$6,0) -> 158605
E113: базовая (пустая) | J113: 142012.26 | K113: =ROUND(J113*(1-$E$3)/Лист2!$A$6,0) -> 142012
C114: ILZS9 375 | D114: Стеллаж охлаждаемый полувертикальный ВПВ С (Italfrigo Lazio S9 3750 Д) | E114: гастрономическая | F114: 0…+7 С | G114: 7.02 | H114: 3750х910х1562 | I114: 3950х1020х1665/ 4000х1070х1715 | J114: 217788 | K114: =ROUND(J114*(1-$E$3)/Лист2!$A$6,0) -> 217788
E115: базовая (пустая) | J115: 194329.0853 | K115: =ROUND(J115*(1-$E$3)/Лист2!$A$6,0) -> 194329
C116: ILZS9Т 188 | D116: Стеллаж охлаждаемый полувертикальный торцевой ВПВ С (Italfrigo Lazio S9 1875 Д) | E116: гастрономическая | F116: 0…+7 С | G116: 3.5 | H116: 1950х910х1562 | I116: 2080х1020х1665/ 2130х1070х1715 | J116: 158784 | K116: =ROUND(J116*(1-$E$3)/Лист2!$A$6,0) -> 158784
E117: базовая (пустая) | J117: 143602.3556 | K117: =ROUND(J117*(1-$E$3)/Лист2!$A$6,0) -> 143602
A118: LAZIO S10, Открытое исполнение (ночные шторки)

Sheet Gamma в линию (hidden)
A1: Примечания: | AY1: В содержание
A2: 1. Витрины с различными температурными режимами желательно разделять боковинами
A3: 2. В комплект герметичного разделителя входит комплект соединительный
A5: 1. Линия витрин GAMMA-2
C7: боковина | E7: GAMMA-2 ББ | P7: GAMMA-2 ББ | AA7: GAMMA-2 ББ | AL7: боковина
C12: Вариант спецификации
C13: Наименование | AT13: Кол-во
C14: Gamma-2 1200 | AA14: без боковин | AT14: 1
C15: Gamma-2 1500 | AA15: без боковин | AT15: 1
C16: Gamma-2 1800 | AA16: без боковин | AT16: 1
C17: Комплект соединительный 337.50.00.00 для ВПС/ВПСН/ВПН Gamma-2 | AT17: 2
C18: Комплект боковин 337.40.00.00 для ВПС/ВПСН Gamma 2 | AT18: 1
A21: 2. Линия витрин GAMMA-2 через герметичный разделитель
C23: боковина | E23: GAMMA-2 ББ | P23: герм.разд. | R23: GAMMA-2 ББ | AC23: герм.разд. | AE23: GAMMA-2 ББ | AP23: боковина
C28: Вариант спецификации
C29: Наименование | AT29: Кол-во
C30: Gamma-2 1200 | AA30: без боковин | AT30: 1
C31: Gamma-2 1500 | AA31: без боковин | AT31: 1
C32: Gamma-2 1800 | AA32: без боковин | AT32: 1
C33: Комплект герметичного разделителя 337.83.00.00 для ВПС/ВПСН/ВПН Gamma-2 | AT33: 2
C34: Комплект боковин 337.40.00.00 для ВПС/ВПСН Gamma 2 | AT34: 1

Sheet Опции для горок Italfrigo
E1: На главную
B3: Ваша скидка: | D3: =Содержание!D2 -> 0
B4: НДС: | D4: =IF(Лист2!A1=TRUE,"С НДС","БЕЗ НДС") -> С НДС
A7: Опции для витрин Cryspi
A8: Rimini/ Lazio
A9: Обязательные опции для базовой комплектации Solo. Дополнительные опции для гастрономической комплектации Solo.
A10: Общее освещение
A11: Нейтральный свет (4000-4500К) подходит всем товарным категориям (не искажает натуральный цвет продуктов). Тёплый свет (2700-3000К) подходит категории "Фрукты, овощи, сыры" (категория выглядит ярче, насыщеннее). Мясной свет подходит категории "Мясо, мясная гастрономия" (категория выглядит ярче, насыщеннее)
A12: 1 | B12: Комплект горизонтального освещения 1106.89.00.00 L=1250 для Rimini/Lazio | C12: Спектр освещения определяется характеристикой (третий символ, "1" - 3000К, "2" - 4000) | F12: 1768 | G12: =ROUND(F12*(1-$D$3)/Лист2!$A$6,0) -> 1768
A13: 2 | B13: Комплект горизонтального освещения 1106.89.00.00-01 L=1875 для Rimini/Lazio | F13: 2346 | G13: =ROUND(F13*(1-$D$3)/Лист2!$A$6,0) -> 2346
A14: 3 | B14: Комплект горизонтального освещения 1106.89.00.00-02 L=2500 для Rimini/Lazio | F14: 2630 | G14: =ROUND(F14*(1-$D$3)/Лист2!$A$6,0) -> 2630
A15: 4 | B15: Комплект горизонтального освещения 1106.89.00.00-03 L=3750 для Rimini/Lazio | F15: 3108 | G15: =ROUND(F15*(1-$D$3)/Лист2!$A$6,0) -> 3108
A16: Дополнительные опции д
A17: Вертикальная подсветка для DG
A18: =A15+1 -> 5 | B18: Комплект электрооттайки испарителя 1058.65.00.00 L=1250 для Rimini | C18: 1058.65.00.00 | F18: 2679 | G18: =ROUND(F18*(1-$D$3)/Лист2!$A$6,0) -> 2679
A19: =A18+1 -> 6 | B19: Комплект электрооттайки испарителя 1058.65.00.00-01 L=1875 для Rimini | C19: 1058.65.00.00-01 | F19: 3911 | G19: =ROUND(F19*(1-$D$3)/Лист2!$A$6,0) -> 3911
A20: =A19+1 -> 7 | B20: Комплект электрооттайки испарителя 1058.65.00.00-02 L=2500 для Rimini | C20: 1058.65.00.00-02 | F20: 3985 | G20: =ROUND(F20*(1-$D$3)/Лист2!$A$6,0) -> 3985
A21: 8 | B21: Комплект электрооттайки испарителя 1058.65.00.00-03 L=3750 для Rimini | C21: 1058.65.00.00-03 | F21: 4945 | G21: =ROUND(F21*(1-$D$3)/Лист2!$A$6,0) -> 4945
A22: 13 | B22: Монтажный набор 1106.120.00.00S | C22: 1106.120.00.00S | F22: 9756 | G22: =ROUND(F22*(1-$D$3)/Лист2!$A$6,0) -> 9756
A23: Подсветка полок (универсальная для полок разной глубины - 300, 400, 500 мм) Нейтральный свет (4000-4500К) подходит всем товарным категориям (не искажает натуральный цвет продуктов). Тёплый свет (2700-3000К) подходит категории "Фрукты, овощи, сыры" (категория выглядит ярче, насыщеннее). Мясной свет подходит категории "Мясо, мясная гастрономия" (категория выглядит ярче, насыщеннее)
A24: =A22+1 -> 14 | B24: Комплект подсветки двух рядов полок T8 1058.91.00.00 для Rimini L=1250 | C24: 1058.91.00.00 | D24: Спектр освещения определяется характеристикой (третий символ, "1" - 3000К, "2" - 4000К) | F24: 5041 | G24: =ROUND(F24*(1-$D$3)/Лист2!$A$6,0) -> 5041
A25: =A24+1 -> 15 | B25: Комплект подсветки двух рядов полок T8 1058.91.00.00-01 для Rimini L=1875 | C25: 1058.91.00.00-01 | F25: 8885 | G25: =ROUND(F25*(1-$D$3)/Лист2!$A$6,0) -> 8885
A26: 16 | B26: Комплект подсветки двух рядов полок T8 1058.91.00.00-02 для Rimini L=2500 | C26: 1058.91.00.00-02 | F26: 10127 | G26: =ROUND(F26*(1-$D$3)/Лист2!$A$6,0) -> 10127
A27: 17 | B27: Комплект подсветки двух рядов полок T8 1058.91.00.00-03 для Rimini L=3750 | C27: 1058.91.00.00-03 | F27: 12563 | G27: =ROUND(F27*(1-$D$3)/Лист2!$A$6,0) -> 12563
A28: 18 | B28: Комплект подсветки трёх рядов полок T8 1058.92.00.00 для Rimini L=1250 | C28: 1058.92.00.00 | F28: 6301 | G28: =ROUND(F28*(1-$D$3)/Лист2!$A$6,0) -> 6301
A29: 19 | B29: Комплект подсветки трёх рядов полок T8 1058.92.00.00-01 для Rimini L=1875 | C29: 1058.92.00.00-01 | F29: 11107 | G29: =ROUND(F29*(1-$D$3)/Лист2!$A$6,0) -> 11107
A30: 20 | B30: Комплект подсветки трёх рядов полок T8 1058.92.00.00-02 для Rimini L=2500 | C30: 1058.92.00.00-02 | F30: 12659 | G30: =ROUND(F30*(1-$D$3)/Лист2!$A$6,0) -> 12659
A31: 21 | B31: Комплект подсветки трёх рядов полок T8 1058.92.00.00-03 для Rimini L=3750 | C31: 1058.92.00.00-03 | F31: 15704 | G31: =ROUND(F31*(1-$D$3)/Лист2!$A$6,0) -> 15704
A32: 22 | B32: Комплект подсветки четырёх рядов полок T8 1058.93.00.00 для Rimini L=1250 | C32: 1058.93.00.00 | F32: 8106 | G32: =ROUND(F32*(1-$D$3)/Лист2!$A$6,0) -> 8106
A33: 23 | B33: Комплект подсветки четырёх рядов полок T8 1058.93.00.00-01 для Rimini L=1875 | C33: 1058.93.00.00-01 | F33: 13573 | G33: =ROUND(F33*(1-$D$3)/Лист2!$A$6,0) -> 13573
A34: 24 | B34: Комплект подсветки четырёх рядов полок T8 1058.93.00.00-02 для Rimini L=2500 | C34: 1058.93.00.00-02 | F34: 14683 | G34: =ROUND(F34*(1-$D$3)/Лист2!$A$6,0) -> 14683
A35: 25 | B35: Комплект подсветки четырёх рядов полок T8 1058.93.00.00-03 для Rimini L=3750 | C35: 1058.93.00.00-03 | F35: 21254 | G35: =ROUND(F35*(1-$D$3)/Лист2!$A$6,0) -> 21254
A36: 26 | B36: Комплект подсветки пяти рядов полок T8 1058.94.00.00 для Rimini L=1250 | C36: 1058.94.00.00 | F36: 9445 | G36: =ROUND(F36*(1-$D$3)/Лист2!$A$6,0) -> 9445
A37: 27 | B37: Комплект подсветки пяти рядов полок T8 1058.94.00.00-01 для Rimini L=1875 | C37: 1058.94.00.00-01 | F37: 15917 | G37: =ROUND(F37*(1-$D$3)/Лист2!$A$6,0) -> 15917
A38: 28 | B38: Комплект подсветки пяти рядов полок T8 1058.94.00.00-02 для Rimini L=2500 | C38: 1058.94.00.00-02 | F38: 17276 | G38: =ROUND(F38*(1-$D$3)/Лист2!$A$6,0) -> 17276
A39: 29 | B39: Комплект подсветки пяти рядов полок T8 1058.94.00.00-03 для Rimini L=3750 | C39: 1058.94.00.00-03 | F39: 25384 | G39: =ROUND(F39*(1-$D$3)/Лист2!$A$6,0) -> 25384
A40: 30 | B40: Комплект подсветки шести рядов полок T8 1058.95.00.00 для Rimini L=1250 | C40: 1058.95.00.00 | F40: 10495 | G40: =ROUND(F40*(1-$D$3)/Лист2!$A$6,0) -> 10495
A41: 31 | B41: Комплект подсветки шести рядов полок T8 1058.95.00.00-01 для Rimini L=1875 | C41: 1058.95.00.00-01 | F41: 17768 | G41: =ROUND(F41*(1-$D$3)/Лист2!$A$6,0) -> 17768
A42: 32 | B42: Комплект подсветки шести рядов полок T8 1058.95.00.00-02 для Rimini L=2500 | C42: 1058.95.00.00-02 | F42: 20857 | G42: =ROUND(F42*(1-$D$3)/Лист2!$A$6,0) -> 20857
A43: 33 | B43: Комплект подсветки шести рядов полок T8 1058.95.00.00-03 для Rimini L=3750 | C43: 1058.95.00.00-03 | F43: 31433 | G43: =ROUND(F43*(1-$D$3)/Лист2!$A$6,0) -> 31433
A44: Дополнительные опции
A45: =A43+1 -> 34 | B45: Комплект боковины глухой левой 1118.40.00.00 для Rimini H10 | C45: 1118.40.00.00 | F45: 14091 | G45: =ROUND(F45*(1-$D$3)/Лист2!$A$6,0) -> 14091
A46: =A45+1 -> 35 | B46: Комплект боковины глухой правой 1118.40.00.00mir для Rimini H10 | C46: 1118.40.00.00mir | F46: 14091 | G46: =ROUND(F46*(1-$D$3)/Лист2!$A$6,0) -> 14091
A47: =A45+1 -> 35 | B47: Комплект боковины глухой левой 1058.40.00.00 для Rimini H9 | C47: 1058.40.00.00 | F47: 12252 | G47: =ROUND(F47*(1-$D$3)/Лист2!$A$6,0) -> 12252
A48: 36 | B48: Комплект боковины глухой правой 1058.40.00.00mir для Rimini H9 | C48: 1058.40.00.00mir | F48: 12252 | G48: =ROUND(F48*(1-$D$3)/Лист2!$A$6,0) -> 12252
A49: =A47+1 -> 36 | B49: Комплект боковины глухой левой 1109.40.00.00 для Rimini L9 | C49: 1109.40.00.00 | F49: 10571 | G49: =ROUND(F49*(1-$D$3)/Лист2!$A$6,0) -> 10571
A50: 37 | B50: Комплект боковины глухой правой 1109.40.00.00mir для Rimini L9 | C50: 1109.40.00.00mir | F50: 10571 | G50: =ROUND(F50*(1-$D$3)/Лист2!$A$6,0) -> 10571
A51: =A49+1 -> 37 | B51: Комплект боковины глухой левой 1112.40.00.00 для Rimini H7 | C51: 1112.40.00.00 | F51: 12221 | G51: =ROUND(F51*(1-$D$3)/Лист2!$A$6,0) -> 12221
A52: 38 | B52: Комплект боковины глухой правой 1112.40.00.00mir для Rimini H7 | C52: 1112.40.00.00mir | F52: 12221 | G52: =ROUND(F52*(1-$D$3)/Лист2!$A$6,0) -> 12221
A53: =A51+1 -> 38 | B53: Комплект боковины глухой левой 1115.40.00.00 для Rimini L7 | C53: 1115.40.00.00 | F53: 10725 | G53: =ROUND(F53*(1-$D$3)/Лист2!$A$6,0) -> 10725
A54: 39 | B54: Комплект боковины глухой правой 1115.40.00.00mir для Rimini L7 | C54: 1115.40.00.00mir | F54: 10725 | G54: =ROUND(F54*(1-$D$3)/Лист2!$A$6,0) -> 10725
A55: =A53+1 -> 39 | B55: Комплект боковины глухой левой 1215.40.00.00 для Lazio S9 | C55: 1215.40.00.00 | F55: 8588 | G55: =ROUND(F55*(1-$D$3)/Лист2!$A$6,0) -> 8588
A56: 40 | B56: Комплект боковины глухой правой 1215.40.00.00mir для Lazio S9 | C56: 1215.40.00.00mir | F56: 8588 | G56: =ROUND(F56*(1-$D$3)/Лист2!$A$6,0) -> 8588
A58: 41 | B58: Комплект боковины с зеркалом 1118.38.00.00 для Rimini H10 | C58: 1118.38.00.00 | F58: 14862 | G58: =ROUND(F58*(1-$D$3)/Лист2!$A$6,0) -> 14862
A59: =A58+1 -> 42 | B59: Комплект боковины с зеркалом 1058.38.00.00 для Rimini H9 | C59: 1058.38.00.00 | F59: 13611 | G59: =ROUND(F59*(1-$D$3)/Лист2!$A$6,0) -> 13611
A60: =A59+1 -> 43 | B60: Комплект боковины с зеркалом 1109.38.00.00 для Rimini L9 | C60: 1109.38.00.00 | F60: 12557 | G60: =ROUND(F60*(1-$D$3)/Лист2!$A$6,0) -> 12557
A61: =A60+1 -> 44 | B61: Комплект боковины с зеркалом 1112.38.00.00 для Rimini Н7 | C61: 1112.38.00.00 | F61: 12221 | G61: =ROUND(F61*(1-$D$3)/Лист2!$A$6,0) -> 12221
A62: 45 | B62: Комплект боковины с зеркалом 1115.38.00.00 для Rimini L7 | C62: 1115.38.00.00 | F62: 11548 | G62: =ROUND(F62*(1-$D$3)/Лист2!$A$6,0) -> 11548
A63: 46 | B63: Комплект боковины глухой левой с зеркалом 1215.37.00.00 для Lazio S9 | C63: 1215.37.00.00 | F63: 10528 | G63: =ROUND(F63*(1-$D$3)/Лист2!$A$6,0) -> 10528
A64: 47 | B64: Комплект боковины глухой правой с зеркалом 1215.37.00.00mir для Lazio S9 | C64: 1215.37.00.00mir | F64: 10528 | G64: =ROUND(F64*(1-$D$3)/Лист2!$A$6,0) -> 10528
A66: 48 | B66: Комплект боковины со стеклопакетом левой 1118.41.00.00 для Rimini H10 | C66: 1118.41.00.00 | F66: 16089 | G66: =ROUND(F66*(1-$D$3)/Лист2!$A$6,0) -> 16089
A67: =A66+1 -> 49 | B67: Комплект боковины со стеклопакетом правой 1118.41.00.00mir для Rimini H10 | C67: 1118.41.00.00mir | F67: 16089 | G67: =ROUND(F67*(1-$D$3)/Лист2!$A$6,0) -> 16089
A68: =A66+1 -> 49 | B68: Комплект боковины со стеклопакетом левой 1058.41.00.00 для Rimini H9 | C68: 1058.41.00.00 | F68: 14411 | G68: =ROUND(F68*(1-$D$3)/Лист2!$A$6,0) -> 14411
A69: =A68+1 -> 50 | B69: Комплект боковины со стеклопакетом правой 1058.41.00.00mir для Rimini H9 | C69: 1058.41.00.00mir | F69: 14411 | G69: =ROUND(F69*(1-$D$3)/Лист2!$A$6,0) -> 14411
A70: =A68+1 -> 50 | B70: Комплект боковины со стеклопакетом левой 1109.41.00.00 для Rimini L9 | C70: 1109.41.00.00 | F70: 13525 | G70: =ROUND(F70*(1-$D$3)/Лист2!$A$6,0) -> 13525
A71: =A70+1 -> 51 | B71: Комплект боковины со стеклопакетом правой 1109.41.00.00mir для Rimini L9 | C71: 1109.41.00.00mir | F71: 13525 | G71: =ROUND(F71*(1-$D$3)/Лист2!$A$6,0) -> 13525
A72: =A70+1 -> 51 | B72: Комплект боковины со стеклопакетом левой 1112.41.00.00 для Rimini H7 | C72: 1112.41.00.00 | F72: 13103 | G72: =ROUND(F72*(1-$D$3)/Лист2!$A$6,0) -> 13103
A73: =A72+1 -> 52 | B73: Комплект боковины со стеклопакетом правой 1112.41.00.00mir для Rimini H7 | C73: 1112.41.00.00mir | F73: 13103 | G73: =ROUND(F73*(1-$D$3)/Лист2!$A$6,0) -> 13103
A74: =A72+1 -> 52 | B74: Комплект боковины со стеклопакетом левой 1115.41.00.00 для Rimini L7 | C74: 1115.41.00.00 | F74: 11777 | G74: =ROUND(F74*(1-$D$3)/Лист2!$A$6,0) -> 11777
A75: =A74+1 -> 53 | B75: Комплект боковины со стеклопакетом правой 1115.41.00.00mir для Rimini L7 | C75: 1115.41.00.00mir | F75: 11777 | G75: =ROUND(F75*(1-$D$3)/Лист2!$A$6,0) -> 11777
A76: =A74+1 -> 53 | B76: Комплект боковины со стеклопакетом левой 1215.41.00.00 для Lazio S9 | C76: 1215.41.00.00 | F76: 22110 | G76: =ROUND(F76*(1-$D$3)/Лист2!$A$6,0) -> 22110
A77: =A76+1 -> 54 | B77: Комплект боковины со стеклопакетом правой 1215.41.00.00mir для Lazio S9 | C77: 1215.41.00.00mir | F77: 22110 | G77: =ROUND(F77*(1-$D$3)/Лист2!$A$6,0) -> 22110
A79: 55 | B79: Комплект герметичного разделителя (оргст) 1118.44.00.00 для Rimini H10 | C79: 1118.44.00.00 | F79: 20336 | G79: =ROUND(F79*(1-$D$3)/Лист2!$A$6,0) -> 20336
A80: =A79+1 -> 56 | B80: Комплект герметичного разделителя (оргст) 1058.44.00.00 для Rimini H9 | C80: 1058.44.00.00 | F80: 18200 | G80: =ROUND(F80*(1-$D$3)/Лист2!$A$6,0) -> 18200
A81: =A80+1 -> 57 | B81: Комплект герметичного разделителя (оргст) 1109.44.00.00 для Rimini L9 | C81: 1109.44.00.00 | F81: 16584 | G81: =ROUND(F81*(1-$D$3)/Лист2!$A$6,0) -> 16584
A82: =A81+1 -> 58 | B82: Комплект герметичного разделителя (оргст) 1112.44.00.00 для Rimini H7 | C82: 1112.44.00.00 | F82: 15740 | G82: =ROUND(F82*(1-$D$3)/Лист2!$A$6,0) -> 15740
A83: 59 | B83: Комплект герметичного разделителя (оргст) 1115.44.00.00 для Rimini L7 | C83: 1115.44.00.00 | F83: 14190 | G83: =ROUND(F83*(1-$D$3)/Лист2!$A$6,0) -> 14190
A84: 60 | B84: Комплект герметичного разделителя (оргстекло) для 1215.44.00.00 Lazio S9 | C84: 1215.44.00.00 | F84: 15035 | G84: =ROUND(F84*(1-$D$3)/Лист2!$A$6,0) -> 15035
A86: =A84+1 -> 61 | B86: Комплект зеркального герметичного разделителя 1118.45.00.00 для Rimini H10 | C86: 1118.45.00.00 | F86: 24569 | G86: =ROUND(F86*(1-$D$3)/Лист2!$A$6,0) -> 24569
A87: =A86+1 -> 62 | B87: Комплект зеркального герметичного разделителя 1058.45.00.00 для Rimini H9 | C87: 1058.45.00.00 | F87: 23734 | G87: =ROUND(F87*(1-$D$3)/Лист2!$A$6,0) -> 23734
A88: =A87+1 -> 63 | B88: Комплект зеркального герметичного разделителя 1109.45.00.00 для Rimini L9 | C88: 1109.45.00.00 | F88: 20792 | G88: =ROUND(F88*(1-$D$3)/Лист2!$A$6,0) -> 20792
A89: =A88+1 -> 64 | B89: Комплект зеркального герметичного разделителя 1112.45.00.00 для Rimini H7 | C89: 1112.45.00.00 | F89: 20792 | G89: =ROUND(F89*(1-$D$3)/Лист2!$A$6,0) -> 20792
A90: =A89+1 -> 65 | B90: Комплект зеркального герметичного разделителя 1112.45.00.00 для Rimini L7 | C90: 1115.45.00.00 | F90: 20335 | G90: =ROUND(F90*(1-$D$3)/Лист2!$A$6,0) -> 20335
A92: =A90+1 -> 66 | B92: Комплект панорамного герметичного разделителя (стеклопакет) для Rimini H10 | C92: 811.46.00.00 | F92: 17030
A94: =A92+1 -> 67 | B94: Комплект соединительный в линию для Rimini | C94: 1058.60.00.00 | F94: 2186 | G94: =ROUND(F94*(1-$D$3)/Лист2!$A$6,0) -> 2186
A95: =A94+1 -> 68 | B95: Комплект соединительный в линию для 1215.60.00.00 для Lazio | C95: 1215.60.00.00 | F95: 1079 | G95: =ROUND(F95*(1-$D$3)/Лист2!$A$6,0) -> 1079
A97: =A95+1 -> 69 | B97: Полка навесная с кронштейнами (ОЦ) 1250х600 1106.65.00.00 для Rimini для исп1250,2500,3750 | C97: 1106.65.00.00 | F97: 2618 | G97: =ROUND(F97*(1-$D$3)/Лист2!$A$6,0) -> 2618
A98: =A97+1 -> 70 | B98: Полка навесная с кронштейнами (ОЦ) 937х600 1106.65.00.00-01 для Rimini для исп. 1875 | C98: 1106.65.00.00-01 | F98: 2143 | G98: =ROUND(F98*(1-$D$3)/Лист2!$A$6,0) -> 2143
A99: =A98+1 -> 71 | B99: Полка навесная с кронштейнами (ОЦ) 1250х500 1106.66.00.00 для Rimini для исп1250,2500,3750 | C99: 1106.66.00.00 | F99: 2335 | G99: =ROUND(F99*(1-$D$3)/Лист2!$A$6,0) -> 2335
A100: 72 | B100: Полка навесная с кронштейнами (ОЦ) 937х500 1106.66.00.00-01 для Rimini для исп. 1875 | C100: 1106.66.00.00-01 | F100: 1963 | G100: =ROUND(F100*(1-$D$3)/Лист2!$A$6,0) -> 1963
A101: 73 | B101: Полка навесная с кронштейнами (ОЦ) 1250х400 1106.62.00.00 для Rimini для исп1250,2500,3750 | C101: 1106.62.00.00 | F101: 1823 | G101: =ROUND(F101*(1-$D$3)/Лист2!$A$6,0) -> 1823
A102: 74 | B102: Полка навесная с кронштейнами (ОЦ) 937х400 1106.62.00.00-01 для Rimini для исп. 1875 | C102: 1106.62.00.00-01 | F102: 1685 | G102: =ROUND(F102*(1-$D$3)/Лист2!$A$6,0) -> 1685
A103: 75 | B103: Полка навесная с кронштейнами (ОЦ) 1250х300 1106.63.00.00 для Rimini/Lazio для исп1250,2500,3750 | C103: 1106.63.00.00 | F103: 1709 | G103: =ROUND(F103*(1-$D$3)/Лист2!$A$6,0) -> 1709
A104: 76 | B104: Полка навесная с кронштейнами (ОЦ) 937х300 1106.63.00.00-01 для Rimini/Lazio для исп. 1875 | C104: 1106.63.00.00-01 | F104: 1572 | G104: =ROUND(F104*(1-$D$3)/Лист2!$A$6,0) -> 1572
A105: 77 | B105: Ценникодержатель съемный,L=1250, T-TH 0100125, прозрачный | C105: T-TH 0100125 | F105: 108 | G105: =ROUND(F105*(1-$D$3)/Лист2!$A$6,0) -> 108
A106: 78 | B106: Ценникодержатель съемный, L=925, прозрачный | C106: н№15085.2 | F106: 75 | G106: =ROUND(F106*(1-$D$3)/Лист2!$A$6,0) -> 75
A108: =A106+1 -> 79 | B108: Решетка базовая (фруктовая) 932х755 мм. для Rimini H10 для исп.1875 | C108: 811.75.00.00 | F108: 3433 | G108: =ROUND(F108*(1-$D$3)/Лист2!$A$6,0) -> 3433
A109: =A108+1 -> 80 | B109: Решетка базовая (фруктовая) 1245х755 мм. для Rimini H10 для исп.1250/2500/3750 | C109: 811.75.00.00-01 | F109: 4145 | G109: =ROUND(F109*(1-$D$3)/Лист2!$A$6,0) -> 4145
A110: =A109+1 -> 81 | B110: Решетка фруктовая (базовая), 932х635 мм. для Rimini H9/L9 | C110: 781.75.00.00 | F110: 3302 | G110: =ROUND(F110*(1-$D$3)/Лист2!$A$6,0) -> 3302
A111: 82 | B111: Решетка фруктовая (базовая), 1245x635 мм. для Rimini H9/L9 1250/2500/3750 | C111: 781.75.00.00-01 | F111: 3653 | G111: =ROUND(F111*(1-$D$3)/Лист2!$A$6,0) -> 3653
A112: 83 | B112: Решетка базовая (фруктовая) 932х455 мм. для Rimini H7/L7 для исп.1875 | C112: 798.75.00.00 | F112: 2480 | G112: =ROUND(F112*(1-$D$3)/Лист2!$A$6,0) -> 2480
A113: 84 | B113: Решетка базовая (фруктовая) 1245х455 мм. для Rimini H7/L7 для исп.1250/2500/3750 | C113: 798.75.00.00-01 | F113: 2807 | G113: =ROUND(F113*(1-$D$3)/Лист2!$A$6,0) -> 2807
A115: =A113+1 -> 85 | B115: Комплект зеркала наклонного 1118.53.00.00 L=1250 для Rimini H10 | C115: 1118.53.00.00 | F115: 3720 | G115: =ROUND(F115*(1-$D$3)/Лист2!$A$6,0) -> 3720
A116: =A115+1 -> 86 | B116: Комплект зеркала наклонного 1118.53.00.00-01 L=973 для Rimini H10 | C116: 1118.53.00.00-01 | F116: 3188 | G116: =ROUND(F116*(1-$D$3)/Лист2!$A$6,0) -> 3188
A117: =A116+1 -> 87 | B117: Комплект заглушек для зеркала наклонного 1118.52.00.00 для Rimini H10 | C117: 1118.52.00.00 | F117: 1109 | G117: =ROUND(F117*(1-$D$3)/Лист2!$A$6,0) -> 1109
A118: 88 | B118: Комплект зеркала наклонного 1058.53.00.00 L=1250 для Rimini H9/L9 | C118: 1058.53.00.00 | F118: 3235 | G118: =ROUND(F118*(1-$D$3)/Лист2!$A$6,0) -> 3235
A119: 89 | B119: Комплект зеркала наклонного 1058.53.00.00-01 L=973 для Rimini H9/L9 | C119: 1058.53.00.00-01 | F119: 2772 | G119: =ROUND(F119*(1-$D$3)/Лист2!$A$6,0) -> 2772
A120: 90 | B120: Комплект заглушек для зеркала наклонного 1058.52.00.00 для Rimini H9/L9 | C120: 1058.52.00.00 | F120: 840 | G120: =ROUND(F120*(1-$D$3)/Лист2!$A$6,0) -> 840
A121: 91 | B121: Комплект зеркала наклонного 1112.53.00.00 L=1250 для Rimini H7/L7 | C121: 1112.53.00.00 | F121: 2891 | G121: =ROUND(F121*(1-$D$3)/Лист2!$A$6,0) -> 2891
A122: 92 | B122: Комплект зеркала наклонного 1112.53.00.00-01 L=973 для Rimini H7/L7 | C122: 1112.53.00.00-01 | F122: 2482 | G122: =ROUND(F122*(1-$D$3)/Лист2!$A$6,0) -> 2482
A123: 93 | B123: Комплект заглушек для зеркала наклонного 1112.52.00.00 для Rimini H7/L7 | C123: 1112.52.00.00 | F123: 617 | G123: =ROUND(F123*(1-$D$3)/Лист2!$A$6,0) -> 617
A125: =A123+1 -> 94 | B125: Разделитель объема для полок(600) для Rimini | C125: 717.115.00.00 | F125: 3315 | G125: =ROUND(F125*(1-$D$3)/Лист2!$A$6,0) -> 3315
A126: =A125+1 -> 95 | B126: Разделитель объема для полок(500) для Rimini | C126: 646.116.00.00 | F126: 2924 | G126: =ROUND(F126*(1-$D$3)/Лист2!$A$6,0) -> 2924
A127: 96 | B127: Разделитель объема для полок(400) для Rimini | C127: 757.115.00.00 | F127: 2029 | G127: =ROUND(F127*(1-$D$3)/Лист2!$A$6,0) -> 2029
A128: 97 | B128: Делитель передвижной H=150 (500) оргст 646.51.00.01-01 L=1250/2500/3750 для стеллажей Italfrigo | C128: 646.51.00.01-01 | F128: 747 | G128: =ROUND(F128*(1-$D$3)/Лист2!$A$6,0) -> 747
A129: 98 | B129: Делитель передвижной H=150 (400) оргст 646.51.00.01 L=1250/2500/3750 для стеллажей Italfrigo | C129: 646.51.00.01 | F129: 593 | G129: =ROUND(F129*(1-$D$3)/Лист2!$A$6,0) -> 593
A130: 99 | B130: Фронтальный ограничитель(1250) оргст 646.54.00.01 L=1250/2500/3750 для стеллажей Italfrigo | C130: 646.54.00.01 | F130: 562 | G130: =ROUND(F130*(1-$D$3)/Лист2!$A$6,0) -> 562
A131: 100 | B131: Фронтальный ограничитель(937) оргст 646.54.00.01-01 L=1875 для стеллажей Italfrigo | C131: 646.54.00.01-01 | F131: 542 | G131: =ROUND(F131*(1-$D$3)/Лист2!$A$6,0) -> 542
A132: 101 | B132: Фронтальный ограничитель H=120 (1250) оргст 646.54.00.02 L=1250/2500/3750 для стеллажей Italfrigo | C132: 646.54.00.02 | F132: 1661 | G132: =ROUND(F132*(1-$D$3)/Лист2!$A$6,0) -> 1661
A133: 102 | B133: Фронтальный ограничитель H=120 (937) оргст 646.54.00.02-01 L=1875 для стеллажей Italfrigo | C133: 646.54.00.02-01 | F133: 1300 | G133: =ROUND(F133*(1-$D$3)/Лист2!$A$6,0) -> 1300
A134: 103 | B134: Фронтальный ограничитель Н=40мм, L=1250 (оргст) 646.54.00.03 L=1250/2500/3750 для Rimini/Lazio | C134: 646.54.00.03 | F134: 681 | G134: =ROUND(F134*(1-$D$3)/Лист2!$A$6,0) -> 681
A135: 104 | B135: Фронтальный ограничитель Н=40мм, L=937 (оргст) 646.54.00.03-01 L=1875 для Rimini/Lazio | C135: 646.54.00.03-01 | F135: 319 | G135: =ROUND(F135*(1-$D$3)/Лист2!$A$6,0) -> 319
A136: 105 | B136: Фронтальный ограничитель Н=60мм, L=1250 (оргст) 646.54.00.04 L=1250/2500/3750 для Rimini/Lazio | C136: 646.54.00.04 | F136: 998 | G136: =ROUND(F136*(1-$D$3)/Лист2!$A$6,0) -> 998
A137: 106 | B137: Фронтальный ограничитель Н=60мм, L=937 (оргст) 646.54.00.04-01 L=1875 для Rimini/Lazio | C137: 646.54.00.04-01 | F137: 808 | G137: =ROUND(F137*(1-$D$3)/Лист2!$A$6,0) -> 808
A138: 107 | B138: Ограничитель проволочный(ОЦ, полимерное покрытие) 1235х57мм 781.76.00.01 | C138: 781.76.00.01 | F138: 301 | G138: =ROUND(F138*(1-$D$3)/Лист2!$A$6,0) -> 301
A139: 108 | B139: Ограничитель фронтальный проволочный 141.64.00.00 H=80 L=1250 для ВПВ Rimni/Lazio 1250/2500/3750 | C139: 141.64.00.00 | F139: 562 | G139: =ROUND(F139*(1-$D$3)/Лист2!$A$6,0) -> 562
A140: 109 | B140: Ограничитель проволочный(ОЦ, полимерное покрытие) 926х57мм 781.76.00.01-01 | C140: 781.76.00.01-01 | F140: 241 | G140: =ROUND(F140*(1-$D$3)/Лист2!$A$6,0) -> 241
A141: 110 | B141: Ограничитель фронтальный проволочный 189.64.00.00 Н=80 L=940 для ВПВ Rimni/Lazio 1875 | C141: 189.64.00.00 | F141: 443 | G141: =ROUND(F141*(1-$D$3)/Лист2!$A$6,0) -> 443
A143: =A141+1 -> 111 | B143: Комплект отбойника фронтального (пластик) L=1250 | C143: 646.56.00.00 | F143: 912 | G143: =ROUND(F143*(1-$D$3)/Лист2!$A$6,0) -> 912
A144: =A143+1 -> 112 | B144: Комплект отбойника фронтального (пластик) L=1875 | C144: 646.56.00.00-01 | F144: 1320 | G144: =ROUND(F144*(1-$D$3)/Лист2!$A$6,0) -> 1320
A145: =A144+1 -> 113 | B145: Комплект отбойника фронтального (пластик) L=2500 | C145: 646.56.00.00-02 | F145: 1726 | G145: =ROUND(F145*(1-$D$3)/Лист2!$A$6,0) -> 1726
A146: 114 | B146: Комплект отбойника фронтального (пластик) L=3750 | C146: 646.56.00.00-03 | F146: 2541 | G146: =ROUND(F146*(1-$D$3)/Лист2!$A$6,0) -> 2541
A147: 115 | B147: Торцевой элемент НБИЛГ 7.116.007 н№950.28 | C147: н№950.28 | F147: 291 | G147: =ROUND(F147*(1-$D$3)/Лист2!$A$6,0) -> 291
A148: 116 | B148: Комплект отбойника фронтального 15х30 (труба нерж.) L=1250 | C148: 781.55.00.00 | F148: 1823 | G148: =ROUND(F148*(1-$D$3)/Лист2!$A$6,0) -> 1823
A149: 117 | B149: Комплект отбойника фронтального 15х30 (труба нерж.) L=1875 | C149: 781.55.00.00-01 | F149: 2641 | G149: =ROUND(F149*(1-$D$3)/Лист2!$A$6,0) -> 2641
A150: 118 | B150: Комплект отбойника фронтального 15х30 (труба нерж) L=2500 | C150: 781.55.00.00-02 | F150: 3453 | G150: =ROUND(F150*(1-$D$3)/Лист2!$A$6,0) -> 3453
A151: 119 | B151: Комплект отбойника фронтального 15х30 (труба нерж) L=3750 | C151: 781.55.00.00-03 | F151: 5082 | G151: =ROUND(F151*(1-$D$3)/Лист2!$A$6,0) -> 5082
A153: =A151+1 -> 120 | B153: Комплект подвесов для колбасы(две штанги + 4 блока крюков) 1004.59.00.00-01 L=1250, 2500 25 шаг | C153: 1004.59.00.00-01 | F153: 6583 | G153: =ROUND(F153*(1-$D$3)/Лист2!$A$6,0) -> 6583
A154: =A153+1 -> 121 | B154: Комплект подвесов для колбасы(две штанги + 4 блока крюков) 1004.59.00.00-03 L=937 25 шаг | C154: 1004.59.00.00-03 | F154: 5691 | G154: =ROUND(F154*(1-$D$3)/Лист2!$A$6,0) -> 5691
A155: =A154+1 -> 122 | B155: Штанга для навески крюков 1004.57.00.00-01 L=1250, 15х30 мм. 25 шаг для Rimini/Lazio/Solo | C155: 1004.57.00.00-01 | F155: 2459 | G155: =ROUND(F155*(1-$D$3)/Лист2!$A$6,0) -> 2459
A156: 123 | B156: Штанга для навески крюков 1004.57.00.00-03 L=937, 15х30 мм. 25 шаг для Rimini/Lazio/Solo | C156: 1004.57.00.00-03 | F156: 1995 | G156: =ROUND(F156*(1-$D$3)/Лист2!$A$6,0) -> 1995
A157: 124 | B157: Крючок на штангу одинарный хромированный с ценникодержателем, 300 мм / диаметр 8,0 мм | C157: н№15074.31 | F157: 464 | G157: =ROUND(F157*(1-$D$3)/Лист2!$A$6,0) -> 464
A158: 125 | B158: Крючок на штангу одинарный хромированный с ценникодержателем, 400 мм / диаметр 8,0 мм | C158: н№15074.32 | F158: 717 | G158: =ROUND(F158*(1-$D$3)/Лист2!$A$6,0) -> 717
A159: 126 | B159: Крючок на штангу одинарный хромированный с ценникодержателем, 500 мм / диаметр 10,0 мм | C159: н№15074.33 | F159: 871 | G159: =ROUND(F159*(1-$D$3)/Лист2!$A$6,0) -> 871
F161: Наверх

Sheet Низкотемпературные шкафы
G1: ЗАВОД «ОПК» Тел.: +7 (495) 987-4388 e-mail: info@cryspi.ru сайт: cryspi.ru | J1: На главную
B3: Ваша скидка: | D3: =Содержание!D2 -> 0
B4: НДС: | D4: =IF(Лист2!A1=TRUE,"С НДС","БЕЗ НДС") -> С НДС
A6: Низкотемпературные шкафы Cryspi со встроенным агрегатом
A9: № | B9: Изображение | C9: Наименование | E9: Температурный режим,°C | F9: Площадь экспозиции, кв.м. | G9: Габариты, (LxWxH) мм | H9: Базовая цена, руб. (с НДС) | I9: =[5]Лист2!$A$5 -> Ваша цена, руб.
A11: 1 | B11: Шкаф-надстройка Verona | K11: СЕЧЕНИЯ
K12: VERONA | O12: CORSA | U12: ANZIO
C13: Стандартная комплектация: - подставка с комплектом крепежа - светодиодная подсветка внутреннего объема (4500К, 6500К) без изменения цены - автоматическая оттайка горячим газом - автоматическое выпаривание конденсата - 4 уровня решетчатых полок Характеристика С.4.2.PS.0.внеш9016гл_внутр9016гл | F13: Тип охлаждения - динамический - Климатический класс - 3 - Температура окружающей среды, С° - max +25 - Относительная влажность воздуха, % - max 60 - Хладагент - R290 - Напряжение, В - 220
C15: Шкаф низкотемпературный ШН Verona 1220 | E15: -23…-18 | F15: 1.076 | G15: 1217х750х2210 | H15: 171923 | I15: =ROUND(H15*(1-$D$3)/Лист2!$A$6,0) -> 171923
C19: Надстройка для ларя 400 л.
A20: 2 | B20: CORSA
C22: Стандартная комплектация: - подставка с комплектом крепежа - светодиодная подсветка внутреннего объема - автоматическая оттайка горячим газом - автоматическое выпаривание конденсата - 2 уровня решетчатых полок | F22: - Тип охлаждения - динамический - Климатический класс - 3 - Температура окружающей среды, С° max - +25 - Относительная влажность воздуха,% max - 60 - Хладагент - R404a - Напряжение, В - 220
C24: Шкаф низкотемпературный ШН 0,73-2,8 CORSA LT 2500 | E24: -23…-18 | F24: 2.71 | G24: 2500х1020х2480 | H24: 514935 | I24: =ROUND(H24*(1-$D$3)/Лист2!$A$6,0) -> 514935
A28: 3 | B28: ANZIO
C30: Опции: Система выпаривания конденсата + 1,5% к цене шкафа Стандартная комплектация: - светодиодная подсветка внутреннего объема (4000/6000К) верхняя и вертикальная - автоматическая оттайка горячим газом - сифон для подключения к канализации - 4 уровня решетчатых полок с ценникодержателями - базовые полки-решетки | F30: - Тип охлаждения - динамический - Климатический класс - 3 - Температура окружающей среды, С° max - +25 - Относительная влажность воздуха,% max - 60 - Хладагент - R 290 - Напряжение, В - 220
C31: Шкаф низкотемпературный ШН-1.20-4.0 ANZIO LT 2D 1562R290 | E31: -22…-18 | F31: 4 | G31: 1684х885х2210 | H31: 326348 | I31: =ROUND(H31*(1-$D$3)/Лист2!$A$6,0) -> 326348
C33: Шкаф низкотемпературный ШН 1.80-6.0 ANZIO LT 3D 2343R290 | E33: -22…-18 | F33: 6.02 | G33: 2465х885х2210 | H33: 527065 | I33: =ROUND(H33*(1-$D$3)/Лист2!$A$6,0) -> 527065
C35: Полка сетчатая навесная с кронштейнами 780x513 мм для Anzio/Milan с ограничителем (775.58.00.00) | E35: - | F35: - | G35: - | H35: 2068 | I35: =ROUND(H35*(1-$D$3)/Лист2!$A$6,0) -> 2068
C37: Ценникодержатель съемный, L=1000 мм, прозрачный, откидной (на полки, рёшётку) (845.00.00.11) | E37: - | F37: - | G37: - | H37: 158 | I37: =ROUND(H37*(1-$D$3)/Лист2!$A$6,0) -> 158
G40: НАВЕРХ

Sheet Лари ItalFrost
K1: На главную
M2: На главную
A3: Ваша скидка: | D3: =Содержание!D2 -> 0
A4: НДС: | D4: =IF(Лист2!A1=TRUE,"С НДС","БЕЗ НДС") -> С НДС
A5: Морозильные и холодильные лари Italfrost
A7: № | B7: Изображение | C7: Номер КД | D7: Наименование | F7: Температур-ный режим, °C | G7: Объем, л | H7: Габариты, (LxWxH) мм | I7: Базовая цена, руб. (с НДС) | J7: =Лист2!$A$5 -> Ваша цена, руб. | K7: Нажмите для расчета стоимости брендирования
A9: Стандартная комплектация: - Цвет внешнего и внутреннего корпуса и деталей RAL9003 - светодиодная подсветка внутреннего объема (4500К) - Цвет пластиковой крышки серый (исполнение со сборной крышкой) - Цвет пластиковой крышки красный (исполнение со сборной крышкой) | F9: Тип охлаждения - динамический - Хладагент - R290 - Напряжение, В - 220
A10: 1 | B10: Морозильные лари с гнутыми раздвижными стеклами
C11: 1128.00.00.00 | D11: CF200CQ | E11: без корзин | F11: -18…-25 | G11: 235 | H11: 807х662х925 | I11: 38153 | J11: =ROUND(I11*(1-$D$3)/[8]Лист2!$A$6,0) -> 38153 | K11: ПлRAL9003гл,0.Sr.0кор.0.K.0
E12: 3 корзины | I12: =I11+3*$I$100 -> 40328 | J12: =ROUND(I12*(1-$D$3)/[8]Лист2!$A$6,0) -> 40328 | K12: ПлRAL9003гл,0.Sr.3кор.0.K.0
C13: 1128.00.00.00-01 | D13: CF300CQ | E13: без корзин | F13: -18…-25 | G13: 319 | H13: 1017х662х925 | I13: 41933 | J13: =ROUND(I13*(1-$D$3)/[8]Лист2!$A$6,0) -> 41933 | K13: ПлRAL9003гл,0.Sr.0кор.0.K.0
E14: 4 корзины | I14: =I13+4*$I$100 -> 44833 | J14: =ROUND(I14*(1-$D$3)/[8]Лист2!$A$6,0) -> 44833 | K14: ПлRAL9003гл,0.Sr.4кор.0.K.0
C15: 1128.00.00.00-02 | D15: CF400CQ | E15: без корзин | F15: -18…-25 | G15: 398 | H15: 1217х662х925 | I15: 45464 | J15: =ROUND(I15*(1-$D$3)/[8]Лист2!$A$6,0) -> 45464 | K15: ПлRAL9003гл,0.Sr.0кор.0.K.0 | L15: Сечение ларей с прямой стеклянной крышкой | W15: Сечение ларей с прямой стеклянной крышкой и товарным накопителем
E16: 5 корзин | I16: =I15+5*$I$100 -> 49089 | J16: =ROUND(I16*(1-$D$3)/[8]Лист2!$A$6,0) -> 49089 | K16: ПлRAL9003гл,0.Sr.5кор.0.K.0
C17: 1128.00.00.00-03 | D17: CF500CQ | E17: без корзин | F17: -18…-25 | G17: 485 | H17: 1437х662х925 | I17: 49683 | J17: =ROUND(I17*(1-$D$3)/[8]Лист2!$A$6,0) -> 49683 | K17: ПлRAL9003гл,0.Sr.0кор.0.K.0
E18: 6 корзин | I18: =I17+6*$I$100 -> 54033 | J18: =ROUND(I18*(1-$D$3)/[8]Лист2!$A$6,0) -> 54033 | K18: ПлRAL9003гл,0.Sr.6кор.0.K.0
C19: 1128.00.00.00-04 | D19: CF600CQ | E19: без корзин | F19: -18…-25 | G19: 572 | H19: 1657х662х925 | I19: 53415 | J19: =ROUND(I19*(1-$D$3)/[8]Лист2!$A$6,0) -> 53415 | K19: ПлRAL9003гл,0.Sr.0кор.0.K.0
E20: 7 корзин | I20: =I19+7*$I$100 -> 58490 | J20: =ROUND(I20*(1-$D$3)/[8]Лист2!$A$6,0) -> 58490 | K20: ПлRAL9003гл,0.Sr.7кор.0.K.0
A21: 3 | B21: Морозильные лари с прямыми раздвижными стеклами (составная корона)
C22: 1127.00.00.00 | D22: CF200FQ | E22: без корзин | F22: -18…-25 | G22: 235 | H22: 807х662х925 | I22: 37071 | J22: =ROUND(I22*(1-$D$3)/Лист2!$A$6,0) -> 37071 | K22: ПлRAL9003гл,0.Sr.0кор.0.K.0
E23: 3 корзины | I23: =I22+3*$I$101 -> 39051 | J23: =ROUND(I23*(1-$D$3)/Лист2!$A$6,0) -> 39051 | K23: ПлRAL9003гл,0.Sr.3кор.0.K.0
C24: 1127.00.00.00-01 | D24: CF300FQ | E24: без корзин | F24: -18…-25 | G24: 319 | H24: 1017х662х925 | I24: 41167 | J24: =ROUND(I24*(1-$D$3)/Лист2!$A$6,0) -> 41167 | K24: ПлRAL9003гл,0.Sr.0кор.0.K.0
E25: 4 корзины | I25: =I24+4*$I$101 -> 43807 | J25: =ROUND(I25*(1-$D$3)/Лист2!$A$6,0) -> 43807 | K25: ПлRAL9003гл,0.Sr.4кор.0.K.0
C26: 1127.00.00.00-02 | D26: CF400FQ | E26: без корзин | F26: -18…-25 | G26: 398 | H26: 1217х662х925 | I26: 45331 | J26: =ROUND(I26*(1-$D$3)/Лист2!$A$6,0) -> 45331 | K26: ПлRAL9003гл,0.Sr.0кор.0.K.0
E27: 5 корзин | I27: =I26+5*$I$101 -> 48631 | J27: =ROUND(I27*(1-$D$3)/Лист2!$A$6,0) -> 48631 | K27: ПлRAL9003гл,0.Sr.5кор.0.K.0
C28: 1127.00.00.00-03 | D28: CF500FQ | E28: без корзин | F28: -18…-25 | G28: 485 | H28: 1437х662х925 | I28: 49893 | J28: =ROUND(I28*(1-$D$3)/Лист2!$A$6,0) -> 49893 | K28: ПлRAL9003гл,0.Sr.0кор.0.K.0
E29: 6 корзин | I29: =I28+6*$I$101 -> 53853 | J29: =ROUND(I29*(1-$D$3)/Лист2!$A$6,0) -> 53853 | K29: ПлRAL9003гл,0.Sr.6кор.0.K.0
C30: 1127.00.00.00-04 | D30: CF600FQ | E30: без корзин | F30: -18…-25 | G30: 572 | H30: 1657х662х925 | I30: 53727 | J30: =ROUND(I30*(1-$D$3)/Лист2!$A$6,0) -> 53727 | K30: ПлRAL9003гл,0.Sr.0кор.0.K.0
E31: 7 корзин | I31: =I30+7*$I$101 -> 58347 | J31: =ROUND(I31*(1-$D$3)/Лист2!$A$6,0) -> 58347 | K31: ПлRAL9003гл,0.Sr.7кор.0.K.0
A32: 9 | B32: Морозильные лари с глухой крышкой
C33: 1011.00.00.00 | D33: CF200S | E33: без корзин | F33: -18…-25 | G33: 235 | H33: 808х743х904 | I33: 37564 | J33: =ROUND(I33*(1-$D$3)/Лист2!$A$6,0) -> 37564 | K33: ПлRAL9003,0.B.0кор.P.M.0
E34: 1 корзина | I34: =I33+1*$I$101 -> 38224 | J34: =ROUND(I34*(1-$D$3)/Лист2!$A$6,0) -> 38224 | K34: ПлRAL9003,0.B.1кор.P.M.0
C35: 1011.00.00.00-01 | D35: CF300S | E35: без корзин | F35: -18…-25 | G35: 319 | H35: 1018х743х904 | I35: 41066 | J35: =ROUND(I35*(1-$D$3)/Лист2!$A$6,0) -> 41066 | K35: ПлRAL9003,0.B.0кор.P.M.0
E36: 1 корзина | I36: =I35+1*$I$101 -> 41726 | J36: =ROUND(I36*(1-$D$3)/Лист2!$A$6,0) -> 41726 | K36: ПлRAL9003,0.B.1кор.P.M.0
C37: 1011.00.00.00-02 | D37: CF400S | E37: без корзин | F37: -18…-25 | G37: 398 | H37: 1218х743х904 | I37: 48890 | J37: =ROUND(I37*(1-$D$3)/Лист2!$A$6,0) -> 48890 | K37: ПлRAL9003,0.B.0кор.P.M.0
E38: 1 корзина | I38: =I37+1*$I$101 -> 49550 | J38: =ROUND(I38*(1-$D$3)/Лист2!$A$6,0) -> 49550 | K38: ПлRAL9003,0.B.1кор.P.M.0
C39: 1011.00.00.00-03 | D39: CF500S | E39: без корзин | F39: -18…-25 | G39: 485 | H39: 1438х743х904 | I39: 49693 | J39: =ROUND(I39*(1-$D$3)/Лист2!$A$6,0) -> 49693 | K39: ПлRAL9003,0.B.0кор.P.M.0
E40: 1 корзина | I40: =I39+1*$I$101 -> 50353 | J40: =ROUND(I40*(1-$D$3)/Лист2!$A$6,0) -> 50353 | K40: ПлRAL9003,0.B.1кор.P.M.0
C41: 1011.00.00.00-04 | D41: CF600S | E41: без корзин | F41: -18…-25 | G41: 572 | H41: 1658х743х904 | I41: 54201 | J41: =ROUND(I41*(1-$D$3)/Лист2!$A$6,0) -> 54201 | K41: ПлRAL9003,0.B.0кор.P.M.0
E42: 1 корзина | I42: =I41+1*$I$101 -> 54861 | J42: =ROUND(I42*(1-$D$3)/Лист2!$A$6,0) -> 54861 | K42: ПлRAL9003,0.B.1кор.P.M.0
A43: 10 | B43: Морозильные лари с глухой крышкой (крышка из нержавеющей стали)
C44: 1011.00.00.00 | D44: CF200S нерж | E44: без корзин | F44: -18…-25 | G44: 235 | H44: 808х743х904 | I44: 42580 | J44: =ROUND(I44*(1-$D$3)/Лист2!$A$6,0) -> 42580 | K44: ПлRAL9003,0.B.0кор.N.M.0
E45: 1 корзина | I45: =I44+1*$I$101 -> 43240 | J45: =ROUND(I45*(1-$D$3)/Лист2!$A$6,0) -> 43240 | K45: ПлRAL9003,0.B.1кор.N.M.0
C46: 1011.00.00.00-01 | D46: CF300S нерж | E46: без корзин | F46: -18…-25 | G46: 319 | H46: 1018х743х904 | I46: 47277 | J46: =ROUND(I46*(1-$D$3)/Лист2!$A$6,0) -> 47277 | K46: ПлRAL9003,0.B.0кор.N.M.0
E47: 1 корзина | I47: =I46+1*$I$101 -> 47937 | J47: =ROUND(I47*(1-$D$3)/Лист2!$A$6,0) -> 47937 | K47: ПлRAL9003,0.B.1кор.N.M.0
C48: 1011.00.00.00-02 | D48: CF400S нерж | E48: без корзин | F48: -18…-25 | G48: 398 | H48: 1218х743х904 | I48: 56039 | J48: =ROUND(I48*(1-$D$3)/Лист2!$A$6,0) -> 56039 | K48: ПлRAL9003,0.B.0кор.N.M.0
E49: 1 корзина | I49: =I48+1*$I$101 -> 56699 | J49: =ROUND(I49*(1-$D$3)/Лист2!$A$6,0) -> 56699 | K49: ПлRAL9003,0.B.1кор.N.M.0
C50: 1011.00.00.00-03 | D50: CF500S нерж | E50: без корзин | F50: -18…-25 | G50: 485 | H50: 1438х743х904 | I50: 57049 | J50: =ROUND(I50*(1-$D$3)/Лист2!$A$6,0) -> 57049 | K50: ПлRAL9003,0.B.0кор.N.M.0
E51: 1 корзина | I51: =I50+1*$I$101 -> 57709 | J51: =ROUND(I51*(1-$D$3)/Лист2!$A$6,0) -> 57709 | K51: ПлRAL9003,0.B.1кор.N.M.0
C52: 1011.00.00.00-04 | D52: CF600S нерж | E52: без корзин | F52: -18…-25 | G52: 572 | H52: 1658х743х904 | I52: 61513 | J52: =ROUND(I52*(1-$D$3)/Лист2!$A$6,0) -> 61513 | K52: ПлRAL9003,0.B.0кор.N.M.0
E53: 1 корзина | I53: =I52+1*$I$101 -> 62173 | J53: =ROUND(I53*(1-$D$3)/Лист2!$A$6,0) -> 62173 | K53: ПлRAL9003,0.B.1кор.N.M.0
A54: 13 | B54: Морозильные лари с гнутыми раздвижными стеклами (составная корона, климатический класс 4+)
D55: CFТ200CQ | E55: без корзин | F55: -18…-25 | G55: 235 | H55: 807х662х925 | I55: 43097 | J55: =ROUND(I55*(1-$D$3)/[8]Лист2!$A$6,0) -> 43097
E56: 3 корзины | I56: =I55+3*$I$100 -> 45272 | J56: =ROUND(I56*(1-$D$3)/[8]Лист2!$A$6,0) -> 45272
D57: CFТ300CQ | E57: без корзин | F57: -18…-25 | G57: 319 | H57: 1017х662х925 | I57: 45547 | J57: =ROUND(I57*(1-$D$3)/[8]Лист2!$A$6,0) -> 45547
E58: 4 корзины | I58: =I57+4*$I$100 -> 48447 | J58: =ROUND(I58*(1-$D$3)/[8]Лист2!$A$6,0) -> 48447
D59: CFT400CQ | E59: без корзин | F59: -18…-25 | G59: 398 | H59: 1217х662х925 | I59: 48925 | J59: =ROUND(I59*(1-$D$3)/[8]Лист2!$A$6,0) -> 48925
E60: 5 корзин | I60: =I59+5*$I$100 -> 52550 | J60: =ROUND(I60*(1-$D$3)/[8]Лист2!$A$6,0) -> 52550
D61: CFТ500CQ | E61: без корзин | F61: -18…-25 | G61: 485 | H61: 1437х662х925 | I61: 50393 | J61: =ROUND(I61*(1-$D$3)/[8]Лист2!$A$6,0) -> 50393
E62: 6 корзин | I62: =I61+6*$I$100 -> 54743 | J62: =ROUND(I62*(1-$D$3)/[8]Лист2!$A$6,0) -> 54743
D63: CFТ600CQ | E63: без корзин | F63: -18…-25 | G63: 572 | H63: 1657х662х925 | I63: 58545 | J63: =ROUND(I63*(1-$D$3)/[8]Лист2!$A$6,0) -> 58545
E64: 7 корзин | I64: =I63+7*$I$100 -> 63620 | J64: =ROUND(I64*(1-$D$3)/[8]Лист2!$A$6,0) -> 63620
A65: 17 | B65: Морозильные лари с прямыми раздвижными стеклами составная корона (климатический класс 4+)
D66: CFТ200FQ | E66: без корзин | F66: -18…-25 | G66: 235 | H66: 807х662х925 | I66: 41095 | J66: =ROUND(I66*(1-$D$3)/Лист2!$A$6,0) -> 41095
E67: 3 корзины | I67: =I66+3*$I$101 -> 43075 | J67: =ROUND(I67*(1-$D$3)/Лист2!$A$6,0) -> 43075
D68: CFТ300FQ | E68: без корзин | F68: -18…-25 | G68: 319 | H68: 1017х662х925 | I68: 45850 | J68: =ROUND(I68*(1-$D$3)/Лист2!$A$6,0) -> 45850
E69: 4 корзины | I69: =I68+4*$I$101 -> 48490 | J69: =ROUND(I69*(1-$D$3)/Лист2!$A$6,0) -> 48490
D70: CFT400FQ | E70: без корзин | F70: -18…-25 | G70: 398 | H70: 1217х662х925 | I70: 48915 | J70: =ROUND(I70*(1-$D$3)/Лист2!$A$6,0) -> 48915
E71: 5 корзин | I71: =I70+5*$I$101 -> 52215 | J71: =ROUND(I71*(1-$D$3)/Лист2!$A$6,0) -> 52215
D72: CFТ500FQ | E72: без корзин | F72: -18…-25 | G72: 485 | H72: 1437х662х925 | I72: 49919 | J72: =ROUND(I72*(1-$D$3)/Лист2!$A$6,0) -> 49919
E73: 6 корзин | I73: =I72+6*$I$101 -> 53879 | J73: =ROUND(I73*(1-$D$3)/Лист2!$A$6,0) -> 53879
D74: CFТ600FQ | E74: без корзин | F74: -18…-25 | G74: 572 | H74: 1657х662х925 | I74: 59036 | J74: =ROUND(I74*(1-$D$3)/Лист2!$A$6,0) -> 59036
E75: 7 корзин | I75: =I74+7*$I$101 -> 63656 | J75: =ROUND(I75*(1-$D$3)/Лист2!$A$6,0) -> 63656
A76: 19 | B76: Морозильные лари с глухой крышкой (климатический класс 4+)
C77: 1065.00.00.00 | D77: CF200ST | E77: без корзин | F77: -18…-25 | G77: 235 | H77: 808х743х904 | I77: 41320.4 | J77: =ROUND(I77*(1-$D$3)/Лист2!$A$6,0) -> 41320 | K77: ПлRAL9003,0.B.0кор.Р.M.0
E78: 1 корзина | I78: =I77+1*$I$101 -> 41980.4 | J78: =ROUND(I78*(1-$D$3)/Лист2!$A$6,0) -> 41980 | K78: ПлRAL9003,0.B.1кор.Р.M.0
C79: 1065.00.00.00-01 | D79: CF300ST | E79: без корзин | F79: -18…-25 | G79: 319 | H79: 1018х743х904 | I79: 45172.6 | J79: =ROUND(I79*(1-$D$3)/Лист2!$A$6,0) -> 45173 | K79: ПлRAL9003,0.B.0кор.Р.M.0
E80: 1 корзина | I80: =I79+1*$I$101 -> 45832.6 | J80: =ROUND(I80*(1-$D$3)/Лист2!$A$6,0) -> 45833 | K80: ПлRAL9003,0.B.1кор.Р.M.0
C81: 1065.00.00.00-02 | D81: CF400ST | E81: без корзин | F81: -18…-25 | G81: 398 | H81: 1218х743х904 | I81: 53779 | J81: =ROUND(I81*(1-$D$3)/Лист2!$A$6,0) -> 53779 | K81: ПлRAL9003,0.B.0кор.Р.M.0
E82: 1 корзина | I82: =I81+1*$I$101 -> 54439 | J82: =ROUND(I82*(1-$D$3)/Лист2!$A$6,0) -> 54439 | K82: ПлRAL9003,0.B.1кор.Р.M.0
C83: 1065.00.00.00-03 | D83: CF500ST | E83: без корзин | F83: -18…-25 | G83: 485 | H83: 1438х743х904 | I83: 54662.3 | J83: =ROUND(I83*(1-$D$3)/Лист2!$A$6,0) -> 54662 | K83: ПлRAL9003,0.B.0кор.Р.M.0
E84: 1 корзина | I84: =I83+1*$I$101 -> 55322.3 | J84: =ROUND(I84*(1-$D$3)/Лист2!$A$6,0) -> 55322 | K84: ПлRAL9003,0.B.1кор.Р.M.0
C85: 1065.00.00.00-04 | D85: CF600ST | E85: без корзин | F85: -18…-25 | G85: 572 | H85: 1658х743х904 | I85: 59621.1 | J85: =ROUND(I85*(1-$D$3)/Лист2!$A$6,0) -> 59621 | K85: ПлRAL9003,0.B.0кор.Р.M.0
E86: 1 корзина | I86: =I85+1*$I$101 -> 60281.1 | J86: =ROUND(I86*(1-$D$3)/Лист2!$A$6,0) -> 60281 | K86: ПлRAL9003,0.B.1кор.Р.M.0
A87: 10 | B87: Морозильные лари для мягкого мороженого (комплектация - запасник, полка под гастроемкости, подсветка внутреннего объема) корзины не устанавливаются
C88: 1187.00.00.00-01 | D88: CF300CSZ | E88: - | F88: -18…-25 | G88: 319 | H88: 1017х662х1310 | I88: 56060 | J88: =ROUND(I88*(1-$D$3)/Лист2!$A$6,0) -> 56060 | K88: ПлRAL9003,0.K.0кор.0.K.0.0.4
C89: 1187.00.00.00-02 | D89: CF400CSZ | E89: - | F89: -18…-25 | G89: 398 | H89: 1217х662х1310 | I89: 62797 | J89: =ROUND(I89*(1-$D$3)/Лист2!$A$6,0) -> 62797 | K89: ПлRAL9003,0.K.0кор.0.K.0.0.4
C90: 1187.00.00.00-03 | D90: CF500CSZ | E90: - | F90: -18…-25 | G90: 485 | H90: 1437х662х1310 | I90: 64265 | J90: =ROUND(I90*(1-$D$3)/Лист2!$A$6,0) -> 64265 | K90: ПлRAL9003,0.K.0кор.0.K.0.0.4
A91: 11 | B91: Опции для ларей
D92: Надстройка стеклянная 1145.12.00.00-01 для CF300C | I92: 8073.0012 | J92: =ROUND(I92*(1-$D$3)/Лист2!$A$6,0) -> 8073 | K92: H, глянец, RAL 7035
D93: Надстройка стеклянная 1145.12.00.00-02 для CF400C | I93: 8779.7556 | J93: =ROUND(I93*(1-$D$3)/Лист2!$A$6,0) -> 8780 | K93: H, глянец, RAL 7035
D94: Надстройка стеклянная 1145.12.00.00-03 для CF500C | I94: 9831.751875 | J94: =ROUND(I94*(1-$D$3)/Лист2!$A$6,0) -> 9832 | K94: H, глянец, RAL 7035
D95: Комплект подсветки для ларя CF200C | F95: Спектр 4000К/6000К | I95: 2261.2128 | J95: =ROUND(I95*(1-$D$3)/Лист2!$A$6,0) -> 2261
D96: Комплект подсветки для ларя CF300C | I96: 2307.36 | J96: =ROUND(I96*(1-$D$3)/Лист2!$A$6,0) -> 2307
D97: Комплект подсветки для ларя CF400C | I97: 2508 | J97: =ROUND(I97*(1-$D$3)/Лист2!$A$6,0) -> 2508
D98: Комплект подсветки для ларя CF500C | I98: 2884.2 | J98: =ROUND(I98*(1-$D$3)/Лист2!$A$6,0) -> 2884
D99: Комплект подсветки для ларя CF600C | I99: 3316.83 | J99: =ROUND(I99*(1-$D$3)/Лист2!$A$6,0) -> 3317
C100: 087.42.00.00 | D100: Корзина для ларя с гнут. стек. без подсветки | F100: - | G100: - | H100: 214х498х320 | I100: 725 | J100: =ROUND(I100*(1-$D$3)/Лист2!$A$6,0) -> 725
C101: 086.42.00.00 | D101: Корзина для ларя с прям. стек. без подсветки | F101: - | G101: - | H101: 214х493х250 | I101: 660 | J101: =ROUND(I101*(1-$D$3)/Лист2!$A$6,0) -> 660
D102: Корзина для ларя с глух. крыш. без подсветки | F102: - | G102: - | H102: 214х493х250 | I102: 660 | J102: =ROUND(I102*(1-$D$3)/Лист2!$A$6,0) -> 660
C103: 1060.42.00.00 | D103: Корзина для ларя с гнут. стек. с подсветкой | F103: - | G103: - | H103: 214х498х320 | I103: 725 | J103: =ROUND(I103*(1-$D$3)/Лист2!$A$6,0) -> 725
C104: 1071.42.00.00 | D104: Корзина для ларя с прям. стек. с подсветкой | F104: - | G104: - | H104: 214х493х250 | I104: 660 | J104: =ROUND(I104*(1-$D$3)/Лист2!$A$6,0) -> 660
A105: 12 | B105: Опции заказываемые с ларем
C106: н.№14709 | D106: Опоры регулируемые М10 для ларей | I106: 245 | J106: =ROUND(I106*(1-$D$3)/Лист2!$A$6,0) -> 245
C107: н.№14601 | D107: Спереди и сзади ларя колеса поворотные без стопора. | I107: 365 | J107: =ROUND(I107*(1-$D$3)/Лист2!$A$6,0) -> 365
C108: н.№14601.4 | D108: Спереди колеса поворотные со стопором, сзади колеса поворотные без стопора | I108: 451 | J108: =ROUND(I108*(1-$D$3)/Лист2!$A$6,0) -> 451
C109: н.№24805.2 | D109: Термометр | I109: 1748 | J109: =ROUND(I109*(1-$D$3)/Лист2!$A$6,0) -> 1748
B110: Стандартный цвет короны ларя - Серый (7035), Красный (наличие красных корон уточнять у менеджеров)
B111: Опционально доступны иные цвета короны - наличие уточнять у менеджеров, наценка +1,5% к цене ларя
B112: Стандартный цвет корпуса - белый (ПлRAL9003). Наценка за нестандартный цвет корпуса +1,5% к цене ларя.
I113: НАВЕРХ

Sheet Лари-бонеты Italfrost
H1: ЗАВОД «ОПК» Тел.: +7 (495) 987-4388 e-mail: info@cryspi.ru сайт: cryspi.ru | K1: На главную
B3: Ваша скидка: | E3: =Содержание!D2 -> 0
B4: НДС: | E4: =IF(Лист2!A1=TRUE,"С НДС","БЕЗ НДС") -> С НДС
A6: Двухрежимные ларь-бонеты ITALFROST
A9: № | B9: Изображение | C9: Артикул | D9: Наименование | F9: Колличество делителей/корзин | G9: Температурный режим,°C | H9: Габариты, (LxWxH) мм | I9: Базовая цена, руб. (с НДС) | J9: =[5]Лист2!$A$5 -> Ваша цена, руб.
A11: 1 | B11: ЛВН низкотемпературный ITALFROST | L11: СЕЧЕНИЕ
A13: - Стандартная комплектация ЛВН Italfrost: - Корпус внешний - оцинкованный металл (RAL 9003); - Охлаждаемый объем - цвет решеток/делителей RAL 9003; - Хладагент R-290, оттайка горячим газом, система выпаривания конденсата; освещение - Электронный контроллер; | F13: - Комплект верхнего бампера; - Система решеток по периметру охлаждаемого объема (1 разделитель, устанавливаемый возле агрегатного отсека во всю высоту охл.объема); - Цвет пластиковых элеметов RAL 7035 (крышка, окантовка стекла, бампер, ручки); -Деревянная обрешетка;
C15: 1057.00.00.00 | D15: Ларь-витрина низкотемпературный ЛВН 1850 (ЛБТ2 М 1850) (торцевой) | E15: Без делителей и корзин | G15: -18..-24 ̊С | H15: 1850х858х869 | I15: =I17-4*1960 -> 127181 | J15: =ROUND(I15*(1-$E$3)/Лист2!$A$6,0) -> 127181 | K15: 3В9016.El.0.0.tn.4.PS.0
E16: С комплектом делителей (2 шт.) | I16: =I15+2*$I$79 -> 128681 | J16: =ROUND(I16*(1-$E$3)/Лист2!$A$6,0) -> 128681 | K16: 3В9016.El.2.0.tn.4.PS.0
E17: С комплектом корзинами (4 шт.) | I17: 135021 | J17: =ROUND(I17*(1-$E$3)/Лист2!$A$6,0) -> 135021 | K17: 3В9016.El.0.4.tn.4.PS.0
C18: 1056.00.00.00-02 | D18: Ларь-витрина низкотемпературный ЛВН 1850 (ЛБ2 М 1850) | E18: Без делителей и корзин | H18: 1850х858х869 | I18: =I20-4*1960 -> 121326 | J18: =ROUND(I18*(1-$E$3)/Лист2!$A$6,0) -> 121326 | K18: ВБ9016.El.0.0.tn.4.PS.0
E19: С комплектом делителей (2 шт.) | I19: =I18+2*$I$79 -> 122826 | J19: =ROUND(I19*(1-$E$3)/Лист2!$A$6,0) -> 122826 | K19: ВБ9016.El.2.0.tn.4.PS.0
E20: С комплектом корзинами (4 шт.) | I20: 129166 | J20: =ROUND(I20*(1-$E$3)/Лист2!$A$6,0) -> 129166 | K20: ВБ9016.El.0.4.tn.4.PS.0
C21: 1056.00.00.00 | D21: Ларь-витрина низкотемпературный ЛВН 2100 (ЛБ2 М 2100) | E21: Без делителей и корзин | H21: 2100х858х869 | I21: =I23-5*1960 -> 125985 | J21: =ROUND(I21*(1-$E$3)/Лист2!$A$6,0) -> 125985 | K21: ВБ9016.El.0.0.tn.4.PS.0
E22: С комплектом делителей (3 шт.) | I22: =I21+3*$I$79 -> 128235 | J22: =ROUND(I22*(1-$E$3)/Лист2!$A$6,0) -> 128235 | K22: ВБ9016.El.3.0.tn.4.PS.0
E23: С комплектом корзинами (5 шт.) | I23: 135785 | J23: =ROUND(I23*(1-$E$3)/Лист2!$A$6,0) -> 135785 | K23: ВБ9016.El.0.5.tn.4.PS.0
C24: 1056.00.00.00-01 | D24: Ларь-витрина низкотемпературный ЛВН 2500 (ЛБ2 М 2500) | E24: Без делителей и корзин | H24: 2500х858х869 | I24: =I26-6*1960 -> 129375 | J24: =ROUND(I24*(1-$E$3)/Лист2!$A$6,0) -> 129375 | K24: ВБ9016.El.0.0.tn.4.PS.0
E25: С комплектом делителей (4 шт.) | I25: =I24+4*$I$79 -> 132375 | J25: =ROUND(I25*(1-$E$3)/Лист2!$A$6,0) -> 132375 | K25: ВБ9016.El.4.0.tn.4.PS.0
E26: С комплектом корзинами (6 шт.) | I26: 141135 | J26: =ROUND(I26*(1-$E$3)/Лист2!$A$6,0) -> 141135 | K26: ВБ9016.El.0.6.tn.4.PS.0
A27: 2 | B27: ЛВН низкотемпературный ITALFROST Push
A29: - Стандартная комплектация ЛВН Italfrost: - Корпус внешний - оцинкованный металл (RAL 9003); - Охлаждаемый объем - цвет решеток/делителей RAL 9003; - Хладагент R-290, оттайка горячим газом, система выпаривания конденсата; - Электронный контроллер; | F29: - Комплект верхнего бампера (для торцевого исполенние бампер с трех сторон); - Система решеток по периметру охлаждаемого объема (1 разделитель, устанавливаемый возле агрегатного отсека во всю высоту охл.объема); - Цвет пластиковых элеметов RAL 7035 (крышка, окантовка стекла, бампер, ручки); - Деревянная обрешетка;
C31: 1201.00.00.00 | D31: Ларь-витрина низкотемпературный ЛВН 1850 (ЛБТ2 М 1850) PUSH (торцевой) | E31: Без делителей и корзин | G31: -18..-24 ̊С | H31: 1850х858х869 | I31: =I33-4*$I$80 -> 128261 | J31: =ROUND(I31*(1-$E$3)/Лист2!$A$6,0) -> 128261 | K31: 3В9016.El.0.0.tn.4.PS.0
E32: С комплектом делителей (2 шт.) | I32: =I31+2*$I$79 -> 129761 | J32: =ROUND(I32*(1-$E$3)/Лист2!$A$6,0) -> 129761 | K32: 3В9016.El.2.0.tn.4.PS.0
E33: С комплектом корзинами (4 шт.) | I33: 135021 | J33: =ROUND(I33*(1-$E$3)/Лист2!$A$6,0) -> 135021 | K33: 3В9016.El.0.4.tn.4.PS.0
C34: 1190.00.00.00-02 | D34: Ларь-витрина низкотемпературный ЛВН 1850 (ЛБ2 М 1850) PUSH | E34: Без делителей и корзин | H34: 1850х858х869 | I34: =I36-4*$I$80 -> 122406 | J34: =ROUND(I34*(1-$E$3)/Лист2!$A$6,0) -> 122406 | K34: ВБ9016.El.0.0.tn.4.PS.0
E35: С комплектом делителей (2 шт.) | I35: =I34+2*$I$79 -> 123906 | J35: =ROUND(I35*(1-$E$3)/Лист2!$A$6,0) -> 123906 | K35: ВБ9016.El.2.0.tn.4.PS.0
E36: С комплектом корзинами (4 шт.) | I36: 129166 | J36: =ROUND(I36*(1-$E$3)/Лист2!$A$6,0) -> 129166 | K36: ВБ9016.El.0.4.tn.4.PS.0
C37: 1190.00.00.00 | D37: Ларь-витрина низкотемпературный ЛВН 2100 (ЛБ2 М 2100) PUSH | E37: Без делителей и корзин | H37: 2100х858х869 | I37: =I39-5*$I$80 -> 127336 | J37: =ROUND(I37*(1-$E$3)/Лист2!$A$6,0) -> 127336 | K37: ВБ9016.El.0.0.tn.4.PS.0
E38: С комплектом делителей (3 шт.) | I38: =I37+3*$I$79 -> 129586 | J38: =ROUND(I38*(1-$E$3)/Лист2!$A$6,0) -> 129586 | K38: ВБ9016.El.3.0.tn.4.PS.0
E39: С комплектом корзинами (5 шт.) | I39: 135786 | J39: =ROUND(I39*(1-$E$3)/Лист2!$A$6,0) -> 135786 | K39: ВБ9016.El.0.5.tn.4.PS.0
C40: 1190.00.00.00-01 | D40: Ларь-витрина низкотемпературный ЛВН 2500 (ЛБ2 М 2500) PUSH | E40: Без делителей и корзин | H40: 2500х858х869 | I40: =I42-6*$I$80 -> 130996 | J40: =ROUND(I40*(1-$E$3)/Лист2!$A$6,0) -> 130996 | K40: ВБ9016.El.0.0.tn.4.PS.0
E41: С комплектом делителей (4 шт.) | I41: =I40+4*$I$79 -> 133996 | J41: =ROUND(I41*(1-$E$3)/Лист2!$A$6,0) -> 133996 | K41: ВБ9016.El.4.0.tn.4.PS.0
E42: С комплектом корзинами (6 шт.) | I42: 141136 | J42: =ROUND(I42*(1-$E$3)/Лист2!$A$6,0) -> 141136 | K42: ВБ9016.El.0.6.tn.4.PS.0
A43: 3 | B43: ЛВН низкотемпературный RONDO с термостатом
A45: - Стандартная комплектация ЛВН Italfrost: - Корпус внешний - оцинкованный металл (RAL 9003); - Охлаждаемый объем - цвет решеток/делителей RAL 9003; - Хладагент R-290, - БЕЗ оттайки горячим газом, БЕЗ системы выпаривания конденсата, БЕЗ освещения; - Термостат (управление температурой в объеме); | F45: - БЕЗ верхнего бампера; - Система решеток по периметру охлаждаемого объема (1 разделитель, устанавливаемый возле агрегатного отсека во всю высоту охл.объема); - Температурный режим -18..-24 ̊С - Цвет пластиковых элеметов RAL 7035 (крышка, окантовка стекла, бампер, ручки); - Деревянная обрешетка;
C47: 1096.00.00.00 | D47: Ларь-витрина низкотемпературный ЛВНР 1850 (ЛБТР М 1850) | E47: С комплектом делителей (2 шт.) | G47: -18..-24 ̊С | H47: 1850х858х869 | I47: 93007 | J47: =ROUND(I47*(1-$E$3)/Лист2!$A$6,0) -> 93007 | K47: ББ9016.Т.2.0.tn.0.PS.0
E48: С комплектом корзинами (4 шт.) | I48: 96492 | J48: =ROUND(I48*(1-$E$3)/Лист2!$A$6,0) -> 96492 | K48: ББ9016.Т.0.4.tn.0.PS.0
C49: 1095.00.00.00-02 | D49: Ларь-витрина низкотемпературный ЛВНР 1850 (ЛБР М 1850) | E49: С комплектом делителей (2 шт.) | H49: 1850х858х869 | I49: 90381 | J49: =ROUND(I49*(1-$E$3)/Лист2!$A$6,0) -> 90381 | K49: ББ9016.Т.2.0.tn.0.PS.0
E50: С комплектом корзинами (4 шт.) | I50: 93866 | J50: =ROUND(I50*(1-$E$3)/Лист2!$A$6,0) -> 93866 | K50: ББ9016.Т.0.4.tn.0.PS.0
C51: 1095.00.00.00 | D51: Ларь-витрина низкотемпературный ЛВНР 2100 (ЛБР М 2100) | E51: С комплектом делителей (3 шт.) | H51: 2100х858х869 | I51: 93757 | J51: =ROUND(I51*(1-$E$3)/Лист2!$A$6,0) -> 93757 | K51: ББ9016.Т.3.0.tn.0.PS.0
E52: С комплектом корзинами (5 шт.) | I52: 97739 | J52: =ROUND(I52*(1-$E$3)/Лист2!$A$6,0) -> 97739 | K52: ББ9016.Т.0.5.tn.0.PS.0
C53: 1095.00.00.00-01 | D53: Ларь-витрина низкотемпературный ЛВНР 2500 (ЛБР М 2500) | E53: С комплектом делителей (4 шт.) | H53: 2500х858х869 | I53: 108283 | J53: =ROUND(I53*(1-$E$3)/Лист2!$A$6,0) -> 108283 | K53: ББ9016.Т.4.0.tn.0.PS.0
E54: С комплектом корзинами (6 шт.) | I54: 112762 | J54: =ROUND(I54*(1-$E$3)/Лист2!$A$6,0) -> 112762 | K54: ББ9016.Т.0.6.tn.0.PS.0
A55: 4 | B55: ЛВН низкотемпературный RONDO с контроллером
A57: - Стандартная комплектация ЛВН Italfrost: - Корпус внешний - оцинкованный металл (RAL 9003); - Охлаждаемый объем - цвет решеток/делителей RAL 9003; - хладагент R-290, - БЕЗ оттайки горячим газом, БЕЗ системы выпаривания конденсата, БЕЗ освещения; - Электронный контроллер; | F57: - БЕЗ верхнего бампера; - Система решеток по периметру охлаждаемого объема (1 разделитель, устанавливаемый возле агрегатного отсека во всю высоту охл.объема); - Температурный режим -18..-24 ̊С - Цвет пластиковых элеметов RAL 7035 (крышка, окантовка стекла, бампер, ручки); - Деревянная обрешетка;
C59: 1096.00.00.00 | D59: Ларь-витрина низкотемпературный ЛВНР 1850 (ЛБТР М 1850) | E59: С комплектом делителей (2 шт.) | G59: -18..-24 ̊С | H59: 1850х858х869 | I59: 95135 | J59: =ROUND(I59*(1-$E$3)/Лист2!$A$6,0) -> 95135 | K59: ББ9016.El.2.0.tn.0.PS.0
E60: С комплектом корзинами (4 шт.) | I60: 98620 | J60: =ROUND(I60*(1-$E$3)/Лист2!$A$6,0) -> 98620 | K60: ББ9016.El.0.4.tn.0.PS.0
C61: 1095.00.00.00-02 | D61: Ларь-витрина низкотемпературный ЛВНР 1850 (ЛБР М 1850) | E61: С комплектом делителей (2 шт.) | H61: 1850х858х869 | I61: 92524 | J61: =ROUND(I61*(1-$E$3)/Лист2!$A$6,0) -> 92524 | K61: ББ9016.El.2.0.tn.0.PS.0
E62: С комплектом корзинами (4 шт.) | I62: 96010 | J62: =ROUND(I62*(1-$E$3)/Лист2!$A$6,0) -> 96010 | K62: ББ9016.El.0.4.tn.0.PS.0
C63: 1095.00.00.00 | D63: Ларь-витрина низкотемпературный ЛВНР 2100 (ЛБР М 2100) | E63: С комплектом делителей (3 шт.) | H63: 2100х858х869 | I63: 95884 | J63: =ROUND(I63*(1-$E$3)/Лист2!$A$6,0) -> 95884 | K63: ББ9016.El.3.0.tn.0.PS.0
E64: С комплектом корзинами (5 шт.) | I64: 99867 | J64: =ROUND(I64*(1-$E$3)/Лист2!$A$6,0) -> 99867 | K64: ББ9016.El.0.5.tn.0.PS.0
C65: 1095.00.00.00-01 | D65: Ларь-витрина низкотемпературный ЛВНР 2500 (ЛБР М 2500) | E65: С комплектом делителей (4 шт.) | H65: 2500х858х869 | I65: 110424 | J65: =ROUND(I65*(1-$E$3)/Лист2!$A$6,0) -> 110424 | K65: ББ9016.El.4.0.tn.0.PS.0
E66: С комплектом корзинами (6 шт.) | I66: 114902 | J66: =ROUND(I66*(1-$E$3)/Лист2!$A$6,0) -> 114902 | K66: ББ9016.El.0.6.tn.0.PS.0
A67: 5 | B67: КОМПЛЕКТУЮЩИЕ
A69: Бампер (Определяется харакетристикой, либо для отдельного заказа)
D70: Комплект трехстороннего нижнего бампера L=1850 для ЛВН ЛБТ | I70: 1539 | J70: =ROUND(I70*(1-$E$3)/Лист2!$A$6,0) -> 1539
D71: Комплект трехстороннего верхнего бампера L=1850 для ЛВН ЛБТ | I71: 1615 | J71: =ROUND(I71*(1-$E$3)/Лист2!$A$6,0) -> 1615
C72: 1022.73.00.00-02 | D72: Комплект нижнего бампера L=1850 для ЛВН ЛБ | I72: 1278 | J72: =ROUND(I72*(1-$E$3)/Лист2!$A$6,0) -> 1278
C73: 1022.72.00.00-02 | D73: Комплект верхнего бампера L=1850 для ЛВН ЛБ | I73: 1397 | J73: =ROUND(I73*(1-$E$3)/Лист2!$A$6,0) -> 1397
C74: 1022.73.00.00 | D74: Комплект нижнего бампера L=2100 для ЛВН ЛБ | I74: 1330 | J74: =ROUND(I74*(1-$E$3)/Лист2!$A$6,0) -> 1330
C75: 1022.72.00.00 | D75: Комплект верхнего бампера L=2100 для ЛВН ЛБ | I75: 1397 | J75: =ROUND(I75*(1-$E$3)/Лист2!$A$6,0) -> 1397
C76: 1022.73.00.00-01 | D76: Комплект нижнего бампера L=2500 для ЛВН ЛБ | I76: 1448 | J76: =ROUND(I76*(1-$E$3)/Лист2!$A$6,0) -> 1448
C77: 1022.72.00.00-01 | D77: Комплект верхнего бампера L=2500 для ЛВН ЛБ | I77: 1520 | J77: =ROUND(I77*(1-$E$3)/Лист2!$A$6,0) -> 1520
A78: Разделители и корзины (полимерное покрытие, цвет - RAL 9003)
C79: 1022.45.00.00 | D79: Разделитель поперечный объема 1022.45.00.00 L=1850/2100/2500 для ЛБ М | I79: 750 | J79: =ROUND(I79*(1-$E$3)/Лист2!$A$6,0) -> 750
C80: 1022.110.00.00-01 | D80: Корзина увеличенная над агрегатным отсеком 1022.110.00.00-01 для ЛВН/ЛВС (ЛБ М) (Устанавливается над агрегатным отсеком, 1 шт. в ЛБ каждого типоразмера) | I80: 1690 | J80: =ROUND(I80*(1-$E$3)/Лист2!$A$6,0) -> 1690
C81: 1022.110.00.00 | D81: Корзина 1022.110.00.00 для ЛВН/ЛВС (ЛБ М) (в ЛБ длиной 2500 устанавливается 5 данных корзин, в 2100 - 4 корзины, в 1850 - 3 корзины) | I81: 1690 | J81: =ROUND(I81*(1-$E$3)/Лист2!$A$6,0) -> 1690
A82: Суперструктуры и опции
C83: 1022.61.00.00-02 | D83: Суперструктура пристенная 1022.61.00.00-02 для ЛВН/ЛВС (ЛБ М) 1850 | I83: 22961 | J83: =ROUND(I83*(1-$E$3)/Лист2!$A$6,0) -> 22961
C84: 1022.61.00.00 | D84: Суперструктура пристенная 1022.61.00.00 для ЛВН/ЛВС (ЛБ М) 2100 | I84: 24019 | J84: =ROUND(I84*(1-$E$3)/Лист2!$A$6,0) -> 24019
C85: 1022.61.00.00-01 | D85: Суперструктура пристенная 1022.61.00.00-01 для ЛВН/ЛВС (ЛБ М) 2500 | I85: 25516 | J85: =ROUND(I85*(1-$E$3)/Лист2!$A$6,0) -> 25516
C86: 1022.60.00.00-02 | D86: Суперструктура островная 1022.60.00.00-02 для ЛВН/ЛВС (ЛБ М) 1850 | I86: 30274 | J86: =ROUND(I86*(1-$E$3)/Лист2!$A$6,0) -> 30274
C87: 1022.60.00.00 | D87: Суперструктура островная 1022.60.00.00 для ЛВН/ЛВС (ЛБ М) 2100 | I87: 32302 | J87: =ROUND(I87*(1-$E$3)/Лист2!$A$6,0) -> 32302
C88: 1022.60.00.00-01 | D88: Суперструктура островная 1022.60.00.00-01 для ЛВН/ЛВС (ЛБ М) 2500 | I88: 34893 | J88: =ROUND(I88*(1-$E$3)/Лист2!$A$6,0) -> 34893
C90: 429.80.00.00-02 | D90: Комплект подсветки прист 429.80.00.00-02 L=1850 для ЛБ М (LED, лампа Т5) | I90: 6461 | J90: =ROUND(I90*(1-$E$3)/Лист2!$A$6,0) -> 6461
C91: 429.80.00.00 | D91: Комплект подсветки прист 429.80.00.00 L=2100 для ЛБ М (LED, лампа Т5) | I91: 6801 | J91: =ROUND(I91*(1-$E$3)/Лист2!$A$6,0) -> 6801
C92: 429.80.00.00-01 | D92: Комплект подсветки прист 429.80.00.00-01 L=2500 для ЛБ М (LED, лампа Т5) | I92: 7012 | J92: =ROUND(I92*(1-$E$3)/Лист2!$A$6,0) -> 7012
C93: 429.64.00.00-02 | D93: Комплект подсветки остр суперстр 429.64.00.00-02 L=1850 для ЛБ М (LED, лампа Т5) | I93: 12269 | J93: =ROUND(I93*(1-$E$3)/Лист2!$A$6,0) -> 12269
C94: 429.64.00.00 | D94: Комплект подсветки остр суперстр 429.64.00.00 L=2100 для ЛБ М (LED, лампа Т5) | I94: 12915 | J94: =ROUND(I94*(1-$E$3)/Лист2!$A$6,0) -> 12915
C95: 429.64.00.00-01 | D95: Комплект подсветки остр суперстр 429.64.00.00-01 L=2500 для ЛБ М (LED, лампа Т5) | I95: 13453 | J95: =ROUND(I95*(1-$E$3)/Лист2!$A$6,0) -> 13453
C97: 429.70.00.00-02 | D97: Комплект ценникодержателей прист 429.70.00.00-02 L=1850 для ЛБ М | I97: 451 | J97: =ROUND(I97*(1-$E$3)/Лист2!$A$6,0) -> 451
C98: 429.70.00.00 | D98: Комплект ценникодержателей прист 429.70.00.00 L=2100 для ЛБ М | I98: 530 | J98: =ROUND(I98*(1-$E$3)/Лист2!$A$6,0) -> 530
C99: 429.70.00.00-01 | D99: Комплект ценникодержателей прист 429.70.00.00-01 L=2500 для ЛБ М | I99: 530 | J99: =ROUND(I99*(1-$E$3)/Лист2!$A$6,0) -> 530
C100: 429.66.00.00-02 | D100: Комплект ценникодержателей остр 429.66.00.00-02 L=1850 для ЛБ М | I100: 530 | J100: =ROUND(I100*(1-$E$3)/Лист2!$A$6,0) -> 530
C101: 429.66.00.00 | D101: Комплект ценникодержателей остр 429.66.00.00 L=2100 для ЛБ М | I101: 1063 | J101: =ROUND(I101*(1-$E$3)/Лист2!$A$6,0) -> 1063
C102: 429.66.00.00-01 | D102: Комплект ценникодержателей остр 429.66.00.00-01 L=2500 для ЛБ М | I102: 1063 | J102: =ROUND(I102*(1-$E$3)/Лист2!$A$6,0) -> 1063
C104: 429.71.00.00-02 | D104: Комплект ограничителей прист 429.71.00.00-02 L=1850 для ЛБ М | I104: 1414 | J104: =ROUND(I104*(1-$E$3)/Лист2!$A$6,0) -> 1414
C105: 429.71.00.00 | D105: Комплект ограничителей прист 429.71.00.00 L=2100 для ЛБ М | I105: 1414 | J105: =ROUND(I105*(1-$E$3)/Лист2!$A$6,0) -> 1414
C106: 429.71.00.00-01 | D106: Комплект ограничителей прист 429.71.00.00-01 L=2500 для ЛБ М | I106: 1785 | J106: =ROUND(I106*(1-$E$3)/Лист2!$A$6,0) -> 1785
C107: 429.68.00.00-02 | D107: Комплект ограничителей остр 429.68.00.00-02 L=1850 для ЛБ М | I107: 2433 | J107: =ROUND(I107*(1-$E$3)/Лист2!$A$6,0) -> 2433
C108: 429.68.00.00 | D108: Комплект ограничителей остр 429.68.00.00 L=2100 для ЛБ М | I108: 2829 | J108: =ROUND(I108*(1-$E$3)/Лист2!$A$6,0) -> 2829
C109: 429.68.00.00-01 | D109: Комплект ограничителей остр 429.68.00.00-01 L=2500 для ЛБ М | I109: 3562 | J109: =ROUND(I109*(1-$E$3)/Лист2!$A$6,0) -> 3562
C111: 1022.62.00.00-02 | D111: Соединительный комплект спина к спине остр 1022.62.00.00-02 L=1850 для ЛБ М | I111: 1193 | J111: =ROUND(I111*(1-$E$3)/Лист2!$A$6,0) -> 1193
C112: 1022.62.00.00 | D112: Соединительный комплект спина к спине остр 1022.62.00.00 L=2100 для ЛБ М | I112: 1222 | J112: =ROUND(I112*(1-$E$3)/Лист2!$A$6,0) -> 1222
C113: 1022.62.00.00-01 | D113: Соединительный комплект спина к спине остр 1022.62.00.00-01 L=2500 для ЛБ М | I113: 1385 | J113: =ROUND(I113*(1-$E$3)/Лист2!$A$6,0) -> 1385
C114: 1022.89.00.00-02 | D114: Воздуховод с площадкой под ценникодержатели низкий 1022.89.00.00-02 для ЛВН/ЛВС (ЛБ М) 1850 | I114: 2906 | J114: =ROUND(I114*(1-$E$3)/Лист2!$A$6,0) -> 2906
C115: 1022.89.00.00 | D115: Воздуховод с площадкой под ценникодержатели низкий 1022.89.00.00 для ЛВН/ЛВС (ЛБ М) 2100 | I115: 2924 | J115: =ROUND(I115*(1-$E$3)/Лист2!$A$6,0) -> 2924
C116: 1022.89.00.00-01 | D116: Воздуховод с площадкой под ценникодержатели низкий 1022.89.00.00-01 для ЛВН/ЛВС (ЛБ М) 2500 | I116: 3143 | J116: =ROUND(I116*(1-$E$3)/Лист2!$A$6,0) -> 3143
C117: 1022.111.00.00 | D117: Боковая заглушка к соед. комплекту «спина к спине» остр. 1022.111.00.00 для ЛВН/ЛВС (ЛБ М) | I117: 324 | J117: =ROUND(I117*(1-$E$3)/Лист2!$A$6,0) -> 324
C119: 404.99.00.00 | D119: Компл 3-его уровн полок прист суперстр 404.99.00.00 L=1850 для ЛБТМ (G=370 мм) | I119: 3028 | J119: =ROUND(I119*(1-$E$3)/Лист2!$A$6,0) -> 3028
C120: 429.99.00.00 | D120: Компл 3-его уровн полок прист суперстр 429.99.00.00 L=2100 для ЛБМ (G=370 мм) | I120: 3175 | J120: =ROUND(I120*(1-$E$3)/Лист2!$A$6,0) -> 3175
C121: 429.100.00.00 | D121: Компл 3-его уровн полок прист суперстр 429.100.00.00 L=2500 для ЛБМ (G=370 мм) | I121: 3374 | J121: =ROUND(I121*(1-$E$3)/Лист2!$A$6,0) -> 3374
C122: 429.96.00.00 | D122: Компл 3-его уровн полок остр суперстр 429.96.00.00 L=2100 для ЛБМ (G=370 мм) | I122: 5375 | J122: =ROUND(I122*(1-$E$3)/Лист2!$A$6,0) -> 5375
C123: 429.97.00.00 | D123: Компл 3-его уровн полок остр суперстр 429.97.00.00 L=2500 для ЛБМ (G=370 мм) | I123: 5831 | J123: =ROUND(I123*(1-$E$3)/Лист2!$A$6,0) -> 5831
C124: 429.102.00.00 | D124: Компл торц полок остр суперстр 429.102.00.00 L=2100/2500 для ЛБТМ | I124: 8778 | J124: =ROUND(I124*(1-$E$3)/Лист2!$A$6,0) -> 8778
C125: 429.101.00.00 | D125: Компл торц полукр полок остр суперстр 429.101.00.00 L=2100/2500 для ЛБТМ | I125: 5220 | J125: =ROUND(I125*(1-$E$3)/Лист2!$A$6,0) -> 5220
H127: НАВЕРХ

Sheet Столы Italfrost с боковым (hidden)
O1: На главную
A3: Ваша скидка: | C3: =Содержание!D2 -> 0 | N3: На главную
A4: НДС: | C4: =IF(Лист2!A1=TRUE,"С НДС","БЕЗ НДС") -> С НДС
A6: Охлаждаемые столы с боковым расположением агрегата
A7: № | B7: Внешний вид | C7: Наименование | D7: С бортом/ без борта | E7: Количество | G7: Стандарт Gastronorm GN 1/1 | H7: Общий объём, л | I7: Полезный объём, л | J7: Габаритные размеры, мм | M7: Базовая цена, руб. (с НДС) | N7: =Лист2!$A$5 -> Ваша цена, руб.
E8: Ящиков | F8: Дверей | J8: Длина | K8: Ширина | L8: Высота
A9: Холодильные столы с нержавеющей столешницей (температурный режим, °C +1…+10)
C10: Шкаф-стол холодильный СШC-0,2 GN-1400 | D10: С бортом | E10: 0 | F10: 2 | G10: + | H10: 305 | I10: 220 | J10: 1393 | K10: 700 | L10: 840 | M10: 78937.84 | N10: =ROUND(M10*(1-$C$3)/Лист2!$A$6,0) -> 78938
C11: Шкаф-стол холодильный СШC-0,2 GNВ-1400 | D11: Без борта
C12: Шкаф-стол холодильный СШС-0,2-1400 | D12: С бортом | E12: 0 | F12: 2 | G12: - | H12: 255 | I12: 200 | J12: 1393 | K12: 600 | L12: 840 | M12: 78514.64 | N12: =ROUND(M12*(1-$C$3)/Лист2!$A$6,0) -> 78515
C13: Шкаф-стол холодильный СШС-0,2 В-1400 | D13: Без борта
C14: Шкаф-стол холодильный СШС-0,3 GN-1850 | D14: С бортом | E14: 0 | F14: 3 | G14: + | H14: 465 | I14: 310 | J14: 1838 | K14: 700 | L14: 840 | M14: 93059.84 | N14: =ROUND(M14*(1-$C$3)/Лист2!$A$6,0) -> 93060
C15: Шкаф-стол холодильный СШС-0,3 GNВ-1850 | D15: Без борта
C16: Шкаф-стол холодильный СШС-0,3-1850 | D16: С бортом | E16: 0 | F16: 3 | G16: - | H16: 395 | I16: 260 | J16: 1838 | K16: 600 | L16: 840 | M16: 92634.8 | N16: =ROUND(M16*(1-$C$3)/Лист2!$A$6,0) -> 92635
C17: Шкаф-стол холодильный СШС-0,3 В-1850 | D17: Без борта
C18: Шкаф-стол холодильный СШС-0,4 GN-2300 | D18: С бортом | E18: 0 | F18: 4 | G18: + | H18: 620 | I18: 410 | J18: 2283 | K18: 700 | L18: 840 | M18: 112828.8 | N18: =ROUND(M18*(1-$C$3)/Лист2!$A$6,0) -> 112829
C19: Шкаф-стол холодильный СШС-0,4 GNВ-2300 | D19: Без борта
C20: Шкаф-стол холодильный СШС-0,4-2300 | D20: С бортом | E20: 0 | F20: 4 | G20: - | H20: 520 | I20: 340 | J20: 2283 | K20: 600 | L20: 840 | M20: 112405.6 | N20: =ROUND(M20*(1-$C$3)/Лист2!$A$6,0) -> 112406
C21: Шкаф-стол холодильный СШС-0,4 В-2300 | D21: Без борта
A22: Морозильные столы с нержавеющей столешницей (температурный режим, °C -20…-10)
C23: Шкаф-стол морозильный СШН-0,2 GN-1400 | D23: С бортом | E23: 0 | F23: 2 | G23: + | H23: 305 | I23: 220 | J23: 1393 | K23: 700 | L23: 840 | M23: 91647.64 | N23: =ROUND(M23*(1-$C$3)/Лист2!$A$6,0) -> 91648
C24: Шкаф-стол морозильный СШН-0,2 GNВ-1400 | D24: Без борта
C25: Шкаф-стол морозильный СШН-0,2-1400 | D25: С бортом | E25: 0 | F25: 2 | G25: - | H25: 255 | I25: 200 | J25: 1393 | K25: 600 | L25: 840 | M25: 91223.52 | N25: =ROUND(M25*(1-$C$3)/Лист2!$A$6,0) -> 91224
C26: Шкаф-стол морозильный СШН-0,2 В-1400 | D26: Без борта
C27: Шкаф-стол морозильный СШН-0,3 GN-1850 | D27: С бортом | E27: 0 | F27: 3 | G27: + | H27: 465 | I27: 310 | J27: 1838 | K27: 700 | L27: 840 | M27: 117066.32 | N27: =ROUND(M27*(1-$C$3)/Лист2!$A$6,0) -> 117066
C28: Шкаф-стол морозильный СШН-0,3 GNВ-1850 | D28: Без борта
C29: Шкаф-стол морозильный СШН-0,3-1850 | D29: С бортом | E29: 0 | F29: 3 | G29: - | H29: 395 | I29: 260 | J29: 1838 | K29: 600 | L29: 840 | M29: 116642.2 | N29: =ROUND(M29*(1-$C$3)/Лист2!$A$6,0) -> 116642
C30: Шкаф-стол морозильный СШН-0,3 В-1850 | D30: Без борта
C31: Шкаф-стол морозильный СШН-0,4 GN-2300 | D31: С бортом | E31: 0 | F31: 4 | G31: + | H31: 620 | I31: 410 | J31: 2283 | K31: 700 | L31: 840 | M31: 138247.48 | N31: =ROUND(M31*(1-$C$3)/Лист2!$A$6,0) -> 138247
C32: Шкаф-стол морозильный СШН-0,4 GNВ-2300 | D32: Без борта
C33: Шкаф-стол морозильный СШН-0,4-2300 | D33: С бортом | E33: 0 | F33: 4 | G33: - | H33: 520 | I33: 340 | J33: 2283 | K33: 600 | L33: 840 | M33: 137823.36 | N33: =ROUND(M33*(1-$C$3)/Лист2!$A$6,0) -> 137823
C34: Шкаф-стол морозильный СШН-0,4 В-2300 | D34: Без борта
A35: Модификации к холодильным/морозильным столам( добавить к стандартной стоимости изделия)
C36: Замена стандартных ножек на колеса, 2 из них с тормозом | M36: 8218.36 | N36: =ROUND(M36*(1-$C$3)/Лист2!$A$6,0) -> 8218
A37: Опции к холодильным/морозильным столам(поставляются отдельно)
C38: Решетка защитаная для агрега из нержавеющей стали (84312), артикул СО.906.57.00.00 | M38: 1867.6 | N38: =ROUND(M38*(1-$C$3)/Лист2!$A$6,0) -> 1868
C39: Полкодержатель слева (96480) для столов 700, артикул СО.979.03.0000.05 | M39: 336.72 | N39: =ROUND(M39*(1-$C$3)/Лист2!$A$6,0) -> 337
C40: Полкодержатель справа (96481) для столов 700, артикул СО.979.03.0000.05mir | M40: 336.72 | N40: =ROUND(M40*(1-$C$3)/Лист2!$A$6,0) -> 337
C41: Полкодержатель слева (106969) для столов 700, артикул СО.906.03.0000.05 | M41: 311.88 | N41: =ROUND(M41*(1-$C$3)/Лист2!$A$6,0) -> 312
C42: Полкодержатель справа (106970) для столов 700, артикул СО.906.03.0000.05mir | M42: 311.88 | N42: =ROUND(M42*(1-$C$3)/Лист2!$A$6,0) -> 312
C43: Полка решетчатая для столов 700, крашенная (100670), артикул СО.979.56.5000.01 | J43: 332 | K43: 570 | L43: 4(6) | M43: 1184.04 | N43: =ROUND(M43*(1-$C$3)/Лист2!$A$6,0) -> 1184
C44: Полка решетчатая для столов 600, крашенная (100671), артикул СО.906.56.5000.01 | J44: 332 | K44: 470 | L44: 4(6) | M44: 996.36 | N44: =ROUND(M44*(1-$C$3)/Лист2!$A$6,0) -> 996

Sheet Столы Italfrost с нижним (hidden)
A2: Ваша скидка: | C2: =Содержание!D2 -> 0 | N2: На главную
A3: НДС: | C3: =IF(Лист2!A1=TRUE,"С НДС","БЕЗ НДС") -> С НДС
A5: Охлаждаемые столы с нижним расположением агрегата
A6: № | B6: Внешний вид | C6: Наименование | D6: С бортом/ без борта | E6: Количество | G6: Стандарт Gastronorm GN 1/1 | H6: Общий объём, л | I6: Полезный объём, л | J6: Габаритные размеры, мм | M6: Базовая цена, руб. (с НДС) | N6: =Лист2!$A$5 -> Ваша цена, руб.
E7: Ящиков | F7: Дверей | J7: Длина | K7: Ширина | L7: Высота
A8: Холодильные столы с нержавеющей столешницей (температурный режим, °C +1…+10)
C9: Шкаф-стол холодильный СШС-0,2 GN-1000 NDSBS | D9: С бортом | E9: 0 | F9: 2 | G9: + | H9: 245 | I9: 200 | J9: 1000 | K9: 700 | L9: 865 | M9: 72368.12 | N9: =ROUND(M9*(1-$C$2)/Лист2!$A$6,0) -> 72368
C10: Шкаф-стол холодильный СШС-0,2 GN-1000 NDSFS | D10: Без борта
C11: Шкаф-стол холодильный СШС-0,2-1000 NDSBS | D11: С бортом | E11: 0 | F11: 2 | G11: - | H11: 205 | I11: 165 | J11: 1000 | K11: 600 | L11: 865 | M11: 70104 | N11: =ROUND(M11*(1-$C$2)/Лист2!$A$6,0) -> 70104
C12: Шкаф-стол холодильный СШС-0,2-1000 NDSFS | D12: Без борта
C13: Шкаф-стол холодильный СШС-0,3 GN-1500 NDSBS | D13: С бортом | E13: 0 | F13: 3 | G13: + | H13: 375 | I13: 260 | J13: 1500 | K13: 700 | L13: 865 | M13: 86982.32 | N13: =ROUND(M13*(1-$C$2)/Лист2!$A$6,0) -> 86982
C14: Шкаф-стол холодильный СШС-0,3 GN-1500 NDSFS | D14: Без борта
C15: Шкаф-стол холодильный СШС-0,3-1500 NDSBS | D15: С бортом | E15: 0 | F15: 3 | G15: - | H15: 315 | I15: 215 | J15: 1500 | K15: 600 | L15: 865 | M15: 84717.28 | N15: =ROUND(M15*(1-$C$2)/Лист2!$A$6,0) -> 84717
C16: Шкаф-стол холодильный СШС-0,3-1500 NDSFS | D16: Без борта
A17: Морозильные столы с нержавеющей столешницей (температурный режим, °C -20…-10)
C18: Шкаф-стол морозильный СШН-0,2 GN-1000 NDSBS | D18: С бортом | E18: 0 | F18: 2 | G18: + | H18: 245 | I18: 200 | J18: 1000 | K18: 700 | L18: 865 | M18: 80906.64 | N18: =ROUND(M18*(1-$C$2)/Лист2!$A$6,0) -> 80907
C19: Шкаф-стол морозильный СШН-0,2 GN-1000 NDSFS | D19: Без борта
C20: Шкаф-стол морозильный СШН-0,2-1000 NDSBS | D20: С бортом | E20: 0 | F20: 2 | G20: - | H20: 205 | I20: 165 | J20: 1000 | K20: 600 | L20: 865 | M20: 78641.6 | N20: =ROUND(M20*(1-$C$2)/Лист2!$A$6,0) -> 78642
C21: Шкаф-стол морозильный СШН-0,2-1000 NDSFS | D21: Без борта
C22: Шкаф-стол морозильный СШН-0,3 GN-1500 NDSBS | D22: С бортом | E22: 0 | F22: 3 | G22: + | H22: 375 | I22: 260 | J22: 1500 | K22: 700 | L22: 865 | M22: 102087.8 | N22: =ROUND(M22*(1-$C$2)/Лист2!$A$6,0) -> 102088
C23: Шкаф-стол морозильный СШН-0,3 GN-1500 NDSFS | D23: Без борта
C24: Шкаф-стол морозильный СШН-0,3-1500 NDSBS | D24: С бортом | E24: 0 | F24: 3 | G24: - | H24: 315 | I24: 215 | J24: 1500 | K24: 600 | L24: 865 | M24: 99822.76 | N24: =ROUND(M24*(1-$C$2)/Лист2!$A$6,0) -> 99823
C25: Шкаф-стол морозильный СШН-0,3-1500 NDSFS | D25: Без борта
A26: Модификации к холодильным/морозильным столам( добавить к стандартной стоимости изделия)
C27: Замена стандартных ножек на колеса, 2 из них с тормозом | M27: 8218.36 | N27: =ROUND(M27*(1-$C$2)/Лист2!$A$6,0) -> 8218
A28: Опции к холодильным/морозильным столам(поставляются отдельно)
C29: Решетка защитаная для агрега из нержавеющей стали для 2-х секционного стола(135524), артикул СО.1499.57.00.00 | M29: 1992.72 | N29: =ROUND(M29*(1-$C$2)/Лист2!$A$6,0) -> 1993
C30: Решетка защитаная для агрега из нержавеющей стали для 3-х секционного стола(135527), артикул СО.1503.57.00.00 | M30: 2241.12 | N30: =ROUND(M30*(1-$C$2)/Лист2!$A$6,0) -> 2241
C31: Полкодержатель слева (96480) для столов 700, артикул СО.979.03.0000.05 | M31: 336.72 | N31: =ROUND(M31*(1-$C$2)/Лист2!$A$6,0) -> 337
C32: Полкодержатель справа (96481) для столов 700, артикул СО.979.03.0000.05mir | M32: 336.72 | N32: =ROUND(M32*(1-$C$2)/Лист2!$A$6,0) -> 337
C33: Полкодержатель слева (106969) для столов 700, артикул СО.906.03.0000.05 | M33: 311.88 | N33: =ROUND(M33*(1-$C$2)/Лист2!$A$6,0) -> 312
C34: Полкодержатель справа (106970) для столов 700, артикул СО.906.03.0000.05mir | M34: 311.88 | N34: =ROUND(M34*(1-$C$2)/Лист2!$A$6,0) -> 312
C35: Полка решетчатая для столов 700, крашенная (100670), артикул СО.979.56.5000.01 | J35: 332 | K35: 570 | L35: 4(6) | M35: 1184.04 | N35: =ROUND(M35*(1-$C$2)/Лист2!$A$6,0) -> 1184
C36: Полка решетчатая для столов 600, крашенная (100671), артикул СО.906.56.5000.01 | J36: 332 | K36: 470 | L36: 4(6) | M36: 996.36 | N36: =ROUND(M36*(1-$C$2)/Лист2!$A$6,0) -> 996

Sheet Ледогенераторы
K1: На главную
A3: Ваша скидка: | D3: =Содержание!D2 -> 0
A4: НДС: | D4: =IF(Лист2!A1=TRUE,"С НДС","БЕЗ НДС") -> С НДС
A5: Льдогенераторы
A7: № | B7: Изображение | C7: Артикул | D7: Наименование | F7: Производительность кг/сутки | G7: Габариты, (LxWxH) мм | H7: Габариты, (LxWxH) мм | I7: Базовая цена, руб. (с НДС) | J7: =Лист2!$A$5 -> Ваша цена, руб.
A9: Стандартная комплектация: - Корпус выполнен из нержавеющей стали - Управление электро-механическое, охлаждение системы - воздушное, подключение к водопроводу - Хладагент – энергоэффективный пропан, R-290 - Производительность льдогенератора до 20 кг в сутки, емкость бункера 4 кг, тип льда - цилиндрический
A10: 1 | B10: Льдогенератор кубикового льда
C11: ЛГК-24-1-2 | D11: Льдогенератор кубикового льда ЛГК-24-1-2 | F11: 20 | G11: 385х485х610 | H11: 425х550х700 | I11: 85000 | J11: =ROUND(I11*(1-$D$3)/Лист2!$A$6,0) -> 85000
D12: Льдогенератор кубикового льда ЛГК-32-1-2 | F12: 26 | G12: 470х845х610 | H12: 510х550х700 | I12: 99450 | J12: =ROUND(I12*(1-$D$3)/Лист2!$A$6,0) -> 99450
J13: =ROUND(I13*(1-$D$3)/Лист2!$A$6,0) -> 0
I14: НАВЕРХ
K73: =Ледогенераторы!J11=ROUND(J73*(1-$E$3)/Лист2!$A$6,0) -> FALSE

Sheet Цвет стандарт
C1: Стандартные цвета для витрин и стеллажей
M2: На главную
B3: RAL 7016 | E3: RAL 9016 | H3: RAL 1021
B11: RAL 7035 | E11: RAL 7021
B19: RAL 5005 | E19: RAL 6018
B27: RAL 3004 | E27: RAL 9005
B35: RAL 3002 | E35: RAL 5018 (Действительно только для Magnum Quadro)
B44: Структура красок: глянец
B45: За дополнительную плату могут быть
B46: другие цвета красок, краски с другой структурой (матовая).
B47: В структуры шагрень и муар производитель не красит оборудование в виду их
B48: непрактичности (сложно с покрытия без специальных средств удалять загрязнения).
H51: Дуб Сонома
B52: Расшифровка характеристик ЛДСП
B53: Тип фронталальной панели | C53: Символ | D53: Расшифровка
B54: Фронтальная панель широкая, ЛДСП | C54: G | D54: Дуб Сонома
B57: Фронтальная панель узкая, ЛДСП | C57: L | D57: Дуб Сонома
B60: Фронтальная панель широкая, ЛДСП с отбойником | C60: Q | D60: Дуб Сонома
B63: Фронтальная панель узкая, ЛДСП с отбойником | C63: U
D65: Дуб Сонома

Sheet Расчет нестанд.RAL
K1: На главную
C2: Таблица расчета нестандартных RAL
B4: Лари Itlafrost | C4: 1. Стандартный цвет корпуса - RAL9003;
C6: 2. На заказ - краска нестандартного RAL с повышающим коэффициентом +1,5% к цене
B8: Ларь-бонеты и суперструктуры | C8: 1. Стандартный цвет корпуса - RAL9003; Делители/корзины/решетки - RAL9003
C10: 2. На заказ - краска нестандартного RAL с повышающим коэффициентом +1,5% к цене Покраска в нестандартный цвет суперструктуры - наценка на глянцевую краску +3%, на матовую и структурную краску +8%;
B12: Octava | C12: 1. Стандартная цветовая гамма (без изменения цены) указана на вкладке "цвет стандарт"
C14: 2. На заказ - краска нестандартного RAL с повышающим коэффициентом +3% к цене
B16: Gamma | C16: 1. Стандартная цветовая гамма (без изменения цены) указана на вкладке "цвет стандарт"
C18: 2. На заказ - краска нестандартного RAL с повышающим коэффициентом +3% к цене
B20: Gamma Quadro | C20: 1. Стандартная цветовая гамма (без изменения цены) указана на вкладке "цвет стандарт"
C23: 2. На заказ - краска нестандартного RAL с повышающим коэффициентом +3% к цене
B25: Magnum | C25: 1. Стандартная цветовая гамма (без изменения цены) указана на вкладке "цвет стандарт"
C27: 2. На заказ - краска нестандартного RAL с повышающим коэффициентом +3% к цене
B29: Magnum Quadro | C29: 1. Стандартная цветовая гамма (без изменения цены) указана на вкладке "цвет стандарт"
C31: 2. На заказ - краска нестандартного RAL с повышающим коэффициентом +3% к цене
B34: Elegia Quadro | C34: 1. Стандартная цветовая гамма (без изменения цены) указана на вкладке "цвет стандарт"
C35: 2. На заказ - краска нестандартного RAL без дополнительной наценки (см.список нестандартных RAL).
B37: Adagio | C37: 1. Стандартная цветовая гамма (без изменения цены) указана на вкладке "цвет стандарт"
C39: Покраска в нестандартный цвет наружных панелей; Покраска в нестандартный цвет внутреннего объема - наценка к стоимости витрины 3 %. Замена оцинкованного металла во внутреннем объеме на нержавеющий (базовая полка, стойки, кронштейны) - наценка к стоимости витрины 5%;
C40: 2. Срок производства витрины при покраске в нестандартный цвет может увеличится. На 7 дней и более.
B42: SOLO | C42: 1. Стандартная цветовая гамма (без изменения цены): белый/серый антрацит (RAL 9016/7016), темно-вишневый(RAL 3004), пунцовый красный (RAL3002), синий (RAL5005), светло зеленый (RAL 6018), светло-серый (RAL7035); черный (RAL9005)
C44: 2. Покраска в нестандартный цвет наружных панелей - наценка к стоимости стеллажа 2 %
C45: 3. Покраска в нестандартный цвет полок, задней стенки, потолочной панели, поддона выкладки - наценка к стоимости стеллажа 6 %
C46: 4. Покраска боковин в нестандартный цвет - наценка к стоимости комплекта боковин 10%.
B48: SOLO DG | C48: 1. Стандартная цветовая гамма (без изменения цены): белый/серый антрацит (RAL 9016/7016), темно-вишневый(RAL 3004), пунцовый красный (RAL3002), синий (RAL5005), светло зеленый (RAL 6018), светло-серый (RAL7035); черный (RAL9005)
C50: 2. Покраска в нестандартный цвет наружных панелей - наценка к стоимости стеллажа 1,5 %
C51: 3. Покраска в нестандартный цвет полок, задней стенки, потолочной панели, поддона выкладки - наценка к стоимости стеллажа 4,5 %
C52: 4. Покраска боковин в нестандартный цвет - наценка к стоимости комплекта боковин 10%.
B54: UNIT | C54: 1. Стандартная цветовая гамма (без изменения цены): белый/серый антрацит (RAL 9016/7016), темно-вишневый(RAL 3004), пунцовый красный (RAL3002), синий (RAL5005), светло зеленый (RAL 6018), светло-серый (RAL7035); черный (RAL9005).
C56: 2. На заказ - стеллаж нестандартного RAL +2% к цене.
C58: 3. RAL, не вошедшие в список, являются заказными. Цена по запросу.
B60: Rimini | C60: 1. Стандартная цветовая гамма (без изменения цены) указана на вкладке "цвет стандарт"
C62: 2. Покраска в нестандартный цвет наружных панелей - наценка к стоимости стеллажа 2 %
C63: 3. Покраска в нестандартный цвет полок, задней стенки, потолочной панели, поддона выкладки - наценка к стоимости стеллажа 6 %
C64: 4. Покраска боковин в нестандартный цвет - наценка к стоимости комплекта боковин 10%.
B66: Rimini DG | C66: 1. Стандартная цветовая гамма (без изменения цены) указана на вкладке "цвет стандарт"
C68: 2. Покраска в нестандартный цвет наружных панелей - наценка к стоимости стеллажа 1,5 %
C69: 3. Покраска в нестандартный цвет полок, задней стенки, потолочной панели, поддона выкладки - наценка к стоимости стеллажа 4,5 %
C70: 4. Покраска боковин в нестандартный цвет - наценка к стоимости комплекта боковин 10%.
B72: Veneto | C72: 1. Стандартная цветовая гамма (без изменения цены) указана на вкладке "цвет стандарт"
C74: 2. На заказ - краска нестандартного RAL с повышающим коэффициентом +3% к цене
B76: Toscana | C76: 1. Стандартная цветовая гамма (без изменения цены) указана на вкладке "цвет стандарт"
C78: 2. На заказ - краска нестандартного RAL с повышающим коэффициентом +3% к цене
B80: Milan | C80: 1. Стандартная цветовая гамма (без изменения цены) указана на вкладке "цвет стандарт"
C82: 2. Покраска в нестандартный цвет наружных панелей - наценка к стоимости стеллажа 1 %
C83: 3. Покраска в нестандартный цвет полок, задней стенки, потолочной панели, поддона выкладки - наценка к стоимости стеллажа 3 %
C84: 4. Покраска боковин в нестандартный цвет - наценка к стоимости комплекта боковин 10%.
B86: Lazio | C86: 1. Стандартная цветовая гамма (без изменения цены) указана на вкладке "цвет стандарт"
C88: 2. Покраска в нестандартный цвет наружных панелей - наценка к стоимости стеллажа 2 %
C89: 3. Покраска в нестандартный цвет полок, задней стенки, потолочной панели, поддона выкладки - наценка к стоимости стеллажа 6 %
C90: 4. Покраска боковин в нестандартный цвет - наценка к стоимости комплекта боковин 10%.
G92: НАВЕРХ

Sheet Брендирование
K2: На главную
A6: ПРАЙС-ЛИСТ. ДОПЛАТА ЗА БРЕНДИРОВАНИЕ ЛАРЕЙ ITALFROST
G7: НДС: | I7: =IF([2]Лист2!A1=TRUE,"С НДС","БЕЗ НДС") -> С НДС
B8: 2021-11-21 | H8: Размер вашей скидки | I8: =Содержание!D2 -> 0
A9: № | B9: Изображение | C9: Оклейка | E9: Размеры стикера, мм | H9: =CONCATENATE([2]ВАЛЮТЫ!B11," С НДС") -> Базовая цена, руб. С НДС | I9: =[2]Лист2!A5 -> Ваша цена, руб. | J9: Назад на страницу ларей
E10: Фронт | F10: Боковины | G10: Спина
A11: 1 | B11: Морозильные лари с гнутыми раздвижными стеклами
C12: CF(T)200C | D12: 1 сторона | E12: 840х710 | F12: 640х800 | G12: 840х800 | H12: 1004.916061 | I12: =ROUND(H12*(1-I8)/Лист2!$A$6,0) -> 1005
D13: 3 стороны | H13: 2234.255063 | I13: =ROUND(H13*(1-I8)/Лист2!$A$6,0) -> 2234
D14: 4 стороны | H14: 3321.459536 | I14: =ROUND(H14*(1-I8)/Лист2!$A$6,0) -> 3321
C15: CF(T)300C | D15: 1 сторона | E15: 1040х710 | F15: 640х800 | G15: 1040х800 | H15: 1169.492885 | I15: =ROUND(H15*(1-I8)/Лист2!$A$6,0) -> 1169
D16: 3 стороны | H16: 2406.312652 | I16: =ROUND(H16*(1-I8)/Лист2!$A$6,0) -> 2406
D17: 4 стороны | H17: 3683.02983 | I17: =ROUND(H17*(1-I8)/Лист2!$A$6,0) -> 3683
C18: CF(T)400C | D18: 1 сторона | E18: 1240х710 | F18: 640х800 | G18: 1240х800 | H18: 1344.044061 | I18: =ROUND(H18*(1-I8)/Лист2!$A$6,0) -> 1344
D19: 3 стороны | H19: 2493.58824 | I19: =ROUND(H19*(1-I8)/Лист2!$A$6,0) -> 2494
D20: 4 стороны | H20: 4054.574478 | I20: =ROUND(H20*(1-I8)/Лист2!$A$6,0) -> 4055
C21: CF(T)500C | D21: 1 сторона | E21: 1460х710 | F21: 640х800 | G21: 1460х800 | H21: 1533.556768 | I21: =ROUND(H21*(1-I8)/Лист2!$A$6,0) -> 1534
D22: 3 стороны | H22: 2770.376535 | I22: =ROUND(H22*(1-I8)/Лист2!$A$6,0) -> 2770
D23: 4 стороны | H23: 4451.055008 | I23: =ROUND(H23*(1-I8)/Лист2!$A$6,0) -> 4451
C24: CF(T)600C | D24: 1 сторона | E24: 1680х710 | F24: 640х800 | G24: 1680х800 | H24: 1723.069474 | I24: =ROUND(H24*(1-I8)/Лист2!$A$6,0) -> 1723
D25: 3 стороны | H25: 2949.914888 | I25: =ROUND(H25*(1-I8)/Лист2!$A$6,0) -> 2950
D26: 4 стороны | H26: 4855.016303 | I26: =ROUND(H26*(1-I8)/Лист2!$A$6,0) -> 4855
A27: 2 | B27: Морозильные лари с прямыми раздвижными стеклами
C28: CF(T)200F | D28: 1 сторона | E28: 840х810 | F28: 640х810 | G28: 840х810 | H28: 1104.65959 | I28: =ROUND(H28*(1-$I$8)/[2]СОДЕРЖАНИЕ!$C$6/[2]Лист2!$A$6,0) -> 1105
D29: 3 стороны | H29: 2348.960122 | I29: =ROUND(H29*(1-$I$8)/[2]СОДЕРЖАНИЕ!$C$6/[2]Лист2!$A$6,0) -> 2349
D30: 4 стороны | H30: 3453.619712 | I30: =ROUND(H30*(1-$I$8)/[2]СОДЕРЖАНИЕ!$C$6/[2]Лист2!$A$6,0) -> 3454
C31: CF(T)300F | D31: 1 сторона | E31: 1040х810 | F31: 640х810 | G31: 1040х810 | H31: 1301.653061 | I31: =ROUND(H31*(1-$I$8)/[2]СОДЕРЖАНИЕ!$C$6/[2]Лист2!$A$6,0) -> 1302
D32: 3 стороны | H32: 2545.953593 | I32: =ROUND(H32*(1-$I$8)/[2]СОДЕРЖАНИЕ!$C$6/[2]Лист2!$A$6,0) -> 2546
D33: 4 стороны | H33: 3842.619478 | I33: =ROUND(H33*(1-$I$8)/[2]СОДЕРЖАНИЕ!$C$6/[2]Лист2!$A$6,0) -> 3843
C34: CF(T)400F | D34: 1 сторона | E34: 1240х810 | F34: 640х810 | G34: 1240х810 | H34: 1491.165768 | I34: =ROUND(H34*(1-$I$8)/[2]СОДЕРЖАНИЕ!$C$6/[2]Лист2!$A$6,0) -> 1491
D35: 3 стороны | H35: 2742.947064 | I35: =ROUND(H35*(1-$I$8)/[2]СОДЕРЖАНИЕ!$C$6/[2]Лист2!$A$6,0) -> 2743
D36: 4 стороны | H36: 4229.125655 | I36: =ROUND(H36*(1-$I$8)/[2]СОДЕРЖАНИЕ!$C$6/[2]Лист2!$A$6,0) -> 4229
C37: CF(T)500F | D37: 1 сторона | E37: 1460х810 | F37: 640х810 | G37: 1460х810 | H37: 1705.614356 | I37: =ROUND(H37*(1-$I$8)/[2]СОДЕРЖАНИЕ!$C$6/[2]Лист2!$A$6,0) -> 1706
D38: 3 стороны | H38: 2959.889241 | I38: =ROUND(H38*(1-$I$8)/[2]СОДЕРЖАНИЕ!$C$6/[2]Лист2!$A$6,0) -> 2960
D39: 4 стороны | H39: 4655.529244 | I39: =ROUND(H39*(1-$I$8)/[2]СОДЕРЖАНИЕ!$C$6/[2]Лист2!$A$6,0) -> 4656
C40: CF(T)600F | D40: 1 сторона | E40: 1680Х810 | F40: 640х810 | G40: 1680х810 | H40: 1920.062945 | I40: =ROUND(H40*(1-$I$8)/[2]СОДЕРЖАНИЕ!$C$6/[2]Лист2!$A$6,0) -> 1920
D41: 3 стороны | H41: 3174.33783 | I41: =ROUND(H41*(1-$I$8)/[2]СОДЕРЖАНИЕ!$C$6/[2]Лист2!$A$6,0) -> 3174
D42: 4 стороны | H42: 5094.400774 | I42: =ROUND(H42*(1-$I$8)/[2]СОДЕРЖАНИЕ!$C$6/[2]Лист2!$A$6,0) -> 5094
A43: 3 | B43: Низкотемпературная надстройка над ларем 400 л. Verona
D44: 1 сторона (верхний баннер, фронтальная часть) | E44: - | F44: - | G44: - | H44: 4657.5 | I44: =ROUND(H44*(1-$I$8)/[2]СОДЕРЖАНИЕ!$C$6/[2]Лист2!$A$6,0) -> 4658
D45: 3 стороны (верхний баннер (фронтальная часть) + 2 боковины) | H45: 7917.75 | I45: =ROUND(H45*(1-$I$8)/[2]СОДЕРЖАНИЕ!$C$6/[2]Лист2!$A$6,0) -> 7918
A48: Примечание: | C48: Пленка толщиной 100 мкр + ламинация толщиной 80 мкр. Качество 720 dpi.

Sheet Лист1 (hidden)

Sheet Лист2 (hidden)
A1: TRUE
A2: Базовая цена, руб.
A3: Базовая цена, руб. б/НДС
A4: =IF(A1=TRUE,"руб.","руб. б/НДС") -> руб.
A5: =CONCATENATE("Ваша цена, ",A4) -> Ваша цена, руб.
A6: =IF(A1=TRUE,1,1.2) -> 1
A7: =IF(A1=TRUE,1,1.2) -> 1
